Workbook

Sheet Control
A3: State Inventory Tool - CH4 and N2O Emissions from Mobile Combustion Module
A5: 1. Select those modes of transport you wish to analyze.
A6: Select any or all of the modes listed below.
A15: 2. Choose a State
A16: This is very important - it selects the correct default variables for your state.
A18: 3. Would you like to conduct optional CO2 calculations?
A19: The CO2FFC module is responsible for the main CO2 calculations from the mobile sector, but this module provides a mode-specific analysis if you wish.
A24: 4. - 11. Proceed with transportation mode-specific analysis. . .
A28: You will be led through the following series of worksheets using navigational arrows located at the top of each worksheet:
A30: 4. Highway Vehicle Worksheets
A31: 4a. Highway Vehicles - Emission Factors and VMT Worksheet
A32: 4b. Highway Vehicles - Allocating VMT by Model Year Worksheet
A33: 4c. Highway Vehicles - Allocating Control Technology by Model Year Worksheet
A34: 5. Aviation Worksheet
A35: 6. Marine Worksheet
A36: 7. Locomotive Worksheet
A37: 8. Other Non-Highway Worksheet
A38: 9. Alternative Fuel Vehicles Worksheet
A39: 10. Highway CO2 Worksheet
A40: 11. Non-Highway CO2 Worksheet
A42: 12. Review the Summary Information
A49: 13. Export the results for use in the Synthesis Tool.
A55: Please note: The emission factors provided in this tool are given in g/km. In the EIIP Guidance, the emission factors are in g/m
A57: Constants and/or Factors Used Throughout the Module | E57: Default
A58: The default GWPs used in this module are from the IPCC Fourth Assessment Report (AR4) but can be adjusted in the cells below to reflect other sources.
A59: Methane GWP | E59: 25
A60: Nitrous Oxide GWP | E60: 298
A61: Number of Days per Year | E61: 365
A62: Gallons/Barrel | E62: 42
A63: Kilometers/Mile | E63: 1.609347228
A64: Carbon / CO2 | E64: =12/44 -> 0.2727272727
A65: Grams / Teragram (g / Tg) | E65: =10^12 -> 1000000000000

Sheet Highway1
A1: 4a. Highway Vehicles - Emission Factors and VMT
A4: 1. Verify the Emission Factors that are used to calculate CH4 and N2O emissions from Highway Vehicles. | K4: Click for Code Help
AI5: All factors from Mobile 07.xls
A6: N2O Emission Factors (g/mi traveled) | AI6: N2O Emission Factors (g/km traveled) | AL6: 2 | AM6: 3 | AN6: 4 | AO6: 5 | AP6: 6 | AQ6: 7 | AR6: 8
A7: Control Technology | D7: LDGV | E7: LDGT | F7: HDGV | G7: LDDV | H7: LDDT | I7: HDDV | J7: MC | AI7: Control Technology | AL7: LDGV | AM7: LDGT | AN7: HDGV | AO7: LDDV | AP7: LDDT | AQ7: HDDV | AR7: MC
D8: 2 | E8: 3 | F8: 4 | G8: 5 | H8: 6 | I8: 7 | J8: 8 | AL8: 2 | AM8: 3 | AN8: 4 | AO8: 5 | AP8: 6 | AQ8: 7 | AR8: 8
A9: Three-way Catalyst (T2) | C9: T2 | AI9: Three-way Catalyst (T2) | AK9: T2 | AL9: 0.003593874113 | AM9: 0.006550981603 | AN9: 0.01337963432
A10: Three-way Catalyst (T1) | C10: T1 | AI10: Three-way Catalyst (T1) | AK10: T1 | AL10: 0.04291618783 | AM10: 0.08708610602 | AN10: 0.1749727031
A11: Early 3-way Catalyst (T0) | C11: T0 | AI11: Early 3-way Catalyst (T0) | AK11: T0 | AL11: 0.06472822372 | AM11: 0.1056154536 | AN11: 0.2134769357
A12: Oxidation Catalyst | C12: O | AI12: Oxidation Catalyst | AK12: O | AL12: 0.05036295214 | AM12: 0.06393850077 | AN12: 0.131651176
A13: Non-Catalyst | C13: N | AI13: Non-Catalyst | AK13: N | AL13: 0.01969592508 | AM13: 0.02177589829 | AN13: 0.0473472274 | AR13: 0.006850825356
A14: Low Emission Vehicle | C14: L | AI14: LEV | AK14: L | AL14: 0.01504827747 | AM14: 0.01568136556 | AN14: 0.03202740439
A15: Advanced | C15: A | AI15: Advanced | AK15: A | AO15: 0.00102330375 | AP15: 0.001479887025 | AQ15: 0.004844510227
A16: Moderate | C16: M | AI16: Moderate | AK16: M | AO16: 0.001045379303 | AP16: 0.001449134225 | AQ16: 0.004844510227
A17: Uncontrolled | C17: U | AI17: Uncontrolled | AK17: U | AL17: 0.01969592508 | AM17: 0.02201527808 | AN17: 0.04968651729 | AO17: 0.00123924572 | AP17: 0.00167445409 | AQ17: 0.004844510227 | AR17: 0.008732215047
D18: Source: Default values from EPA, 2010. Inventory of U.S. Greenhouse Gas Emissions and Sinks: 1990-2008.
A19: CH4 Emission Factors (g/mi traveled) | AI19: CH4 Emission Factors (g/km traveled)
A20: Control Technology | D20: LDGV | E20: LDGT | F20: HDGV | G20: LDDV | H20: LDDT | I20: HDDV | J20: MC | AI20: Control Technology | AL20: LDGV | AM20: LDGT | AN20: HDGV | AO20: LDDV | AP20: LDDT | AQ20: HDDV | AR20: MC
A21: Three-way Catalyst (T2) | C21: T2 | AI21: Three-way Catalyst (T2) | AK21: T2 | AL21: 0.01733119718 | AM21: 0.01630206671 | AN21: 0.03329511583
A22: Three-way Catalyst (T1) | C22: T1 | AI22: Three-way Catalyst (T1) | AK22: T1 | AL22: 0.02709343323 | AM22: 0.04519960877 | AN22: 0.06552047974
A23: Early 3-way Catalyst (T0) | C23: T0 | AI23: Early 3-way Catalyst (T0) | AK23: T0 | AL23: 0.07039956094 | AM23: 0.07759099817 | AN23: 0.2629672782
A24: Oxidation Catalyst | C24: O | AI24: Oxidation Catalyst | AK24: O | AL24: 0.1354940918 | AM24: 0.1515777888 | AN24: 0.2356370049
A25: Non-Catalyst | C25: N | AI25: Non-Catalyst | AK25: N | AL25: 0.1695757087 | AM25: 0.1908207837 | AN25: 0.4180759569 | AR25: 0.06720462876
A26: Low Emission Vehicle | C26: L | AI26: LEV | AK26: L | AL26: 0.01048501718 | AM26: 0.01481903938 | AN26: 0.0302662013
A27: Advanced | C27: A | AI27: Advanced | AK27: A | AO27: 0.0004655566431 | AP27: 0.000950928791 | AQ27: 0.00514480625
A28: Moderate | C28: M | AI28: Moderate | AK28: M | AO28: 0.0004756000153 | AP28: 0.0009311680102 | AQ28: 0.00514480625
A29: Uncontrolled | C29: U | AI29: Uncontrolled | AK29: U | AL29: 0.1779539552 | AM29: 0.2024499974 | AN29: 0.46040836 | AO29: 0.0005638004137 | AP29: 0.001075951458 | AQ29: 0.00514480625 | AR29: 0.08989276036
D30: Source: Default values from EPA, 2010. Inventory of U.S. Greenhouse Gas Emissions and Sinks: 1990-2008.
A32: 2. Enter state-specific data on vehicle miles traveled (VMT) by vehicle type.
A33: Enter custom data in the table below, or use the provided default data.*
B34: State Total Vehicle Miles Traveled (Millions)
D35: 1990 | E35: 1991 | F35: 1992 | G35: 1993 | H35: 1994 | I35: 1995 | J35: 1996 | K35: 1997 | L35: 1998 | M35: 1999 | N35: 2000 | O35: 2001 | P35: 2002 | Q35: 2003 | R35: 2004 | S35: 2005 | T35: 2006 | U35: 2007 | V35: 2008 | W35: 2009 | X35: 2010 | Y35: 2011 | Z35: 2012 | AA35: 2013 | AB35: 2014 | AC35: 2015 | AD35: 2016 | AE35: 2017 | AF35: 2018 | AG35: 2019 | AH35: 2020
B36: HDDV | C36: 2
B37: HDGV | C37: 3
B38: LDDT | C38: 4
B39: LDDV | C39: 5
B40: LDGT | C40: 6
B41: LDGV | C41: 7
B42: MC | C42: 8
B43: Total | D43: =SUM(D36:D42) -> 0 | E43: =SUM(E36:E42) -> 0 | F43: 0 | G43: 0 | H43: 0 | I43: 0 | J43: 0 | K43: 0 | L43: 0 | M43: 0 | N43: 0 | O43: 0 | P43: 0 | Q43: 0 | R43: 0 | S43: 0 | T43: 0 | U43: 0 | V43: 0 | W43: 0 | X43: 0 | Y43: 0 | Z43: 0 | AA43: 0 | AB43: 0 | AC43: 0 | AD43: 0 | AE43: 0 | AF43: 0 | AG43: 0 | AH43: 0
B44: * Default data for this table is not complete for all years and vehicle types by state. Null values signify unavailable data.
B45: Values are derived from tables VM-1 and VM-2 of Federal Highway Administration's "Highway Statistics" series (https://www.fhwa.dot.gov/policyinformation/statistics.cfm). Please see these reports for specific notes on state-
B46: reported data.

Sheet Highway2
A1: 4b. Highway Vehicles - Allocating VMT by Model Year
A3: 3. Verify the Age Distribution and Annual Vehicle Mileage Accumulation. | DH3: Update These Tables! | DR3: 1999LDGV | DS3: 1999LDGT | DT3: 1999HDGV | DU3: 1999LDDV | DV3: 1999LDDT | DW3: 1999HDDV | DX3: 1999MC | EA3: 2000LDGV | EB3: 2000LDGT | EC3: 2000HDGV | ED3: 2000LDDV | EE3: 2000LDDT | EF3: 2000HDDV | EG3: 2000MC | EJ3: 2001LDGV | EK3: 2001LDGT | EL3: 2001HDGV | EM3: 2001LDDV | EN3: 2001LDDT | EO3: 2001HDDV | EP3: 2001MC | ES3: 2002LDGV | ET3: 2002LDGT | EU3: 2002HDGV | EV3: 2002LDDV | EW3: 2002LDDT | EX3: 2002HDDV | EY3: 2002MC | FB3: 2003LDGV | FC3: 2003LDGT | FD3: 2003HDGV | FE3: 2003LDDV | FF3: 2003LDDT | FG3: 2003HDDV | FH3: 2003MC | FK3: 2004LDGV | FL3: 2004LDGT | FM3: 2004HDGV | FN3: 2004LDDV | FO3: 2004LDDT | FP3: 2004HDDV | FQ3: 2004MC | FT3: 2005LDGV | FU3: 2005LDGT | FV3: 2005HDGV | FW3: 2005LDDV | FX3: 2005LDDT | FY3: 2005HDDV | FZ3: 2005MC | GC3: 2006LDGV | GD3: 2006LDGT | GE3: 2006HDGV | GF3: 2006LDDV | GG3: 2006LDDT | GH3: 2006HDDV | GI3: 2006MC | GL3: 2007LDGV | GM3: 2007LDGT | GN3: 2007HDGV | GO3: 2007LDDV | GP3: 2007LDDT | GQ3: 2007HDDV | GR3: 2007MC | GU3: 2008LDGV | GV3: 2008LDGT | GW3: 2008HDGV | GX3: 2008LDDV | GY3: 2008LDDT | GZ3: 2008HDDV | HA3: 2008MC | HD3: 2009LDGV | HE3: 2009LDGT | HF3: 2009HDGV | HG3: 2009LDDV | HH3: 2009LDDT | HI3: 2009HDDV | HJ3: 2009MC | HM3: 2010LDGV | HN3: 2010LDGT | HO3: 2010HDGV | HP3: 2010LDDV | HQ3: 2010LDDT | HR3: 2010HDDV | HS3: 2010MC | HV3: 2011LDGV | HW3: 2011LDGT | HX3: 2011HDGV | HY3: 2011LDDV | HZ3: 2011LDDT | IA3: 2011HDDV | IB3: 2011MC | IE3: 2012LDGV | IF3: 2012LDGT | IG3: 2012HDGV | IH3: 2012LDDV | II3: 2012LDDT | IJ3: 2012HDDV | IK3: 2012MC | IN3: 2013LDGV | IO3: 2013LDGT | IP3: 2013HDGV | IQ3: 2013LDDV | IR3: 2013LDDT | IS3: 2013HDDV | IT3: 2013MC
A4: • The data in these tables are used to calculate percentage of VMT allocated to each model year vehicle. Use the arrow buttons to select the year you would like to estimate. For that selected year, estimates will populate the yellow shaded cells in Table I and Table II. • In Table I below, review the values for annual vehicle mileage accumulation. If you wish to change any values, simply type your values in the yellow shaded cells. These values will remain constant for all inventory years. Next, review the values for vehicle age distribution in Table II. Again, you may type over any values in the yellow shaded cells you wish to change. These values in Table II may differ among inventory years. If you would like to restore the original values, click on the "Restore Default Data" button. If you would like to clear default data in Table I and Table II, click on the "Clear Age Distribution Entries" and "Clear Mileage Accumulation Entries" buttons. • Once you have finished entering data for a particular year, click on the "Save Data" button, and your entries for the selected year will be saved. • If you would like to use default data for all inventory years, you may bypass the above steps by clicking on the "Restore Default Data for All Years" button. Table I and II will not have values, however values will be populated and saved in the white tables below. | DH4: Table IIa: Age Distribution, 1998 and earlier Each column must add up to 100%. | DQ4: Table IIb: Age Distribution, 1999. Each column must add up to 100%. | DZ4: Table IIc: Age Distribution, 2000. Each column must add up to 100%. | EI4: Table IId: Age Distribution, 2001. Each column must add up to 100%. | ER4: Table IIe: Age Distribution, 2002. Each column must add up to 100%. | FA4: Table IIf: Age Distribution, 2003. Each column must add up to 100%. | FJ4: Table IIg: Age Distribution, 2004. Each column must add up to 100%. | FS4: Table IIh: Age Distribution, 2005. Each column must add up to 100%. | GB4: Table IIh: Age Distribution, 2006. Each column must add up to 100%. | GK4: Table IIh: Age Distribution, 2007. Each column must add up to 100%. | GT4: Table IIh: Age Distribution, 2008. Each column must add up to 100%. | HC4: Table IIh: Age Distribution, 2009. Each column must add up to 100%. | HL4: Table IIh: Age Distribution, 2010. Each column must add up to 100%. | HU4: Table IIh: Age Distribution, 2011. Each column must add up to 100%. | ID4: Table IIh: Age Distribution, 2012. Each column must add up to 100%. | IM4: Table IIh: Age Distribution, 2013. Each column must add up to 100%.
DH5: MY | DI5: LDGV | DJ5: LDGT | DK5: HDGV | DL5: LDDV | DM5: LDDT | DN5: HDDV | DO5: MC | DQ5: MY | DR5: LDGV | DS5: LDGT | DT5: HDGV | DU5: LDDV | DV5: LDDT | DW5: HDDV | DX5: MC | DZ5: MY | EA5: LDGV | EB5: LDGT | EC5: HDGV | ED5: LDDV | EE5: LDDT | EF5: HDDV | EG5: MC | EI5: MY | EJ5: LDGV | EK5: LDGT | EL5: HDGV | EM5: LDDV | EN5: LDDT | EO5: HDDV | EP5: MC | ER5: MY | ES5: LDGV | ET5: LDGT | EU5: HDGV | EV5: LDDV | EW5: LDDT | EX5: HDDV | EY5: MC | FA5: MY | FB5: LDGV | FC5: LDGT | FD5: HDGV | FE5: LDDV | FF5: LDDT | FG5: HDDV | FH5: MC | FJ5: MY | FK5: LDGV | FL5: LDGT | FM5: HDGV | FN5: LDDV | FO5: LDDT | FP5: HDDV | FQ5: MC | FS5: MY | FT5: LDGV | FU5: LDGT | FV5: HDGV | FW5: LDDV | FX5: LDDT | FY5: HDDV | FZ5: MC | GB5: MY | GC5: LDGV | GD5: LDGT | GE5: HDGV | GF5: LDDV | GG5: LDDT | GH5: HDDV | GI5: MC | GK5: MY | GL5: LDGV | GM5: LDGT | GN5: HDGV | GO5: LDDV | GP5: LDDT | GQ5: HDDV | GR5: MC | GT5: MY | GU5: LDGV | GV5: LDGT | GW5: HDGV | GX5: LDDV | GY5: LDDT | GZ5: HDDV | HA5: MC | HC5: MY | HD5: LDGV | HE5: LDGT | HF5: HDGV | HG5: LDDV | HH5: LDDT | HI5: HDDV | HJ5: MC | HL5: MY | HM5: LDGV | HN5: LDGT | HO5: HDGV | HP5: LDDV | HQ5: LDDT | HR5: HDDV | HS5: MC | HU5: MY | HV5: LDGV | HW5: LDGT | HX5: HDGV | HY5: LDDV | HZ5: LDDT | IA5: HDDV | IB5: MC | ID5: MY | IE5: LDGV | IF5: LDGT | IG5: HDGV | IH5: LDDV | II5: LDDT | IJ5: HDDV | IK5: MC | IM5: MY | IN5: LDGV | IO5: LDGT | IP5: HDGV | IQ5: LDDV | IR5: LDDT | IS5: HDDV | IT5: MC
F6: 2018 | DH6: 0 | DI6: 0.05298464138 | DJ6: 0.0584797241 | DK6: 0.04868271471 | DL6: 0.05298464138 | DM6: 0.05941360611 | DN6: 0.04196141594 | DO6: 0.144 | DQ6: 0 | DR6: 0.0650650872 | DS6: 0.1018980142 | DT6: 0.08110040376 | DU6: 0.0650650872 | DV6: 0.1018980142 | DW6: 0.08110040376 | DX6: 0.09471356419 | DZ6: 0 | EA6: 0.06572402983 | EB6: 0.09921798835 | EC6: 0.0711072366 | ED6: 0.06572402983 | EE6: 0.09921798835 | EF6: 0.0711072366 | EG6: 0.09358121976 | EI6: 0 | EJ6: 0.06246435997 | EK6: 0.05525458555 | EL6: 0.05525458555 | EM6: 0.06246435997 | EN6: 0.05525458555 | EO6: 0.05525458555 | EP6: 0.08707795143 | ER6: 0 | ES6: 0.06023152651 | ET6: 0.09176486476 | EU6: 0.04865815045 | EV6: 0.06023152651 | EW6: 0.09176486476 | EX6: 0.04865815045 | EY6: 0.08288497361 | FA6: 0 | FB6: 0.05695960212 | FC6: 0.08937441406 | FD6: 0.05109564012 | FE6: 0.05695960212 | FF6: 0.08937441406 | FG6: 0.05109564012 | FH6: 0.08256257208 | FJ6: 0 | FK6: 0.05663697088 | FL6: 0.08888450109 | FM6: 0.06029025113 | FN6: 0.05663697088 | FO6: 0.08888450109 | FP6: 0.06029025113 | FQ6: 0.08209629722 | FS6: 0 | FT6: 0.05824246312 | FU6: 0.0841120178 | FV6: 0.06142355925 | FW6: 0.05824246312 | FX6: 0.0841120178 | FY6: 0.06142355925 | FZ6: 0.08357369338 | GB6: 0 | GC6: 0.06189464631 | GD6: 0.07529763408 | GE6: 0.06301434107 | GF6: 0.06189464631 | GG6: 0.07529763408 | GH6: 0.06301434107 | GI6: 0.08642208168 | GK6: 0 | GL6: =GC6 -> 0.06189464631 | GM6: =GD6 -> 0.07529763408 | GN6: =GE6 -> 0.06301434107 | GO6: =GF6 -> 0.06189464631 | GP6: =GG6 -> 0.07529763408 | GQ6: =GH6 -> 0.06301434107 | GR6: =GI6 -> 0.08642208168 | GT6: 0 | GU6: =GL6 -> 0.06189464631 | GV6: =GM6 -> 0.07529763408 | GW6: =GN6 -> 0.06301434107 | GX6: =GO6 -> 0.06189464631 | GY6: =GP6 -> 0.07529763408 | GZ6: =GQ6 -> 0.06301434107 | HA6: =GR6 -> 0.08642208168 | HC6: 0 | HD6: =GU6 -> 0.06189464631 | HE6: =GV6 -> 0.07529763408 | HF6: =GW6 -> 0.06301434107 | HG6: =GX6 -> 0.06189464631 | HH6: =GY6 -> 0.07529763408 | HI6: =GZ6 -> 0.06301434107 | HJ6: =HA6 -> 0.08642208168 | HL6: 0 | HM6: =HD6 -> 0.06189464631 | HN6: =HE6 -> 0.07529763408 | HO6: =HF6 -> 0.06301434107 | HP6: =HG6 -> 0.06189464631 | HQ6: =HH6 -> 0.07529763408 | HR6: =HI6 -> 0.06301434107 | HS6: =HJ6 -> 0.08642208168 | HU6: 0 | HV6: =HM6 -> 0.06189464631 | HW6: =HN6 -> 0.07529763408 | HX6: 0.06301434107 | HY6: 0.06189464631 | HZ6: 0.07529763408 | IA6: 0.06301434107 | IB6: 0.08642208168 | ID6: 0 | IE6: =HV6 -> 0.06189464631 | IF6: =HW6 -> 0.07529763408 | IG6: 0.06301434107 | IH6: 0.06189464631 | II6: 0.07529763408 | IJ6: 0.06301434107 | IK6: 0.08642208168 | IM6: 0 | IN6: =IE6 -> 0.06189464631 | IO6: =IF6 -> 0.07529763408 | IP6: 0.06301434107 | IQ6: 0.06189464631 | IR6: 0.07529763408 | IS6: 0.06301434107 | IT6: 0.08642208168
F7: =IF(ToggleYear=1998,"Values for years 1990-1998 are assumed to be equal.",0) -> 0 | CF7: Update this Table. | DH7: 1 | DI7: 0.07063997639 | DJ7: 0.07642771043 | DK7: 0.08886491444 | DL7: 0.07063997639 | DM7: 0.07379885048 | DN7: 0.07779218962 | DO7: 0.168 | DQ7: 1 | DR7: 0.06106103214 | DS7: 0.09190806647 | DT7: 0.06513830508 | DU7: 0.06106103214 | DV7: 0.09190806647 | DW7: 0.06513830508 | DX7: 0.09347634278 | DZ7: 1 | EA7: 0.06462540212 | EB7: 0.0954936415 | EC7: 0.07799574582 | ED7: 0.06462540212 | EE7: 0.0954936415 | EF7: 0.07799574582 | EG7: 0.09109669463 | EI7: 1 | EJ7: 0.06561387476 | EK7: 0.06960624756 | EL7: 0.06960624756 | EM7: 0.06561387476 | EN7: 0.06960624756 | EO7: 0.06960624756 | EP7: 0.09055360719 | ER7: 1 | ES7: 0.06261069993 | ET7: 0.09167319506 | EU7: 0.05454453169 | EV7: 0.06261069993 | EW7: 0.09167319506 | EX7: 0.05454453169 | EY7: 0.08459396745 | FA7: 1 | FB7: 0.06065985513 | FC7: 0.08710957785 | FD7: 0.04817439319 | FE7: 0.06065985513 | FF7: 0.08710957785 | FG7: 0.04817439319 | FH7: 0.08052913207 | FJ7: 1 | FK7: 0.05744112663 | FL7: 0.0848944841 | FM7: 0.05003394411 | FN7: 0.05744112663 | FO7: 0.0848944841 | FP7: 0.05003394411 | FQ7: 0.08023233942 | FS7: 1 | FT7: 0.05704455469 | FU7: 0.08487581255 | FV7: 0.05643967857 | FW7: 0.05704455469 | FX7: 0.08487581255 | FY7: 0.05643967857 | FZ7: 0.07963225367 | GB7: 1 | GC7: 0.05844628646 | GD7: 0.08111446968 | GE7: 0.06279303835 | GF7: 0.05844628646 | GG7: 0.08111446968 | GH7: 0.06279303835 | GI7: 0.08079110132 | GK7: 1 | GL7: =GC7 -> 0.05844628646 | GM7: 0.08111446968 | GN7: 0.06279303835 | GO7: 0.05844628646 | GP7: 0.08111446968 | GQ7: 0.06279303835 | GR7: 0.08079110132 | GT7: 1 | GU7: =GL7 -> 0.05844628646 | GV7: 0.08111446968 | GW7: 0.06279303835 | GX7: 0.05844628646 | GY7: 0.08111446968 | GZ7: 0.06279303835 | HA7: 0.08079110132 | HC7: 1 | HD7: =GU7 -> 0.05844628646 | HE7: 0.08111446968 | HF7: 0.06279303835 | HG7: 0.05844628646 | HH7: 0.08111446968 | HI7: 0.06279303835 | HJ7: 0.08079110132 | HL7: 1 | HM7: =HD7 -> 0.05844628646 | HN7: 0.08111446968 | HO7: 0.06279303835 | HP7: 0.05844628646 | HQ7: 0.08111446968 | HR7: 0.06279303835 | HS7: 0.08079110132 | HU7: 1 | HV7: =HM7 -> 0.05844628646 | HW7: =HN7 -> 0.08111446968 | HX7: =HO7 -> 0.06279303835 | HY7: =HP7 -> 0.05844628646 | HZ7: =HQ7 -> 0.08111446968 | IA7: =HR7 -> 0.06279303835 | IB7: =HS7 -> 0.08079110132 | ID7: 1 | IE7: =HV7 -> 0.05844628646 | IF7: =HW7 -> 0.08111446968 | IG7: =HX7 -> 0.06279303835 | IH7: =HY7 -> 0.05844628646 | II7: =HZ7 -> 0.08111446968 | IJ7: =IA7 -> 0.06279303835 | IK7: =IB7 -> 0.08079110132 | IM7: 1 | IN7: =IE7 -> 0.05844628646 | IO7: =IF7 -> 0.08111446968 | IP7: =IG7 -> 0.06279303835 | IQ7: =IH7 -> 0.05844628646 | IR7: =II7 -> 0.08111446968 | IS7: =IJ7 -> 0.06279303835 | IT7: =IK7 -> 0.08079110132
B8: Table I: Annual Vehicle Mileage Accumulation (miles) | K8: ="Table II: Age Distibution,"&IF(ToggleYear<=1998," 1998 and earlier"," "&ToggleYear)&". Each column must add up to 100%." -> Table II: Age Distibution, 2018. Each column must add up to 100%. | BW8: LookUP % Distribution Table | CF8: Table I: Annual Vehicle Mileage Accumulation (miles) | DH8: 2 | DI8: 0.07060684236 | DJ8: 0.07476075757 | DK8: 0.08111313434 | DL8: 0.07060684236 | DM8: 0.06875023513 | DN8: 0.07212174671 | DO8: 0.135 | DQ8: 2 | DR8: 0.06106103214 | DS8: 0.08291712659 | DT8: 0.05808610727 | DU8: 0.06106103214 | DV8: 0.08291712659 | DW8: 0.05808610727 | DX8: 0.07545948556 | DZ8: 2 | EA8: 0.06064840494 | EB8: 0.0861315701 | EC8: 0.06264470274 | ED8: 0.06064840494 | EE8: 0.0861315701 | EF8: 0.06264470274 | EG8: 0.08990657124 | EI8: 2 | EJ8: 0.06451708838 | EK8: 0.07634934855 | EL8: 0.07634934855 | EM8: 0.06451708838 | EN8: 0.07634934855 | EO8: 0.07634934855 | EP8: 0.08814951906 | ER8: 2 | ES8: 0.06576759333 | ET8: 0.0884023213 | EU8: 0.06871176641 | EV8: 0.06576759333 | EW8: 0.0884023213 | EX8: 0.06871176641 | EY8: 0.08797065353 | FA8: 2 | FB8: 0.06305594773 | FC8: 0.08702254827 | FD8: 0.05400225228 | FE8: 0.06305594773 | FF8: 0.08702254827 | FG8: 0.05400225228 | FH8: 0.08218944975 | FJ8: 2 | FK8: 0.0611726608 | FL8: 0.08274317376 | FM8: 0.04717339662 | FN8: 0.0611726608 | FO8: 0.08274317376 | FP8: 0.04717339662 | FQ8: 0.07825611834 | FS8: 2 | FT8: 0.05785449748 | FU8: 0.08106574521 | FV8: 0.04756191727 | FW8: 0.05785449748 | FX8: 0.08106574521 | FY8: 0.04756191727 | FZ8: 0.07782410108 | GB8: 2 | GC8: 0.05724418586 | GD8: 0.08185104464 | GE8: 0.05734308828 | GF8: 0.05724418586 | GG8: 0.08185104464 | GH8: 0.05734308828 | GI8: 0.07698107964 | GK8: 2 | GL8: 0.05724418586 | GM8: 0.08185104464 | GN8: 0.05734308828 | GO8: 0.05724418586 | GP8: 0.08185104464 | GQ8: 0.05734308828 | GR8: 0.07698107964 | GT8: 2 | GU8: 0.05724418586 | GV8: 0.08185104464 | GW8: 0.05734308828 | GX8: 0.05724418586 | GY8: 0.08185104464 | GZ8: 0.05734308828 | HA8: 0.07698107964 | HC8: 2 | HD8: 0.05724418586 | HE8: 0.08185104464 | HF8: 0.05734308828 | HG8: 0.05724418586 | HH8: 0.08185104464 | HI8: 0.05734308828 | HJ8: 0.07698107964 | HL8: 2 | HM8: 0.05724418586 | HN8: 0.08185104464 | HO8: 0.05734308828 | HP8: 0.05724418586 | HQ8: 0.08185104464 | HR8: 0.05734308828 | HS8: 0.07698107964 | HU8: 2 | HV8: 0.05724418586 | HW8: 0.08185104464 | HX8: 0.05734308828 | HY8: 0.05724418586 | HZ8: 0.08185104464 | IA8: 0.05734308828 | IB8: 0.07698107964 | ID8: 2 | IE8: 0.05724418586 | IF8: 0.08185104464 | IG8: 0.05734308828 | IH8: 0.05724418586 | II8: 0.08185104464 | IJ8: 0.05734308828 | IK8: 0.07698107964 | IM8: 2 | IN8: 0.05724418586 | IO8: 0.08185104464 | IP8: 0.05734308828 | IQ8: 0.05724418586 | IR8: 0.08185104464 | IS8: 0.05734308828 | IT8: 0.07698107964
B9: MY | C9: LDGV | D9: LDGT | E9: HDGV | F9: LDDV | G9: LDDT | H9: HDDV | I9: MC | K9: MY | L9: LDGV | M9: LDGT | N9: HDGV | O9: LDDV | P9: LDDT | Q9: HDDV | R9: MC | BW9: MY | BX9: LDGV | BY9: LDGT | BZ9: HDGV | CA9: LDDV | CB9: LDDT | CC9: HDDV | CD9: MC | CF9: MY | CG9: LDGV | CH9: LDGT | CI9: HDGV | CJ9: LDDV | CK9: LDDT | CL9: HDDV | CM9: MC | DH9: 3 | DI9: 0.07050379095 | DJ9: 0.07285607365 | DK9: 0.07404346028 | DL9: 0.07050379095 | DM9: 0.06404695399 | DN9: 0.06687569154 | DO9: 0.109 | DQ9: 3 | DR9: 0.06206208436 | DS9: 0.07892109535 | DT9: 0.05564192554 | DU9: 0.06206208436 | DV9: 0.07892109535 | DW9: 0.05564192554 | DX9: 0.06810300151 | DZ9: 3 | EA9: 0.06004199422 | EB9: 0.07569298698 | EC9: 0.05586247476 | ED9: 0.06004199422 | EE9: 0.07569298698 | EF9: 0.05586247476 | EG9: 0.07184476713 | EI9: 3 | EJ9: 0.05994136238 | EK9: 0.06132234771 | EL9: 0.06132234771 | EM9: 0.05994136238 | EN9: 0.06132234771 | EO9: 0.06132234771 | EP9: 0.08611922829 | ER9: 3 | ES9: 0.064021526 | ET9: 0.08288037334 | EU9: 0.0753682146 | EV9: 0.064021526 | EW9: 0.08288037334 | EX9: 0.0753682146 | EY9: 0.08477011326 | FA9: 3 | FB9: 0.06557289572 | FC9: 0.08174413209 | FD9: 0.06802863696 | FE9: 0.06557289572 | FF9: 0.08174413209 | FG9: 0.06802863696 | FH9: 0.08460674784 | FJ9: 3 | FK9: 0.06295315276 | FL9: 0.08051960326 | FM9: 0.05288016093 | FN9: 0.06295315276 | FO9: 0.08051960326 | FP9: 0.05288016093 | FQ9: 0.07906282258 | FS9: 3 | FT9: 0.06099676902 | FU9: 0.07696495399 | FV9: 0.04470268971 | FW9: 0.06099676902 | FX9: 0.07696495399 | FY9: 0.04470268971 | FZ9: 0.07514063491 | GB9: 3 | GC9: 0.05747643035 | GD9: 0.07615201402 | GE9: 0.04758813938 | GF9: 0.05747643035 | GG9: 0.07615201402 | GH9: 0.04758813938 | GI9: 0.07447330061 | GK9: 3 | GL9: 0.05747643035 | GM9: 0.07615201402 | GN9: 0.04758813938 | GO9: 0.05747643035 | GP9: 0.07615201402 | GQ9: 0.04758813938 | GR9: 0.07447330061 | GT9: 3 | GU9: 0.05747643035 | GV9: 0.07615201402 | GW9: 0.04758813938 | GX9: 0.05747643035 | GY9: 0.07615201402 | GZ9: 0.04758813938 | HA9: 0.07447330061 | HC9: 3 | HD9: 0.05747643035 | HE9: 0.07615201402 | HF9: 0.04758813938 | HG9: 0.05747643035 | HH9: 0.07615201402 | HI9: 0.04758813938 | HJ9: 0.07447330061 | HL9: 3 | HM9: 0.05747643035 | HN9: 0.07615201402 | HO9: 0.04758813938 | HP9: 0.05747643035 | HQ9: 0.07615201402 | HR9: 0.04758813938 | HS9: 0.07447330061 | HU9: 3 | HV9: 0.05747643035 | HW9: 0.07615201402 | HX9: 0.04758813938 | HY9: 0.05747643035 | HZ9: 0.07615201402 | IA9: 0.04758813938 | IB9: 0.07447330061 | ID9: 3 | IE9: 0.05747643035 | IF9: 0.07615201402 | IG9: 0.04758813938 | IH9: 0.05747643035 | II9: 0.07615201402 | IJ9: 0.04758813938 | IK9: 0.07447330061 | IM9: 3 | IN9: 0.05747643035 | IO9: 0.07615201402 | IP9: 0.04758813938 | IQ9: 0.05747643035 | IR9: 0.07615201402 | IS9: 0.04758813938 | IT9: 0.07447330061
B10: 0 | K10: 0 | BV10: 4 | BW10: 0 | BX10: =IF(ToggleYear<=1998,VLOOKUP($BW10,$DH$6:$DO$36,2,FALSE),IF(AND(ToggleYear>=1999,ToggleYear<=2013),HLOOKUP(ToggleYear&"LDGV",$DR$3:$IT$36,$BV10,FALSE),HLOOKUP(ToggleYear&"LDGV",$DR$40:$IT$73,$BV10,FALSE))) -> 0.06189464631 | BY10: =IF(ToggleYear<=1998,VLOOKUP($BW10,$DH$6:$DO$36,2,FALSE),IF(AND(ToggleYear>=1999,ToggleYear<=2013),HLOOKUP(ToggleYear&"LDGT",$DR$3:$IT$36,$BV10,FALSE),HLOOKUP(ToggleYear&"LDGT",$DR$40:$IT$73,$BV10,FALSE))) -> 0.07529763408 | BZ10: =IF(ToggleYear<=1998,VLOOKUP(BW10,$DH$6:$DO$36,2,FALSE),IF(AND(ToggleYear>=1999,ToggleYear<=2013),HLOOKUP(ToggleYear&"HDGV",$DR$3:$IT$36,$BV10,FALSE),HLOOKUP(ToggleYear&"HDGV",$DR$40:$IT$73,BV10,FALSE))) -> 0.06301434107 | CA10: =IF(ToggleYear<=1998,VLOOKUP(BW10,$DH$6:$DO$36,2,FALSE),IF(AND(ToggleYear>=1999,ToggleYear<=2013),HLOOKUP(ToggleYear&"LDDV",$DR$3:$IT$36,$BV10,FALSE),HLOOKUP(ToggleYear&"LDDV",$DR$40:$IT$73,BV10,FALSE))) -> 0.06189464631 | CB10: =IF(ToggleYear<=1998,VLOOKUP(BW10,$DH$6:$DO$36,2,FALSE),IF(AND(ToggleYear>=1999,ToggleYear<=2013),HLOOKUP(ToggleYear&"LDDT",$DR$3:$IT$36,$BV10,FALSE),HLOOKUP(ToggleYear&"LDDT",$DR$40:$IT$73,BV10,FALSE))) -> 0.07529763408 | CC10: =IF(ToggleYear<=1998,VLOOKUP(BW10,$DH$6:$DO$36,2,FALSE),IF(AND(ToggleYear>=1999,ToggleYear<=2013),HLOOKUP(ToggleYear&"HDDV",$DR$3:$IT$36,$BV10,FALSE),HLOOKUP(ToggleYear&"HDDV",$DR$40:$IT$73,BV10,FALSE))) -> 0.06301434107 | CD10: =IF(ToggleYear<=1998,VLOOKUP(BW10,$DH$6:$DO$36,2,FALSE),IF(AND(ToggleYear>=1999,ToggleYear<=2013),HLOOKUP(ToggleYear&"MC",$DR$3:$IT$36,$BV10,FALSE),HLOOKUP(ToggleYear&"MC",$DR$40:$IT$73,BV10,FALSE))) -> 0.08642208168 | CF10: 0 | CG10: 14910.13353 | CH10: 19906.35495 | CI10: 20217.6843 | CJ10: 14910.13353 | CK10: 26371.48966 | CL10: 28786.97571 | CM10: 4786 | DH10: 4 | DI10: 0.07026154343 | DJ10: 0.07060646753 | DK10: 0.06759561352 | DL10: 0.07026154343 | DM10: 0.05966548966 | DN10: 0.06202149802 | DO10: 0.088 | DQ10: 4 | DR10: 0.06306305967 | DS10: 0.07192804068 | DT10: 0.06660303413 | DU10: 0.06306305967 | DV10: 0.07192804068 | DW10: 0.06660303413 | DX10: 0.06125467908 | DZ10: 4 | EA10: 0.06121303374 | EB10: 0.07291304728 | EC10: 0.05351186036 | ED10: 0.06121303374 | EE10: 0.07291304728 | EF10: 0.05351186036 | EG10: 0.06417914353 | EI10: 4 | EJ10: 0.05952355715 | EK10: 0.05468328448 | EL10: 0.05468328448 | EM10: 0.05952355715 | EN10: 0.05468328448 | EO10: 0.05468328448 | EP10: 0.06811598213 | ER10: 4 | ES10: 0.05966300748 | ET10: 0.07369577498 | EU10: 0.06053431954 | EV10: 0.05966300748 | EW10: 0.07369577498 | EX10: 0.06053431954 | EY10: 0.0819725428 | FA10: 4 | FB10: 0.06402740945 | FC10: 0.07756123429 | FD10: 0.07461890702 | FE10: 0.06402740945 | FF10: 0.07756123429 | FG10: 0.07461890702 | FH10: 0.08069674134 | FJ10: 4 | FK10: 0.06566635359 | FL10: 0.07654657133 | FM10: 0.06661509694 | FN10: 0.06566635359 | FO10: 0.07654657133 | FP10: 0.06661509694 | FQ10: 0.08055773093 | FS10: 4 | FT10: 0.06296427558 | FU10: 0.07579887088 | FV10: 0.0504097451 | FW10: 0.06296427558 | FX10: 0.07579887088 | FY10: 0.0504097451 | FZ10: 0.07514063491 | GB10: 4 | GC10: 0.06078356044 | GD10: 0.07317072529 | GE10: 0.04486742377 | GF10: 0.06078356044 | GG10: 0.07317072529 | GH10: 0.04486742377 | GI10: 0.0711715013 | GK10: 4 | GL10: 0.06078356044 | GM10: 0.07317072529 | GN10: 0.04486742377 | GO10: 0.06078356044 | GP10: 0.07317072529 | GQ10: 0.04486742377 | GR10: 0.0711715013 | GT10: 4 | GU10: 0.06078356044 | GV10: 0.07317072529 | GW10: 0.04486742377 | GX10: 0.06078356044 | GY10: 0.07317072529 | GZ10: 0.04486742377 | HA10: 0.0711715013 | HC10: 4 | HD10: 0.06078356044 | HE10: 0.07317072529 | HF10: 0.04486742377 | HG10: 0.06078356044 | HH10: 0.07317072529 | HI10: 0.04486742377 | HJ10: 0.0711715013 | HL10: 4 | HM10: 0.06078356044 | HN10: 0.07317072529 | HO10: 0.04486742377 | HP10: 0.06078356044 | HQ10: 0.07317072529 | HR10: 0.04486742377 | HS10: 0.0711715013 | HU10: 4 | HV10: 0.06078356044 | HW10: 0.07317072529 | HX10: 0.04486742377 | HY10: 0.06078356044 | HZ10: 0.07317072529 | IA10: 0.04486742377 | IB10: 0.0711715013 | ID10: 4 | IE10: 0.06078356044 | IF10: 0.07317072529 | IG10: 0.04486742377 | IH10: 0.06078356044 | II10: 0.07317072529 | IJ10: 0.04486742377 | IK10: 0.0711715013 | IM10: 4 | IN10: 0.06078356044 | IO10: 0.07317072529 | IP10: 0.04486742377 | IQ10: 0.06078356044 | IR10: 0.07317072529 | IS10: 0.04486742377 | IT10: 0.0711715013
B11: 1 | K11: 1 | BV11: 5 | BW11: 1 | BX11: 0.05844628646 | BY11: 0.08111446968 | BZ11: 0.06279303835 | CA11: 0.05844628646 | CB11: 0.08111446968 | CC11: 0.06279303835 | CD11: 0.08079110132 | CF11: 1 | CG11: 14174.45051 | CH11: 18706.94253 | CI11: 18934.60377 | CJ11: 14174.45051 | CK11: 24137.41433 | CL11: 26304.37141 | CM11: 4475 | DH11: 5 | DI11: 0.06978219888 | DJ11: 0.06792127718 | DK11: 0.06171436922 | DL11: 0.06978219888 | DM11: 0.05558375796 | DN11: 0.05752880783 | DO11: 0.07 | DQ11: 5 | DR11: 0.06406411188 | DS11: 0.06993015547 | DT11: 0.05998094455 | DU11: 0.06406411188 | DV11: 0.06993015547 | DW11: 0.05998094455 | DX11: 0.05697423798 | DZ11: 5 | EA11: 0.06199978654 | EB11: 0.06612267674 | EC11: 0.06341281711 | ED11: 0.06199978654 | EE11: 0.06612267674 | EF11: 0.06341281711 | EG11: 0.05713011231 | EI11: 5 | EJ11: 0.06048880238 | EK11: 0.05185846316 | EL11: 0.05185846316 | EM11: 0.06048880238 | EN11: 0.05185846316 | EO11: 0.05185846316 | EP11: 0.06022096307 | ER11: 5 | ES11: 0.05905611838 | ET11: 0.06521936017 | EU11: 0.05344085712 | EV11: 0.05905611838 | EW11: 0.06521936017 | EX11: 0.05344085712 | EY11: 0.06416775153 | FA11: 5 | FB11: 0.05947608824 | FC11: 0.06862395827 | FD11: 0.05933311376 | FE11: 0.05947608824 | FF11: 0.06862395827 | FG11: 0.05933311376 | FH11: 0.07722909184 | FJ11: 5 | FK11: 0.06391186725 | FL11: 0.07226937915 | FM11: 0.07233780575 | FN11: 0.06391186725 | FO11: 0.07226937915 | FP11: 0.07233780575 | FQ11: 0.0760426819 | FS11: 5 | FT11: 0.06546619269 | FU11: 0.07170145471 | FV11: 0.0606853919 | FW11: 0.06546619269 | FX11: 0.07170145471 | FY11: 0.0606853919 | FZ11: 0.07577193955 | GB11: 5 | GC11: 0.0625418709 | GD11: 0.07170453699 | GE11: 0.04979229063 | GF11: 0.0625418709 | GG11: 0.07170453699 | GH11: 0.04979229063 | GI11: 0.07043776812 | GK11: 5 | GL11: 0.0625418709 | GM11: 0.07170453699 | GN11: 0.04979229063 | GO11: 0.0625418709 | GP11: 0.07170453699 | GQ11: 0.04979229063 | GR11: 0.07043776812 | GT11: 5 | GU11: 0.0625418709 | GV11: 0.07170453699 | GW11: 0.04979229063 | GX11: 0.0625418709 | GY11: 0.07170453699 | GZ11: 0.04979229063 | HA11: 0.07043776812 | HC11: 5 | HD11: 0.0625418709 | HE11: 0.07170453699 | HF11: 0.04979229063 | HG11: 0.0625418709 | HH11: 0.07170453699 | HI11: 0.04979229063 | HJ11: 0.07043776812 | HL11: 5 | HM11: 0.0625418709 | HN11: 0.07170453699 | HO11: 0.04979229063 | HP11: 0.0625418709 | HQ11: 0.07170453699 | HR11: 0.04979229063 | HS11: 0.07043776812 | HU11: 5 | HV11: 0.0625418709 | HW11: 0.07170453699 | HX11: 0.04979229063 | HY11: 0.0625418709 | HZ11: 0.07170453699 | IA11: 0.04979229063 | IB11: 0.07043776812 | ID11: 5 | IE11: 0.0625418709 | IF11: 0.07170453699 | IG11: 0.04979229063 | IH11: 0.0625418709 | II11: 0.07170453699 | IJ11: 0.04979229063 | IK11: 0.07043776812 | IM11: 5 | IN11: 0.0625418709 | IO11: 0.07170453699 | IP11: 0.04979229063 | IQ11: 0.0625418709 | IR11: 0.07170453699 | IS11: 0.04979229063 | IT11: 0.07043776812
B12: 2 | K12: 2 | BV12: 6 | BW12: 2 | BX12: 0.05724418586 | BY12: 0.08185104464 | BZ12: 0.05734308828 | CA12: 0.05724418586 | CB12: 0.08185104464 | CC12: 0.05734308828 | CD12: 0.07698107964 | CF12: 2 | CG12: 13475.06694 | CH12: 17559.39053 | CI12: 17100.21669 | CJ12: 13475.06694 | CK12: 22095.24686 | CL12: 24037.59271 | CM12: 4164 | DH12: 6 | DI12: 0.06893934206 | DJ12: 0.06473502122 | DK12: 0.05634969057 | DL12: 0.06893934206 | DM12: 0.05178123818 | DN12: 0.05337032519 | DO12: 0.056 | DQ12: 6 | DR12: 0.06006005683 | DS12: 0.05994007737 | DT12: 0.04802658021 | DU12: 0.06006005683 | DV12: 0.05994007737 | DW12: 0.04802658021 | DX12: 0.05195563282 | DZ12: 6 | EA12: 0.0627287932 | EB12: 0.0639348246 | EC12: 0.05653109395 | ED12: 0.0627287932 | EE12: 0.0639348246 | EF12: 0.05653109395 | EG12: 0.0531379734 | EI12: 6 | EJ12: 0.06101809351 | EK12: 0.06083283789 | EL12: 0.06083283789 | EM12: 0.06101809351 | EN12: 0.06083283789 | EO12: 0.06083283789 | EP12: 0.05360681996 | ER12: 6 | ES12: 0.05977070354 | ET12: 0.06217093705 | EU12: 0.05016822375 | EV12: 0.05977070354 | EW12: 0.06217093705 | EX12: 0.05016822375 | EY12: 0.05673033534 | FA12: 6 | FB12: 0.05863264085 | FC12: 0.06039914646 | FD12: 0.05185132702 | FE12: 0.05863264085 | FF12: 0.06039914646 | FG12: 0.05185132702 | FH12: 0.06045458113 | FJ12: 6 | FK12: 0.05912830888 | FL12: 0.06359256488 | FM12: 0.05693825605 | FN12: 0.05912830888 | FO12: 0.06359256488 | FP12: 0.05693825605 | FQ12: 0.07277521787 | FS12: 6 | FT12: 0.06345896696 | FU12: 0.06732512737 | FV12: 0.06346633004 | FW12: 0.06345896696 | FX12: 0.06732512737 | FY12: 0.06346633004 | FZ12: 0.0715251726 | GB12: 6 | GC12: 0.06476365033 | GD12: 0.06745786185 | GE12: 0.06147076311 | GF12: 0.06476365033 | GG12: 0.06745786185 | GH12: 0.06147076311 | GI12: 0.07102973401 | GK12: 6 | GL12: 0.06476365033 | GM12: 0.06745786185 | GN12: 0.06147076311 | GO12: 0.06476365033 | GP12: 0.06745786185 | GQ12: 0.06147076311 | GR12: 0.07102973401 | GT12: 6 | GU12: 0.06476365033 | GV12: 0.06745786185 | GW12: 0.06147076311 | GX12: 0.06476365033 | GY12: 0.06745786185 | GZ12: 0.06147076311 | HA12: 0.07102973401 | HC12: 6 | HD12: 0.06476365033 | HE12: 0.06745786185 | HF12: 0.06147076311 | HG12: 0.06476365033 | HH12: 0.06745786185 | HI12: 0.06147076311 | HJ12: 0.07102973401 | HL12: 6 | HM12: 0.06476365033 | HN12: 0.06745786185 | HO12: 0.06147076311 | HP12: 0.06476365033 | HQ12: 0.06745786185 | HR12: 0.06147076311 | HS12: 0.07102973401 | HU12: 6 | HV12: 0.06476365033 | HW12: 0.06745786185 | HX12: 0.06147076311 | HY12: 0.06476365033 | HZ12: 0.06745786185 | IA12: 0.06147076311 | IB12: 0.07102973401 | ID12: 6 | IE12: 0.06476365033 | IF12: 0.06745786185 | IG12: 0.06147076311 | IH12: 0.06476365033 | II12: 0.06745786185 | IJ12: 0.06147076311 | IK12: 0.07102973401 | IM12: 6 | IN12: 0.06476365033 | IO12: 0.06745786185 | IP12: 0.06147076311 | IQ12: 0.06476365033 | IR12: 0.06745786185 | IS12: 0.06147076311 | IT12: 0.07102973401
B13: 3 | K13: 3 | BV13: 7 | BW13: 3 | BX13: 0.05747643035 | BY13: 0.07615201402 | BZ13: 0.04758813938 | CA13: 0.05747643035 | CB13: 0.07615201402 | CC13: 0.04758813938 | CD13: 0.07447330061 | CF13: 3 | CG13: 12810.19175 | CH13: 16461.90685 | CI13: 16610.77688 | CJ13: 12810.19175 | CK13: 20228.26251 | CL13: 21967.71954 | CM13: 3853 | DH13: 7 | DI13: 0.06758222346 | DJ13: 0.06101601598 | DK13: 0.05145594887 | DL13: 0.06758222346 | DM13: 0.0482388428 | DN13: 0.04952016014 | DO13: 0.045 | DQ13: 7 | DR13: 0.05605607867 | DS13: 0.04995002535 | DT13: 0.03626376211 | DU13: 0.05605607867 | DV13: 0.04995002535 | DW13: 0.03626376211 | DX13: 0.04325435329 | DZ13: 7 | EA13: 0.05853486613 | EB13: 0.05447963232 | EC13: 0.04526430183 | ED13: 0.05853486613 | EE13: 0.05447963232 | EF13: 0.04526430183 | EG13: 0.04795245242 | EI13: 7 | EJ13: 0.06144855719 | EK13: 0.05423099195 | EL13: 0.05423099195 | EM13: 0.06144855719 | EN13: 0.05423099195 | EO13: 0.05423099195 | EP13: 0.04934125278 | ER13: 7 | ES13: 0.06001345918 | ET13: 0.05574394271 | EU13: 0.05884998943 | EV13: 0.06001345918 | EW13: 0.05574394271 | EX13: 0.05884998943 | EY13: 0.04997339116 | FA13: 7 | FB13: 0.05906625764 | FC13: 0.05723807098 | FD13: 0.04867610754 | FE13: 0.05906625764 | FF13: 0.05723807098 | FG13: 0.04867610754 | FH13: 0.05289069261 | FJ13: 7 | FK13: 0.05801883944 | FL13: 0.05564237748 | FM13: 0.04975840993 | FN13: 0.05801883944 | FO13: 0.05564237748 | FP13: 0.04975840993 | FQ13: 0.05637466898 | FS13: 7 | FT13: 0.05843636776 | FU13: 0.05889422836 | FV13: 0.05003944337 | FW13: 0.05843636776 | FX13: 0.05889422836 | FY13: 0.05003944337 | FZ13: 0.06773860903 | GB13: 7 | GC13: 0.0624861636 | GD13: 0.06296888637 | GE13: 0.06607714487 | GF13: 0.0624861636 | GG13: 0.06296888637 | GH13: 0.06607714487 | GI13: 0.06635017884 | GK13: 7 | GL13: 0.0624861636 | GM13: 0.06296888637 | GN13: 0.06607714487 | GO13: 0.0624861636 | GP13: 0.06296888637 | GQ13: 0.06607714487 | GR13: 0.06635017884 | GT13: 7 | GU13: 0.0624861636 | GV13: 0.06296888637 | GW13: 0.06607714487 | GX13: 0.0624861636 | GY13: 0.06296888637 | GZ13: 0.06607714487 | HA13: 0.06635017884 | HC13: 7 | HD13: 0.0624861636 | HE13: 0.06296888637 | HF13: 0.06607714487 | HG13: 0.0624861636 | HH13: 0.06296888637 | HI13: 0.06607714487 | HJ13: 0.06635017884 | HL13: 7 | HM13: 0.0624861636 | HN13: 0.06296888637 | HO13: 0.06607714487 | HP13: 0.0624861636 | HQ13: 0.06296888637 | HR13: 0.06607714487 | HS13: 0.06635017884 | HU13: 7 | HV13: 0.0624861636 | HW13: 0.06296888637 | HX13: 0.06607714487 | HY13: 0.0624861636 | HZ13: 0.06296888637 | IA13: 0.06607714487 | IB13: 0.06635017884 | ID13: 7 | IE13: 0.0624861636 | IF13: 0.06296888637 | IG13: 0.06607714487 | IH13: 0.0624861636 | II13: 0.06296888637 | IJ13: 0.06607714487 | IK13: 0.06635017884 | IM13: 7 | IN13: 0.0624861636 | IO13: 0.06296888637 | IP13: 0.06607714487 | IQ13: 0.0624861636 | IR13: 0.06296888637 | IS13: 0.06607714487 | IT13: 0.06635017884
B14: 4 | K14: 4 | BV14: 8 | BW14: 4 | BX14: 0.06078356044 | BY14: 0.07317072529 | BZ14: 0.04486742377 | CA14: 0.06078356044 | CB14: 0.07317072529 | CC14: 0.04486742377 | CD14: 0.0711715013 | CF14: 4 | CG14: 12178.12226 | CH14: 15412.82255 | CI14: 15559.58799 | CJ14: 12178.12226 | CK14: 18521.21553 | CL14: 20077.5055 | CM14: 3543 | DH14: 8 | DI14: 0.06554581986 | DJ14: 0.05677367455 | DK14: 0.04699132433 | DL14: 0.06554581986 | DM14: 0.04493878722 | DN14: 0.04595503045 | DO14: 0.036 | DQ14: 8 | DR14: 0.05405405114 | DS14: 0.04295707501 | DT14: 0.03719067137 | DU14: 0.05405405114 | DV14: 0.04295707501 | DW14: 0.03719067137 | DX14: 0.03701601648 | DZ14: 8 | EA14: 0.05434643868 | EB14: 0.04511427358 | EC14: 0.03382921453 | ED14: 0.05434643868 | EE14: 0.04511427358 | EF14: 0.03382921453 | EG14: 0.03950148238 | EI14: 8 | EJ14: 0.05703990753 | EK14: 0.04297953405 | EL14: 0.04297953405 | EM14: 0.05703990753 | EN14: 0.04297953405 | EO14: 0.04297953405 | EP14: 0.0440575826 | ER14: 8 | ES14: 0.06012031446 | ET14: 0.05324625643 | EU14: 0.0519281493 | EV14: 0.06012031446 | EW14: 0.05324625643 | EX14: 0.0519281493 | EY14: 0.04551304001 | FA14: 8 | FB14: 0.0589955149 | FC14: 0.05099829839 | FD14: 0.05651696578 | FE14: 0.0589955149 | FF14: 0.05099829839 | FG14: 0.05651696578 | FH14: 0.04610087408 | FJ14: 8 | FK14: 0.05814180331 | FL14: 0.05239862326 | FM14: 0.04623467373 | FN14: 0.05814180331 | FO14: 0.05239862326 | FP14: 0.04623467373 | FQ14: 0.04880205818 | FS14: 8 | FT14: 0.05703955069 | FU14: 0.05120743626 | FV14: 0.04370301067 | FW14: 0.05703955069 | FX14: 0.05120743626 | FY14: 0.04370301067 | FZ14: 0.05192080338 | GB14: 8 | GC14: 0.05723916436 | GD14: 0.05473718429 | GE14: 0.0514796667 | GF14: 0.05723916436 | GG14: 0.05473718429 | GH14: 0.0514796667 | GI14: 0.06217617118 | GK14: 8 | GL14: 0.05723916436 | GM14: 0.05473718429 | GN14: 0.0514796667 | GO14: 0.05723916436 | GP14: 0.05473718429 | GQ14: 0.0514796667 | GR14: 0.06217617118 | GT14: 8 | GU14: 0.05723916436 | GV14: 0.05473718429 | GW14: 0.0514796667 | GX14: 0.05723916436 | GY14: 0.05473718429 | GZ14: 0.0514796667 | HA14: 0.06217617118 | HC14: 8 | HD14: 0.05723916436 | HE14: 0.05473718429 | HF14: 0.0514796667 | HG14: 0.05723916436 | HH14: 0.05473718429 | HI14: 0.0514796667 | HJ14: 0.06217617118 | HL14: 8 | HM14: 0.05723916436 | HN14: 0.05473718429 | HO14: 0.0514796667 | HP14: 0.05723916436 | HQ14: 0.05473718429 | HR14: 0.0514796667 | HS14: 0.06217617118 | HU14: 8 | HV14: 0.05723916436 | HW14: 0.05473718429 | HX14: 0.0514796667 | HY14: 0.05723916436 | HZ14: 0.05473718429 | IA14: 0.0514796667 | IB14: 0.06217617118 | ID14: 8 | IE14: 0.05723916436 | IF14: 0.05473718429 | IG14: 0.0514796667 | IH14: 0.05723916436 | II14: 0.05473718429 | IJ14: 0.0514796667 | IK14: 0.06217617118 | IM14: 8 | IN14: 0.05723916436 | IO14: 0.05473718429 | IP14: 0.0514796667 | IQ14: 0.05723916436 | IR14: 0.05473718429 | IS14: 0.0514796667 | IT14: 0.06217617118
B15: 5 | K15: 5 | BV15: 9 | BW15: 5 | BX15: 0.0625418709 | BY15: 0.07170453699 | BZ15: 0.04979229063 | CA15: 0.0625418709 | CB15: 0.07170453699 | CC15: 0.04979229063 | CD15: 0.07043776812 | CF15: 5 | CG15: 11577.2398 | CH15: 14410.58342 | CI15: 14575.8288 | CJ15: 11577.2398 | CK15: 16960.20649 | CL15: 18351.22834 | CM15: 3232 | DH15: 9 | DI15: 0.06266869095 | DJ15: 0.05206257881 | DK15: 0.04291804874 | DL15: 0.06266869095 | DM15: 0.04186452457 | DN15: 0.04265323392 | DO15: 0.029 | DQ15: 9 | DR15: 0.06006005683 | DS15: 0.04495507759 | DT15: 0.04687735525 | DU15: 0.06006005683 | DV15: 0.04495507759 | DW15: 0.04687735525 | DX15: 0.03549536498 | DZ15: 9 | EA15: 0.05211106776 | EB15: 0.03855123044 | EC15: 0.03469394841 | ED15: 0.05211106776 | EE15: 0.03855123044 | EF15: 0.03469394841 | EG15: 0.03344472497 | EI15: 9 | EJ15: 0.05266099761 | EK15: 0.03212161647 | EL15: 0.03212161647 | EM15: 0.05266099761 | EN15: 0.03212161647 | EO15: 0.03212161647 | EP15: 0.03590707087 | ER15: 9 | ES15: 0.05549343477 | ET15: 0.04479945815 | EU15: 0.04115441631 | EV15: 0.05549343477 | EW15: 0.04479945815 | EX15: 0.04115441631 | EY15: 0.04020701039 | FA15: 9 | FB15: 0.05876858391 | FC15: 0.04840312189 | FD15: 0.04986947399 | FE15: 0.05876858391 | FF15: 0.04840312189 | FG15: 0.04986947399 | FH15: 0.04153927285 | FJ15: 9 | FK15: 0.05774597455 | FL15: 0.04638934742 | FM15: 0.05368237981 | FN15: 0.05774597455 | FO15: 0.04638934742 | FP15: 0.05368237981 | FQ15: 0.04208454097 | FS15: 9 | FT15: 0.05683939107 | FU15: 0.04791525308 | FV15: 0.0401922706 | FW15: 0.05683939107 | FX15: 0.04791525308 | FY15: 0.0401922706 | FZ15: 0.04446841641 | GB15: 9 | GC15: 0.05555711798 | GD15: 0.04728997478 | GE15: 0.04452910332 | GF15: 0.05555711798 | GG15: 0.04728997478 | GH15: 0.04452910332 | GI15: 0.04715027857 | GK15: 9 | GL15: 0.05555711798 | GM15: 0.04728997478 | GN15: 0.04452910332 | GO15: 0.05555711798 | GP15: 0.04728997478 | GQ15: 0.04452910332 | GR15: 0.04715027857 | GT15: 9 | GU15: 0.05555711798 | GV15: 0.04728997478 | GW15: 0.04452910332 | GX15: 0.05555711798 | GY15: 0.04728997478 | GZ15: 0.04452910332 | HA15: 0.04715027857 | HC15: 9 | HD15: 0.05555711798 | HE15: 0.04728997478 | HF15: 0.04452910332 | HG15: 0.05555711798 | HH15: 0.04728997478 | HI15: 0.04452910332 | HJ15: 0.04715027857 | HL15: 9 | HM15: 0.05555711798 | HN15: 0.04728997478 | HO15: 0.04452910332 | HP15: 0.05555711798 | HQ15: 0.04728997478 | HR15: 0.04452910332 | HS15: 0.04715027857 | HU15: 9 | HV15: 0.05555711798 | HW15: 0.04728997478 | HX15: 0.04452910332 | HY15: 0.05555711798 | HZ15: 0.04728997478 | IA15: 0.04452910332 | IB15: 0.04715027857 | ID15: 9 | IE15: 0.05555711798 | IF15: 0.04728997478 | IG15: 0.04452910332 | IH15: 0.05555711798 | II15: 0.04728997478 | IJ15: 0.04452910332 | IK15: 0.04715027857 | IM15: 9 | IN15: 0.05555711798 | IO15: 0.04728997478 | IP15: 0.04452910332 | IQ15: 0.05555711798 | IR15: 0.04728997478 | IS15: 0.04452910332 | IT15: 0.04715027857
B16: 6 | K16: 6 | BV16: 10 | BW16: 6 | BX16: 0.06476365033 | BY16: 0.06745786185 | BZ16: 0.06147076311 | CA16: 0.06476365033 | CB16: 0.06745786185 | CC16: 0.06147076311 | CD16: 0.07102973401 | CF16: 6 | CG16: 11006.00557 | CH16: 13453.74202 | CI16: 13655.10565 | CJ16: 11006.00557 | CK16: 15532.56162 | CL16: 16774.55389 | CM16: 2921 | DH16: 10 | DI16: 0.05881971057 | DJ16: 0.04698237745 | DK16: 0.03920145305 | DL16: 0.05881971057 | DM16: 0.03900055031 | DN16: 0.0395946159 | DO16: 0.023 | DQ16: 10 | DR16: 0.06106103214 | DS16: 0.04295707501 | DT16: 0.05466824773 | DU16: 0.06106103214 | DV16: 0.04295707501 | DW16: 0.05466824773 | DX16: 0.03357460509 | DZ16: 10 | EA16: 0.05755379303 | EB16: 0.0400860265 | EC16: 0.04373028037 | ED16: 0.05755379303 | EE16: 0.0400860265 | EF16: 0.04373028037 | EG16: 0.03172599407 | EI16: 10 | EJ16: 0.05019198909 | EK16: 0.03294276558 | EL16: 0.03294276558 | EM16: 0.05019198909 | EN16: 0.03294276558 | EO16: 0.03294276558 | EP16: 0.03007442135 | ER16: 10 | ES16: 0.05092579174 | ET16: 0.03662612282 | EU16: 0.03075764068 | EV16: 0.05092579174 | EW16: 0.03662612282 | EX16: 0.03075764068 | EY16: 0.03241618633 | FA16: 10 | FB16: 0.05392028178 | FC16: 0.04046397795 | FD16: 0.03952295449 | FE16: 0.05392028178 | FF16: 0.04046397795 | FG16: 0.03952295449 | FH16: 0.03630197623 | FJ16: 10 | FK16: 0.05717866398 | FL16: 0.04374684478 | FM16: 0.04736827447 | FN16: 0.05717866398 | FO16: 0.04374684478 | FP16: 0.04736827447 | FQ16: 0.03751271511 | FS16: 10 | FT16: 0.05611365606 | FU16: 0.04214849491 | FV16: 0.04817095164 | FW16: 0.05611365606 | FX16: 0.04214849491 | FY16: 0.04817095164 | FZ16: 0.03793496121 | GB16: 10 | GC16: 0.05502993868 | GD16: 0.04396639162 | GE16: 0.0413757112 | GF16: 0.05502993868 | GG16: 0.04396639162 | GH16: 0.0413757112 | GI16: 0.03994833555 | GK16: 10 | GL16: 0.05502993868 | GM16: 0.04396639162 | GN16: 0.0413757112 | GO16: 0.05502993868 | GP16: 0.04396639162 | GQ16: 0.0413757112 | GR16: 0.03994833555 | GT16: 10 | GU16: 0.05502993868 | GV16: 0.04396639162 | GW16: 0.0413757112 | GX16: 0.05502993868 | GY16: 0.04396639162 | GZ16: 0.0413757112 | HA16: 0.03994833555 | HC16: 10 | HD16: 0.05502993868 | HE16: 0.04396639162 | HF16: 0.0413757112 | HG16: 0.05502993868 | HH16: 0.04396639162 | HI16: 0.0413757112 | HJ16: 0.03994833555 | HL16: 10 | HM16: 0.05502993868 | HN16: 0.04396639162 | HO16: 0.0413757112 | HP16: 0.05502993868 | HQ16: 0.04396639162 | HR16: 0.0413757112 | HS16: 0.03994833555 | HU16: 10 | HV16: 0.05502993868 | HW16: 0.04396639162 | HX16: 0.0413757112 | HY16: 0.05502993868 | HZ16: 0.04396639162 | IA16: 0.0413757112 | IB16: 0.03994833555 | ID16: 10 | IE16: 0.05502993868 | IF16: 0.04396639162 | IG16: 0.0413757112 | IH16: 0.05502993868 | II16: 0.04396639162 | IJ16: 0.0413757112 | IK16: 0.03994833555 | IM16: 10 | IN16: 0.05502993868 | IO16: 0.04396639162 | IP16: 0.0413757112 | IQ16: 0.05502993868 | IR16: 0.04396639162 | IS16: 0.0413757112 | IT16: 0.03994833555
B17: 7 | K17: 7 | BV17: 11 | BW17: 7 | BX17: 0.0624861636 | BY17: 0.06296888637 | BZ17: 0.06607714487 | CA17: 0.0624861636 | CB17: 0.06296888637 | CC17: 0.06607714487 | CD17: 0.06635017884 | CF17: 7 | CG17: 10462.95668 | CH17: 12540.95041 | CI17: 12793.31623 | CJ17: 10462.95668 | CK17: 14226.72323 | CL17: 15334.4123 | CM17: 2611 | DH17: 11 | DI17: 0.05393234524 | DJ17: 0.04167187246 | DK17: 0.03581018954 | DL17: 0.05393234524 | DM17: 0.03633253254 | DN17: 0.03676105802 | DO17: 0.097 | DQ17: 11 | DR17: 0.06206208436 | DS17: 0.041958002 | DT17: 0.05152104033 | DU17: 0.06206208436 | DV17: 0.041958002 | DW17: 0.05152104033 | DX17: 0.03875517029 | DZ17: 11 | EA17: 0.05816723106 | EB17: 0.0380660486 | EC17: 0.05047244775 | ED17: 0.05816723106 | EE17: 0.0380660486 | EF17: 0.05047244775 | EG17: 0.03000912529 | EI17: 11 | EJ17: 0.05510667187 | EK17: 0.04109492997 | EL17: 0.04109492997 | EM17: 0.05510667187 | EN17: 0.04109492997 | EO17: 0.04109492997 | EP17: 0.02852895237 | ER17: 11 | ES17: 0.04825135225 | ET17: 0.0309040346 | EU17: 0.03121863747 | EV17: 0.04825135225 | EW17: 0.0309040346 | EX17: 0.03121863747 | EY17: 0.02715078857 | FA17: 11 | FB17: 0.0491897559 | FC17: 0.032875557 | FD17: 0.02923381052 | FE17: 0.0491897559 | FF17: 0.032875557 | FG17: 0.02923381052 | FH17: 0.02926786445 | FJ17: 11 | FK17: 0.05215150674 | FL17: 0.03634371384 | FM17: 0.03715361357 | FN17: 0.05215150674 | FO17: 0.03634371384 | FP17: 0.03715361357 | FQ17: 0.03278303243 | FS17: 11 | FT17: 0.05523404833 | FU17: 0.03950010435 | FV17: 0.04421957381 | FW17: 0.05523404833 | FX17: 0.03950010435 | FY17: 0.04421957381 | FZ17: 0.03381399161 | GB17: 11 | GC17: 0.0540063368 | GD17: 0.0384341685 | GE17: 0.04754542646 | GF17: 0.0540063368 | GG17: 0.0384341685 | GH17: 0.04754542646 | GI17: 0.03407908738 | GK17: 11 | GL17: 0.0540063368 | GM17: 0.0384341685 | GN17: 0.04754542646 | GO17: 0.0540063368 | GP17: 0.0384341685 | GQ17: 0.04754542646 | GR17: 0.03407908738 | GT17: 11 | GU17: 0.0540063368 | GV17: 0.0384341685 | GW17: 0.04754542646 | GX17: 0.0540063368 | GY17: 0.0384341685 | GZ17: 0.04754542646 | HA17: 0.03407908738 | HC17: 11 | HD17: 0.0540063368 | HE17: 0.0384341685 | HF17: 0.04754542646 | HG17: 0.0540063368 | HH17: 0.0384341685 | HI17: 0.04754542646 | HJ17: 0.03407908738 | HL17: 11 | HM17: 0.0540063368 | HN17: 0.0384341685 | HO17: 0.04754542646 | HP17: 0.0540063368 | HQ17: 0.0384341685 | HR17: 0.04754542646 | HS17: 0.03407908738 | HU17: 11 | HV17: 0.0540063368 | HW17: 0.0384341685 | HX17: 0.04754542646 | HY17: 0.0540063368 | HZ17: 0.0384341685 | IA17: 0.04754542646 | IB17: 0.03407908738 | ID17: 11 | IE17: 0.0540063368 | IF17: 0.0384341685 | IG17: 0.04754542646 | IH17: 0.0540063368 | II17: 0.0384341685 | IJ17: 0.04754542646 | IK17: 0.03407908738 | IM17: 11 | IN17: 0.0540063368 | IO17: 0.0384341685 | IP17: 0.04754542646 | IQ17: 0.0540063368 | IR17: 0.0384341685 | IS17: 0.04754542646 | IT17: 0.03407908738
B18: 8 | K18: 8 | BV18: 12 | BW18: 8 | BX18: 0.05723916436 | BY18: 0.05473718429 | BZ18: 0.0514796667 | CA18: 0.05723916436 | CB18: 0.05473718429 | CC18: 0.0514796667 | CD18: 0.06217617118 | CF18: 8 | CG18: 9946.702452 | CH18: 11670.95329 | CI18: 11986.62991 | CJ18: 9946.702452 | CK18: 13032.14993 | CL18: 14018.88545 | CM18: 2300 | DH18: 12 | DI18: 0.04580195009 | DJ18: 0.03629781559 | DK18: 0.03271548688 | DL18: 0.04580195009 | DM18: 0.0338469862 | DN18: 0.03413526885 | DO18: 0 | DQ18: 12 | DR18: 0.05505502646 | DS18: 0.0379619838 | DT18: 0.04531146212 | DU18: 0.05505502646 | DV18: 0.0379619838 | DW18: 0.04531146212 | DX18: 0.04612722743 | DZ18: 12 | EA18: 0.05875920525 | EB18: 0.03695673681 | EC18: 0.04756678792 | ED18: 0.05875920525 | EE18: 0.03695673681 | EF18: 0.04756678792 | EG18: 0.03426289116 | EI18: 12 | EJ18: 0.05535343547 | EK18: 0.04743076658 | EL18: 0.04743076658 | EM18: 0.05535343547 | EN18: 0.04743076658 | EO18: 0.04743076658 | EP18: 0.02669181679 | ER18: 12 | ES18: 0.05265198613 | ET18: 0.03174191025 | EU18: 0.03894409086 | EV18: 0.05265198613 | EW18: 0.03174191025 | EX18: 0.03894409086 | EY18: 0.02547550577 | FA18: 12 | FB18: 0.04632140358 | FC18: 0.02757223093 | FD18: 0.02967195262 | FE18: 0.04632140358 | FF18: 0.02757223093 | FG18: 0.02967195262 | FH18: 0.02424747394 | FJ18: 12 | FK18: 0.04728519617 | FL18: 0.02935005054 | FM18: 0.02748126662 | FN18: 0.04728519617 | FO18: 0.02935005054 | FP18: 0.02748126662 | FQ18: 0.02614358338 | FS18: 12 | FT18: 0.05006977365 | FU18: 0.0326179171 | FV18: 0.03468882008 | FW18: 0.05006977365 | FX18: 0.0326179171 | FY18: 0.03468882008 | FZ18: 0.02922944717 | GB18: 12 | GC18: 0.05283467906 | GD18: 0.03580209062 | GE18: 0.04152057864 | GF18: 0.05283467906 | GG18: 0.03580209062 | GH18: 0.04152057864 | GI18: 0.03004664125 | GK18: 12 | GL18: 0.05283467906 | GM18: 0.03580209062 | GN18: 0.04152057864 | GO18: 0.05283467906 | GP18: 0.03580209062 | GQ18: 0.04152057864 | GR18: 0.03004664125 | GT18: 12 | GU18: 0.05283467906 | GV18: 0.03580209062 | GW18: 0.04152057864 | GX18: 0.05283467906 | GY18: 0.03580209062 | GZ18: 0.04152057864 | HA18: 0.03004664125 | HC18: 12 | HD18: 0.05283467906 | HE18: 0.03580209062 | HF18: 0.04152057864 | HG18: 0.05283467906 | HH18: 0.03580209062 | HI18: 0.04152057864 | HJ18: 0.03004664125 | HL18: 12 | HM18: 0.05283467906 | HN18: 0.03580209062 | HO18: 0.04152057864 | HP18: 0.05283467906 | HQ18: 0.03580209062 | HR18: 0.04152057864 | HS18: 0.03004664125 | HU18: 12 | HV18: 0.05283467906 | HW18: 0.03580209062 | HX18: 0.04152057864 | HY18: 0.05283467906 | HZ18: 0.03580209062 | IA18: 0.04152057864 | IB18: 0.03004664125 | ID18: 12 | IE18: 0.05283467906 | IF18: 0.03580209062 | IG18: 0.04152057864 | IH18: 0.05283467906 | II18: 0.03580209062 | IJ18: 0.04152057864 | IK18: 0.03004664125 | IM18: 12 | IN18: 0.05283467906 | IO18: 0.03580209062 | IP18: 0.04152057864 | IQ18: 0.05283467906 | IR18: 0.03580209062 | IS18: 0.04152057864 | IT18: 0.03004664125
B19: 9 | K19: 9 | BV19: 13 | BW19: 9 | BX19: 0.05555711798 | BY19: 0.04728997478 | BZ19: 0.04452910332 | CA19: 0.05555711798 | CB19: 0.04728997478 | CC19: 0.04452910332 | CD19: 0.04715027857 | CF19: 9 | CG19: 9455.920795 | CH19: 10842.5816 | CI19: 11231.4694 | CJ19: 9455.920795 | CK19: 11939.22603 | CL19: 12817.10448 | CM19: 1989 | DH19: 13 | DI19: 0.03631484274 | DJ19: 0.03103883997 | DK19: 0.02989112473 | DL19: 0.03631484274 | DM19: 0.03153146859 | DN19: 0.03170174517 | DO19: 0 | DQ19: 13 | DR19: 0.05205202362 | DS19: 0.03496505165 | DT19: 0.04902503538 | DU19: 0.05205202362 | DV19: 0.03496505165 | DW19: 0.04902503538 | DX19: 0.04218939411 | DZ19: 13 | EA19: 0.04984453226 | EB19: 0.03324905884 | EC19: 0.04139801785 | ED19: 0.04984453226 | EE19: 0.03324905884 | EF19: 0.04139801785 | EG19: 0.0403324506 | EI19: 13 | EJ19: 0.05347029984 | EK19: 0.04423457275 | EL19: 0.04423457275 | EM19: 0.05347029984 | EN19: 0.04423457275 | EO19: 0.04423457275 | EP19: 0.03014039897 | ER19: 13 | ES19: 0.05057388778 | ET19: 0.0297922387 | EU19: 0.04448022617 | EV19: 0.05057388778 | EW19: 0.0297922387 | EX19: 0.04448022617 | EY19: 0.02357295247 | FA19: 13 | FB19: 0.04833453089 | FC19: 0.02816060048 | FD19: 0.03662911369 | FE19: 0.04833453089 | FF19: 0.02816060048 | FG19: 0.03662911369 | FH19: 0.0225012702 | FJ19: 13 | FK19: 0.04257973228 | FL19: 0.02447707538 | FM19: 0.02760257065 | FN19: 0.04257973228 | FO19: 0.02447707538 | FP19: 0.02760257065 | FQ19: 0.0214209763 | FS19: 13 | FT19: 0.04341141684 | FU19: 0.0261931723 | FV19: 0.02603119507 | FW19: 0.04341141684 | FX19: 0.0261931723 | FY19: 0.02603119507 | FZ19: 0.02305357673 | GB19: 13 | GC19: 0.04579924035 | GD19: 0.02939802025 | GE19: 0.03222777686 | GF19: 0.04579924035 | GG19: 0.02939802025 | GH19: 0.03222777686 | GI19: 0.02568745136 | GK19: 13 | GL19: 0.04579924035 | GM19: 0.02939802025 | GN19: 0.03222777686 | GO19: 0.04579924035 | GP19: 0.02939802025 | GQ19: 0.03222777686 | GR19: 0.02568745136 | GT19: 13 | GU19: 0.04579924035 | GV19: 0.02939802025 | GW19: 0.03222777686 | GX19: 0.04579924035 | GY19: 0.02939802025 | GZ19: 0.03222777686 | HA19: 0.02568745136 | HC19: 13 | HD19: 0.04579924035 | HE19: 0.02939802025 | HF19: 0.03222777686 | HG19: 0.04579924035 | HH19: 0.02939802025 | HI19: 0.03222777686 | HJ19: 0.02568745136 | HL19: 13 | HM19: 0.04579924035 | HN19: 0.02939802025 | HO19: 0.03222777686 | HP19: 0.04579924035 | HQ19: 0.02939802025 | HR19: 0.03222777686 | HS19: 0.02568745136 | HU19: 13 | HV19: 0.04579924035 | HW19: 0.02939802025 | HX19: 0.03222777686 | HY19: 0.04579924035 | HZ19: 0.02939802025 | IA19: 0.03222777686 | IB19: 0.02568745136 | ID19: 13 | IE19: 0.04579924035 | IF19: 0.02939802025 | IG19: 0.03222777686 | IH19: 0.04579924035 | II19: 0.02939802025 | IJ19: 0.03222777686 | IK19: 0.02568745136 | IM19: 13 | IN19: 0.04579924035 | IO19: 0.02939802025 | IP19: 0.03222777686 | IQ19: 0.04579924035 | IR19: 0.02939802025 | IS19: 0.03222777686 | IT19: 0.02568745136
B20: 10 | K20: 10 | BV20: 14 | BW20: 10 | BX20: 0.05502993868 | BY20: 0.04396639162 | BZ20: 0.0413757112 | CA20: 0.05502993868 | CB20: 0.04396639162 | CC20: 0.0413757112 | CD20: 0.03994833555 | CF20: 10 | CG20: 8989.354864 | CH20: 10054.74666 | CI20: 10524.49367 | CJ20: 8989.354864 | CK20: 10939.17899 | CL20: 11719.15653 | CM20: 1678 | DH20: 14 | DI20: 0.02879283655 | DJ20: 0.02606695749 | DK20: 0.02731336489 | DL20: 0.02879283655 | DM20: 0.02937438387 | DN20: 0.02944591849 | DO20: 0 | DQ20: 14 | DR20: 0.04204203978 | DS20: 0.03096903345 | DT20: 0.04057984047 | DU20: 0.04204203978 | DV20: 0.03096903345 | DW20: 0.04057984047 | DX20: 0.03831241561 | DZ20: 14 | EA20: 0.04416517008 | EB20: 0.03044378587 | EC20: 0.04479079511 | ED20: 0.04416517008 | EE20: 0.03044378587 | EF20: 0.04479079511 | EG20: 0.03647950469 | EI20: 14 | EJ20: 0.04250853645 | EK20: 0.03849798335 | EL20: 0.03849798335 | EM20: 0.04250853645 | EN20: 0.03849798335 | EO20: 0.03849798335 | EP20: 0.03508553569 | ER20: 14 | ES20: 0.04578427927 | ET20: 0.02859210496 | EU20: 0.04148276043 | EV20: 0.04578427927 | EW20: 0.02859210496 | EX20: 0.04148276043 | EY20: 0.02632297026 | FA20: 14 | FB20: 0.0435101689 | FC20: 0.02627524217 | FD20: 0.04183611691 | FE20: 0.0435101689 | FF20: 0.02627524217 | FG20: 0.04183611691 | FH20: 0.02058956054 | FJ20: 14 | FK20: 0.04163902765 | FL20: 0.02485219982 | FM20: 0.03407464589 | FN20: 0.04163902765 | FO20: 0.02485219982 | FP20: 0.03407464589 | FQ20: 0.0196574963 | FS20: 14 | FT20: 0.03663562262 | FU20: 0.02171570567 | FV20: 0.02697588389 | FW20: 0.03663562262 | FX20: 0.02171570567 | FY20: 0.02697588389 | FZ20: 0.01867924241 | GB20: 14 | GC20: 0.03721419739 | GD20: 0.02346846074 | GE20: 0.02358944754 | GF20: 0.03721419739 | GG20: 0.02346846074 | GH20: 0.02358944754 | GI20: 0.0200348664 | GK20: 14 | GL20: 0.03721419739 | GM20: 0.02346846074 | GN20: 0.02358944754 | GO20: 0.03721419739 | GP20: 0.02346846074 | GQ20: 0.02358944754 | GR20: 0.0200348664 | GT20: 14 | GU20: 0.03721419739 | GV20: 0.02346846074 | GW20: 0.02358944754 | GX20: 0.03721419739 | GY20: 0.02346846074 | GZ20: 0.02358944754 | HA20: 0.0200348664 | HC20: 14 | HD20: 0.03721419739 | HE20: 0.02346846074 | HF20: 0.02358944754 | HG20: 0.03721419739 | HH20: 0.02346846074 | HI20: 0.02358944754 | HJ20: 0.0200348664 | HL20: 14 | HM20: 0.03721419739 | HN20: 0.02346846074 | HO20: 0.02358944754 | HP20: 0.03721419739 | HQ20: 0.02346846074 | HR20: 0.02358944754 | HS20: 0.0200348664 | HU20: 14 | HV20: 0.03721419739 | HW20: 0.02346846074 | HX20: 0.02358944754 | HY20: 0.03721419739 | HZ20: 0.02346846074 | IA20: 0.02358944754 | IB20: 0.0200348664 | ID20: 14 | IE20: 0.03721419739 | IF20: 0.02346846074 | IG20: 0.02358944754 | IH20: 0.03721419739 | II20: 0.02346846074 | IJ20: 0.02358944754 | IK20: 0.0200348664 | IM20: 14 | IN20: 0.03721419739 | IO20: 0.02346846074 | IP20: 0.02358944754 | IQ20: 0.03721419739 | IR20: 0.02346846074 | IS20: 0.02358944754 | IT20: 0.0200348664
B21: 11 | K21: 11 | BV21: 15 | BW21: 11 | BX21: 0.0540063368 | BY21: 0.0384341685 | BZ21: 0.04754542646 | CA21: 0.0540063368 | CB21: 0.0384341685 | CC21: 0.04754542646 | CD21: 0.03407908738 | CF21: 11 | CG21: 8545.80983 | CH21: 9306.434577 | CI21: 9862.582041 | CJ21: 8545.80983 | CK21: 10024.00446 | CL21: 10715.99987 | CM21: 1368 | DH21: 15 | DI21: 0.02282888467 | DJ21: 0.02152942829 | DK21: 0.02496045427 | DL21: 0.02282888467 | DM21: 0.02736491796 | DN21: 0.02735469399 | DO21: 0 | DQ21: 15 | DR21: 0.03203205594 | DS21: 0.02397607007 | DT21: 0.02897851805 | DU21: 0.03203205594 | DV21: 0.02397607007 | DW21: 0.02897851805 | DX21: 0.03449677109 | DZ21: 15 | EA21: 0.03472894874 | EB21: 0.02650959928 | EC21: 0.03707496743 | ED21: 0.03472894874 | EE21: 0.02650959928 | EF21: 0.03707496743 | EG21: 0.03312723459 | EI21: 15 | EJ21: 0.03666940526 | EK21: 0.04165305244 | EL21: 0.04165305244 | EM21: 0.03666940526 | EN21: 0.04165305244 | EO21: 0.04165305244 | EP21: 0.03173364485 | ER21: 15 | ES21: 0.03543605578 | ET21: 0.02514072279 | EU21: 0.03610307394 | EV21: 0.03543605578 | EW21: 0.02514072279 | EX21: 0.03610307394 | EY21: 0.03064177965 | FA21: 15 | FB21: 0.03834833558 | FC21: 0.02479125351 | FD21: 0.03901682334 | FE21: 0.03834833558 | FF21: 0.02479125351 | FG21: 0.03901682334 | FH21: 0.02299160947 | FJ21: 15 | FK21: 0.03649216694 | FL21: 0.02279713489 | FM21: 0.03891842473 | FN21: 0.03649216694 | FO21: 0.02279713489 | FP21: 0.03891842473 | FQ21: 0.0179873755 | FS21: 15 | FT21: 0.0348793001 | FU21: 0.02167644247 | FV21: 0.03380037558 | FW21: 0.0348793001 | FX21: 0.02167644247 | FY21: 0.03380037558 | FZ21: 0.01714148039 | GB21: 15 | GC21: 0.03057553583 | GD21: 0.01912848189 | GE21: 0.02369365988 | GF21: 0.03057553583 | GG21: 0.01912848189 | GH21: 0.02369365988 | GI21: 0.0162333631 | GK21: 15 | GL21: 0.03057553583 | GM21: 0.01912848189 | GN21: 0.02369365988 | GO21: 0.03057553583 | GP21: 0.01912848189 | GQ21: 0.02369365988 | GR21: 0.0162333631 | GT21: 15 | GU21: 0.03057553583 | GV21: 0.01912848189 | GW21: 0.02369365988 | GX21: 0.03057553583 | GY21: 0.01912848189 | GZ21: 0.02369365988 | HA21: 0.0162333631 | HC21: 15 | HD21: 0.03057553583 | HE21: 0.01912848189 | HF21: 0.02369365988 | HG21: 0.03057553583 | HH21: 0.01912848189 | HI21: 0.02369365988 | HJ21: 0.0162333631 | HL21: 15 | HM21: 0.03057553583 | HN21: 0.01912848189 | HO21: 0.02369365988 | HP21: 0.03057553583 | HQ21: 0.01912848189 | HR21: 0.02369365988 | HS21: 0.0162333631 | HU21: 15 | HV21: 0.03057553583 | HW21: 0.01912848189 | HX21: 0.02369365988 | HY21: 0.03057553583 | HZ21: 0.01912848189 | IA21: 0.02369365988 | IB21: 0.0162333631 | ID21: 15 | IE21: 0.03057553583 | IF21: 0.01912848189 | IG21: 0.02369365988 | IH21: 0.03057553583 | II21: 0.01912848189 | IJ21: 0.02369365988 | IK21: 0.0162333631 | IM21: 15 | IN21: 0.03057553583 | IO21: 0.01912848189 | IP21: 0.02369365988 | IQ21: 0.03057553583 | IR21: 0.01912848189 | IS21: 0.02369365988 | IT21: 0.0162333631
B22: 12 | K22: 12 | BV22: 16 | BW22: 12 | BX22: 0.05283467906 | BY22: 0.03580209062 | BZ22: 0.04152057864 | CA22: 0.05283467906 | CB22: 0.03580209062 | CC22: 0.04152057864 | CD22: 0.03004664125 | CF22: 12 | CG22: 8124.149814 | CH22: 8596.701162 | CI22: 9242.819415 | CJ22: 8124.149814 | CK22: 9186.398015 | CL22: 9799.386667 | CM22: 1368 | DH22: 16 | DI22: 0.01810026412 | DJ22: 0.01753397547 | DK22: 0.02281255932 | DL22: 0.01810026412 | DM22: 0.02549284308 | DN22: 0.02541544794 | DO22: 0 | DQ22: 16 | DR22: 0.02302304742 | DS22: 0.0169830154 | DT22: 0.02969464823 | DU22: 0.02302304742 | DV22: 0.0169830154 | DW22: 0.02969464823 | DX22: 0.03074222096 | DZ22: 16 | EA22: 0.02586965399 | EB22: 0.02040013554 | EC22: 0.02619700421 | ED22: 0.02586965399 | EE22: 0.02040013554 | EF22: 0.02619700421 | EG22: 0.02949285428 | EI22: 16 | EJ22: 0.02819121525 | EK22: 0.03411485399 | EL22: 0.03411485399 | EM22: 0.02819121525 | EN22: 0.03411485399 | EO22: 0.03411485399 | EP22: 0.02849391598 | ER22: 16 | ES22: 0.02988623077 | ET22: 0.02249523695 | EU22: 0.03865068146 | EV22: 0.02988623077 | EW22: 0.02249523695 | EX22: 0.03865068146 | EY22: 0.0274030633 | FA22: 16 | FB22: 0.02901837728 | FC22: 0.02166771859 | FD22: 0.03359948378 | FE22: 0.02901837728 | FF22: 0.02166771859 | FG22: 0.03359948378 | FH22: 0.02646298362 | FJ22: 16 | FK22: 0.03144513675 | FL22: 0.02138032541 | FM22: 0.03591372912 | FN22: 0.03144513675 | FO22: 0.02138032541 | FP22: 0.03591372912 | FQ22: 0.01986008639 | FS22: 16 | FT22: 0.0298857866 | FU22: 0.01976446181 | FV22: 0.03854582873 | FW22: 0.0298857866 | FX22: 0.01976446181 | FY22: 0.03854582873 | FZ22: 0.01550887516 | GB22: 16 | GC22: 0.02846007102 | GD22: 0.01897915978 | GE22: 0.02894118683 | GF22: 0.02846007102 | GG22: 0.01897915978 | GH22: 0.02894118683 | GI22: 0.01472958044 | GK22: 16 | GL22: 0.02846007102 | GM22: 0.01897915978 | GN22: 0.02894118683 | GO22: 0.02846007102 | GP22: 0.01897915978 | GQ22: 0.02894118683 | GR22: 0.01472958044 | GT22: 16 | GU22: 0.02846007102 | GV22: 0.01897915978 | GW22: 0.02894118683 | GX22: 0.02846007102 | GY22: 0.01897915978 | GZ22: 0.02894118683 | HA22: 0.01472958044 | HC22: 16 | HD22: 0.02846007102 | HE22: 0.01897915978 | HF22: 0.02894118683 | HG22: 0.02846007102 | HH22: 0.01897915978 | HI22: 0.02894118683 | HJ22: 0.01472958044 | HL22: 16 | HM22: 0.02846007102 | HN22: 0.01897915978 | HO22: 0.02894118683 | HP22: 0.02846007102 | HQ22: 0.01897915978 | HR22: 0.02894118683 | HS22: 0.01472958044 | HU22: 16 | HV22: 0.02846007102 | HW22: 0.01897915978 | HX22: 0.02894118683 | HY22: 0.02846007102 | HZ22: 0.01897915978 | IA22: 0.02894118683 | IB22: 0.01472958044 | ID22: 16 | IE22: 0.02846007102 | IF22: 0.01897915978 | IG22: 0.02894118683 | IH22: 0.02846007102 | II22: 0.01897915978 | IJ22: 0.02894118683 | IK22: 0.01472958044 | IM22: 16 | IN22: 0.02846007102 | IO22: 0.01897915978 | IP22: 0.02894118683 | IQ22: 0.02846007102 | IR22: 0.01897915978 | IS22: 0.02894118683 | IT22: 0.01472958044
B23: 13 | K23: 13 | BV23: 17 | BW23: 13 | BX23: 0.04579924035 | BY23: 0.02939802025 | BZ23: 0.03222777686 | CA23: 0.04579924035 | CB23: 0.02939802025 | CC23: 0.03222777686 | CD23: 0.02568745136 | CF23: 13 | CG23: 7723.294984 | CH23: 7924.667102 | CI23: 8662.482436 | CJ23: 7723.294984 | CK23: 8419.693025 | CL23: 8961.792595 | CM23: 1368 | DH23: 17 | DI23: 0.01435110054 | DJ23: 0.01414010095 | DK23: 0.02085183165 | DL23: 0.01435110054 | DM23: 0.02374884347 | DN23: 0.02361703028 | DO23: 0 | DQ23: 17 | DR23: 0.01501501421 | DS23: 0.01298701024 | DT23: 0.01753347041 | DU23: 0.01501501421 | DV23: 0.01298701024 | DW23: 0.01753347041 | DX23: 0.02704852565 | DZ23: 17 | EA23: 0.018263053 | EB23: 0.01436822366 | EC23: 0.02684450152 | ED23: 0.018263053 | EE23: 0.01436822366 | EF23: 0.02684450152 | EG23: 0.02598416663 | EI23: 17 | EJ23: 0.02062611152 | EK23: 0.0241053695 | EL23: 0.0241053695 | EM23: 0.02062611152 | EN23: 0.0241053695 | EO23: 0.0241053695 | EP23: 0.02507946015 | ER23: 17 | ES23: 0.02256763741 | ET23: 0.01936008748 | EU23: 0.03165582925 | EV23: 0.02256763741 | EW23: 0.01936008748 | EX23: 0.03165582925 | EY23: 0.02432575811 | FA23: 17 | FB23: 0.02403836587 | FC23: 0.01927777478 | FD23: 0.03597045057 | FE23: 0.02403836587 | FF23: 0.01927777478 | FG23: 0.03597045057 | FH23: 0.02339693907 | FJ23: 17 | FK23: 0.02337144102 | FL23: 0.01858051949 | FM23: 0.03092728256 | FN23: 0.02337144102 | FO23: 0.01858051949 | FP23: 0.03092728256 | FQ23: 0.02259890213 | FS23: 17 | FT23: 0.02529431246 | FU23: 0.01843106949 | FV23: 0.03564555851 | FW23: 0.02529431246 | FX23: 0.01843106949 | FY23: 0.03564555851 | FZ23: 0.01692897347 | GB23: 17 | GC23: 0.02395170339 | GD23: 0.01720697689 | GE23: 0.03270737405 | GF23: 0.02395170339 | GG23: 0.01720697689 | GH23: 0.03270737405 | GI23: 0.01317526361 | GK23: 17 | GL23: 0.02395170339 | GM23: 0.01720697689 | GN23: 0.03270737405 | GO23: 0.02395170339 | GP23: 0.01720697689 | GQ23: 0.03270737405 | GR23: 0.01317526361 | GT23: 17 | GU23: 0.02395170339 | GV23: 0.01720697689 | GW23: 0.03270737405 | GX23: 0.02395170339 | GY23: 0.01720697689 | GZ23: 0.03270737405 | HA23: 0.01317526361 | HC23: 17 | HD23: 0.02395170339 | HE23: 0.01720697689 | HF23: 0.03270737405 | HG23: 0.02395170339 | HH23: 0.01720697689 | HI23: 0.03270737405 | HJ23: 0.01317526361 | HL23: 17 | HM23: 0.02395170339 | HN23: 0.01720697689 | HO23: 0.03270737405 | HP23: 0.02395170339 | HQ23: 0.01720697689 | HR23: 0.03270737405 | HS23: 0.01317526361 | HU23: 17 | HV23: 0.02395170339 | HW23: 0.01720697689 | HX23: 0.03270737405 | HY23: 0.02395170339 | HZ23: 0.01720697689 | IA23: 0.03270737405 | IB23: 0.01317526361 | ID23: 17 | IE23: 0.02395170339 | IF23: 0.01720697689 | IG23: 0.03270737405 | IH23: 0.02395170339 | II23: 0.01720697689 | IJ23: 0.03270737405 | IK23: 0.01317526361 | IM23: 17 | IN23: 0.02395170339 | IO23: 0.01720697689 | IP23: 0.03270737405 | IQ23: 0.02395170339 | IR23: 0.01720697689 | IS23: 0.03270737405 | IT23: 0.01317526361
B24: 14 | K24: 14 | BV24: 18 | BW24: 14 | BX24: 0.03721419739 | BY24: 0.02346846074 | BZ24: 0.02358944754 | CA24: 0.03721419739 | CB24: 0.02346846074 | CC24: 0.02358944754 | CD24: 0.0200348664 | CF24: 14 | CG24: 7342.21879 | CH24: 7289.513515 | CI24: 8028.289839 | CJ24: 7342.21879 | CK24: 7717.804181 | CL24: 8196.352848 | CM24: 1368 | DH24: 18 | DI24: 0.01137850912 | DJ24: 0.01205520188 | DK24: 0.01906161033 | DL24: 0.01137850912 | DM24: 0.0221241897 | DN24: 0.02194881219 | DO24: 0 | DQ24: 18 | DR24: 0.01301298668 | DS24: 0.009989999855 | DT24: 0.01657126329 | DU24: 0.01301298668 | DV24: 0.009989999855 | DW24: 0.01657126329 | DX24: 0.02341604452 | DZ24: 18 | EA24: 0.01173972658 | EB24: 0.01093269822 | EC24: 0.01568190601 | ED24: 0.01173972658 | EE24: 0.01093269822 | EF24: 0.01568190601 | EG24: 0.02259942593 | EI24: 18 | EJ24: 0.01435224633 | EK24: 0.02443836051 | EL24: 0.02443836051 | EM24: 0.01435224633 | EN24: 0.02443836051 | EO24: 0.02443836051 | EP24: 0.02184182436 | ER24: 18 | ES24: 0.01627456433 | ET24: 0.01474010447 | EU24: 0.02212990377 | EV24: 0.01627456433 | EW24: 0.01474010447 | EX24: 0.02212990377 | EY24: 0.02116473344 | FA24: 18 | FB24: 0.01789121481 | FC24: 0.01650824972 | FD24: 0.02914732256 | FE24: 0.01789121481 | FF24: 0.01650824972 | FG24: 0.02914732256 | FH24: 0.02053082061 | FJ24: 18 | FK24: 0.01908253276 | FL24: 0.01644868797 | FM24: 0.03275744216 | FN24: 0.01908253276 | FO24: 0.01644868797 | FP24: 0.03275744216 | FQ24: 0.01975100604 | FS24: 18 | FT24: 0.01853001178 | FU24: 0.01593772542 | FV24: 0.03156841116 | FW24: 0.01853001178 | FX24: 0.01593772542 | FY24: 0.03156841116 | FZ24: 0.01904217937 | GB24: 18 | GC24: 0.01998095037 | GD24: 0.01596619119 | GE24: 0.029861084 | GF24: 0.01998095037 | GG24: 0.01596619119 | GH24: 0.029861084 | GI24: 0.01421635816 | GK24: 18 | GL24: 0.01998095037 | GM24: 0.01596619119 | GN24: 0.029861084 | GO24: 0.01998095037 | GP24: 0.01596619119 | GQ24: 0.029861084 | GR24: 0.01421635816 | GT24: 18 | GU24: 0.01998095037 | GV24: 0.01596619119 | GW24: 0.029861084 | GX24: 0.01998095037 | GY24: 0.01596619119 | GZ24: 0.029861084 | HA24: 0.01421635816 | HC24: 18 | HD24: 0.01998095037 | HE24: 0.01596619119 | HF24: 0.029861084 | HG24: 0.01998095037 | HH24: 0.01596619119 | HI24: 0.029861084 | HJ24: 0.01421635816 | HL24: 18 | HM24: 0.01998095037 | HN24: 0.01596619119 | HO24: 0.029861084 | HP24: 0.01998095037 | HQ24: 0.01596619119 | HR24: 0.029861084 | HS24: 0.01421635816 | HU24: 18 | HV24: 0.01998095037 | HW24: 0.01596619119 | HX24: 0.029861084 | HY24: 0.01998095037 | HZ24: 0.01596619119 | IA24: 0.029861084 | IB24: 0.01421635816 | ID24: 18 | IE24: 0.01998095037 | IF24: 0.01596619119 | IG24: 0.029861084 | IH24: 0.01998095037 | II24: 0.01596619119 | IJ24: 0.029861084 | IK24: 0.01421635816 | IM24: 18 | IN24: 0.01998095037 | IO24: 0.01596619119 | IP24: 0.029861084 | IQ24: 0.01998095037 | IR24: 0.01596619119 | IS24: 0.029861084 | IT24: 0.01421635816
B25: 15 | K25: 15 | BV25: 19 | BW25: 15 | BX25: 0.03057553583 | BY25: 0.01912848189 | BZ25: 0.02369365988 | CA25: 0.03057553583 | CB25: 0.01912848189 | CC25: 0.02369365988 | CD25: 0.0162333631 | CF25: 15 | CG25: 6979.94533 | CH25: 6690.477799 | CI25: 7610.074612 | CJ25: 6979.94533 | CK25: 7075.176047 | CL25: 7496.803794 | CM25: 1368 | DH25: 19 | DI25: 0.009021646746 | DJ25: 0.0114077563 | DK25: 0.01742705824 | DL25: 0.009021646746 | DM25: 0.02061067347 | DN25: 0.02040129894 | DO25: 0 | DQ25: 19 | DR25: 0.01000998384 | DS25: 0.009989999855 | DT25: 0.01681173482 | DU25: 0.01000998384 | DV25: 0.009989999855 | DW25: 0.01681173482 | DX25: 0.01984465779 | DZ25: 19 | EA25: 0.01006608188 | EB25: 0.008373364603 | EC25: 0.0148213036 | ED25: 0.01006608188 | EE25: 0.008373364603 | EF25: 0.0148213036 | EG25: 0.01933693299 | EI25: 19 | EJ25: 0.009127583945 | EK25: 0.01427631278 | EL25: 0.01427631278 | EM25: 0.009127583945 | EN25: 0.01427631278 | EO25: 0.01427631278 | EP25: 0.01877579864 | ER25: 19 | ES25: 0.01120375367 | ET25: 0.01028536428 | EU25: 0.02243559288 | EV25: 0.01120375367 | EW25: 0.01028536428 | EX25: 0.02243559288 | EY25: 0.01821816462 | FA25: 19 | FB25: 0.01276479135 | FC25: 0.01251442936 | FD25: 0.02037621056 | FE25: 0.01276479135 | FF25: 0.01251442936 | FG25: 0.02037621056 | FH25: 0.01765521524 | FJ25: 19 | FK25: 0.01405149408 | FL25: 0.01402466428 | FM25: 0.02654368739 | FN25: 0.01405149408 | FO25: 0.01402466428 | FP25: 0.02654368739 | FQ25: 0.01712995921 | FS25: 19 | FT25: 0.01496849966 | FU25: 0.01404801078 | FV25: 0.03343536506 | FW25: 0.01496849966 | FX25: 0.01404801078 | FY25: 0.03343536506 | FZ25: 0.01644896279 | GB25: 19 | GC25: 0.01448169909 | GD25: 0.01374650307 | GE25: 0.02544146399 | GF25: 0.01448169909 | GG25: 0.01374650307 | GH25: 0.02544146399 | GI25: 0.01580503658 | GK25: 19 | GL25: 0.01448169909 | GM25: 0.01374650307 | GN25: 0.02544146399 | GO25: 0.01448169909 | GP25: 0.01374650307 | GQ25: 0.02544146399 | GR25: 0.01580503658 | GT25: 19 | GU25: 0.01448169909 | GV25: 0.01374650307 | GW25: 0.02544146399 | GX25: 0.01448169909 | GY25: 0.01374650307 | GZ25: 0.02544146399 | HA25: 0.01580503658 | HC25: 19 | HD25: 0.01448169909 | HE25: 0.01374650307 | HF25: 0.02544146399 | HG25: 0.01448169909 | HH25: 0.01374650307 | HI25: 0.02544146399 | HJ25: 0.01580503658 | HL25: 19 | HM25: 0.01448169909 | HN25: 0.01374650307 | HO25: 0.02544146399 | HP25: 0.01448169909 | HQ25: 0.01374650307 | HR25: 0.02544146399 | HS25: 0.01580503658 | HU25: 19 | HV25: 0.01448169909 | HW25: 0.01374650307 | HX25: 0.02544146399 | HY25: 0.01448169909 | HZ25: 0.01374650307 | IA25: 0.02544146399 | IB25: 0.01580503658 | ID25: 19 | IE25: 0.01448169909 | IF25: 0.01374650307 | IG25: 0.02544146399 | IH25: 0.01448169909 | II25: 0.01374650307 | IJ25: 0.02544146399 | IK25: 0.01580503658 | IM25: 19 | IN25: 0.01448169909 | IO25: 0.01374650307 | IP25: 0.02544146399 | IQ25: 0.01448169909 | IR25: 0.01374650307 | IS25: 0.02544146399 | IT25: 0.01580503658
B26: 16 | K26: 16 | BV26: 20 | BW26: 16 | BX26: 0.02846007102 | BY26: 0.01897915978 | BZ26: 0.02894118683 | CA26: 0.02846007102 | CB26: 0.01897915978 | CC26: 0.02894118683 | CD26: 0.01472958044 | CF26: 16 | CG26: 6635.546857 | CH26: 6126.84976 | CI26: 7133.404559 | CJ26: 6635.546857 | CK26: 6486.73624 | CL26: 6857.429876 | CM26: 1368 | DH26: 20 | DI26: 0.007152961897 | DJ26: 0.01079749949 | DK26: 0.0159344713 | DL26: 0.007152961897 | DM26: 0.01920067282 | DN26: 0.0189653679 | DO26: 0 | DQ26: 20 | DR26: 0.008008033211 | DS26: 0.007992010316 | DT26: 0.01429742421 | DU26: 0.008008033211 | DV26: 0.007992010316 | DW26: 0.01429742421 | DX26: 0.0163343415 | DZ26: 20 | EA26: 0.007672520178 | EB26: 0.008339073629 | EC26: 0.0148746762 | ED26: 0.007672520178 | EE26: 0.008339073629 | EF26: 0.0148746762 | EG26: 0.01638767083 | EI26: 20 | EJ26: 0.007754904274 | EK26: 0.01334776246 | EL26: 0.01334776246 | EM26: 0.007754904274 | EN26: 0.01334776246 | EO26: 0.01334776246 | EP26: 0.01606530132 | ER26: 20 | ES26: 0.007060214528 | ET26: 0.00776034804 | EU26: 0.01296543446 | EV26: 0.007060214528 | EW26: 0.00776034804 | EX26: 0.01296543446 | EY26: 0.01566081328 | FA26: 20 | FB26: 0.008707360654 | FC26: 0.008696487309 | FD26: 0.02043555697 | FE26: 0.008707360654 | FF26: 0.008696487309 | FG26: 0.02043555697 | FH26: 0.01519723082 | FJ26: 20 | FK26: 0.009933834734 | FL26: 0.01058815415 | FM26: 0.01835657321 | FN26: 0.009933834734 | FO26: 0.01058815415 | FP26: 0.01835657321 | FQ26: 0.01473068616 | FS26: 20 | FT26: 0.01092152225 | FU26: 0.0119287452 | FV26: 0.02652322535 | FW26: 0.01092152225 | FX26: 0.0119287452 | FY26: 0.02652322535 | FZ26: 0.01426609423 | GB26: 20 | GC26: 0.01159151061 | GD26: 0.01206695485 | GE26: 0.02665726174 | GF26: 0.01159151061 | GG26: 0.01206695485 | GH26: 0.02665726174 | GI26: 0.01365264285 | GK26: 20 | GL26: 0.01159151061 | GM26: 0.01206695485 | GN26: 0.02665726174 | GO26: 0.01159151061 | GP26: 0.01206695485 | GQ26: 0.02665726174 | GR26: 0.01365264285 | GT26: 20 | GU26: 0.01159151061 | GV26: 0.01206695485 | GW26: 0.02665726174 | GX26: 0.01159151061 | GY26: 0.01206695485 | GZ26: 0.02665726174 | HA26: 0.01365264285 | HC26: 20 | HD26: 0.01159151061 | HE26: 0.01206695485 | HF26: 0.02665726174 | HG26: 0.01159151061 | HH26: 0.01206695485 | HI26: 0.02665726174 | HJ26: 0.01365264285 | HL26: 20 | HM26: 0.01159151061 | HN26: 0.01206695485 | HO26: 0.02665726174 | HP26: 0.01159151061 | HQ26: 0.01206695485 | HR26: 0.02665726174 | HS26: 0.01365264285 | HU26: 20 | HV26: 0.01159151061 | HW26: 0.01206695485 | HX26: 0.02665726174 | HY26: 0.01159151061 | HZ26: 0.01206695485 | IA26: 0.02665726174 | IB26: 0.01365264285 | ID26: 20 | IE26: 0.01159151061 | IF26: 0.01206695485 | IG26: 0.02665726174 | IH26: 0.01159151061 | II26: 0.01206695485 | IJ26: 0.02665726174 | IK26: 0.01365264285 | IM26: 20 | IN26: 0.01159151061 | IO26: 0.01206695485 | IP26: 0.02665726174 | IQ26: 0.01159151061 | IR26: 0.01206695485 | IS26: 0.02665726174 | IT26: 0.01365264285
B27: 17 | K27: 17 | BV27: 21 | BW27: 17 | BX27: 0.02395170339 | BY27: 0.01720697689 | BZ27: 0.03270737405 | CA27: 0.02395170339 | CB27: 0.01720697689 | CC27: 0.03270737405 | CD27: 0.01317526361 | CF27: 17 | CG27: 6308.141397 | CH27: 5597.968012 | CI27: 6686.940189 | CJ27: 6308.141397 | CK27: 5947.852818 | CL27: 6273.015242 | CM27: 1368 | DH27: 21 | DI27: 0.005671343936 | DJ27: 0.01022218162 | DK27: 0.01457145779 | DL27: 0.005671343936 | DM27: 0.01788715207 | DN27: 0.01763286511 | DO27: 0 | DQ27: 21 | DR27: 0.006006005683 | DS27: 0.006993015547 | DT27: 0.01654227443 | DU27: 0.006006005683 | DV27: 0.006993015547 | DW27: 0.01654227443 | DX27: 0.01288511961 | DZ27: 21 | EA27: 0.00609883127 | EB27: 0.006649540472 | EC27: 0.01265007996 | ED27: 0.00609883127 | EE27: 0.006649540472 | EF27: 0.01265007996 | EG27: 0.01333017333 | EI27: 21 | EJ27: 0.005873194626 | EK27: 0.0133958241 | EL27: 0.0133958241 | EM27: 0.005873194626 | EN27: 0.0133958241 | EO27: 0.0133958241 | EP27: 0.01345486248 | ER27: 21 | ES27: 0.005960201283 | ET27: 0.005900103172 | EU27: 0.01212214535 | EV27: 0.005960201283 | EW27: 0.005900103172 | EX27: 0.01212214535 | EY27: 0.01324234699 | FA27: 21 | FB27: 0.005452078675 | FC27: 0.006540117655 | FD27: 0.01180960308 | FE27: 0.005452078675 | FF27: 0.006540117655 | FG27: 0.01180960308 | FH27: 0.01291025167 | FJ27: 21 | FK27: 0.006733024723 | FL27: 0.007333933991 | FM27: 0.01841003858 | FN27: 0.006733024723 | FO27: 0.007333933991 | FP27: 0.01841003858 | FQ27: 0.01253066971 | FS27: 21 | FT27: 0.007671797832 | FU27: 0.008976458645 | FV27: 0.01846769157 | FW27: 0.007671797832 | FX27: 0.008976458645 | FY27: 0.01846769157 | FZ27: 0.0121236199 | GB27: 21 | GC27: 0.008403641193 | GD27: 0.01021320353 | GE27: 0.02136839879 | GF27: 0.008403641193 | GG27: 0.01021320353 | GH27: 0.02136839879 | GI27: 0.01170156278 | GK27: 21 | GL27: 0.008403641193 | GM27: 0.01021320353 | GN27: 0.02136839879 | GO27: 0.008403641193 | GP27: 0.01021320353 | GQ27: 0.02136839879 | GR27: 0.01170156278 | GT27: 21 | GU27: 0.008403641193 | GV27: 0.01021320353 | GW27: 0.02136839879 | GX27: 0.008403641193 | GY27: 0.01021320353 | GZ27: 0.02136839879 | HA27: 0.01170156278 | HC27: 21 | HD27: 0.008403641193 | HE27: 0.01021320353 | HF27: 0.02136839879 | HG27: 0.008403641193 | HH27: 0.01021320353 | HI27: 0.02136839879 | HJ27: 0.01170156278 | HL27: 21 | HM27: 0.008403641193 | HN27: 0.01021320353 | HO27: 0.02136839879 | HP27: 0.008403641193 | HQ27: 0.01021320353 | HR27: 0.02136839879 | HS27: 0.01170156278 | HU27: 21 | HV27: 0.008403641193 | HW27: 0.01021320353 | HX27: 0.02136839879 | HY27: 0.008403641193 | HZ27: 0.01021320353 | IA27: 0.02136839879 | IB27: 0.01170156278 | ID27: 21 | IE27: 0.008403641193 | IF27: 0.01021320353 | IG27: 0.02136839879 | IH27: 0.008403641193 | II27: 0.01021320353 | IJ27: 0.02136839879 | IK27: 0.01170156278 | IM27: 21 | IN27: 0.008403641193 | IO27: 0.01021320353 | IP27: 0.02136839879 | IQ27: 0.008403641193 | IR27: 0.01021320353 | IS27: 0.02136839879 | IT27: 0.01170156278
B28: 18 | K28: 18 | BV28: 22 | BW28: 18 | BX28: 0.01998095037 | BY28: 0.01596619119 | BZ28: 0.029861084 | CA28: 0.01998095037 | CB28: 0.01596619119 | CC28: 0.029861084 | CD28: 0.01421635816 | CF28: 18 | CG28: 5996.890497 | CH28: 5103.216621 | CI28: 6268.740889 | CJ28: 5996.890497 | CK28: 5454.295466 | CL28: 5738.799681 | CM28: 1368 | DH28: 22 | DI28: 0.004496624258 | DJ28: 0.009679655334 | DK28: 0.0133264187 | DL28: 0.004496624258 | DM28: 0.01666346641 | DN28: 0.01639603386 | DO28: 0 | DQ28: 22 | DR28: 0.005005007299 | DS28: 0.004995002535 | DT28: 0.009843856125 | DU28: 0.005005007299 | DV28: 0.004995002535 | DW28: 0.009843856125 | DX28: 0.009496968149 | DZ28: 22 | EA28: 0.004553602954 | EB28: 0.005798461959 | EC28: 0.01463631314 | ED28: 0.004553602954 | EE28: 0.005798461959 | EF28: 0.01463631314 | EG28: 0.01039012864 | EI28: 22 | EJ28: 0.004647635164 | EK28: 0.01139240928 | EL28: 0.01139240928 | EM28: 0.004647635164 | EN28: 0.01139240928 | EO28: 0.01139240928 | EP28: 0.01081425594 | ER28: 22 | ES28: 0.004493708043 | ET28: 0.005836808723 | EU28: 0.01216579883 | EV28: 0.004493708043 | EW28: 0.005836808723 | EX28: 0.01216579883 | EY28: 0.01095856862 | FA28: 22 | FB28: 0.004581973829 | FC28: 0.004955321465 | FD28: 0.01104149376 | FE28: 0.004581973829 | FF28: 0.004955321465 | FG28: 0.01104149376 | FH28: 0.01078658748 | FJ28: 22 | FK28: 0.004196933778 | FL28: 0.005496562583 | FM28: 0.01063907706 | FN28: 0.004196933778 | FO28: 0.005496562583 | FP28: 0.01063907706 | FQ28: 0.01051825339 | FS28: 22 | FT28: 0.005176526641 | FU28: 0.00619632826 | FV28: 0.01882981251 | FW28: 0.005176526641 | FX28: 0.00619632826 | FY28: 0.01882981251 | FZ28: 0.01019019675 | GB28: 22 | GC28: 0.005876632878 | GD28: 0.007659231352 | GE28: 0.01477751591 | GF28: 0.005876632878 | GG28: 0.007659231352 | GH28: 0.01477751591 | GI28: 0.00982583131 | GK28: 22 | GL28: 0.005876632878 | GM28: 0.007659231352 | GN28: 0.01477751591 | GO28: 0.005876632878 | GP28: 0.007659231352 | GQ28: 0.01477751591 | GR28: 0.00982583131 | GT28: 22 | GU28: 0.005876632878 | GV28: 0.007659231352 | GW28: 0.01477751591 | GX28: 0.005876632878 | GY28: 0.007659231352 | GZ28: 0.01477751591 | HA28: 0.00982583131 | HC28: 22 | HD28: 0.005876632878 | HE28: 0.007659231352 | HF28: 0.01477751591 | HG28: 0.005876632878 | HH28: 0.007659231352 | HI28: 0.01477751591 | HJ28: 0.00982583131 | HL28: 22 | HM28: 0.005876632878 | HN28: 0.007659231352 | HO28: 0.01477751591 | HP28: 0.005876632878 | HQ28: 0.007659231352 | HR28: 0.01477751591 | HS28: 0.00982583131 | HU28: 22 | HV28: 0.005876632878 | HW28: 0.007659231352 | HX28: 0.01477751591 | HY28: 0.005876632878 | HZ28: 0.007659231352 | IA28: 0.01477751591 | IB28: 0.00982583131 | ID28: 22 | IE28: 0.005876632878 | IF28: 0.007659231352 | IG28: 0.01477751591 | IH28: 0.005876632878 | II28: 0.007659231352 | IJ28: 0.01477751591 | IK28: 0.00982583131 | IM28: 22 | IN28: 0.005876632878 | IO28: 0.007659231352 | IP28: 0.01477751591 | IQ28: 0.005876632878 | IR28: 0.007659231352 | IS28: 0.01477751591 | IT28: 0.00982583131
B29: 19 | K29: 19 | BV29: 23 | BW29: 19 | BX29: 0.01448169909 | BY29: 0.01374650307 | BZ29: 0.02544146399 | CA29: 0.01448169909 | CB29: 0.01374650307 | CC29: 0.02544146399 | CD29: 0.01580503658 | CF29: 19 | CG29: 5700.997072 | CH29: 4642.021986 | CI29: 5876.992716 | CJ29: 5700.997072 | CK29: 5002.200168 | CL29: 5250.43849 | CM29: 1368 | DH29: 23 | DI29: 0.003565222012 | DJ29: 0.009167977643 | DK29: 0.01218938844 | DL29: 0.003565222012 | DM29: 0.01552355737 | DN29: 0.01524806096 | DO29: 0 | DQ29: 23 | DR29: 0.003003002841 | DS29: 0.003995999942 | DT29: 0.009029923825 | DU29: 0.003003002841 | DV29: 0.003995999942 | DW29: 0.009029923825 | DX29: 0.006169911087 | DZ29: 23 | EA29: 0.003777230714 | EB29: 0.004132294568 | EC29: 0.008614982108 | ED29: 0.003777230714 | EE29: 0.004132294568 | EF29: 0.008614982108 | EG29: 0.007565791036 | EI29: 23 | EJ29: 0.003454141244 | EK29: 0.01303790483 | EL29: 0.01303790483 | EM29: 0.003454141244 | EN29: 0.01303790483 | EO29: 0.01303790483 | EP29: 0.008327559267 | ER29: 23 | ES29: 0.003539661563 | ET29: 0.004627800908 | EU29: 0.01023387589 | EV29: 0.003539661563 | EW29: 0.004627800908 | EX29: 0.01023387589 | EY29: 0.008701759086 | FA29: 23 | FB29: 0.003438712732 | FC29: 0.004890958855 | FD29: 0.01096080675 | FE29: 0.003438712732 | FF29: 0.004890958855 | FG29: 0.01096080675 | FH29: 0.008818788963 | FJ29: 23 | FK29: 0.003510928921 | FL29: 0.004155145182 | FM29: 0.009838984652 | FN29: 0.003510928921 | FO29: 0.004155145182 | FP29: 0.009838984652 | FQ29: 0.008682189368 | FS29: 23 | FT29: 0.003211881741 | FU29: 0.004633356887 | FV29: 0.01074689677 | FW29: 0.003211881741 | FX29: 0.004633356887 | FY29: 0.01074689677 | FZ29: 0.008450590023 | GB29: 23 | GC29: 0.00394701858 | GD29: 0.005274995984 | GE29: 0.01465950068 | GF29: 0.00394701858 | GG29: 0.005274995984 | GH29: 0.01465950068 | GI29: 0.008159355769 | GK29: 23 | GL29: 0.00394701858 | GM29: 0.005274995984 | GN29: 0.01465950068 | GO29: 0.00394701858 | GP29: 0.005274995984 | GQ29: 0.01465950068 | GR29: 0.008159355769 | GT29: 23 | GU29: 0.00394701858 | GV29: 0.005274995984 | GW29: 0.01465950068 | GX29: 0.00394701858 | GY29: 0.005274995984 | GZ29: 0.01465950068 | HA29: 0.008159355769 | HC29: 23 | HD29: 0.00394701858 | HE29: 0.005274995984 | HF29: 0.01465950068 | HG29: 0.00394701858 | HH29: 0.005274995984 | HI29: 0.01465950068 | HJ29: 0.008159355769 | HL29: 23 | HM29: 0.00394701858 | HN29: 0.005274995984 | HO29: 0.01465950068 | HP29: 0.00394701858 | HQ29: 0.005274995984 | HR29: 0.01465950068 | HS29: 0.008159355769 | HU29: 23 | HV29: 0.00394701858 | HW29: 0.005274995984 | HX29: 0.01465950068 | HY29: 0.00394701858 | HZ29: 0.005274995984 | IA29: 0.01465950068 | IB29: 0.008159355769 | ID29: 23 | IE29: 0.00394701858 | IF29: 0.005274995984 | IG29: 0.01465950068 | IH29: 0.00394701858 | II29: 0.005274995984 | IJ29: 0.01465950068 | IK29: 0.008159355769 | IM29: 23 | IN29: 0.00394701858 | IO29: 0.005274995984 | IP29: 0.01465950068 | IQ29: 0.00394701858 | IR29: 0.005274995984 | IS29: 0.01465950068 | IT29: 0.008159355769
B30: 20 | K30: 20 | BV30: 24 | BW30: 20 | BX30: 0.01159151061 | BY30: 0.01206695485 | BZ30: 0.02665726174 | CA30: 0.01159151061 | CB30: 0.01206695485 | CC30: 0.02665726174 | CD30: 0.01365264285 | CF30: 20 | CG30: 5419.703366 | CH30: 4213.849922 | CI30: 5509.99999 | CJ30: 5419.703366 | CK30: 4588.037017 | CL30: 4803.965896 | CM30: 1368 | DH30: 24 | DI30: 0.01025668778 | DJ30: 0.04576905904 | DK30: 0.05420391187 | DL30: 0.01025668778 | DM30: 0.07321547607 | DN30: 0.07158168304 | DO30: 0 | DQ30: 24 | DR30: 0.003003002841 | DS30: 0.002996996044 | DT30: 0.008123077033 | DU30: 0.003003002841 | DV30: 0.002996996044 | DW30: 0.008123077033 | DX30: 0.002903948421 | DZ30: 24 | EA30: 0.002258461735 | EB30: 0.003295935755 | EC30: 0.007902670256 | ED30: 0.002258461735 | EE30: 0.003295935755 | EF30: 0.007902670256 | EG30: 0.004915281743 | EI30: 24 | EJ30: 0.002855266748 | EK30: 0.007674150928 | EL30: 0.007674150928 | EM30: 0.002855266748 | EN30: 0.007674150928 | EO30: 0.007674150928 | EP30: 0.006063866969 | ER30: 24 | ES30: 0.002621546893 | ET30: 0.004014262869 | EU30: 0.01171202344 | EV30: 0.002621546893 | EW30: 0.004014262869 | EX30: 0.01171202344 | EY30: 0.006700818637 | FA30: 24 | FB30: 0.002699239465 | FC30: 0.003866204193 | FD30: 0.009220232987 | FE30: 0.002699239465 | FF30: 0.003866204193 | FG30: 0.009220232987 | FH30: 0.00700264944 | FJ30: 24 | FK30: 0.002625752098 | FL30: 0.004088883802 | FM30: 0.009767075527 | FN30: 0.002625752098 | FO30: 0.004088883802 | FP30: 0.009767075527 | FQ30: 0.007098287632 | FS30: 24 | FT30: 0.002677549368 | FU30: 0.003492110468 | FV30: 0.009792247412 | FW30: 0.002677549368 | FX30: 0.003492110468 | FY30: 0.009792247412 | FZ30: 0.006975452743 | GB30: 24 | GC30: 0.002440497244 | GD30: 0.003932606883 | GE30: 0.008379553508 | GF30: 0.002440497244 | GG30: 0.003932606883 | GH30: 0.008379553508 | GI30: 0.006766456121 | GK30: 24 | GL30: 0.002440497244 | GM30: 0.003932606883 | GN30: 0.008379553508 | GO30: 0.002440497244 | GP30: 0.003932606883 | GQ30: 0.008379553508 | GR30: 0.006766456121 | GT30: 24 | GU30: 0.002440497244 | GV30: 0.003932606883 | GW30: 0.008379553508 | GX30: 0.002440497244 | GY30: 0.003932606883 | GZ30: 0.008379553508 | HA30: 0.006766456121 | HC30: 24 | HD30: 0.002440497244 | HE30: 0.003932606883 | HF30: 0.008379553508 | HG30: 0.002440497244 | HH30: 0.003932606883 | HI30: 0.008379553508 | HJ30: 0.006766456121 | HL30: 24 | HM30: 0.002440497244 | HN30: 0.003932606883 | HO30: 0.008379553508 | HP30: 0.002440497244 | HQ30: 0.003932606883 | HR30: 0.008379553508 | HS30: 0.006766456121 | HU30: 24 | HV30: 0.002440497244 | HW30: 0.003932606883 | HX30: 0.008379553508 | HY30: 0.002440497244 | HZ30: 0.003932606883 | IA30: 0.008379553508 | IB30: 0.006766456121 | ID30: 24 | IE30: 0.002440497244 | IF30: 0.003932606883 | IG30: 0.008379553508 | IH30: 0.002440497244 | II30: 0.003932606883 | IJ30: 0.008379553508 | IK30: 0.006766456121 | IM30: 24 | IN30: 0.002440497244 | IO30: 0.003932606883 | IP30: 0.008379553508 | IQ30: 0.002440497244 | IR30: 0.003932606883 | IS30: 0.008379553508 | IT30: 0.006766456121
B31: 21 | K31: 21 | BV31: 25 | BW31: 21 | BX31: 0.008403641193 | BY31: 0.01021320353 | BZ31: 0.02136839879 | CA31: 0.008403641193 | CB31: 0.01021320353 | CC31: 0.02136839879 | CD31: 0.01170156278 | CF31: 21 | CG31: 5152.289013 | CH31: 3818.202959 | CI31: 5166.177438 | CJ31: 5152.289013 | CK31: 4208.580906 | CL31: 4395.761744 | CM31: 1368 | DH31: 25 | DI31: 0 | DJ31: 0 | DK31: 0 | DL31: 0 | DM31: 0 | DN31: 0 | DO31: 0 | DQ31: 25 | DR31: 0.002002004458 | DS31: 0.002996996044 | DT31: 0.007470438044 | DU31: 0.002002004458 | DV31: 0.002996996044 | DW31: 0.007470438044 | DX31: 0 | DZ31: 25 | EA31: 0.002258255498 | EB31: 0.002467337016 | EC31: 0.007109026043 | ED31: 0.002258255498 | EE31: 0.002467337016 | EF31: 0.007109026043 | EG31: 0.002285232424 | EI31: 25 | EJ31: 0.001707053489 | EK31: 0.007039618207 | EL31: 0.007039618207 | EM31: 0.001707053489 | EN31: 0.007039618207 | EO31: 0.007039618207 | EP31: 0.003891496802 | ER31: 25 | ES31: 0.002166831031 | ET31: 0.002846974077 | EU31: 0.006893724646 | EV31: 0.002166831031 | EW31: 0.002846974077 | EX31: 0.006893724646 | EY31: 0.004819831473 | FA31: 25 | FB31: 0.001998932578 | FC31: 0.003347330135 | FD31: 0.01055196814 | FE31: 0.001998932578 | FF31: 0.003347330135 | FG31: 0.01055196814 | FH31: 0.00532664441 | FJ31: 25 | FK31: 0.002060910122 | FL31: 0.003226145716 | FM31: 0.008216073283 | FN31: 0.002060910122 | FO31: 0.003226145716 | FP31: 0.008216073283 | FQ31: 0.005567721714 | FS31: 25 | FT31: 0.002002299929 | FU31: 0.003430011245 | FV31: 0.009855539388 | FW31: 0.002002299929 | FX31: 0.003430011245 | FY31: 0.009855539388 | FZ31: 0.005633361441 | GB31: 25 | GC31: 0.002034312623 | GD31: 0.0029584257 | GE31: 0.007749377618 | GF31: 0.002034312623 | GG31: 0.0029584257 | GH31: 0.007749377618 | GI31: 0.005517175588 | GK31: 25 | GL31: 0.002034312623 | GM31: 0.0029584257 | GN31: 0.007749377618 | GO31: 0.002034312623 | GP31: 0.0029584257 | GQ31: 0.007749377618 | GR31: 0.005517175588 | GT31: 25 | GU31: 0.002034312623 | GV31: 0.0029584257 | GW31: 0.007749377618 | GX31: 0.002034312623 | GY31: 0.0029584257 | GZ31: 0.007749377618 | HA31: 0.005517175588 | HC31: 25 | HD31: 0.002034312623 | HE31: 0.0029584257 | HF31: 0.007749377618 | HG31: 0.002034312623 | HH31: 0.0029584257 | HI31: 0.007749377618 | HJ31: 0.005517175588 | HL31: 25 | HM31: 0.002034312623 | HN31: 0.0029584257 | HO31: 0.007749377618 | HP31: 0.002034312623 | HQ31: 0.0029584257 | HR31: 0.007749377618 | HS31: 0.005517175588 | HU31: 25 | HV31: 0.002034312623 | HW31: 0.0029584257 | HX31: 0.007749377618 | HY31: 0.002034312623 | HZ31: 0.0029584257 | IA31: 0.007749377618 | IB31: 0.005517175588 | ID31: 25 | IE31: 0.002034312623 | IF31: 0.0029584257 | IG31: 0.007749377618 | IH31: 0.002034312623 | II31: 0.0029584257 | IJ31: 0.007749377618 | IK31: 0.005517175588 | IM31: 25 | IN31: 0.002034312623 | IO31: 0.0029584257 | IP31: 0.007749377618 | IQ31: 0.002034312623 | IR31: 0.0029584257 | IS31: 0.007749377618 | IT31: 0.005517175588
B32: 22 | K32: 22 | BV32: 26 | BW32: 22 | BX32: 0.005876632878 | BY32: 0.007659231352 | BZ32: 0.01477751591 | CA32: 0.005876632878 | CB32: 0.007659231352 | CC32: 0.01477751591 | CD32: 0.00982583131 | CF32: 22 | CG32: 4898.069189 | CH32: 3454.617814 | CI32: 4844.042885 | CJ32: 4898.069189 | CK32: 3860.884821 | CL32: 4022.521124 | CM32: 1368 | DH32: 26 | DI32: 0 | DJ32: 0 | DK32: 0 | DL32: 0 | DM32: 0 | DN32: 0 | DO32: 0 | DQ32: 26 | DR32: 0.001000998384 | DS32: 0.002996996044 | DT32: 0.007615320054 | DU32: 0.001000998384 | DV32: 0.002996996044 | DW32: 0.007615320054 | DX32: 0 | DZ32: 26 | EA32: 0.001500077872 | EB32: 0.002463832151 | EC32: 0.00646600609 | ED32: 0.001500077872 | EE32: 0.002463832151 | EF32: 0.00646600609 | EG32: 0 | EI32: 26 | EJ32: 0.001700739513 | EK32: 0.006263062481 | EL32: 0.006263062481 | EM32: 0.001700739513 | EN32: 0.006263062481 | EO32: 0.006263062481 | EP32: 0.001786910683 | ER32: 26 | ES32: 0.001290793495 | ET32: 0.002263358535 | EU32: 0.006254244205 | EV32: 0.001290793495 | EW32: 0.002263358535 | EX32: 0.006254244205 | EY32: 0.003054935334 | FA32: 26 | FB32: 0.001646250408 | FC32: 0.002370533732 | FD32: 0.006142674917 | FE32: 0.001646250408 | FF32: 0.002370533732 | FG32: 0.006142674917 | FH32: 0.003784113322 | FJ32: 26 | FK32: 0.00152071526 | FL32: 0.002789199583 | FM32: 0.009299453561 | FN32: 0.00152071526 | FO32: 0.002789199583 | FP32: 0.009299453561 | FQ32: 0.004182883013 | FS32: 26 | FT32: 0.001565912855 | FU32: 0.002702441199 | FV32: 0.008200790909 | FW32: 0.001565912855 | FX32: 0.002702441199 | FY32: 0.008200790909 | FZ32: 0.004364135676 | GB32: 26 | GC32: 0.001515795423 | GD32: 0.002901686735 | GE32: 0.007608214157 | GF32: 0.001515795423 | GG32: 0.002901686735 | GH32: 0.007608214157 | GI32: 0.004400670719 | GK32: 26 | GL32: 0.001515795423 | GM32: 0.002901686735 | GN32: 0.007608214157 | GO32: 0.001515795423 | GP32: 0.002901686735 | GQ32: 0.007608214157 | GR32: 0.004400670719 | GT32: 26 | GU32: 0.001515795423 | GV32: 0.002901686735 | GW32: 0.007608214157 | GX32: 0.001515795423 | GY32: 0.002901686735 | GZ32: 0.007608214157 | HA32: 0.004400670719 | HC32: 26 | HD32: 0.001515795423 | HE32: 0.002901686735 | HF32: 0.007608214157 | HG32: 0.001515795423 | HH32: 0.002901686735 | HI32: 0.007608214157 | HJ32: 0.004400670719 | HL32: 26 | HM32: 0.001515795423 | HN32: 0.002901686735 | HO32: 0.007608214157 | HP32: 0.001515795423 | HQ32: 0.002901686735 | HR32: 0.007608214157 | HS32: 0.004400670719 | HU32: 26 | HV32: 0.001515795423 | HW32: 0.002901686735 | HX32: 0.007608214157 | HY32: 0.001515795423 | HZ32: 0.002901686735 | IA32: 0.007608214157 | IB32: 0.004400670719 | ID32: 26 | IE32: 0.001515795423 | IF32: 0.002901686735 | IG32: 0.007608214157 | IH32: 0.001515795423 | II32: 0.002901686735 | IJ32: 0.007608214157 | IK32: 0.004400670719 | IM32: 26 | IN32: 0.001515795423 | IO32: 0.002901686735 | IP32: 0.007608214157 | IQ32: 0.001515795423 | IR32: 0.002901686735 | IS32: 0.007608214157 | IT32: 0.004400670719
B33: 23 | K33: 23 | BV33: 27 | BW33: 23 | BX33: 0.00394701858 | BY33: 0.005274995984 | BZ33: 0.01465950068 | CA33: 0.00394701858 | CB33: 0.005274995984 | CC33: 0.01465950068 | CD33: 0.008159355769 | CF33: 23 | CG33: 4656.392862 | CH33: 3122.663042 | CI33: 4542.210426 | CJ33: 4656.392862 | CK33: 3542.255516 | CL33: 3681.226703 | CM33: 1368 | DH33: 27 | DI33: 0 | DJ33: 0 | DK33: 0 | DL33: 0 | DM33: 0 | DN33: 0 | DO33: 0 | DQ33: 27 | DR33: 0 | DS33: 0.002996996044 | DT33: 0.01472827936 | DU33: 0 | DV33: 0.002996996044 | DW33: 0.01472827936 | DX33: 0 | DZ33: 27 | EA33: 0.0007498067294 | EB33: 0.002458013928 | EC33: 0.006591409946 | ED33: 0.0007498067294 | EE33: 0.002458013928 | EF33: 0.006591409946 | EG33: 0 | EI33: 27 | EJ33: 0.001129393341 | EK33: 0.005696563637 | EL33: 0.005696563637 | EM33: 0.001129393341 | EN33: 0.005696563637 | EO33: 0.005696563637 | EP33: 0 | ER33: 27 | ES33: 0.00128562653 | ET33: 0.001688034534 | EU33: 0.005564324183 | EV33: 0.00128562653 | EW33: 0.001688034534 | EX33: 0.005564324183 | EY33: 0.001385244998 | FA33: 27 | FB33: 0.0009803757575 | FC33: 0.001880094159 | FD33: 0.005572857907 | FE33: 0.0009803757575 | FF33: 0.001880094159 | FG33: 0.005572857907 | FH33: 0.002368483264 | FJ33: 27 | FK33: 0.001252019027 | FL33: 0.001970614805 | FM33: 0.005413544021 | FN33: 0.001252019027 | FO33: 0.001970614805 | FP33: 0.005413544021 | FQ33: 0.002934416257 | FS33: 27 | FT33: 0.001155100863 | FU33: 0.002330924008 | FV33: 0.009310903023 | FW33: 0.001155100863 | FX33: 0.002330924008 | FY33: 0.009310903023 | FZ33: 0.003237669889 | GB33: 27 | GC33: 0.001185066721 | GD33: 0.002280796628 | GE33: 0.006329703648 | GF33: 0.001185066721 | GG33: 0.002280796628 | GH33: 0.006329703648 | GI33: 0.003366551371 | GK33: 27 | GL33: 0.001185066721 | GM33: 0.002280796628 | GN33: 0.006329703648 | GO33: 0.001185066721 | GP33: 0.002280796628 | GQ33: 0.006329703648 | GR33: 0.003366551371 | GT33: 27 | GU33: 0.001185066721 | GV33: 0.002280796628 | GW33: 0.006329703648 | GX33: 0.001185066721 | GY33: 0.002280796628 | GZ33: 0.006329703648 | HA33: 0.003366551371 | HC33: 27 | HD33: 0.001185066721 | HE33: 0.002280796628 | HF33: 0.006329703648 | HG33: 0.001185066721 | HH33: 0.002280796628 | HI33: 0.006329703648 | HJ33: 0.003366551371 | HL33: 27 | HM33: 0.001185066721 | HN33: 0.002280796628 | HO33: 0.006329703648 | HP33: 0.001185066721 | HQ33: 0.002280796628 | HR33: 0.006329703648 | HS33: 0.003366551371 | HU33: 27 | HV33: 0.001185066721 | HW33: 0.002280796628 | HX33: 0.006329703648 | HY33: 0.001185066721 | HZ33: 0.002280796628 | IA33: 0.006329703648 | IB33: 0.003366551371 | ID33: 27 | IE33: 0.001185066721 | IF33: 0.002280796628 | IG33: 0.006329703648 | IH33: 0.001185066721 | II33: 0.002280796628 | IJ33: 0.006329703648 | IK33: 0.003366551371 | IM33: 27 | IN33: 0.001185066721 | IO33: 0.002280796628 | IP33: 0.006329703648 | IQ33: 0.001185066721 | IR33: 0.002280796628 | IS33: 0.006329703648 | IT33: 0.003366551371
B34: 24 | K34: 24 | BV34: 28 | BW34: 24 | BX34: 0.002440497244 | BY34: 0.003932606883 | BZ34: 0.008379553508 | CA34: 0.002440497244 | CB34: 0.003932606883 | CC34: 0.008379553508 | CD34: 0.006766456121 | CF34: 24 | CG34: 4426.641121 | CH34: 2821.936851 | CI34: 4259.384067 | CJ34: 4426.641121 | CK34: 3250.231334 | CL34: 3369.123502 | CM34: 1368 | DH34: 28 | DI34: 0 | DJ34: 0 | DK34: 0 | DL34: 0 | DM34: 0 | DN34: 0 | DO34: 0 | DQ34: 28 | DR34: 0 | DS34: 0.002996996044 | DT34: 0.0035402445 | DU34: 0 | DV34: 0.002996996044 | DW34: 0.0035402445 | DX34: 0 | DZ34: 28 | EA34: 0 | EB34: 0.002456510796 | EC34: 0.01274797608 | ED34: 0 | EE34: 0.002456510796 | EF34: 0.01274797608 | EG34: 0 | EI34: 28 | EJ34: 0.0005635757112 | EK34: 0.005807050475 | EL34: 0.005807050475 | EM34: 0.0005635757112 | EN34: 0.005807050475 | EO34: 0.005807050475 | EP34: 0 | ER34: 28 | ES34: 0.0008522970126 | ET34: 0.001680636934 | EU34: 0.005061022947 | EV34: 0.0008522970126 | EW34: 0.001680636934 | EX34: 0.005061022947 | EY34: 0 | FA34: 28 | FB34: 0.0009748179497 | FC34: 0.001401253707 | FD34: 0.004958102996 | FE34: 0.0009748179497 | FF34: 0.001401253707 | FG34: 0.004958102996 | FH34: 0.00106038167 | FJ34: 28 | FK34: 0.0007443560251 | FL34: 0.001561946347 | FM34: 0.004911351167 | FN34: 0.0007443560251 | FO34: 0.001561946347 | FP34: 0.004911351167 | FQ34: 0.001813411352 | FS34: 28 | FT34: 0.0009494212118 | FU34: 0.001645815962 | FV34: 0.005385629623 | FW34: 0.0009494212118 | FX34: 0.001645815962 | FY34: 0.005385629623 | FZ34: 0.002242564354 | GB34: 28 | GC34: 0.0008727135793 | GD34: 0.001966027689 | GE34: 0.007164339708 | GF34: 0.0008727135793 | GG34: 0.001966027689 | GH34: 0.007164339708 | GI34: 0.002465968993 | GK34: 28 | GL34: 0.0008727135793 | GM34: 0.001966027689 | GN34: 0.007164339708 | GO34: 0.0008727135793 | GP34: 0.001966027689 | GQ34: 0.007164339708 | GR34: 0.002465968993 | GT34: 28 | GU34: 0.0008727135793 | GV34: 0.001966027689 | GW34: 0.007164339708 | GX34: 0.0008727135793 | GY34: 0.001966027689 | GZ34: 0.007164339708 | HA34: 0.002465968993 | HC34: 28 | HD34: 0.0008727135793 | HE34: 0.001966027689 | HF34: 0.007164339708 | HG34: 0.0008727135793 | HH34: 0.001966027689 | HI34: 0.007164339708 | HJ34: 0.002465968993 | HL34: 28 | HM34: 0.0008727135793 | HN34: 0.001966027689 | HO34: 0.007164339708 | HP34: 0.0008727135793 | HQ34: 0.001966027689 | HR34: 0.007164339708 | HS34: 0.002465968993 | HU34: 28 | HV34: 0.0008727135793 | HW34: 0.001966027689 | HX34: 0.007164339708 | HY34: 0.0008727135793 | HZ34: 0.001966027689 | IA34: 0.007164339708 | IB34: 0.002465968993 | ID34: 28 | IE34: 0.0008727135793 | IF34: 0.001966027689 | IG34: 0.007164339708 | IH34: 0.0008727135793 | II34: 0.001966027689 | IJ34: 0.007164339708 | IK34: 0.002465968993 | IM34: 28 | IN34: 0.0008727135793 | IO34: 0.001966027689 | IP34: 0.007164339708 | IQ34: 0.0008727135793 | IR34: 0.001966027689 | IS34: 0.007164339708 | IT34: 0.002465968993
B35: 25 | K35: 25 | BV35: 29 | BW35: 25 | BX35: 0.002034312623 | BY35: 0.0029584257 | BZ35: 0.007749377618 | CA35: 0.002034312623 | CB35: 0.0029584257 | CC35: 0.007749377618 | CD35: 0.005517175588 | CF35: 25 | CG35: 4426.641121 | CH35: 2821.936851 | CI35: 4259.384067 | CJ35: 4426.641121 | CK35: 3250.231334 | CL35: 3369.123502 | CM35: 1368 | DH35: 29 | DI35: 0 | DJ35: 0 | DK35: 0 | DL35: 0 | DM35: 0 | DN35: 0 | DO35: 0 | DQ35: 29 | DR35: 0 | DS35: 0.002996996044 | DT35: 0.001798706042 | DU35: 0 | DV35: 0.002996996044 | DW35: 0.001798706042 | DX35: 0 | DZ35: 29 | EA35: 0 | EB35: 0.002451832754 | EC35: 0.003030199486 | ED35: 0 | EE35: 0.002451832754 | EF35: 0.003030199486 | EG35: 0 | EI35: 29 | EJ35: 0 | EK35: 0.01110621858 | EL35: 0.01110621858 | EM35: 0 | EN35: 0.01110621858 | EO35: 0.01110621858 | EP35: 0 | ER35: 29 | ES35: 0.0004251968981 | ET35: 0.001672468433 | EU35: 0.005101851495 | EV35: 0.0004251968981 | EW35: 0.001672468433 | EX35: 0.005101851495 | EY35: 0 | FA35: 29 | FB35: 0.0006460866994 | FC35: 0.001392454624 | FD35: 0.004459527807 | FE35: 0.0006460866994 | FF35: 0.001392454624 | FG35: 0.004459527807 | FH35: 0 | FJ35: 29 | FK35: 0.000739947491 | FL35: 0.001161925544 | FM35: 0.004321019899 | FN35: 0.000739947491 | FO35: 0.001161925544 | FP35: 0.004321019899 | FQ35: 0.0008118722261 | FS35: 29 | FT35: 0.0005643078396 | FU35: 0.001302028636 | FV35: 0.004880420235 | FW35: 0.0005643078396 | FX35: 0.001302028636 | FY35: 0.004880420235 | FZ35: 0.001385863302 | GB35: 29 | GC35: 0.000717127035 | GD35: 0.00138553122 | GE35: 0.004124277669 | GF35: 0.000717127035 | GG35: 0.00138553122 | GH35: 0.004124277669 | GI35: 0.001708046896 | GK35: 29 | GL35: 0.000717127035 | GM35: 0.00138553122 | GN35: 0.004124277669 | GO35: 0.000717127035 | GP35: 0.00138553122 | GQ35: 0.004124277669 | GR35: 0.001708046896 | GT35: 29 | GU35: 0.000717127035 | GV35: 0.00138553122 | GW35: 0.004124277669 | GX35: 0.000717127035 | GY35: 0.00138553122 | GZ35: 0.004124277669 | HA35: 0.001708046896 | HC35: 29 | HD35: 0.000717127035 | HE35: 0.00138553122 | HF35: 0.004124277669 | HG35: 0.000717127035 | HH35: 0.00138553122 | HI35: 0.004124277669 | HJ35: 0.001708046896 | HL35: 29 | HM35: 0.000717127035 | HN35: 0.00138553122 | HO35: 0.004124277669 | HP35: 0.000717127035 | HQ35: 0.00138553122 | HR35: 0.004124277669 | HS35: 0.001708046896 | HU35: 29 | HV35: 0.000717127035 | HW35: 0.00138553122 | HX35: 0.004124277669 | HY35: 0.000717127035 | HZ35: 0.00138553122 | IA35: 0.004124277669 | IB35: 0.001708046896 | ID35: 29 | IE35: 0.000717127035 | IF35: 0.00138553122 | IG35: 0.004124277669 | IH35: 0.000717127035 | II35: 0.00138553122 | IJ35: 0.004124277669 | IK35: 0.001708046896 | IM35: 29 | IN35: 0.000717127035 | IO35: 0.00138553122 | IP35: 0.004124277669 | IQ35: 0.000717127035 | IR35: 0.00138553122 | IS35: 0.004124277669 | IT35: 0.001708046896
B36: 26 | K36: 26 | BV36: 30 | BW36: 26 | BX36: 0.001515795423 | BY36: 0.002901686735 | BZ36: 0.007608214157 | CA36: 0.001515795423 | CB36: 0.002901686735 | CC36: 0.007608214157 | CD36: 0.004400670719 | CF36: 26 | CG36: 4426.641121 | CH36: 2821.936851 | CI36: 4259.384067 | CJ36: 4426.641121 | CK36: 3250.231334 | CL36: 3369.123502 | CM36: 1368 | DH36: 30 | DI36: 0 | DJ36: 0 | DK36: 0 | DL36: 0 | DM36: 0 | DN36: 0 | DO36: 0 | DQ36: 30 | DR36: 0 | DS36: 0 | DT36: 0.001406106279 | DU36: 0 | DV36: 0 | DW36: 0.001406106279 | DX36: 0 | DZ36: 30 | EA36: 0 | EB36: 0.002449617161 | EC36: 0.001945252788 | ED36: 0 | EE36: 0.002449617161 | EF36: 0.001945252788 | EG36: 0 | EI36: 30 | EJ36: 0 | EK36: 0.003211210204 | EL36: 0.003211210204 | EM36: 0 | EN36: 0.003211210204 | EO36: 0.003211210204 | EP36: 0 | ER36: 30 | ES36: 0 | ET36: 0.002434792525 | EU36: 0.01070849903 | EV36: 0 | EW36: 0.002434792525 | EX36: 0.01070849903 | EY36: 0 | FA36: 30 | FB36: 0.0003221496357 | FC36: 0.002077707113 | FD36: 0.007676117984 | FE36: 0.0003221496357 | FF36: 0.002077707113 | FG36: 0.007676117984 | FH36: 0 | FJ36: 30 | FK36: 0.0005876213429 | FL36: 0.00174564618 | FM36: 0.006141496889 | FN36: 0.0005876213429 | FO36: 0.00174564618 | FP36: 0.006141496889 | FQ36: 0 | FS36: 30 | FT36: 0.0007382223151 | FU36: 0.001467775003 | FV36: 0.006300843207 | FW36: 0.0007382223151 | FX36: 0.001467775003 | FY36: 0.006300843207 | FZ36: 0.0006125024701 | GB36: 30 | GC36: 0.0006482555604 | GD36: 0.001519762897 | GE36: 0.005323147646 | GF36: 0.0006482555604 | GG36: 0.001519762897 | GH36: 0.005323147646 | GI36: 0.001496558492 | GK36: 30 | GL36: 0.0006482555604 | GM36: 0.001519762897 | GN36: 0.005323147646 | GO36: 0.0006482555604 | GP36: 0.001519762897 | GQ36: 0.005323147646 | GR36: 0.001496558492 | GT36: 30 | GU36: 0.0006482555604 | GV36: 0.001519762897 | GW36: 0.005323147646 | GX36: 0.0006482555604 | GY36: 0.001519762897 | GZ36: 0.005323147646 | HA36: 0.001496558492 | HC36: 30 | HD36: 0.0006482555604 | HE36: 0.001519762897 | HF36: 0.005323147646 | HG36: 0.0006482555604 | HH36: 0.001519762897 | HI36: 0.005323147646 | HJ36: 0.001496558492 | HL36: 30 | HM36: 0.0006482555604 | HN36: 0.001519762897 | HO36: 0.005323147646 | HP36: 0.0006482555604 | HQ36: 0.001519762897 | HR36: 0.005323147646 | HS36: 0.001496558492 | HU36: 30 | HV36: 0.0006482555604 | HW36: 0.001519762897 | HX36: 0.005323147646 | HY36: 0.0006482555604 | HZ36: 0.001519762897 | IA36: 0.005323147646 | IB36: 0.001496558492 | ID36: 30 | IE36: 0.0006482555604 | IF36: 0.001519762897 | IG36: 0.005323147646 | IH36: 0.0006482555604 | II36: 0.001519762897 | IJ36: 0.005323147646 | IK36: 0.001496558492 | IM36: 30 | IN36: 0.0006482555604 | IO36: 0.001519762897 | IP36: 0.005323147646 | IQ36: 0.0006482555604 | IR36: 0.001519762897 | IS36: 0.005323147646 | IT36: 0.001496558492
B37: 27 | K37: 27 | BV37: 31 | BW37: 27 | BX37: 0.001185066721 | BY37: 0.002280796628 | BZ37: 0.006329703648 | CA37: 0.001185066721 | CB37: 0.002280796628 | CC37: 0.006329703648 | CD37: 0.003366551371 | CF37: 27 | CG37: 4426.641121 | CH37: 2821.936851 | CI37: 4259.384067 | CJ37: 4426.641121 | CK37: 3250.231334 | CL37: 3369.123502 | CM37: 1368 | DI37: 1 | DJ37: 1 | DK37: 1 | DL37: 1 | DM37: 1 | DN37: 1 | DO37: 1 | DR37: 1 | DS37: 1 | DT37: 1 | DU37: 1 | DV37: 1 | DW37: 1 | DX37: 1 | EA37: 1 | EB37: 1 | EC37: 1 | ED37: 1 | EE37: 1 | EF37: 1 | EG37: 1 | EJ37: 1 | EK37: 1 | EL37: 1 | EM37: 1 | EN37: 1 | EO37: 1 | EP37: 1 | ES37: 1 | ET37: 1 | EU37: 1 | EV37: 1 | EW37: 1 | EX37: 1 | EY37: 1 | FB37: 1 | FC37: 1 | FD37: 1 | FE37: 1 | FF37: 1 | FG37: 1 | FH37: 1 | FK37: 1 | FL37: 1 | FM37: 1 | FN37: 1 | FO37: 1 | FP37: 1 | FQ37: 1 | FT37: 1 | FU37: 1 | FV37: 1 | FW37: 1 | FX37: 1 | FY37: 1 | FZ37: 1 | GC37: 1 | GD37: 1 | GE37: 1 | GF37: 1 | GG37: 1 | GH37: 1 | GI37: 1 | GL37: 1 | GM37: 1 | GN37: 1 | GO37: 1 | GP37: 1 | GQ37: 1 | GR37: 1 | GU37: 1 | GV37: 1 | GW37: 1 | GX37: 1 | GY37: 1 | GZ37: 1 | HA37: 1 | HD37: 1 | HE37: 1 | HF37: 1 | HG37: 1 | HH37: 1 | HI37: 1 | HJ37: 1 | HM37: 1 | HN37: 1 | HO37: 1 | HP37: 1 | HQ37: 1 | HR37: 1 | HS37: 1 | HV37: 1 | HW37: 1 | HX37: 1 | HY37: 1 | HZ37: 1 | IA37: 1 | IB37: 1 | IE37: 1 | IF37: 1 | IG37: 1 | IH37: 1 | II37: 1 | IJ37: 1 | IK37: 1 | IN37: 1 | IO37: 1 | IP37: 1 | IQ37: 1 | IR37: 1 | IS37: 1 | IT37: 1
B38: 28 | K38: 28 | BV38: 32 | BW38: 28 | BX38: 0.0008727135793 | BY38: 0.001966027689 | BZ38: 0.007164339708 | CA38: 0.0008727135793 | CB38: 0.001966027689 | CC38: 0.007164339708 | CD38: 0.002465968993 | CF38: 28 | CG38: 4426.641121 | CH38: 2821.936851 | CI38: 4259.384067 | CJ38: 4426.641121 | CK38: 3250.231334 | CL38: 3369.123502 | CM38: 1368 | DH38: Source: US Inventory 1990-2005. Mobile05.xls.
B39: 29 | K39: 29 | BV39: 33 | BW39: 29 | BX39: 0.000717127035 | BY39: 0.00138553122 | BZ39: 0.004124277669 | CA39: 0.000717127035 | CB39: 0.00138553122 | CC39: 0.004124277669 | CD39: 0.001708046896 | CF39: 29 | CG39: 4426.641121 | CH39: 2821.936851 | CI39: 4259.384067 | CJ39: 4426.641121 | CK39: 3250.231334 | CL39: 3369.123502 | CM39: 1368
B40: 30 | K40: 30 | BV40: 34 | BW40: 30 | BX40: 0.0006482555604 | BY40: 0.001519762897 | BZ40: 0.005323147646 | CA40: 0.0006482555604 | CB40: 0.001519762897 | CC40: 0.005323147646 | CD40: 0.001496558492 | CF40: 30 | CG40: 4426.641121 | CH40: 2821.936851 | CI40: 4259.384067 | CJ40: 4426.641121 | CK40: 3250.231334 | CL40: 3369.123502 | CM40: 1368 | DR40: 2014LDGV | DS40: 2014LDGT | DT40: 2014HDGV | DU40: 2014LDDV | DV40: 2014LDDT | DW40: 2014HDDV | DX40: 2014MC | EA40: 2015LDGV | EB40: 2015LDGT | EC40: 2015HDGV | ED40: 2015LDDV | EE40: 2015LDDT | EF40: 2015HDDV | EG40: 2015MC | EJ40: 2016LDGV | EK40: 2016LDGT | EL40: 2016HDGV | EM40: 2016LDDV | EN40: 2016LDDT | EO40: 2016HDDV | EP40: 2016MC | ES40: 2017LDGV | ET40: 2017LDGT | EU40: 2017HDGV | EV40: 2017LDDV | EW40: 2017LDDT | EX40: 2017HDDV | EY40: 2017MC | FB40: 2018LDGV | FC40: 2018LDGT | FD40: 2018HDGV | FE40: 2018LDDV | FF40: 2018LDDT | FG40: 2018HDDV | FH40: 2018MC | FK40: 2019LDGV | FL40: 2019LDGT | FM40: 2019HDGV | FN40: 2019LDDV | FO40: 2019LDDT | FP40: 2019HDDV | FQ40: 2019MC | FT40: 2020LDGV | FU40: 2020LDGT | FV40: 2020HDGV | FW40: 2020LDDV | FX40: 2020LDDT | FY40: 2020HDDV | FZ40: 2020MC
C41: =SUM(C10:C40) -> 0 | D41: 0 | E41: 0 | F41: 0 | G41: 0 | H41: 0 | I41: 0 | L41: =SUM(L10:L40) -> 0 | M41: =SUM(M10:M40) -> 0 | N41: 0 | O41: 0 | P41: 0 | Q41: 0 | R41: 0 | BX41: =SUM(BX10:BX40) -> 1 | BY41: 1 | BZ41: 1 | CA41: 1 | CB41: 1 | CC41: 1 | CD41: 1 | CG41: =SUM(CG10:CG40) -> 243456.082 | CH41: 256661.717 | CI41: 282440.1592 | CJ41: 243456.082 | CK41: 298249.2132 | CL41: 319966.8649 | CM41: 62912 | DQ41: Table IIh: Age Distribution, 2014. Each column must add up to 100%. | DZ41: Table IIh: Age Distribution, 2015. Each column must add up to 100%. | EI41: Table IIh: Age Distribution, 2016. Each column must add up to 100%. | ER41: Table IIh: Age Distribution, 2017. Each column must add up to 100%. | FA41: Table IIh: Age Distribution, 2018. Each column must add up to 100%. | FJ41: Table IIh: Age Distribution, 2019. Each column must add up to 100%. | FS41: Table IIh: Age Distribution, 2020. Each column must add up to 100%.
L42: =IF(L41>1,1,0) -> 0 | M42: =IF(M41>1,1,0) -> 0 | N42: 0 | O42: 0 | P42: 0 | Q42: 0 | R42: 0 | S42: =SUM(L42:R42) -> 0 | CF42: Source: US Inventory 1990-2003. Mobile03.xls. | DQ42: MY | DR42: LDGV | DS42: LDGT | DT42: HDGV | DU42: LDDV | DV42: LDDT | DW42: HDDV | DX42: MC | DZ42: MY | EA42: LDGV | EB42: LDGT | EC42: HDGV | ED42: LDDV | EE42: LDDT | EF42: HDDV | EG42: MC | EI42: MY | EJ42: LDGV | EK42: LDGT | EL42: HDGV | EM42: LDDV | EN42: LDDT | EO42: HDDV | EP42: MC | ER42: MY | ES42: LDGV | ET42: LDGT | EU42: HDGV | EV42: LDDV | EW42: LDDT | EX42: HDDV | EY42: MC | FA42: MY | FB42: LDGV | FC42: LDGT | FD42: HDGV | FE42: LDDV | FF42: LDDT | FG42: HDDV | FH42: MC | FJ42: MY | FK42: LDGV | FL42: LDGT | FM42: HDGV | FN42: LDDV | FO42: LDDT | FP42: HDDV | FQ42: MC | FS42: MY | FT42: LDGV | FU42: LDGT | FV42: HDGV | FW42: LDDV | FX42: LDDT | FY42: HDDV | FZ42: MC
B43: Source: All default data from EPA, 2010. Inventory of U.S. Greenhouse Gas Emissions and Sinks: 1990-2008. Data generated by EPA's MOBILE6 model. | DQ43: 0 | DR43: =IN6 -> 0.06189464631 | DS43: 0.07529763408 | DT43: 0.06301434107 | DU43: 0.06189464631 | DV43: 0.07529763408 | DW43: 0.06301434107 | DX43: 0.08642208168 | DZ43: 0 | EA43: =DR43 -> 0.06189464631 | EB43: 0.07529763408 | EC43: 0.06301434107 | ED43: 0.06189464631 | EE43: 0.07529763408 | EF43: 0.06301434107 | EG43: 0.08642208168 | EI43: 0 | EJ43: =EA43 -> 0.06189464631 | EK43: 0.07529763408 | EL43: 0.06301434107 | EM43: 0.06189464631 | EN43: 0.07529763408 | EO43: 0.06301434107 | EP43: 0.08642208168 | ER43: 0 | ES43: =EJ43 -> 0.06189464631 | ET43: 0.07529763408 | EU43: 0.06301434107 | EV43: 0.06189464631 | EW43: 0.07529763408 | EX43: 0.06301434107 | EY43: 0.08642208168 | FA43: 0 | FB43: =ES43 -> 0.06189464631 | FC43: 0.07529763408 | FD43: 0.06301434107 | FE43: 0.06189464631 | FF43: 0.07529763408 | FG43: 0.06301434107 | FH43: 0.08642208168 | FJ43: 0 | FK43: =FB43 -> 0.06189464631 | FL43: 0.07529763408 | FM43: 0.06301434107 | FN43: 0.06189464631 | FO43: 0.07529763408 | FP43: 0.06301434107 | FQ43: 0.08642208168 | FS43: 0 | FT43: =FK43 -> 0.06189464631 | FU43: 0.07529763408 | FV43: 0.06301434107 | FW43: 0.06189464631 | FX43: 0.07529763408 | FY43: 0.06301434107 | FZ43: 0.08642208168
DQ44: 1 | DR44: 0.05844628646 | DS44: 0.08111446968 | DT44: 0.06279303835 | DU44: 0.05844628646 | DV44: 0.08111446968 | DW44: 0.06279303835 | DX44: 0.08079110132 | DZ44: 1 | EA44: 0.05844628646 | EB44: 0.08111446968 | EC44: 0.06279303835 | ED44: 0.05844628646 | EE44: 0.08111446968 | EF44: 0.06279303835 | EG44: 0.08079110132 | EI44: 1 | EJ44: 0.05844628646 | EK44: 0.08111446968 | EL44: 0.06279303835 | EM44: 0.05844628646 | EN44: 0.08111446968 | EO44: 0.06279303835 | EP44: 0.08079110132 | ER44: 1 | ES44: 0.05844628646 | ET44: 0.08111446968 | EU44: 0.06279303835 | EV44: 0.05844628646 | EW44: 0.08111446968 | EX44: 0.06279303835 | EY44: 0.08079110132 | FA44: 1 | FB44: 0.05844628646 | FC44: 0.08111446968 | FD44: 0.06279303835 | FE44: 0.05844628646 | FF44: 0.08111446968 | FG44: 0.06279303835 | FH44: 0.08079110132 | FJ44: 1 | FK44: 0.05844628646 | FL44: 0.08111446968 | FM44: 0.06279303835 | FN44: 0.05844628646 | FO44: 0.08111446968 | FP44: 0.06279303835 | FQ44: 0.08079110132 | FS44: 1 | FT44: 0.05844628646 | FU44: 0.08111446968 | FV44: 0.06279303835 | FW44: 0.05844628646 | FX44: 0.08111446968 | FY44: 0.06279303835 | FZ44: 0.08079110132
DQ45: 2 | DR45: 0.05724418586 | DS45: 0.08185104464 | DT45: 0.05734308828 | DU45: 0.05724418586 | DV45: 0.08185104464 | DW45: 0.05734308828 | DX45: 0.07698107964 | DZ45: 2 | EA45: 0.05724418586 | EB45: 0.08185104464 | EC45: 0.05734308828 | ED45: 0.05724418586 | EE45: 0.08185104464 | EF45: 0.05734308828 | EG45: 0.07698107964 | EI45: 2 | EJ45: 0.05724418586 | EK45: 0.08185104464 | EL45: 0.05734308828 | EM45: 0.05724418586 | EN45: 0.08185104464 | EO45: 0.05734308828 | EP45: 0.07698107964 | ER45: 2 | ES45: 0.05724418586 | ET45: 0.08185104464 | EU45: 0.05734308828 | EV45: 0.05724418586 | EW45: 0.08185104464 | EX45: 0.05734308828 | EY45: 0.07698107964 | FA45: 2 | FB45: 0.05724418586 | FC45: 0.08185104464 | FD45: 0.05734308828 | FE45: 0.05724418586 | FF45: 0.08185104464 | FG45: 0.05734308828 | FH45: 0.07698107964 | FJ45: 2 | FK45: 0.05724418586 | FL45: 0.08185104464 | FM45: 0.05734308828 | FN45: 0.05724418586 | FO45: 0.08185104464 | FP45: 0.05734308828 | FQ45: 0.07698107964 | FS45: 2 | FT45: 0.05724418586 | FU45: 0.08185104464 | FV45: 0.05734308828 | FW45: 0.05724418586 | FX45: 0.08185104464 | FY45: 0.05734308828 | FZ45: 0.07698107964
B46: Table IIa: Age Distribution, 1998 and earlier Each column must add up to 100%. | K46: Table IIb: Age Distribution, 1999. Each column must add up to 100%. | T46: Table IIc: Age Distribution, 2000. Each column must add up to 100%. | AC46: Table IId: Age Distribution, 2001. Each column must add up to 100%. | AL46: Table IIe: Age Distribution, 2002. Each column must add up to 100%. | AU46: Table IIf: Age Distribution, 2003. Each column must add up to 100%. | BD46: Table IIg: Age Distribution, 2004. Each column must add up to 100%. | BM46: Table IIh: Age Distribution, 2005. Each column must add up to 100%. | DQ46: 3 | DR46: 0.05747643035 | DS46: 0.07615201402 | DT46: 0.04758813938 | DU46: 0.05747643035 | DV46: 0.07615201402 | DW46: 0.04758813938 | DX46: 0.07447330061 | DZ46: 3 | EA46: 0.05747643035 | EB46: 0.07615201402 | EC46: 0.04758813938 | ED46: 0.05747643035 | EE46: 0.07615201402 | EF46: 0.04758813938 | EG46: 0.07447330061 | EI46: 3 | EJ46: 0.05747643035 | EK46: 0.07615201402 | EL46: 0.04758813938 | EM46: 0.05747643035 | EN46: 0.07615201402 | EO46: 0.04758813938 | EP46: 0.07447330061 | ER46: 3 | ES46: 0.05747643035 | ET46: 0.07615201402 | EU46: 0.04758813938 | EV46: 0.05747643035 | EW46: 0.07615201402 | EX46: 0.04758813938 | EY46: 0.07447330061 | FA46: 3 | FB46: 0.05747643035 | FC46: 0.07615201402 | FD46: 0.04758813938 | FE46: 0.05747643035 | FF46: 0.07615201402 | FG46: 0.04758813938 | FH46: 0.07447330061 | FJ46: 3 | FK46: 0.05747643035 | FL46: 0.07615201402 | FM46: 0.04758813938 | FN46: 0.05747643035 | FO46: 0.07615201402 | FP46: 0.04758813938 | FQ46: 0.07447330061 | FS46: 3 | FT46: 0.05747643035 | FU46: 0.07615201402 | FV46: 0.04758813938 | FW46: 0.05747643035 | FX46: 0.07615201402 | FY46: 0.04758813938 | FZ46: 0.07447330061
B47: MY | C47: LDGV | D47: LDGT | E47: HDGV | F47: LDDV | G47: LDDT | H47: HDDV | I47: MC | K47: MY | L47: LDGV | M47: LDGT | N47: HDGV | O47: LDDV | P47: LDDT | Q47: HDDV | R47: MC | T47: MY | U47: LDGV | V47: LDGT | W47: HDGV | X47: LDDV | Y47: LDDT | Z47: HDDV | AA47: MC | AC47: MY | AD47: LDGV | AE47: LDGT | AF47: HDGV | AG47: LDDV | AH47: LDDT | AI47: HDDV | AJ47: MC | AL47: MY | AM47: LDGV | AN47: LDGT | AO47: HDGV | AP47: LDDV | AQ47: LDDT | AR47: HDDV | AS47: MC | AU47: MY | AV47: LDGV | AW47: LDGT | AX47: HDGV | AY47: LDDV | AZ47: LDDT | BA47: HDDV | BB47: MC | BD47: MY | BE47: LDGV | BF47: LDGT | BG47: HDGV | BH47: LDDV | BI47: LDDT | BJ47: HDDV | BK47: MC | BM47: MY | BN47: LDGV | BO47: LDGT | BP47: HDGV | BQ47: LDDV | BR47: LDDT | BS47: HDDV | BT47: MC | DQ47: 4 | DR47: 0.06078356044 | DS47: 0.07317072529 | DT47: 0.04486742377 | DU47: 0.06078356044 | DV47: 0.07317072529 | DW47: 0.04486742377 | DX47: 0.0711715013 | DZ47: 4 | EA47: 0.06078356044 | EB47: 0.07317072529 | EC47: 0.04486742377 | ED47: 0.06078356044 | EE47: 0.07317072529 | EF47: 0.04486742377 | EG47: 0.0711715013 | EI47: 4 | EJ47: 0.06078356044 | EK47: 0.07317072529 | EL47: 0.04486742377 | EM47: 0.06078356044 | EN47: 0.07317072529 | EO47: 0.04486742377 | EP47: 0.0711715013 | ER47: 4 | ES47: 0.06078356044 | ET47: 0.07317072529 | EU47: 0.04486742377 | EV47: 0.06078356044 | EW47: 0.07317072529 | EX47: 0.04486742377 | EY47: 0.0711715013 | FA47: 4 | FB47: 0.06078356044 | FC47: 0.07317072529 | FD47: 0.04486742377 | FE47: 0.06078356044 | FF47: 0.07317072529 | FG47: 0.04486742377 | FH47: 0.0711715013 | FJ47: 4 | FK47: 0.06078356044 | FL47: 0.07317072529 | FM47: 0.04486742377 | FN47: 0.06078356044 | FO47: 0.07317072529 | FP47: 0.04486742377 | FQ47: 0.0711715013 | FS47: 4 | FT47: 0.06078356044 | FU47: 0.07317072529 | FV47: 0.04486742377 | FW47: 0.06078356044 | FX47: 0.07317072529 | FY47: 0.04486742377 | FZ47: 0.0711715013
B48: 0 | K48: 0 | T48: 0 | AC48: 0 | AL48: 0 | AU48: 0 | BD48: 0 | BM48: 0 | DQ48: 5 | DR48: 0.0625418709 | DS48: 0.07170453699 | DT48: 0.04979229063 | DU48: 0.0625418709 | DV48: 0.07170453699 | DW48: 0.04979229063 | DX48: 0.07043776812 | DZ48: 5 | EA48: 0.0625418709 | EB48: 0.07170453699 | EC48: 0.04979229063 | ED48: 0.0625418709 | EE48: 0.07170453699 | EF48: 0.04979229063 | EG48: 0.07043776812 | EI48: 5 | EJ48: 0.0625418709 | EK48: 0.07170453699 | EL48: 0.04979229063 | EM48: 0.0625418709 | EN48: 0.07170453699 | EO48: 0.04979229063 | EP48: 0.07043776812 | ER48: 5 | ES48: 0.0625418709 | ET48: 0.07170453699 | EU48: 0.04979229063 | EV48: 0.0625418709 | EW48: 0.07170453699 | EX48: 0.04979229063 | EY48: 0.07043776812 | FA48: 5 | FB48: 0.0625418709 | FC48: 0.07170453699 | FD48: 0.04979229063 | FE48: 0.0625418709 | FF48: 0.07170453699 | FG48: 0.04979229063 | FH48: 0.07043776812 | FJ48: 5 | FK48: 0.0625418709 | FL48: 0.07170453699 | FM48: 0.04979229063 | FN48: 0.0625418709 | FO48: 0.07170453699 | FP48: 0.04979229063 | FQ48: 0.07043776812 | FS48: 5 | FT48: 0.0625418709 | FU48: 0.07170453699 | FV48: 0.04979229063 | FW48: 0.0625418709 | FX48: 0.07170453699 | FY48: 0.04979229063 | FZ48: 0.07043776812
B49: 1 | K49: 1 | T49: 1 | AC49: 1 | AL49: 1 | AU49: 1 | BD49: 1 | BM49: 1 | DQ49: 6 | DR49: 0.06476365033 | DS49: 0.06745786185 | DT49: 0.06147076311 | DU49: 0.06476365033 | DV49: 0.06745786185 | DW49: 0.06147076311 | DX49: 0.07102973401 | DZ49: 6 | EA49: 0.06476365033 | EB49: 0.06745786185 | EC49: 0.06147076311 | ED49: 0.06476365033 | EE49: 0.06745786185 | EF49: 0.06147076311 | EG49: 0.07102973401 | EI49: 6 | EJ49: 0.06476365033 | EK49: 0.06745786185 | EL49: 0.06147076311 | EM49: 0.06476365033 | EN49: 0.06745786185 | EO49: 0.06147076311 | EP49: 0.07102973401 | ER49: 6 | ES49: 0.06476365033 | ET49: 0.06745786185 | EU49: 0.06147076311 | EV49: 0.06476365033 | EW49: 0.06745786185 | EX49: 0.06147076311 | EY49: 0.07102973401 | FA49: 6 | FB49: 0.06476365033 | FC49: 0.06745786185 | FD49: 0.06147076311 | FE49: 0.06476365033 | FF49: 0.06745786185 | FG49: 0.06147076311 | FH49: 0.07102973401 | FJ49: 6 | FK49: 0.06476365033 | FL49: 0.06745786185 | FM49: 0.06147076311 | FN49: 0.06476365033 | FO49: 0.06745786185 | FP49: 0.06147076311 | FQ49: 0.07102973401 | FS49: 6 | FT49: 0.06476365033 | FU49: 0.06745786185 | FV49: 0.06147076311 | FW49: 0.06476365033 | FX49: 0.06745786185 | FY49: 0.06147076311 | FZ49: 0.07102973401
B50: 2 | K50: 2 | T50: 2 | AC50: 2 | AL50: 2 | AU50: 2 | BD50: 2 | BM50: 2 | DQ50: 7 | DR50: 0.0624861636 | DS50: 0.06296888637 | DT50: 0.06607714487 | DU50: 0.0624861636 | DV50: 0.06296888637 | DW50: 0.06607714487 | DX50: 0.06635017884 | DZ50: 7 | EA50: 0.0624861636 | EB50: 0.06296888637 | EC50: 0.06607714487 | ED50: 0.0624861636 | EE50: 0.06296888637 | EF50: 0.06607714487 | EG50: 0.06635017884 | EI50: 7 | EJ50: 0.0624861636 | EK50: 0.06296888637 | EL50: 0.06607714487 | EM50: 0.0624861636 | EN50: 0.06296888637 | EO50: 0.06607714487 | EP50: 0.06635017884 | ER50: 7 | ES50: 0.0624861636 | ET50: 0.06296888637 | EU50: 0.06607714487 | EV50: 0.0624861636 | EW50: 0.06296888637 | EX50: 0.06607714487 | EY50: 0.06635017884 | FA50: 7 | FB50: 0.0624861636 | FC50: 0.06296888637 | FD50: 0.06607714487 | FE50: 0.0624861636 | FF50: 0.06296888637 | FG50: 0.06607714487 | FH50: 0.06635017884 | FJ50: 7 | FK50: 0.0624861636 | FL50: 0.06296888637 | FM50: 0.06607714487 | FN50: 0.0624861636 | FO50: 0.06296888637 | FP50: 0.06607714487 | FQ50: 0.06635017884 | FS50: 7 | FT50: 0.0624861636 | FU50: 0.06296888637 | FV50: 0.06607714487 | FW50: 0.0624861636 | FX50: 0.06296888637 | FY50: 0.06607714487 | FZ50: 0.06635017884
B51: 3 | K51: 3 | T51: 3 | AC51: 3 | AL51: 3 | AU51: 3 | BD51: 3 | BM51: 3 | DQ51: 8 | DR51: 0.05723916436 | DS51: 0.05473718429 | DT51: 0.0514796667 | DU51: 0.05723916436 | DV51: 0.05473718429 | DW51: 0.0514796667 | DX51: 0.06217617118 | DZ51: 8 | EA51: 0.05723916436 | EB51: 0.05473718429 | EC51: 0.0514796667 | ED51: 0.05723916436 | EE51: 0.05473718429 | EF51: 0.0514796667 | EG51: 0.06217617118 | EI51: 8 | EJ51: 0.05723916436 | EK51: 0.05473718429 | EL51: 0.0514796667 | EM51: 0.05723916436 | EN51: 0.05473718429 | EO51: 0.0514796667 | EP51: 0.06217617118 | ER51: 8 | ES51: 0.05723916436 | ET51: 0.05473718429 | EU51: 0.0514796667 | EV51: 0.05723916436 | EW51: 0.05473718429 | EX51: 0.0514796667 | EY51: 0.06217617118 | FA51: 8 | FB51: 0.05723916436 | FC51: 0.05473718429 | FD51: 0.0514796667 | FE51: 0.05723916436 | FF51: 0.05473718429 | FG51: 0.0514796667 | FH51: 0.06217617118 | FJ51: 8 | FK51: 0.05723916436 | FL51: 0.05473718429 | FM51: 0.0514796667 | FN51: 0.05723916436 | FO51: 0.05473718429 | FP51: 0.0514796667 | FQ51: 0.06217617118 | FS51: 8 | FT51: 0.05723916436 | FU51: 0.05473718429 | FV51: 0.0514796667 | FW51: 0.05723916436 | FX51: 0.05473718429 | FY51: 0.0514796667 | FZ51: 0.06217617118
B52: 4 | K52: 4 | T52: 4 | AC52: 4 | AL52: 4 | AU52: 4 | BD52: 4 | BM52: 4 | DQ52: 9 | DR52: 0.05555711798 | DS52: 0.04728997478 | DT52: 0.04452910332 | DU52: 0.05555711798 | DV52: 0.04728997478 | DW52: 0.04452910332 | DX52: 0.04715027857 | DZ52: 9 | EA52: 0.05555711798 | EB52: 0.04728997478 | EC52: 0.04452910332 | ED52: 0.05555711798 | EE52: 0.04728997478 | EF52: 0.04452910332 | EG52: 0.04715027857 | EI52: 9 | EJ52: 0.05555711798 | EK52: 0.04728997478 | EL52: 0.04452910332 | EM52: 0.05555711798 | EN52: 0.04728997478 | EO52: 0.04452910332 | EP52: 0.04715027857 | ER52: 9 | ES52: 0.05555711798 | ET52: 0.04728997478 | EU52: 0.04452910332 | EV52: 0.05555711798 | EW52: 0.04728997478 | EX52: 0.04452910332 | EY52: 0.04715027857 | FA52: 9 | FB52: 0.05555711798 | FC52: 0.04728997478 | FD52: 0.04452910332 | FE52: 0.05555711798 | FF52: 0.04728997478 | FG52: 0.04452910332 | FH52: 0.04715027857 | FJ52: 9 | FK52: 0.05555711798 | FL52: 0.04728997478 | FM52: 0.04452910332 | FN52: 0.05555711798 | FO52: 0.04728997478 | FP52: 0.04452910332 | FQ52: 0.04715027857 | FS52: 9 | FT52: 0.05555711798 | FU52: 0.04728997478 | FV52: 0.04452910332 | FW52: 0.05555711798 | FX52: 0.04728997478 | FY52: 0.04452910332 | FZ52: 0.04715027857
B53: 5 | K53: 5 | T53: 5 | AC53: 5 | AL53: 5 | AU53: 5 | BD53: 5 | BM53: 5 | DQ53: 10 | DR53: 0.05502993868 | DS53: 0.04396639162 | DT53: 0.0413757112 | DU53: 0.05502993868 | DV53: 0.04396639162 | DW53: 0.0413757112 | DX53: 0.03994833555 | DZ53: 10 | EA53: 0.05502993868 | EB53: 0.04396639162 | EC53: 0.0413757112 | ED53: 0.05502993868 | EE53: 0.04396639162 | EF53: 0.0413757112 | EG53: 0.03994833555 | EI53: 10 | EJ53: 0.05502993868 | EK53: 0.04396639162 | EL53: 0.0413757112 | EM53: 0.05502993868 | EN53: 0.04396639162 | EO53: 0.0413757112 | EP53: 0.03994833555 | ER53: 10 | ES53: 0.05502993868 | ET53: 0.04396639162 | EU53: 0.0413757112 | EV53: 0.05502993868 | EW53: 0.04396639162 | EX53: 0.0413757112 | EY53: 0.03994833555 | FA53: 10 | FB53: 0.05502993868 | FC53: 0.04396639162 | FD53: 0.0413757112 | FE53: 0.05502993868 | FF53: 0.04396639162 | FG53: 0.0413757112 | FH53: 0.03994833555 | FJ53: 10 | FK53: 0.05502993868 | FL53: 0.04396639162 | FM53: 0.0413757112 | FN53: 0.05502993868 | FO53: 0.04396639162 | FP53: 0.0413757112 | FQ53: 0.03994833555 | FS53: 10 | FT53: 0.05502993868 | FU53: 0.04396639162 | FV53: 0.0413757112 | FW53: 0.05502993868 | FX53: 0.04396639162 | FY53: 0.0413757112 | FZ53: 0.03994833555
B54: 6 | K54: 6 | T54: 6 | AC54: 6 | AL54: 6 | AU54: 6 | BD54: 6 | BM54: 6 | DQ54: 11 | DR54: 0.0540063368 | DS54: 0.0384341685 | DT54: 0.04754542646 | DU54: 0.0540063368 | DV54: 0.0384341685 | DW54: 0.04754542646 | DX54: 0.03407908738 | DZ54: 11 | EA54: 0.0540063368 | EB54: 0.0384341685 | EC54: 0.04754542646 | ED54: 0.0540063368 | EE54: 0.0384341685 | EF54: 0.04754542646 | EG54: 0.03407908738 | EI54: 11 | EJ54: 0.0540063368 | EK54: 0.0384341685 | EL54: 0.04754542646 | EM54: 0.0540063368 | EN54: 0.0384341685 | EO54: 0.04754542646 | EP54: 0.03407908738 | ER54: 11 | ES54: 0.0540063368 | ET54: 0.0384341685 | EU54: 0.04754542646 | EV54: 0.0540063368 | EW54: 0.0384341685 | EX54: 0.04754542646 | EY54: 0.03407908738 | FA54: 11 | FB54: 0.0540063368 | FC54: 0.0384341685 | FD54: 0.04754542646 | FE54: 0.0540063368 | FF54: 0.0384341685 | FG54: 0.04754542646 | FH54: 0.03407908738 | FJ54: 11 | FK54: 0.0540063368 | FL54: 0.0384341685 | FM54: 0.04754542646 | FN54: 0.0540063368 | FO54: 0.0384341685 | FP54: 0.04754542646 | FQ54: 0.03407908738 | FS54: 11 | FT54: 0.0540063368 | FU54: 0.0384341685 | FV54: 0.04754542646 | FW54: 0.0540063368 | FX54: 0.0384341685 | FY54: 0.04754542646 | FZ54: 0.03407908738
B55: 7 | K55: 7 | T55: 7 | AC55: 7 | AL55: 7 | AU55: 7 | BD55: 7 | BM55: 7 | DQ55: 12 | DR55: 0.05283467906 | DS55: 0.03580209062 | DT55: 0.04152057864 | DU55: 0.05283467906 | DV55: 0.03580209062 | DW55: 0.04152057864 | DX55: 0.03004664125 | DZ55: 12 | EA55: 0.05283467906 | EB55: 0.03580209062 | EC55: 0.04152057864 | ED55: 0.05283467906 | EE55: 0.03580209062 | EF55: 0.04152057864 | EG55: 0.03004664125 | EI55: 12 | EJ55: 0.05283467906 | EK55: 0.03580209062 | EL55: 0.04152057864 | EM55: 0.05283467906 | EN55: 0.03580209062 | EO55: 0.04152057864 | EP55: 0.03004664125 | ER55: 12 | ES55: 0.05283467906 | ET55: 0.03580209062 | EU55: 0.04152057864 | EV55: 0.05283467906 | EW55: 0.03580209062 | EX55: 0.04152057864 | EY55: 0.03004664125 | FA55: 12 | FB55: 0.05283467906 | FC55: 0.03580209062 | FD55: 0.04152057864 | FE55: 0.05283467906 | FF55: 0.03580209062 | FG55: 0.04152057864 | FH55: 0.03004664125 | FJ55: 12 | FK55: 0.05283467906 | FL55: 0.03580209062 | FM55: 0.04152057864 | FN55: 0.05283467906 | FO55: 0.03580209062 | FP55: 0.04152057864 | FQ55: 0.03004664125 | FS55: 12 | FT55: 0.05283467906 | FU55: 0.03580209062 | FV55: 0.04152057864 | FW55: 0.05283467906 | FX55: 0.03580209062 | FY55: 0.04152057864 | FZ55: 0.03004664125
B56: 8 | K56: 8 | T56: 8 | AC56: 8 | AL56: 8 | AU56: 8 | BD56: 8 | BM56: 8 | DQ56: 13 | DR56: 0.04579924035 | DS56: 0.02939802025 | DT56: 0.03222777686 | DU56: 0.04579924035 | DV56: 0.02939802025 | DW56: 0.03222777686 | DX56: 0.02568745136 | DZ56: 13 | EA56: 0.04579924035 | EB56: 0.02939802025 | EC56: 0.03222777686 | ED56: 0.04579924035 | EE56: 0.02939802025 | EF56: 0.03222777686 | EG56: 0.02568745136 | EI56: 13 | EJ56: 0.04579924035 | EK56: 0.02939802025 | EL56: 0.03222777686 | EM56: 0.04579924035 | EN56: 0.02939802025 | EO56: 0.03222777686 | EP56: 0.02568745136 | ER56: 13 | ES56: 0.04579924035 | ET56: 0.02939802025 | EU56: 0.03222777686 | EV56: 0.04579924035 | EW56: 0.02939802025 | EX56: 0.03222777686 | EY56: 0.02568745136 | FA56: 13 | FB56: 0.04579924035 | FC56: 0.02939802025 | FD56: 0.03222777686 | FE56: 0.04579924035 | FF56: 0.02939802025 | FG56: 0.03222777686 | FH56: 0.02568745136 | FJ56: 13 | FK56: 0.04579924035 | FL56: 0.02939802025 | FM56: 0.03222777686 | FN56: 0.04579924035 | FO56: 0.02939802025 | FP56: 0.03222777686 | FQ56: 0.02568745136 | FS56: 13 | FT56: 0.04579924035 | FU56: 0.02939802025 | FV56: 0.03222777686 | FW56: 0.04579924035 | FX56: 0.02939802025 | FY56: 0.03222777686 | FZ56: 0.02568745136
B57: 9 | K57: 9 | T57: 9 | AC57: 9 | AL57: 9 | AU57: 9 | BD57: 9 | BM57: 9 | DQ57: 14 | DR57: 0.03721419739 | DS57: 0.02346846074 | DT57: 0.02358944754 | DU57: 0.03721419739 | DV57: 0.02346846074 | DW57: 0.02358944754 | DX57: 0.0200348664 | DZ57: 14 | EA57: 0.03721419739 | EB57: 0.02346846074 | EC57: 0.02358944754 | ED57: 0.03721419739 | EE57: 0.02346846074 | EF57: 0.02358944754 | EG57: 0.0200348664 | EI57: 14 | EJ57: 0.03721419739 | EK57: 0.02346846074 | EL57: 0.02358944754 | EM57: 0.03721419739 | EN57: 0.02346846074 | EO57: 0.02358944754 | EP57: 0.0200348664 | ER57: 14 | ES57: 0.03721419739 | ET57: 0.02346846074 | EU57: 0.02358944754 | EV57: 0.03721419739 | EW57: 0.02346846074 | EX57: 0.02358944754 | EY57: 0.0200348664 | FA57: 14 | FB57: 0.03721419739 | FC57: 0.02346846074 | FD57: 0.02358944754 | FE57: 0.03721419739 | FF57: 0.02346846074 | FG57: 0.02358944754 | FH57: 0.0200348664 | FJ57: 14 | FK57: 0.03721419739 | FL57: 0.02346846074 | FM57: 0.02358944754 | FN57: 0.03721419739 | FO57: 0.02346846074 | FP57: 0.02358944754 | FQ57: 0.0200348664 | FS57: 14 | FT57: 0.03721419739 | FU57: 0.02346846074 | FV57: 0.02358944754 | FW57: 0.03721419739 | FX57: 0.02346846074 | FY57: 0.02358944754 | FZ57: 0.0200348664
B58: 10 | K58: 10 | T58: 10 | AC58: 10 | AL58: 10 | AU58: 10 | BD58: 10 | BM58: 10 | DQ58: 15 | DR58: 0.03057553583 | DS58: 0.01912848189 | DT58: 0.02369365988 | DU58: 0.03057553583 | DV58: 0.01912848189 | DW58: 0.02369365988 | DX58: 0.0162333631 | DZ58: 15 | EA58: 0.03057553583 | EB58: 0.01912848189 | EC58: 0.02369365988 | ED58: 0.03057553583 | EE58: 0.01912848189 | EF58: 0.02369365988 | EG58: 0.0162333631 | EI58: 15 | EJ58: 0.03057553583 | EK58: 0.01912848189 | EL58: 0.02369365988 | EM58: 0.03057553583 | EN58: 0.01912848189 | EO58: 0.02369365988 | EP58: 0.0162333631 | ER58: 15 | ES58: 0.03057553583 | ET58: 0.01912848189 | EU58: 0.02369365988 | EV58: 0.03057553583 | EW58: 0.01912848189 | EX58: 0.02369365988 | EY58: 0.0162333631 | FA58: 15 | FB58: 0.03057553583 | FC58: 0.01912848189 | FD58: 0.02369365988 | FE58: 0.03057553583 | FF58: 0.01912848189 | FG58: 0.02369365988 | FH58: 0.0162333631 | FJ58: 15 | FK58: 0.03057553583 | FL58: 0.01912848189 | FM58: 0.02369365988 | FN58: 0.03057553583 | FO58: 0.01912848189 | FP58: 0.02369365988 | FQ58: 0.0162333631 | FS58: 15 | FT58: 0.03057553583 | FU58: 0.01912848189 | FV58: 0.02369365988 | FW58: 0.03057553583 | FX58: 0.01912848189 | FY58: 0.02369365988 | FZ58: 0.0162333631
B59: 11 | K59: 11 | T59: 11 | AC59: 11 | AL59: 11 | AU59: 11 | BD59: 11 | BM59: 11 | DQ59: 16 | DR59: =IN22 -> 0.02846007102 | DS59: 0.01897915978 | DT59: 0.02894118683 | DU59: 0.02846007102 | DV59: 0.01897915978 | DW59: 0.02894118683 | DX59: 0.01472958044 | DZ59: 16 | EA59: 0.02846007102 | EB59: 0.01897915978 | EC59: 0.02894118683 | ED59: 0.02846007102 | EE59: 0.01897915978 | EF59: 0.02894118683 | EG59: 0.01472958044 | EI59: 16 | EJ59: 0.02846007102 | EK59: 0.01897915978 | EL59: 0.02894118683 | EM59: 0.02846007102 | EN59: 0.01897915978 | EO59: 0.02894118683 | EP59: 0.01472958044 | ER59: 16 | ES59: 0.02846007102 | ET59: 0.01897915978 | EU59: 0.02894118683 | EV59: 0.02846007102 | EW59: 0.01897915978 | EX59: 0.02894118683 | EY59: 0.01472958044 | FA59: 16 | FB59: 0.02846007102 | FC59: 0.01897915978 | FD59: 0.02894118683 | FE59: 0.02846007102 | FF59: 0.01897915978 | FG59: 0.02894118683 | FH59: 0.01472958044 | FJ59: 16 | FK59: 0.02846007102 | FL59: 0.01897915978 | FM59: 0.02894118683 | FN59: 0.02846007102 | FO59: 0.01897915978 | FP59: 0.02894118683 | FQ59: 0.01472958044 | FS59: 16 | FT59: 0.02846007102 | FU59: 0.01897915978 | FV59: 0.02894118683 | FW59: 0.02846007102 | FX59: 0.01897915978 | FY59: 0.02894118683 | FZ59: 0.01472958044
B60: 12 | K60: 12 | T60: 12 | AC60: 12 | AL60: 12 | AU60: 12 | BD60: 12 | BM60: 12 | DQ60: 17 | DR60: 0.02395170339 | DS60: 0.01720697689 | DT60: 0.03270737405 | DU60: 0.02395170339 | DV60: 0.01720697689 | DW60: 0.03270737405 | DX60: 0.01317526361 | DZ60: 17 | EA60: 0.02395170339 | EB60: 0.01720697689 | EC60: 0.03270737405 | ED60: 0.02395170339 | EE60: 0.01720697689 | EF60: 0.03270737405 | EG60: 0.01317526361 | EI60: 17 | EJ60: 0.02395170339 | EK60: 0.01720697689 | EL60: 0.03270737405 | EM60: 0.02395170339 | EN60: 0.01720697689 | EO60: 0.03270737405 | EP60: 0.01317526361 | ER60: 17 | ES60: 0.02395170339 | ET60: 0.01720697689 | EU60: 0.03270737405 | EV60: 0.02395170339 | EW60: 0.01720697689 | EX60: 0.03270737405 | EY60: 0.01317526361 | FA60: 17 | FB60: 0.02395170339 | FC60: 0.01720697689 | FD60: 0.03270737405 | FE60: 0.02395170339 | FF60: 0.01720697689 | FG60: 0.03270737405 | FH60: 0.01317526361 | FJ60: 17 | FK60: 0.02395170339 | FL60: 0.01720697689 | FM60: 0.03270737405 | FN60: 0.02395170339 | FO60: 0.01720697689 | FP60: 0.03270737405 | FQ60: 0.01317526361 | FS60: 17 | FT60: 0.02395170339 | FU60: 0.01720697689 | FV60: 0.03270737405 | FW60: 0.02395170339 | FX60: 0.01720697689 | FY60: 0.03270737405 | FZ60: 0.01317526361
B61: 13 | K61: 13 | T61: 13 | AC61: 13 | AL61: 13 | AU61: 13 | BD61: 13 | BM61: 13 | DQ61: 18 | DR61: 0.01998095037 | DS61: 0.01596619119 | DT61: 0.029861084 | DU61: 0.01998095037 | DV61: 0.01596619119 | DW61: 0.029861084 | DX61: 0.01421635816 | DZ61: 18 | EA61: 0.01998095037 | EB61: 0.01596619119 | EC61: 0.029861084 | ED61: 0.01998095037 | EE61: 0.01596619119 | EF61: 0.029861084 | EG61: 0.01421635816 | EI61: 18 | EJ61: 0.01998095037 | EK61: 0.01596619119 | EL61: 0.029861084 | EM61: 0.01998095037 | EN61: 0.01596619119 | EO61: 0.029861084 | EP61: 0.01421635816 | ER61: 18 | ES61: 0.01998095037 | ET61: 0.01596619119 | EU61: 0.029861084 | EV61: 0.01998095037 | EW61: 0.01596619119 | EX61: 0.029861084 | EY61: 0.01421635816 | FA61: 18 | FB61: 0.01998095037 | FC61: 0.01596619119 | FD61: 0.029861084 | FE61: 0.01998095037 | FF61: 0.01596619119 | FG61: 0.029861084 | FH61: 0.01421635816 | FJ61: 18 | FK61: 0.01998095037 | FL61: 0.01596619119 | FM61: 0.029861084 | FN61: 0.01998095037 | FO61: 0.01596619119 | FP61: 0.029861084 | FQ61: 0.01421635816 | FS61: 18 | FT61: 0.01998095037 | FU61: 0.01596619119 | FV61: 0.029861084 | FW61: 0.01998095037 | FX61: 0.01596619119 | FY61: 0.029861084 | FZ61: 0.01421635816
B62: 14 | K62: 14 | T62: 14 | AC62: 14 | AL62: 14 | AU62: 14 | BD62: 14 | BM62: 14 | DQ62: 19 | DR62: 0.01448169909 | DS62: 0.01374650307 | DT62: 0.02544146399 | DU62: 0.01448169909 | DV62: 0.01374650307 | DW62: 0.02544146399 | DX62: 0.01580503658 | DZ62: 19 | EA62: 0.01448169909 | EB62: 0.01374650307 | EC62: 0.02544146399 | ED62: 0.01448169909 | EE62: 0.01374650307 | EF62: 0.02544146399 | EG62: 0.01580503658 | EI62: 19 | EJ62: 0.01448169909 | EK62: 0.01374650307 | EL62: 0.02544146399 | EM62: 0.01448169909 | EN62: 0.01374650307 | EO62: 0.02544146399 | EP62: 0.01580503658 | ER62: 19 | ES62: 0.01448169909 | ET62: 0.01374650307 | EU62: 0.02544146399 | EV62: 0.01448169909 | EW62: 0.01374650307 | EX62: 0.02544146399 | EY62: 0.01580503658 | FA62: 19 | FB62: 0.01448169909 | FC62: 0.01374650307 | FD62: 0.02544146399 | FE62: 0.01448169909 | FF62: 0.01374650307 | FG62: 0.02544146399 | FH62: 0.01580503658 | FJ62: 19 | FK62: 0.01448169909 | FL62: 0.01374650307 | FM62: 0.02544146399 | FN62: 0.01448169909 | FO62: 0.01374650307 | FP62: 0.02544146399 | FQ62: 0.01580503658 | FS62: 19 | FT62: 0.01448169909 | FU62: 0.01374650307 | FV62: 0.02544146399 | FW62: 0.01448169909 | FX62: 0.01374650307 | FY62: 0.02544146399 | FZ62: 0.01580503658
B63: 15 | K63: 15 | T63: 15 | AC63: 15 | AL63: 15 | AU63: 15 | BD63: 15 | BM63: 15 | DQ63: 20 | DR63: 0.01159151061 | DS63: 0.01206695485 | DT63: 0.02665726174 | DU63: 0.01159151061 | DV63: 0.01206695485 | DW63: 0.02665726174 | DX63: 0.01365264285 | DZ63: 20 | EA63: 0.01159151061 | EB63: 0.01206695485 | EC63: 0.02665726174 | ED63: 0.01159151061 | EE63: 0.01206695485 | EF63: 0.02665726174 | EG63: 0.01365264285 | EI63: 20 | EJ63: 0.01159151061 | EK63: 0.01206695485 | EL63: 0.02665726174 | EM63: 0.01159151061 | EN63: 0.01206695485 | EO63: 0.02665726174 | EP63: 0.01365264285 | ER63: 20 | ES63: 0.01159151061 | ET63: 0.01206695485 | EU63: 0.02665726174 | EV63: 0.01159151061 | EW63: 0.01206695485 | EX63: 0.02665726174 | EY63: 0.01365264285 | FA63: 20 | FB63: 0.01159151061 | FC63: 0.01206695485 | FD63: 0.02665726174 | FE63: 0.01159151061 | FF63: 0.01206695485 | FG63: 0.02665726174 | FH63: 0.01365264285 | FJ63: 20 | FK63: 0.01159151061 | FL63: 0.01206695485 | FM63: 0.02665726174 | FN63: 0.01159151061 | FO63: 0.01206695485 | FP63: 0.02665726174 | FQ63: 0.01365264285 | FS63: 20 | FT63: 0.01159151061 | FU63: 0.01206695485 | FV63: 0.02665726174 | FW63: 0.01159151061 | FX63: 0.01206695485 | FY63: 0.02665726174 | FZ63: 0.01365264285
B64: 16 | K64: 16 | T64: 16 | AC64: 16 | AL64: 16 | AU64: 16 | BD64: 16 | BM64: 16 | DQ64: 21 | DR64: 0.008403641193 | DS64: 0.01021320353 | DT64: 0.02136839879 | DU64: 0.008403641193 | DV64: 0.01021320353 | DW64: 0.02136839879 | DX64: 0.01170156278 | DZ64: 21 | EA64: 0.008403641193 | EB64: 0.01021320353 | EC64: 0.02136839879 | ED64: 0.008403641193 | EE64: 0.01021320353 | EF64: 0.02136839879 | EG64: 0.01170156278 | EI64: 21 | EJ64: 0.008403641193 | EK64: 0.01021320353 | EL64: 0.02136839879 | EM64: 0.008403641193 | EN64: 0.01021320353 | EO64: 0.02136839879 | EP64: 0.01170156278 | ER64: 21 | ES64: 0.008403641193 | ET64: 0.01021320353 | EU64: 0.02136839879 | EV64: 0.008403641193 | EW64: 0.01021320353 | EX64: 0.02136839879 | EY64: 0.01170156278 | FA64: 21 | FB64: 0.008403641193 | FC64: 0.01021320353 | FD64: 0.02136839879 | FE64: 0.008403641193 | FF64: 0.01021320353 | FG64: 0.02136839879 | FH64: 0.01170156278 | FJ64: 21 | FK64: 0.008403641193 | FL64: 0.01021320353 | FM64: 0.02136839879 | FN64: 0.008403641193 | FO64: 0.01021320353 | FP64: 0.02136839879 | FQ64: 0.01170156278 | FS64: 21 | FT64: 0.008403641193 | FU64: 0.01021320353 | FV64: 0.02136839879 | FW64: 0.008403641193 | FX64: 0.01021320353 | FY64: 0.02136839879 | FZ64: 0.01170156278
B65: 17 | K65: 17 | T65: 17 | AC65: 17 | AL65: 17 | AU65: 17 | BD65: 17 | BM65: 17 | DQ65: 22 | DR65: 0.005876632878 | DS65: 0.007659231352 | DT65: 0.01477751591 | DU65: 0.005876632878 | DV65: 0.007659231352 | DW65: 0.01477751591 | DX65: 0.00982583131 | DZ65: 22 | EA65: 0.005876632878 | EB65: 0.007659231352 | EC65: 0.01477751591 | ED65: 0.005876632878 | EE65: 0.007659231352 | EF65: 0.01477751591 | EG65: 0.00982583131 | EI65: 22 | EJ65: 0.005876632878 | EK65: 0.007659231352 | EL65: 0.01477751591 | EM65: 0.005876632878 | EN65: 0.007659231352 | EO65: 0.01477751591 | EP65: 0.00982583131 | ER65: 22 | ES65: 0.005876632878 | ET65: 0.007659231352 | EU65: 0.01477751591 | EV65: 0.005876632878 | EW65: 0.007659231352 | EX65: 0.01477751591 | EY65: 0.00982583131 | FA65: 22 | FB65: 0.005876632878 | FC65: 0.007659231352 | FD65: 0.01477751591 | FE65: 0.005876632878 | FF65: 0.007659231352 | FG65: 0.01477751591 | FH65: 0.00982583131 | FJ65: 22 | FK65: 0.005876632878 | FL65: 0.007659231352 | FM65: 0.01477751591 | FN65: 0.005876632878 | FO65: 0.007659231352 | FP65: 0.01477751591 | FQ65: 0.00982583131 | FS65: 22 | FT65: 0.005876632878 | FU65: 0.007659231352 | FV65: 0.01477751591 | FW65: 0.005876632878 | FX65: 0.007659231352 | FY65: 0.01477751591 | FZ65: 0.00982583131
B66: 18 | K66: 18 | T66: 18 | AC66: 18 | AL66: 18 | AU66: 18 | BD66: 18 | BM66: 18 | DQ66: 23 | DR66: 0.00394701858 | DS66: 0.005274995984 | DT66: 0.01465950068 | DU66: 0.00394701858 | DV66: 0.005274995984 | DW66: 0.01465950068 | DX66: 0.008159355769 | DZ66: 23 | EA66: 0.00394701858 | EB66: 0.005274995984 | EC66: 0.01465950068 | ED66: 0.00394701858 | EE66: 0.005274995984 | EF66: 0.01465950068 | EG66: 0.008159355769 | EI66: 23 | EJ66: 0.00394701858 | EK66: 0.005274995984 | EL66: 0.01465950068 | EM66: 0.00394701858 | EN66: 0.005274995984 | EO66: 0.01465950068 | EP66: 0.008159355769 | ER66: 23 | ES66: 0.00394701858 | ET66: 0.005274995984 | EU66: 0.01465950068 | EV66: 0.00394701858 | EW66: 0.005274995984 | EX66: 0.01465950068 | EY66: 0.008159355769 | FA66: 23 | FB66: 0.00394701858 | FC66: 0.005274995984 | FD66: 0.01465950068 | FE66: 0.00394701858 | FF66: 0.005274995984 | FG66: 0.01465950068 | FH66: 0.008159355769 | FJ66: 23 | FK66: 0.00394701858 | FL66: 0.005274995984 | FM66: 0.01465950068 | FN66: 0.00394701858 | FO66: 0.005274995984 | FP66: 0.01465950068 | FQ66: 0.008159355769 | FS66: 23 | FT66: 0.00394701858 | FU66: 0.005274995984 | FV66: 0.01465950068 | FW66: 0.00394701858 | FX66: 0.005274995984 | FY66: 0.01465950068 | FZ66: 0.008159355769
B67: 19 | K67: 19 | T67: 19 | AC67: 19 | AL67: 19 | AU67: 19 | BD67: 19 | BM67: 19 | DQ67: 24 | DR67: 0.002440497244 | DS67: 0.003932606883 | DT67: 0.008379553508 | DU67: 0.002440497244 | DV67: 0.003932606883 | DW67: 0.008379553508 | DX67: 0.006766456121 | DZ67: 24 | EA67: 0.002440497244 | EB67: 0.003932606883 | EC67: 0.008379553508 | ED67: 0.002440497244 | EE67: 0.003932606883 | EF67: 0.008379553508 | EG67: 0.006766456121 | EI67: 24 | EJ67: 0.002440497244 | EK67: 0.003932606883 | EL67: 0.008379553508 | EM67: 0.002440497244 | EN67: 0.003932606883 | EO67: 0.008379553508 | EP67: 0.006766456121 | ER67: 24 | ES67: 0.002440497244 | ET67: 0.003932606883 | EU67: 0.008379553508 | EV67: 0.002440497244 | EW67: 0.003932606883 | EX67: 0.008379553508 | EY67: 0.006766456121 | FA67: 24 | FB67: 0.002440497244 | FC67: 0.003932606883 | FD67: 0.008379553508 | FE67: 0.002440497244 | FF67: 0.003932606883 | FG67: 0.008379553508 | FH67: 0.006766456121 | FJ67: 24 | FK67: 0.002440497244 | FL67: 0.003932606883 | FM67: 0.008379553508 | FN67: 0.002440497244 | FO67: 0.003932606883 | FP67: 0.008379553508 | FQ67: 0.006766456121 | FS67: 24 | FT67: 0.002440497244 | FU67: 0.003932606883 | FV67: 0.008379553508 | FW67: 0.002440497244 | FX67: 0.003932606883 | FY67: 0.008379553508 | FZ67: 0.006766456121
B68: 20 | K68: 20 | T68: 20 | AC68: 20 | AL68: 20 | AU68: 20 | BD68: 20 | BM68: 20 | DQ68: 25 | DR68: 0.002034312623 | DS68: 0.0029584257 | DT68: 0.007749377618 | DU68: 0.002034312623 | DV68: 0.0029584257 | DW68: 0.007749377618 | DX68: 0.005517175588 | DZ68: 25 | EA68: 0.002034312623 | EB68: 0.0029584257 | EC68: 0.007749377618 | ED68: 0.002034312623 | EE68: 0.0029584257 | EF68: 0.007749377618 | EG68: 0.005517175588 | EI68: 25 | EJ68: 0.002034312623 | EK68: 0.0029584257 | EL68: 0.007749377618 | EM68: 0.002034312623 | EN68: 0.0029584257 | EO68: 0.007749377618 | EP68: 0.005517175588 | ER68: 25 | ES68: 0.002034312623 | ET68: 0.0029584257 | EU68: 0.007749377618 | EV68: 0.002034312623 | EW68: 0.0029584257 | EX68: 0.007749377618 | EY68: 0.005517175588 | FA68: 25 | FB68: 0.002034312623 | FC68: 0.0029584257 | FD68: 0.007749377618 | FE68: 0.002034312623 | FF68: 0.0029584257 | FG68: 0.007749377618 | FH68: 0.005517175588 | FJ68: 25 | FK68: 0.002034312623 | FL68: 0.0029584257 | FM68: 0.007749377618 | FN68: 0.002034312623 | FO68: 0.0029584257 | FP68: 0.007749377618 | FQ68: 0.005517175588 | FS68: 25 | FT68: 0.002034312623 | FU68: 0.0029584257 | FV68: 0.007749377618 | FW68: 0.002034312623 | FX68: 0.0029584257 | FY68: 0.007749377618 | FZ68: 0.005517175588
B69: 21 | K69: 21 | T69: 21 | AC69: 21 | AL69: 21 | AU69: 21 | BD69: 21 | BM69: 21 | DQ69: 26 | DR69: 0.001515795423 | DS69: 0.002901686735 | DT69: 0.007608214157 | DU69: 0.001515795423 | DV69: 0.002901686735 | DW69: 0.007608214157 | DX69: 0.004400670719 | DZ69: 26 | EA69: 0.001515795423 | EB69: 0.002901686735 | EC69: 0.007608214157 | ED69: 0.001515795423 | EE69: 0.002901686735 | EF69: 0.007608214157 | EG69: 0.004400670719 | EI69: 26 | EJ69: 0.001515795423 | EK69: 0.002901686735 | EL69: 0.007608214157 | EM69: 0.001515795423 | EN69: 0.002901686735 | EO69: 0.007608214157 | EP69: 0.004400670719 | ER69: 26 | ES69: 0.001515795423 | ET69: 0.002901686735 | EU69: 0.007608214157 | EV69: 0.001515795423 | EW69: 0.002901686735 | EX69: 0.007608214157 | EY69: 0.004400670719 | FA69: 26 | FB69: 0.001515795423 | FC69: 0.002901686735 | FD69: 0.007608214157 | FE69: 0.001515795423 | FF69: 0.002901686735 | FG69: 0.007608214157 | FH69: 0.004400670719 | FJ69: 26 | FK69: 0.001515795423 | FL69: 0.002901686735 | FM69: 0.007608214157 | FN69: 0.001515795423 | FO69: 0.002901686735 | FP69: 0.007608214157 | FQ69: 0.004400670719 | FS69: 26 | FT69: 0.001515795423 | FU69: 0.002901686735 | FV69: 0.007608214157 | FW69: 0.001515795423 | FX69: 0.002901686735 | FY69: 0.007608214157 | FZ69: 0.004400670719
B70: 22 | K70: 22 | T70: 22 | AC70: 22 | AL70: 22 | AU70: 22 | BD70: 22 | BM70: 22 | DQ70: 27 | DR70: 0.001185066721 | DS70: 0.002280796628 | DT70: 0.006329703648 | DU70: 0.001185066721 | DV70: 0.002280796628 | DW70: 0.006329703648 | DX70: 0.003366551371 | DZ70: 27 | EA70: 0.001185066721 | EB70: 0.002280796628 | EC70: 0.006329703648 | ED70: 0.001185066721 | EE70: 0.002280796628 | EF70: 0.006329703648 | EG70: 0.003366551371 | EI70: 27 | EJ70: 0.001185066721 | EK70: 0.002280796628 | EL70: 0.006329703648 | EM70: 0.001185066721 | EN70: 0.002280796628 | EO70: 0.006329703648 | EP70: 0.003366551371 | ER70: 27 | ES70: 0.001185066721 | ET70: 0.002280796628 | EU70: 0.006329703648 | EV70: 0.001185066721 | EW70: 0.002280796628 | EX70: 0.006329703648 | EY70: 0.003366551371 | FA70: 27 | FB70: 0.001185066721 | FC70: 0.002280796628 | FD70: 0.006329703648 | FE70: 0.001185066721 | FF70: 0.002280796628 | FG70: 0.006329703648 | FH70: 0.003366551371 | FJ70: 27 | FK70: 0.001185066721 | FL70: 0.002280796628 | FM70: 0.006329703648 | FN70: 0.001185066721 | FO70: 0.002280796628 | FP70: 0.006329703648 | FQ70: 0.003366551371 | FS70: 27 | FT70: 0.001185066721 | FU70: 0.002280796628 | FV70: 0.006329703648 | FW70: 0.001185066721 | FX70: 0.002280796628 | FY70: 0.006329703648 | FZ70: 0.003366551371
B71: 23 | K71: 23 | T71: 23 | AC71: 23 | AL71: 23 | AU71: 23 | BD71: 23 | BM71: 23 | DQ71: 28 | DR71: 0.0008727135793 | DS71: 0.001966027689 | DT71: 0.007164339708 | DU71: 0.0008727135793 | DV71: 0.001966027689 | DW71: 0.007164339708 | DX71: 0.002465968993 | DZ71: 28 | EA71: 0.0008727135793 | EB71: 0.001966027689 | EC71: 0.007164339708 | ED71: 0.0008727135793 | EE71: 0.001966027689 | EF71: 0.007164339708 | EG71: 0.002465968993 | EI71: 28 | EJ71: 0.0008727135793 | EK71: 0.001966027689 | EL71: 0.007164339708 | EM71: 0.0008727135793 | EN71: 0.001966027689 | EO71: 0.007164339708 | EP71: 0.002465968993 | ER71: 28 | ES71: 0.0008727135793 | ET71: 0.001966027689 | EU71: 0.007164339708 | EV71: 0.0008727135793 | EW71: 0.001966027689 | EX71: 0.007164339708 | EY71: 0.002465968993 | FA71: 28 | FB71: 0.0008727135793 | FC71: 0.001966027689 | FD71: 0.007164339708 | FE71: 0.0008727135793 | FF71: 0.001966027689 | FG71: 0.007164339708 | FH71: 0.002465968993 | FJ71: 28 | FK71: 0.0008727135793 | FL71: 0.001966027689 | FM71: 0.007164339708 | FN71: 0.0008727135793 | FO71: 0.001966027689 | FP71: 0.007164339708 | FQ71: 0.002465968993 | FS71: 28 | FT71: 0.0008727135793 | FU71: 0.001966027689 | FV71: 0.007164339708 | FW71: 0.0008727135793 | FX71: 0.001966027689 | FY71: 0.007164339708 | FZ71: 0.002465968993
B72: 24 | K72: 24 | T72: 24 | AC72: 24 | AL72: 24 | AU72: 24 | BD72: 24 | BM72: 24 | DQ72: 29 | DR72: 0.000717127035 | DS72: 0.00138553122 | DT72: 0.004124277669 | DU72: 0.000717127035 | DV72: 0.00138553122 | DW72: 0.004124277669 | DX72: 0.001708046896 | DZ72: 29 | EA72: 0.000717127035 | EB72: 0.00138553122 | EC72: 0.004124277669 | ED72: 0.000717127035 | EE72: 0.00138553122 | EF72: 0.004124277669 | EG72: 0.001708046896 | EI72: 29 | EJ72: 0.000717127035 | EK72: 0.00138553122 | EL72: 0.004124277669 | EM72: 0.000717127035 | EN72: 0.00138553122 | EO72: 0.004124277669 | EP72: 0.001708046896 | ER72: 29 | ES72: 0.000717127035 | ET72: 0.00138553122 | EU72: 0.004124277669 | EV72: 0.000717127035 | EW72: 0.00138553122 | EX72: 0.004124277669 | EY72: 0.001708046896 | FA72: 29 | FB72: 0.000717127035 | FC72: 0.00138553122 | FD72: 0.004124277669 | FE72: 0.000717127035 | FF72: 0.00138553122 | FG72: 0.004124277669 | FH72: 0.001708046896 | FJ72: 29 | FK72: 0.000717127035 | FL72: 0.00138553122 | FM72: 0.004124277669 | FN72: 0.000717127035 | FO72: 0.00138553122 | FP72: 0.004124277669 | FQ72: 0.001708046896 | FS72: 29 | FT72: 0.000717127035 | FU72: 0.00138553122 | FV72: 0.004124277669 | FW72: 0.000717127035 | FX72: 0.00138553122 | FY72: 0.004124277669 | FZ72: 0.001708046896
B73: 25 | K73: 25 | T73: 25 | AC73: 25 | AL73: 25 | AU73: 25 | BD73: 25 | BM73: 25 | DQ73: 30 | DR73: 0.0006482555604 | DS73: 0.001519762897 | DT73: 0.005323147646 | DU73: 0.0006482555604 | DV73: 0.001519762897 | DW73: 0.005323147646 | DX73: 0.001496558492 | DZ73: 30 | EA73: 0.0006482555604 | EB73: 0.001519762897 | EC73: 0.005323147646 | ED73: 0.0006482555604 | EE73: 0.001519762897 | EF73: 0.005323147646 | EG73: 0.001496558492 | EI73: 30 | EJ73: 0.0006482555604 | EK73: 0.001519762897 | EL73: 0.005323147646 | EM73: 0.0006482555604 | EN73: 0.001519762897 | EO73: 0.005323147646 | EP73: 0.001496558492 | ER73: 30 | ES73: 0.0006482555604 | ET73: 0.001519762897 | EU73: 0.005323147646 | EV73: 0.0006482555604 | EW73: 0.001519762897 | EX73: 0.005323147646 | EY73: 0.001496558492 | FA73: 30 | FB73: 0.0006482555604 | FC73: 0.001519762897 | FD73: 0.005323147646 | FE73: 0.0006482555604 | FF73: 0.001519762897 | FG73: 0.005323147646 | FH73: 0.001496558492 | FJ73: 30 | FK73: 0.0006482555604 | FL73: 0.001519762897 | FM73: 0.005323147646 | FN73: 0.0006482555604 | FO73: 0.001519762897 | FP73: 0.005323147646 | FQ73: 0.001496558492 | FS73: 30 | FT73: 0.0006482555604 | FU73: 0.001519762897 | FV73: 0.005323147646 | FW73: 0.0006482555604 | FX73: 0.001519762897 | FY73: 0.005323147646 | FZ73: 0.001496558492
B74: 26 | K74: 26 | T74: 26 | AC74: 26 | AL74: 26 | AU74: 26 | BD74: 26 | BM74: 26 | DR74: 1 | DS74: 1 | DT74: 1 | DU74: 1 | DV74: 1 | DW74: 1 | DX74: 1 | EA74: 1 | EB74: 1 | EC74: 1 | ED74: 1 | EE74: 1 | EF74: 1 | EG74: 1 | EJ74: 1 | EK74: 1 | EL74: 1 | EM74: 1 | EN74: 1 | EO74: 1 | EP74: 1 | ES74: 1 | ET74: 1 | EU74: 1 | EV74: 1 | EW74: 1 | EX74: 1 | EY74: 1 | FB74: 1 | FC74: 1 | FD74: 1 | FE74: 1 | FF74: 1 | FG74: 1 | FH74: 1 | FK74: 1 | FL74: 1 | FM74: 1 | FN74: 1 | FO74: 1 | FP74: 1 | FQ74: 1 | FT74: 1 | FU74: 1 | FV74: 1 | FW74: 1 | FX74: 1 | FY74: 1 | FZ74: 1
B75: 27 | K75: 27 | T75: 27 | AC75: 27 | AL75: 27 | AU75: 27 | BD75: 27 | BM75: 27
B76: 28 | K76: 28 | T76: 28 | AC76: 28 | AL76: 28 | AU76: 28 | BD76: 28 | BM76: 28
B77: 29 | K77: 29 | T77: 29 | AC77: 29 | AL77: 29 | AU77: 29 | BD77: 29 | BM77: 29
B78: 30 | K78: 30 | T78: 30 | AC78: 30 | AL78: 30 | AU78: 30 | BD78: 30 | BM78: 30
C79: =SUM(C48:C78) -> 0 | D79: 0 | E79: 0 | F79: 0 | G79: 0 | H79: 0 | I79: 0 | L79: =SUM(L48:L78) -> 0 | M79: 0 | N79: 0 | O79: 0 | P79: 0 | Q79: 0 | R79: 0 | U79: =SUM(U48:U78) -> 0 | V79: 0 | W79: 0 | X79: 0 | Y79: 0 | Z79: 0 | AA79: 0 | AD79: =SUM(AD48:AD78) -> 0 | AE79: 0 | AF79: 0 | AG79: 0 | AH79: 0 | AI79: 0 | AJ79: 0 | AM79: =SUM(AM48:AM78) -> 0 | AN79: 0 | AO79: 0 | AP79: 0 | AQ79: 0 | AR79: 0 | AS79: 0 | AV79: =SUM(AV48:AV78) -> 0 | AW79: 0 | AX79: 0 | AY79: 0 | AZ79: 0 | BA79: 0 | BB79: 0 | BE79: =SUM(BE48:BE78) -> 0 | BF79: 0 | BG79: 0 | BH79: 0 | BI79: 0 | BJ79: 0 | BK79: 0 | BN79: =SUM(BN48:BN78) -> 0 | BO79: 0 | BP79: 0 | BQ79: 0 | BR79: 0 | BS79: 0 | BT79: 0
B80: Source: All default data from EPA, 2010. Inventory of U.S. Greenhouse Gas Emissions and Sinks: 1990-2008. Data generated by EPA's MOBILE6 model.
B81: Table IIIa: Weighted averages, 1998 and earlier | K81: Table IIIb: Weighted averages, 1999 | T81: Table IIIc: Weighted averages, 2000 | AC81: Table IIId: Weighted averages, 2001 | AL81: Table IIIe: Weighted averages, 2002 | AU81: Table IIIf: Weighted averages, 2003 | BD81: Table IIIg: Weighted averages, 2004 | BM81: Table IIIh: Weighted averages, 2005
B82: Used to weight age distribution by annual vehicle mileage accumulation. | K82: Used to weight age distribution by annual vehicle mileage accumulation. | T82: Used to weight age distribution by annual vehicle mileage accumulation. | AC82: Used to weight age distribution by annual vehicle mileage accumulation. | AL82: Used to weight age distribution by annual vehicle mileage accumulation. | AU82: Used to weight age distribution by annual vehicle mileage accumulation. | BD82: Used to weight age distribution by annual vehicle mileage accumulation. | BM82: Used to weight age distribution by annual vehicle mileage accumulation.
B83: MY | C83: LDGV | D83: LDGT | E83: HDGV | F83: LDDV | G83: LDDT | H83: HDDV | I83: MC | K83: MY | L83: LDGV | M83: LDGT | N83: HDGV | O83: LDDV | P83: LDDT | Q83: HDDV | R83: MC | T83: MY | U83: LDGV | V83: LDGT | W83: HDGV | X83: LDDV | Y83: LDDT | Z83: HDDV | AA83: MC | AC83: MY | AD83: LDGV | AE83: LDGT | AF83: HDGV | AG83: LDDV | AH83: LDDT | AI83: HDDV | AJ83: MC | AL83: MY | AM83: LDGV | AN83: LDGT | AO83: HDGV | AP83: LDDV | AQ83: LDDT | AR83: HDDV | AS83: MC | AU83: MY | AV83: LDGV | AW83: LDGT | AX83: HDGV | AY83: LDDV | AZ83: LDDT | BA83: HDDV | BB83: MC | BD83: MY | BE83: LDGV | BF83: LDGT | BG83: HDGV | BH83: LDDV | BI83: LDDT | BJ83: HDDV | BK83: MC | BM83: MY | BN83: LDGV | BO83: LDGT | BP83: HDGV | BQ83: LDDV | BR83: LDDT | BS83: HDDV | BT83: MC
B84: 0 | C84: =IF(C$41=0,0,C48*C10/C$41) -> 0 | D84: =IF(D$41=0,0,D48*D10/D$41) -> 0 | E84: 0 | F84: 0 | G84: 0 | H84: 0 | I84: 0 | K84: 0 | L84: =IF(C$41=0,0,L48*C10/C$41) -> 0 | M84: =IF(D$41=0,0,M48*D10/D$41) -> 0 | N84: 0 | O84: 0 | P84: 0 | Q84: 0 | R84: 0 | T84: 0 | U84: =IF(C$41=0,0,U48*C10/C$41) -> 0 | V84: =IF(D$41=0,0,V48*D10/D$41) -> 0 | W84: 0 | X84: 0 | Y84: 0 | Z84: 0 | AA84: 0 | AC84: 0 | AD84: =IF(C$41=0,0,AD48*C10/C$41) -> 0 | AE84: =IF(D$41=0,0,AE48*D10/D$41) -> 0 | AF84: 0 | AG84: 0 | AH84: 0 | AI84: 0 | AJ84: 0 | AL84: 0 | AM84: =IF(C$41=0,0,AM48*C10/C$41) -> 0 | AN84: =IF(D$41=0,0,AN48*D10/D$41) -> 0 | AO84: 0 | AP84: 0 | AQ84: 0 | AR84: 0 | AS84: 0 | AU84: 0 | AV84: =IF(C$41=0,0,AV48*C10/C$41) -> 0 | AW84: =IF(D$41=0,0,AW48*D10/D$41) -> 0 | AX84: 0 | AY84: 0 | AZ84: 0 | BA84: 0 | BB84: 0 | BD84: 0 | BE84: =IF(C$41=0,0,BE48*C10/C$41) -> 0 | BF84: =IF(D$41=0,0,BF48*D10/D$41) -> 0 | BG84: 0 | BH84: 0 | BI84: 0 | BJ84: 0 | BK84: 0 | BM84: 0 | BN84: =IF(C$41=0,0,BN48*C10/C$41) -> 0 | BO84: =IF(D$41=0,0,BO48*D10/D$41) -> 0 | BP84: 0 | BQ84: 0 | BR84: 0 | BS84: 0 | BT84: 0
B85: 1 | C85: =IF(C$41=0,0,C49*C11/C$41) -> 0 | D85: 0 | E85: 0 | F85: 0 | G85: 0 | H85: 0 | I85: 0 | K85: 1 | L85: =IF(C$41=0,0,L49*C11/C$41) -> 0 | M85: =IF(D$41=0,0,M49*D11/D$41) -> 0 | N85: =IF(E$41=0,0,N49*E11/E$41) -> 0 | O85: =IF(F$41=0,0,O49*F11/F$41) -> 0 | P85: =IF(G$41=0,0,P49*G11/G$41) -> 0 | Q85: =IF(H$41=0,0,Q49*H11/H$41) -> 0 | R85: =IF(I$41=0,0,R49*I11/I$41) -> 0 | T85: 1 | U85: =IF(C$41=0,0,U49*C11/C$41) -> 0 | V85: =IF(D$41=0,0,V49*D11/D$41) -> 0 | W85: =IF(E$41=0,0,W49*E11/E$41) -> 0 | X85: =IF(F$41=0,0,X49*F11/F$41) -> 0 | Y85: =IF(G$41=0,0,Y49*G11/G$41) -> 0 | Z85: =IF(H$41=0,0,Z49*H11/H$41) -> 0 | AA85: =IF(I$41=0,0,AA49*I11/I$41) -> 0 | AC85: 1 | AD85: =IF(C$41=0,0,AD49*C11/C$41) -> 0 | AE85: =IF(D$41=0,0,AE49*D11/D$41) -> 0 | AF85: =IF(E$41=0,0,AF49*E11/E$41) -> 0 | AG85: =IF(F$41=0,0,AG49*F11/F$41) -> 0 | AH85: =IF(G$41=0,0,AH49*G11/G$41) -> 0 | AI85: =IF(H$41=0,0,AI49*H11/H$41) -> 0 | AJ85: =IF(I$41=0,0,AJ49*I11/I$41) -> 0 | AL85: 1 | AM85: =IF(C$41=0,0,AM49*C11/C$41) -> 0 | AN85: 0 | AO85: 0 | AP85: 0 | AQ85: 0 | AR85: 0 | AS85: 0 | AU85: 1 | AV85: =IF(C$41=0,0,AV49*C11/C$41) -> 0 | AW85: 0 | AX85: 0 | AY85: 0 | AZ85: 0 | BA85: 0 | BB85: 0 | BD85: 1 | BE85: =IF(C$41=0,0,BE49*C11/C$41) -> 0 | BF85: 0 | BG85: 0 | BH85: 0 | BI85: 0 | BJ85: 0 | BK85: 0 | BM85: 1 | BN85: =IF(C$41=0,0,BN49*C11/C$41) -> 0 | BO85: 0 | BP85: 0 | BQ85: 0 | BR85: 0 | BS85: 0 | BT85: 0
B86: 2 | C86: =IF(C$41=0,0,C50*C12/C$41) -> 0 | D86: 0 | E86: 0 | F86: 0 | G86: 0 | H86: 0 | I86: 0 | K86: 2 | L86: 0 | M86: 0 | N86: 0 | O86: 0 | P86: 0 | Q86: 0 | R86: 0 | T86: 2 | U86: 0 | V86: 0 | W86: 0 | X86: 0 | Y86: 0 | Z86: 0 | AA86: 0 | AC86: 2 | AD86: 0 | AE86: 0 | AF86: 0 | AG86: 0 | AH86: 0 | AI86: 0 | AJ86: 0 | AL86: 2 | AM86: 0 | AN86: 0 | AO86: 0 | AP86: 0 | AQ86: 0 | AR86: 0 | AS86: 0 | AU86: 2 | AV86: 0 | AW86: 0 | AX86: 0 | AY86: 0 | AZ86: 0 | BA86: 0 | BB86: 0 | BD86: 2 | BE86: 0 | BF86: 0 | BG86: 0 | BH86: 0 | BI86: 0 | BJ86: 0 | BK86: 0 | BM86: 2 | BN86: 0 | BO86: 0 | BP86: 0 | BQ86: 0 | BR86: 0 | BS86: 0 | BT86: 0
B87: 3 | C87: =IF(C$41=0,0,C51*C13/C$41) -> 0 | D87: 0 | E87: 0 | F87: 0 | G87: 0 | H87: 0 | I87: 0 | K87: 3 | L87: 0 | M87: 0 | N87: 0 | O87: 0 | P87: 0 | Q87: 0 | R87: 0 | T87: 3 | U87: 0 | V87: 0 | W87: 0 | X87: 0 | Y87: 0 | Z87: 0 | AA87: 0 | AC87: 3 | AD87: 0 | AE87: 0 | AF87: 0 | AG87: 0 | AH87: 0 | AI87: 0 | AJ87: 0 | AL87: 3 | AM87: 0 | AN87: 0 | AO87: 0 | AP87: 0 | AQ87: 0 | AR87: 0 | AS87: 0 | AU87: 3 | AV87: 0 | AW87: 0 | AX87: 0 | AY87: 0 | AZ87: 0 | BA87: 0 | BB87: 0 | BD87: 3 | BE87: 0 | BF87: 0 | BG87: 0 | BH87: 0 | BI87: 0 | BJ87: 0 | BK87: 0 | BM87: 3 | BN87: 0 | BO87: 0 | BP87: 0 | BQ87: 0 | BR87: 0 | BS87: 0 | BT87: 0
B88: 4 | C88: =IF(C$41=0,0,C52*C14/C$41) -> 0 | D88: 0 | E88: 0 | F88: 0 | G88: 0 | H88: 0 | I88: 0 | K88: 4 | L88: 0 | M88: 0 | N88: 0 | O88: 0 | P88: 0 | Q88: 0 | R88: 0 | T88: 4 | U88: 0 | V88: 0 | W88: 0 | X88: 0 | Y88: 0 | Z88: 0 | AA88: 0 | AC88: 4 | AD88: 0 | AE88: 0 | AF88: 0 | AG88: 0 | AH88: 0 | AI88: 0 | AJ88: 0 | AL88: 4 | AM88: 0 | AN88: 0 | AO88: 0 | AP88: 0 | AQ88: 0 | AR88: 0 | AS88: 0 | AU88: 4 | AV88: 0 | AW88: 0 | AX88: 0 | AY88: 0 | AZ88: 0 | BA88: 0 | BB88: 0 | BD88: 4 | BE88: 0 | BF88: 0 | BG88: 0 | BH88: 0 | BI88: 0 | BJ88: 0 | BK88: 0 | BM88: 4 | BN88: 0 | BO88: 0 | BP88: 0 | BQ88: 0 | BR88: 0 | BS88: 0 | BT88: 0
B89: 5 | C89: =IF(C$41=0,0,C53*C15/C$41) -> 0 | D89: 0 | E89: 0 | F89: 0 | G89: 0 | H89: 0 | I89: 0 | K89: 5 | L89: 0 | M89: 0 | N89: 0 | O89: 0 | P89: 0 | Q89: 0 | R89: 0 | T89: 5 | U89: 0 | V89: 0 | W89: 0 | X89: 0 | Y89: 0 | Z89: 0 | AA89: 0 | AC89: 5 | AD89: 0 | AE89: 0 | AF89: 0 | AG89: 0 | AH89: 0 | AI89: 0 | AJ89: 0 | AL89: 5 | AM89: 0 | AN89: 0 | AO89: 0 | AP89: 0 | AQ89: 0 | AR89: 0 | AS89: 0 | AU89: 5 | AV89: 0 | AW89: 0 | AX89: 0 | AY89: 0 | AZ89: 0 | BA89: 0 | BB89: 0 | BD89: 5 | BE89: 0 | BF89: 0 | BG89: 0 | BH89: 0 | BI89: 0 | BJ89: 0 | BK89: 0 | BM89: 5 | BN89: 0 | BO89: 0 | BP89: 0 | BQ89: 0 | BR89: 0 | BS89: 0 | BT89: 0
B90: 6 | C90: =IF(C$41=0,0,C54*C16/C$41) -> 0 | D90: 0 | E90: 0 | F90: 0 | G90: 0 | H90: 0 | I90: 0 | K90: 6 | L90: 0 | M90: 0 | N90: 0 | O90: 0 | P90: 0 | Q90: 0 | R90: 0 | T90: 6 | U90: 0 | V90: 0 | W90: 0 | X90: 0 | Y90: 0 | Z90: 0 | AA90: 0 | AC90: 6 | AD90: 0 | AE90: 0 | AF90: 0 | AG90: 0 | AH90: 0 | AI90: 0 | AJ90: 0 | AL90: 6 | AM90: 0 | AN90: 0 | AO90: 0 | AP90: 0 | AQ90: 0 | AR90: 0 | AS90: 0 | AU90: 6 | AV90: 0 | AW90: 0 | AX90: 0 | AY90: 0 | AZ90: 0 | BA90: 0 | BB90: 0 | BD90: 6 | BE90: 0 | BF90: 0 | BG90: 0 | BH90: 0 | BI90: 0 | BJ90: 0 | BK90: 0 | BM90: 6 | BN90: 0 | BO90: 0 | BP90: 0 | BQ90: 0 | BR90: 0 | BS90: 0 | BT90: 0
B91: 7 | C91: =IF(C$41=0,0,C55*C17/C$41) -> 0 | D91: 0 | E91: 0 | F91: 0 | G91: 0 | H91: 0 | I91: 0 | K91: 7 | L91: 0 | M91: 0 | N91: 0 | O91: 0 | P91: 0 | Q91: 0 | R91: 0 | T91: 7 | U91: 0 | V91: 0 | W91: 0 | X91: 0 | Y91: 0 | Z91: 0 | AA91: 0 | AC91: 7 | AD91: 0 | AE91: 0 | AF91: 0 | AG91: 0 | AH91: 0 | AI91: 0 | AJ91: 0 | AL91: 7 | AM91: 0 | AN91: 0 | AO91: 0 | AP91: 0 | AQ91: 0 | AR91: 0 | AS91: 0 | AU91: 7 | AV91: 0 | AW91: 0 | AX91: 0 | AY91: 0 | AZ91: 0 | BA91: 0 | BB91: 0 | BD91: 7 | BE91: 0 | BF91: 0 | BG91: 0 | BH91: 0 | BI91: 0 | BJ91: 0 | BK91: 0 | BM91: 7 | BN91: 0 | BO91: 0 | BP91: 0 | BQ91: 0 | BR91: 0 | BS91: 0 | BT91: 0
B92: 8 | C92: =IF(C$41=0,0,C56*C18/C$41) -> 0 | D92: 0 | E92: 0 | F92: 0 | G92: 0 | H92: 0 | I92: 0 | K92: 8 | L92: 0 | M92: 0 | N92: 0 | O92: 0 | P92: 0 | Q92: 0 | R92: 0 | T92: 8 | U92: 0 | V92: 0 | W92: 0 | X92: 0 | Y92: 0 | Z92: 0 | AA92: 0 | AC92: 8 | AD92: 0 | AE92: 0 | AF92: 0 | AG92: 0 | AH92: 0 | AI92: 0 | AJ92: 0 | AL92: 8 | AM92: 0 | AN92: 0 | AO92: 0 | AP92: 0 | AQ92: 0 | AR92: 0 | AS92: 0 | AU92: 8 | AV92: 0 | AW92: 0 | AX92: 0 | AY92: 0 | AZ92: 0 | BA92: 0 | BB92: 0 | BD92: 8 | BE92: 0 | BF92: 0 | BG92: 0 | BH92: 0 | BI92: 0 | BJ92: 0 | BK92: 0 | BM92: 8 | BN92: 0 | BO92: 0 | BP92: 0 | BQ92: 0 | BR92: 0 | BS92: 0 | BT92: 0
B93: 9 | C93: =IF(C$41=0,0,C57*C19/C$41) -> 0 | D93: 0 | E93: 0 | F93: 0 | G93: 0 | H93: 0 | I93: 0 | K93: 9 | L93: 0 | M93: 0 | N93: 0 | O93: 0 | P93: 0 | Q93: 0 | R93: 0 | T93: 9 | U93: 0 | V93: 0 | W93: 0 | X93: 0 | Y93: 0 | Z93: 0 | AA93: 0 | AC93: 9 | AD93: 0 | AE93: 0 | AF93: 0 | AG93: 0 | AH93: 0 | AI93: 0 | AJ93: 0 | AL93: 9 | AM93: 0 | AN93: 0 | AO93: 0 | AP93: 0 | AQ93: 0 | AR93: 0 | AS93: 0 | AU93: 9 | AV93: 0 | AW93: 0 | AX93: 0 | AY93: 0 | AZ93: 0 | BA93: 0 | BB93: 0 | BD93: 9 | BE93: 0 | BF93: 0 | BG93: 0 | BH93: 0 | BI93: 0 | BJ93: 0 | BK93: 0 | BM93: 9 | BN93: 0 | BO93: 0 | BP93: 0 | BQ93: 0 | BR93: 0 | BS93: 0 | BT93: 0
B94: 10 | C94: =IF(C$41=0,0,C58*C20/C$41) -> 0 | D94: 0 | E94: 0 | F94: 0 | G94: 0 | H94: 0 | I94: 0 | K94: 10 | L94: 0 | M94: 0 | N94: 0 | O94: 0 | P94: 0 | Q94: 0 | R94: 0 | T94: 10 | U94: 0 | V94: 0 | W94: 0 | X94: 0 | Y94: 0 | Z94: 0 | AA94: 0 | AC94: 10 | AD94: 0 | AE94: 0 | AF94: 0 | AG94: 0 | AH94: 0 | AI94: 0 | AJ94: 0 | AL94: 10 | AM94: 0 | AN94: 0 | AO94: 0 | AP94: 0 | AQ94: 0 | AR94: 0 | AS94: 0 | AU94: 10 | AV94: 0 | AW94: 0 | AX94: 0 | AY94: 0 | AZ94: 0 | BA94: 0 | BB94: 0 | BD94: 10 | BE94: 0 | BF94: 0 | BG94: 0 | BH94: 0 | BI94: 0 | BJ94: 0 | BK94: 0 | BM94: 10 | BN94: 0 | BO94: 0 | BP94: 0 | BQ94: 0 | BR94: 0 | BS94: 0 | BT94: 0
B95: 11 | C95: =IF(C$41=0,0,C59*C21/C$41) -> 0 | D95: 0 | E95: 0 | F95: 0 | G95: 0 | H95: 0 | I95: 0 | K95: 11 | L95: 0 | M95: 0 | N95: 0 | O95: 0 | P95: 0 | Q95: 0 | R95: 0 | T95: 11 | U95: 0 | V95: 0 | W95: 0 | X95: 0 | Y95: 0 | Z95: 0 | AA95: 0 | AC95: 11 | AD95: 0 | AE95: 0 | AF95: 0 | AG95: 0 | AH95: 0 | AI95: 0 | AJ95: 0 | AL95: 11 | AM95: 0 | AN95: 0 | AO95: 0 | AP95: 0 | AQ95: 0 | AR95: 0 | AS95: 0 | AU95: 11 | AV95: 0 | AW95: 0 | AX95: 0 | AY95: 0 | AZ95: 0 | BA95: 0 | BB95: 0 | BD95: 11 | BE95: 0 | BF95: 0 | BG95: 0 | BH95: 0 | BI95: 0 | BJ95: 0 | BK95: 0 | BM95: 11 | BN95: 0 | BO95: 0 | BP95: 0 | BQ95: 0 | BR95: 0 | BS95: 0 | BT95: 0
B96: 12 | C96: =IF(C$41=0,0,C60*C22/C$41) -> 0 | D96: 0 | E96: 0 | F96: 0 | G96: 0 | H96: 0 | I96: 0 | K96: 12 | L96: 0 | M96: 0 | N96: 0 | O96: 0 | P96: 0 | Q96: 0 | R96: 0 | T96: 12 | U96: 0 | V96: 0 | W96: 0 | X96: 0 | Y96: 0 | Z96: 0 | AA96: 0 | AC96: 12 | AD96: 0 | AE96: 0 | AF96: 0 | AG96: 0 | AH96: 0 | AI96: 0 | AJ96: 0 | AL96: 12 | AM96: 0 | AN96: 0 | AO96: 0 | AP96: 0 | AQ96: 0 | AR96: 0 | AS96: 0 | AU96: 12 | AV96: 0 | AW96: 0 | AX96: 0 | AY96: 0 | AZ96: 0 | BA96: 0 | BB96: 0 | BD96: 12 | BE96: 0 | BF96: 0 | BG96: 0 | BH96: 0 | BI96: 0 | BJ96: 0 | BK96: 0 | BM96: 12 | BN96: 0 | BO96: 0 | BP96: 0 | BQ96: 0 | BR96: 0 | BS96: 0 | BT96: 0
B97: 13 | C97: =IF(C$41=0,0,C61*C23/C$41) -> 0 | D97: 0 | E97: 0 | F97: 0 | G97: 0 | H97: 0 | I97: 0 | K97: 13 | L97: 0 | M97: 0 | N97: 0 | O97: 0 | P97: 0 | Q97: 0 | R97: 0 | T97: 13 | U97: 0 | V97: 0 | W97: 0 | X97: 0 | Y97: 0 | Z97: 0 | AA97: 0 | AC97: 13 | AD97: 0 | AE97: 0 | AF97: 0 | AG97: 0 | AH97: 0 | AI97: 0 | AJ97: 0 | AL97: 13 | AM97: 0 | AN97: 0 | AO97: 0 | AP97: 0 | AQ97: 0 | AR97: 0 | AS97: 0 | AU97: 13 | AV97: 0 | AW97: 0 | AX97: 0 | AY97: 0 | AZ97: 0 | BA97: 0 | BB97: 0 | BD97: 13 | BE97: 0 | BF97: 0 | BG97: 0 | BH97: 0 | BI97: 0 | BJ97: 0 | BK97: 0 | BM97: 13 | BN97: 0 | BO97: 0 | BP97: 0 | BQ97: 0 | BR97: 0 | BS97: 0 | BT97: 0
B98: 14 | C98: =IF(C$41=0,0,C62*C24/C$41) -> 0 | D98: 0 | E98: 0 | F98: 0 | G98: 0 | H98: 0 | I98: 0 | K98: 14 | L98: 0 | M98: 0 | N98: 0 | O98: 0 | P98: 0 | Q98: 0 | R98: 0 | T98: 14 | U98: 0 | V98: 0 | W98: 0 | X98: 0 | Y98: 0 | Z98: 0 | AA98: 0 | AC98: 14 | AD98: 0 | AE98: 0 | AF98: 0 | AG98: 0 | AH98: 0 | AI98: 0 | AJ98: 0 | AL98: 14 | AM98: 0 | AN98: 0 | AO98: 0 | AP98: 0 | AQ98: 0 | AR98: 0 | AS98: 0 | AU98: 14 | AV98: 0 | AW98: 0 | AX98: 0 | AY98: 0 | AZ98: 0 | BA98: 0 | BB98: 0 | BD98: 14 | BE98: 0 | BF98: 0 | BG98: 0 | BH98: 0 | BI98: 0 | BJ98: 0 | BK98: 0 | BM98: 14 | BN98: 0 | BO98: 0 | BP98: 0 | BQ98: 0 | BR98: 0 | BS98: 0 | BT98: 0
B99: 15 | C99: =IF(C$41=0,0,C63*C25/C$41) -> 0 | D99: 0 | E99: 0 | F99: 0 | G99: 0 | H99: 0 | I99: 0 | K99: 15 | L99: 0 | M99: 0 | N99: 0 | O99: 0 | P99: 0 | Q99: 0 | R99: 0 | T99: 15 | U99: 0 | V99: 0 | W99: 0 | X99: 0 | Y99: 0 | Z99: 0 | AA99: 0 | AC99: 15 | AD99: 0 | AE99: 0 | AF99: 0 | AG99: 0 | AH99: 0 | AI99: 0 | AJ99: 0 | AL99: 15 | AM99: 0 | AN99: 0 | AO99: 0 | AP99: 0 | AQ99: 0 | AR99: 0 | AS99: 0 | AU99: 15 | AV99: 0 | AW99: 0 | AX99: 0 | AY99: 0 | AZ99: 0 | BA99: 0 | BB99: 0 | BD99: 15 | BE99: 0 | BF99: 0 | BG99: 0 | BH99: 0 | BI99: 0 | BJ99: 0 | BK99: 0 | BM99: 15 | BN99: 0 | BO99: 0 | BP99: 0 | BQ99: 0 | BR99: 0 | BS99: 0 | BT99: 0
B100: 16 | C100: =IF(C$41=0,0,C64*C26/C$41) -> 0 | D100: 0 | E100: 0 | F100: 0 | G100: 0 | H100: 0 | I100: 0 | K100: 16 | L100: 0 | M100: 0 | N100: 0 | O100: 0 | P100: 0 | Q100: 0 | R100: 0 | T100: 16 | U100: 0 | V100: 0 | W100: 0 | X100: 0 | Y100: 0 | Z100: 0 | AA100: 0 | AC100: 16 | AD100: 0 | AE100: 0 | AF100: 0 | AG100: 0 | AH100: 0 | AI100: 0 | AJ100: 0 | AL100: 16 | AM100: 0 | AN100: =IF(D$41=0,0,AN64*D26/D$41) -> 0 | AO100: =IF(E$41=0,0,AO64*E26/E$41) -> 0 | AP100: =IF(F$41=0,0,AP64*F26/F$41) -> 0 | AQ100: =IF(G$41=0,0,AQ64*G26/G$41) -> 0 | AR100: =IF(H$41=0,0,AR64*H26/H$41) -> 0 | AS100: =IF(I$41=0,0,AS64*I26/I$41) -> 0 | AU100: 16 | AV100: 0 | AW100: =IF(D$41=0,0,AW64*D26/D$41) -> 0 | AX100: =IF(E$41=0,0,AX64*E26/E$41) -> 0 | AY100: =IF(F$41=0,0,AY64*F26/F$41) -> 0 | AZ100: =IF(G$41=0,0,AZ64*G26/G$41) -> 0 | BA100: =IF(H$41=0,0,BA64*H26/H$41) -> 0 | BB100: =IF(I$41=0,0,BB64*I26/I$41) -> 0 | BD100: 16 | BE100: 0 | BF100: =IF(D$41=0,0,BF64*D26/D$41) -> 0 | BG100: =IF(E$41=0,0,BG64*E26/E$41) -> 0 | BH100: =IF(F$41=0,0,BH64*F26/F$41) -> 0 | BI100: =IF(G$41=0,0,BI64*G26/G$41) -> 0 | BJ100: =IF(H$41=0,0,BJ64*H26/H$41) -> 0 | BK100: =IF(I$41=0,0,BK64*I26/I$41) -> 0 | BM100: 16 | BN100: 0 | BO100: =IF(D$41=0,0,BO64*D26/D$41) -> 0 | BP100: =IF(E$41=0,0,BP64*E26/E$41) -> 0 | BQ100: =IF(F$41=0,0,BQ64*F26/F$41) -> 0 | BR100: =IF(G$41=0,0,BR64*G26/G$41) -> 0 | BS100: =IF(H$41=0,0,BS64*H26/H$41) -> 0 | BT100: =IF(I$41=0,0,BT64*I26/I$41) -> 0
B101: 17 | C101: =IF(C$41=0,0,C65*C27/C$41) -> 0 | D101: 0 | E101: 0 | F101: 0 | G101: 0 | H101: 0 | I101: 0 | K101: 17 | L101: 0 | M101: 0 | N101: 0 | O101: 0 | P101: 0 | Q101: 0 | R101: 0 | T101: 17 | U101: 0 | V101: 0 | W101: 0 | X101: 0 | Y101: 0 | Z101: 0 | AA101: 0 | AC101: 17 | AD101: 0 | AE101: 0 | AF101: 0 | AG101: 0 | AH101: 0 | AI101: 0 | AJ101: 0 | AL101: 17 | AM101: 0 | AN101: 0 | AO101: 0 | AP101: 0 | AQ101: 0 | AR101: 0 | AS101: 0 | AU101: 17 | AV101: 0 | AW101: 0 | AX101: 0 | AY101: 0 | AZ101: 0 | BA101: 0 | BB101: 0 | BD101: 17 | BE101: 0 | BF101: 0 | BG101: 0 | BH101: 0 | BI101: 0 | BJ101: 0 | BK101: 0 | BM101: 17 | BN101: 0 | BO101: 0 | BP101: 0 | BQ101: 0 | BR101: 0 | BS101: 0 | BT101: 0
B102: 18 | C102: =IF(C$41=0,0,C66*C28/C$41) -> 0 | D102: 0 | E102: 0 | F102: 0 | G102: 0 | H102: 0 | I102: 0 | K102: 18 | L102: 0 | M102: 0 | N102: 0 | O102: 0 | P102: 0 | Q102: 0 | R102: 0 | T102: 18 | U102: 0 | V102: 0 | W102: 0 | X102: 0 | Y102: 0 | Z102: 0 | AA102: 0 | AC102: 18 | AD102: 0 | AE102: 0 | AF102: 0 | AG102: 0 | AH102: 0 | AI102: 0 | AJ102: 0 | AL102: 18 | AM102: 0 | AN102: 0 | AO102: 0 | AP102: 0 | AQ102: 0 | AR102: 0 | AS102: 0 | AU102: 18 | AV102: 0 | AW102: 0 | AX102: 0 | AY102: 0 | AZ102: 0 | BA102: 0 | BB102: 0 | BD102: 18 | BE102: 0 | BF102: 0 | BG102: 0 | BH102: 0 | BI102: 0 | BJ102: 0 | BK102: 0 | BM102: 18 | BN102: 0 | BO102: 0 | BP102: 0 | BQ102: 0 | BR102: 0 | BS102: 0 | BT102: 0
B103: 19 | C103: =IF(C$41=0,0,C67*C29/C$41) -> 0 | D103: 0 | E103: 0 | F103: 0 | G103: 0 | H103: 0 | I103: 0 | K103: 19 | L103: 0 | M103: 0 | N103: 0 | O103: 0 | P103: 0 | Q103: 0 | R103: 0 | T103: 19 | U103: 0 | V103: 0 | W103: 0 | X103: 0 | Y103: 0 | Z103: 0 | AA103: 0 | AC103: 19 | AD103: 0 | AE103: 0 | AF103: 0 | AG103: 0 | AH103: 0 | AI103: 0 | AJ103: 0 | AL103: 19 | AM103: 0 | AN103: 0 | AO103: 0 | AP103: 0 | AQ103: 0 | AR103: 0 | AS103: 0 | AU103: 19 | AV103: 0 | AW103: 0 | AX103: 0 | AY103: 0 | AZ103: 0 | BA103: 0 | BB103: 0 | BD103: 19 | BE103: 0 | BF103: 0 | BG103: 0 | BH103: 0 | BI103: 0 | BJ103: 0 | BK103: 0 | BM103: 19 | BN103: 0 | BO103: 0 | BP103: 0 | BQ103: 0 | BR103: 0 | BS103: 0 | BT103: 0
B104: 20 | C104: =IF(C$41=0,0,C68*C30/C$41) -> 0 | D104: 0 | E104: 0 | F104: 0 | G104: 0 | H104: 0 | I104: 0 | K104: 20 | L104: 0 | M104: 0 | N104: 0 | O104: 0 | P104: 0 | Q104: 0 | R104: 0 | T104: 20 | U104: 0 | V104: 0 | W104: 0 | X104: 0 | Y104: 0 | Z104: 0 | AA104: 0 | AC104: 20 | AD104: 0 | AE104: 0 | AF104: 0 | AG104: 0 | AH104: 0 | AI104: 0 | AJ104: 0 | AL104: 20 | AM104: 0 | AN104: 0 | AO104: 0 | AP104: 0 | AQ104: 0 | AR104: 0 | AS104: 0 | AU104: 20 | AV104: 0 | AW104: 0 | AX104: 0 | AY104: 0 | AZ104: 0 | BA104: 0 | BB104: 0 | BD104: 20 | BE104: 0 | BF104: 0 | BG104: 0 | BH104: 0 | BI104: 0 | BJ104: 0 | BK104: 0 | BM104: 20 | BN104: 0 | BO104: 0 | BP104: 0 | BQ104: 0 | BR104: 0 | BS104: 0 | BT104: 0
B105: 21 | C105: =IF(C$41=0,0,C69*C31/C$41) -> 0 | D105: 0 | E105: 0 | F105: 0 | G105: 0 | H105: 0 | I105: 0 | K105: 21 | L105: 0 | M105: 0 | N105: 0 | O105: 0 | P105: 0 | Q105: 0 | R105: 0 | T105: 21 | U105: 0 | V105: 0 | W105: 0 | X105: 0 | Y105: 0 | Z105: 0 | AA105: 0 | AC105: 21 | AD105: 0 | AE105: 0 | AF105: 0 | AG105: 0 | AH105: 0 | AI105: 0 | AJ105: 0 | AL105: 21 | AM105: 0 | AN105: 0 | AO105: 0 | AP105: 0 | AQ105: 0 | AR105: 0 | AS105: 0 | AU105: 21 | AV105: 0 | AW105: 0 | AX105: 0 | AY105: 0 | AZ105: 0 | BA105: 0 | BB105: 0 | BD105: 21 | BE105: 0 | BF105: 0 | BG105: 0 | BH105: 0 | BI105: 0 | BJ105: 0 | BK105: 0 | BM105: 21 | BN105: 0 | BO105: 0 | BP105: 0 | BQ105: 0 | BR105: 0 | BS105: 0 | BT105: 0
B106: 22 | C106: =IF(C$41=0,0,C70*C32/C$41) -> 0 | D106: 0 | E106: 0 | F106: 0 | G106: 0 | H106: 0 | I106: 0 | K106: 22 | L106: 0 | M106: 0 | N106: 0 | O106: 0 | P106: 0 | Q106: 0 | R106: 0 | T106: 22 | U106: 0 | V106: 0 | W106: 0 | X106: 0 | Y106: 0 | Z106: 0 | AA106: 0 | AC106: 22 | AD106: 0 | AE106: 0 | AF106: 0 | AG106: 0 | AH106: 0 | AI106: 0 | AJ106: 0 | AL106: 22 | AM106: 0 | AN106: 0 | AO106: 0 | AP106: 0 | AQ106: 0 | AR106: 0 | AS106: 0 | AU106: 22 | AV106: 0 | AW106: 0 | AX106: 0 | AY106: 0 | AZ106: 0 | BA106: 0 | BB106: 0 | BD106: 22 | BE106: 0 | BF106: 0 | BG106: 0 | BH106: 0 | BI106: 0 | BJ106: 0 | BK106: 0 | BM106: 22 | BN106: 0 | BO106: 0 | BP106: 0 | BQ106: 0 | BR106: 0 | BS106: 0 | BT106: 0
B107: 23 | C107: =IF(C$41=0,0,C71*C33/C$41) -> 0 | D107: 0 | E107: 0 | F107: 0 | G107: 0 | H107: 0 | I107: 0 | K107: 23 | L107: 0 | M107: 0 | N107: 0 | O107: 0 | P107: 0 | Q107: 0 | R107: 0 | T107: 23 | U107: 0 | V107: 0 | W107: 0 | X107: 0 | Y107: 0 | Z107: 0 | AA107: 0 | AC107: 23 | AD107: 0 | AE107: 0 | AF107: 0 | AG107: 0 | AH107: 0 | AI107: 0 | AJ107: 0 | AL107: 23 | AM107: 0 | AN107: 0 | AO107: 0 | AP107: 0 | AQ107: 0 | AR107: 0 | AS107: 0 | AU107: 23 | AV107: 0 | AW107: 0 | AX107: 0 | AY107: 0 | AZ107: 0 | BA107: 0 | BB107: 0 | BD107: 23 | BE107: 0 | BF107: 0 | BG107: 0 | BH107: 0 | BI107: 0 | BJ107: 0 | BK107: 0 | BM107: 23 | BN107: 0 | BO107: 0 | BP107: 0 | BQ107: 0 | BR107: 0 | BS107: 0 | BT107: 0
B108: 24 | C108: =IF(C$41=0,0,C72*C34/C$41) -> 0 | D108: 0 | E108: 0 | F108: 0 | G108: 0 | H108: 0 | I108: 0 | K108: 24 | L108: 0 | M108: 0 | N108: 0 | O108: 0 | P108: 0 | Q108: 0 | R108: 0 | T108: 24 | U108: 0 | V108: 0 | W108: 0 | X108: 0 | Y108: 0 | Z108: 0 | AA108: 0 | AC108: 24 | AD108: 0 | AE108: 0 | AF108: 0 | AG108: 0 | AH108: 0 | AI108: 0 | AJ108: 0 | AL108: 24 | AM108: 0 | AN108: 0 | AO108: 0 | AP108: 0 | AQ108: 0 | AR108: 0 | AS108: 0 | AU108: 24 | AV108: 0 | AW108: 0 | AX108: 0 | AY108: 0 | AZ108: 0 | BA108: 0 | BB108: 0 | BD108: 24 | BE108: 0 | BF108: 0 | BG108: 0 | BH108: 0 | BI108: 0 | BJ108: 0 | BK108: 0 | BM108: 24 | BN108: 0 | BO108: 0 | BP108: 0 | BQ108: 0 | BR108: 0 | BS108: 0 | BT108: 0
B109: 25 | C109: =IF(C$41=0,0,C73*C35/C$41) -> 0 | D109: 0 | E109: 0 | F109: 0 | G109: 0 | H109: 0 | I109: 0 | K109: 25 | L109: 0 | M109: 0 | N109: 0 | O109: 0 | P109: 0 | Q109: 0 | R109: 0 | T109: 25 | U109: 0 | V109: 0 | W109: 0 | X109: 0 | Y109: 0 | Z109: 0 | AA109: 0 | AC109: 25 | AD109: 0 | AE109: 0 | AF109: 0 | AG109: 0 | AH109: 0 | AI109: 0 | AJ109: 0 | AL109: 25 | AM109: 0 | AN109: 0 | AO109: 0 | AP109: 0 | AQ109: 0 | AR109: 0 | AS109: 0 | AU109: 25 | AV109: 0 | AW109: 0 | AX109: 0 | AY109: 0 | AZ109: 0 | BA109: 0 | BB109: 0 | BD109: 25 | BE109: 0 | BF109: 0 | BG109: 0 | BH109: 0 | BI109: 0 | BJ109: 0 | BK109: 0 | BM109: 25 | BN109: 0 | BO109: 0 | BP109: 0 | BQ109: 0 | BR109: 0 | BS109: 0 | BT109: 0
B110: 26 | C110: =IF(C$41=0,0,C74*C36/C$41) -> 0 | D110: 0 | E110: 0 | F110: 0 | G110: 0 | H110: 0 | I110: 0 | K110: 26 | L110: 0 | M110: 0 | N110: 0 | O110: 0 | P110: 0 | Q110: 0 | R110: 0 | T110: 26 | U110: 0 | V110: 0 | W110: 0 | X110: 0 | Y110: 0 | Z110: 0 | AA110: 0 | AC110: 26 | AD110: 0 | AE110: 0 | AF110: 0 | AG110: 0 | AH110: 0 | AI110: 0 | AJ110: 0 | AL110: 26 | AM110: 0 | AN110: 0 | AO110: 0 | AP110: 0 | AQ110: 0 | AR110: 0 | AS110: 0 | AU110: 26 | AV110: 0 | AW110: 0 | AX110: 0 | AY110: 0 | AZ110: 0 | BA110: 0 | BB110: 0 | BD110: 26 | BE110: 0 | BF110: 0 | BG110: 0 | BH110: 0 | BI110: 0 | BJ110: 0 | BK110: 0 | BM110: 26 | BN110: 0 | BO110: 0 | BP110: 0 | BQ110: 0 | BR110: 0 | BS110: 0 | BT110: 0
B111: 27 | C111: =IF(C$41=0,0,C75*C37/C$41) -> 0 | D111: 0 | E111: 0 | F111: 0 | G111: 0 | H111: 0 | I111: 0 | K111: 27 | L111: 0 | M111: 0 | N111: 0 | O111: 0 | P111: 0 | Q111: 0 | R111: 0 | T111: 27 | U111: 0 | V111: 0 | W111: 0 | X111: 0 | Y111: 0 | Z111: 0 | AA111: 0 | AC111: 27 | AD111: 0 | AE111: 0 | AF111: 0 | AG111: 0 | AH111: 0 | AI111: 0 | AJ111: 0 | AL111: 27 | AM111: 0 | AN111: 0 | AO111: 0 | AP111: 0 | AQ111: 0 | AR111: 0 | AS111: 0 | AU111: 27 | AV111: 0 | AW111: 0 | AX111: 0 | AY111: 0 | AZ111: 0 | BA111: 0 | BB111: 0 | BD111: 27 | BE111: 0 | BF111: 0 | BG111: 0 | BH111: 0 | BI111: 0 | BJ111: 0 | BK111: 0 | BM111: 27 | BN111: 0 | BO111: 0 | BP111: 0 | BQ111: 0 | BR111: 0 | BS111: 0 | BT111: 0
B112: 28 | C112: =IF(C$41=0,0,C76*C38/C$41) -> 0 | D112: 0 | E112: 0 | F112: 0 | G112: 0 | H112: 0 | I112: 0 | K112: 28 | L112: 0 | M112: 0 | N112: 0 | O112: 0 | P112: 0 | Q112: 0 | R112: 0 | T112: 28 | U112: 0 | V112: 0 | W112: 0 | X112: 0 | Y112: 0 | Z112: 0 | AA112: 0 | AC112: 28 | AD112: 0 | AE112: 0 | AF112: 0 | AG112: 0 | AH112: 0 | AI112: 0 | AJ112: 0 | AL112: 28 | AM112: 0 | AN112: 0 | AO112: 0 | AP112: 0 | AQ112: 0 | AR112: 0 | AS112: 0 | AU112: 28 | AV112: 0 | AW112: 0 | AX112: 0 | AY112: 0 | AZ112: 0 | BA112: 0 | BB112: 0 | BD112: 28 | BE112: 0 | BF112: 0 | BG112: 0 | BH112: 0 | BI112: 0 | BJ112: 0 | BK112: 0 | BM112: 28 | BN112: 0 | BO112: 0 | BP112: 0 | BQ112: 0 | BR112: 0 | BS112: 0 | BT112: 0
B113: 29 | C113: =IF(C$41=0,0,C77*C39/C$41) -> 0 | D113: 0 | E113: 0 | F113: 0 | G113: 0 | H113: 0 | I113: 0 | K113: 29 | L113: 0 | M113: 0 | N113: 0 | O113: 0 | P113: 0 | Q113: 0 | R113: 0 | T113: 29 | U113: 0 | V113: 0 | W113: 0 | X113: 0 | Y113: 0 | Z113: 0 | AA113: 0 | AC113: 29 | AD113: 0 | AE113: 0 | AF113: 0 | AG113: 0 | AH113: 0 | AI113: 0 | AJ113: 0 | AL113: 29 | AM113: 0 | AN113: 0 | AO113: 0 | AP113: 0 | AQ113: 0 | AR113: 0 | AS113: 0 | AU113: 29 | AV113: 0 | AW113: 0 | AX113: 0 | AY113: 0 | AZ113: 0 | BA113: 0 | BB113: 0 | BD113: 29 | BE113: 0 | BF113: 0 | BG113: 0 | BH113: 0 | BI113: 0 | BJ113: 0 | BK113: 0 | BM113: 29 | BN113: 0 | BO113: 0 | BP113: 0 | BQ113: 0 | BR113: 0 | BS113: 0 | BT113: 0
B114: 30 | C114: =IF(C$41=0,0,C78*C40/C$41) -> 0 | D114: 0 | E114: 0 | F114: 0 | G114: 0 | H114: 0 | I114: 0 | K114: 30 | L114: 0 | M114: 0 | N114: 0 | O114: 0 | P114: 0 | Q114: 0 | R114: 0 | T114: 30 | U114: 0 | V114: 0 | W114: 0 | X114: 0 | Y114: 0 | Z114: 0 | AA114: 0 | AC114: 30 | AD114: 0 | AE114: 0 | AF114: 0 | AG114: 0 | AH114: 0 | AI114: 0 | AJ114: 0 | AL114: 30 | AM114: 0 | AN114: 0 | AO114: 0 | AP114: 0 | AQ114: 0 | AR114: 0 | AS114: 0 | AU114: 30 | AV114: 0 | AW114: 0 | AX114: 0 | AY114: 0 | AZ114: 0 | BA114: 0 | BB114: 0 | BD114: 30 | BE114: 0 | BF114: 0 | BG114: 0 | BH114: 0 | BI114: 0 | BJ114: 0 | BK114: 0 | BM114: 30 | BN114: 0 | BO114: 0 | BP114: 0 | BQ114: 0 | BR114: 0 | BS114: 0 | BT114: 0
C115: =SUM(C84:C114) -> 0 | D115: 0 | E115: 0 | F115: 0 | G115: 0 | H115: 0 | I115: 0 | L115: =SUM(L84:L114) -> 0 | M115: 0 | N115: 0 | O115: 0 | P115: 0 | Q115: 0 | R115: 0 | U115: =SUM(U84:U114) -> 0 | V115: 0 | W115: 0 | X115: 0 | Y115: 0 | Z115: 0 | AA115: 0 | AD115: =SUM(AD84:AD114) -> 0 | AE115: 0 | AF115: 0 | AG115: 0 | AH115: 0 | AI115: 0 | AJ115: 0 | AM115: =SUM(AM84:AM114) -> 0 | AN115: 0 | AO115: 0 | AP115: 0 | AQ115: 0 | AR115: 0 | AS115: 0 | AV115: =SUM(AV84:AV114) -> 0 | AW115: 0 | AX115: 0 | AY115: 0 | AZ115: 0 | BA115: 0 | BB115: 0 | BE115: =SUM(BE84:BE114) -> 0 | BF115: 0 | BG115: 0 | BH115: 0 | BI115: 0 | BJ115: 0 | BK115: 0 | BN115: =SUM(BN84:BN114) -> 0 | BO115: 0 | BP115: 0 | BQ115: 0 | BR115: 0 | BS115: 0 | BT115: 0
B117: Table IVa: Percentage of VMT Allocated to Model Year, 1998 and earlier | K117: Table IVb: Percentage of VMT Allocated to Model Year, 1999 | T117: Table IVc: Percentage of VMT Allocated to Model Year, 2000 | AC117: Table IVd: Percentage of VMT Allocated to Model Year, 2001 | AL117: Table IVe: Percentage of VMT Allocated to Model Year, 2002 | AU117: Table IVf: Percentage of VMT Allocated to Model Year, 2003 | BD117: Table IVg: Percentage of VMT Allocated to Model Year, 2004 | BM117: Table IVh: Percentage of VMT Allocated to Model Year, 2005
B118: Calculated based on above inputs, this data is used to distribute VMT. | K118: Calculated based on above inputs, this data is used to distribute VMT. | T118: Calculated based on above inputs, this data is used to distribute VMT. | AC118: Calculated based on above inputs, this data is used to distribute VMT. | AL118: Calculated based on above inputs, this data is used to distribute VMT. | AU118: Calculated based on above inputs, this data is used to distribute VMT. | BD118: Calculated based on above inputs, this data is used to distribute VMT. | BM118: Calculated based on above inputs, this data is used to distribute VMT.
B119: MY | C119: LDGV | D119: LDGT | E119: HDGV | F119: LDDV | G119: LDDT | H119: HDDV | I119: MC | K119: MY | L119: LDGV | M119: LDGT | N119: HDGV | O119: LDDV | P119: LDDT | Q119: HDDV | R119: MC | T119: MY | U119: LDGV | V119: LDGT | W119: HDGV | X119: LDDV | Y119: LDDT | Z119: HDDV | AA119: MC | AC119: MY | AD119: LDGV | AE119: LDGT | AF119: HDGV | AG119: LDDV | AH119: LDDT | AI119: HDDV | AJ119: MC | AL119: MY | AM119: LDGV | AN119: LDGT | AO119: HDGV | AP119: LDDV | AQ119: LDDT | AR119: HDDV | AS119: MC | AU119: MY | AV119: LDGV | AW119: LDGT | AX119: HDGV | AY119: LDDV | AZ119: LDDT | BA119: HDDV | BB119: MC | BD119: MY | BE119: LDGV | BF119: LDGT | BG119: HDGV | BH119: LDDV | BI119: LDDT | BJ119: HDDV | BK119: MC | BM119: MY | BN119: LDGV | BO119: LDGT | BP119: HDGV | BQ119: LDDV | BR119: LDDT | BS119: HDDV | BT119: MC
B120: 0 | C120: =IF(C$115=0,0,C84/C$115) -> 0 | D120: =IF(D$115=0,0,D84/D$115) -> 0 | E120: 0 | F120: 0 | G120: 0 | H120: 0 | I120: 0 | K120: 0 | L120: =IF(L$115=0,0,L84/L$115) -> 0 | M120: =IF(M$115=0,0,M84/M$115) -> 0 | N120: 0 | O120: 0 | P120: 0 | Q120: 0 | R120: 0 | T120: 0 | U120: =IF(U$115=0,0,U84/U$115) -> 0 | V120: =IF(V$115=0,0,V84/V$115) -> 0 | W120: 0 | X120: 0 | Y120: 0 | Z120: 0 | AA120: 0 | AC120: 0 | AD120: =IF(AD$115=0,0,AD84/AD$115) -> 0 | AE120: =IF(AE$115=0,0,AE84/AE$115) -> 0 | AF120: 0 | AG120: 0 | AH120: 0 | AI120: 0 | AJ120: 0 | AL120: 0 | AM120: =IF(AM$115=0,0,AM84/AM$115) -> 0 | AN120: =IF(AN$115=0,0,AN84/AN$115) -> 0 | AO120: 0 | AP120: 0 | AQ120: 0 | AR120: 0 | AS120: 0 | AU120: 0 | AV120: =IF(AV$115=0,0,AV84/AV$115) -> 0 | AW120: =IF(AW$115=0,0,AW84/AW$115) -> 0 | AX120: 0 | AY120: 0 | AZ120: 0 | BA120: 0 | BB120: 0 | BD120: 0 | BE120: =IF(BE$115=0,0,BE84/BE$115) -> 0 | BF120: =IF(BF$115=0,0,BF84/BF$115) -> 0 | BG120: 0 | BH120: 0 | BI120: 0 | BJ120: 0 | BK120: 0 | BM120: 0 | BN120: =IF(BN$115=0,0,BN84/BN$115) -> 0 | BO120: =IF(BO$115=0,0,BO84/BO$115) -> 0 | BP120: 0 | BQ120: 0 | BR120: 0 | BS120: 0 | BT120: 0
B121: 1 | C121: =IF(C$115=0,0,C85/C$115) -> 0 | D121: 0 | E121: 0 | F121: 0 | G121: 0 | H121: 0 | I121: 0 | K121: 1 | L121: =IF(L$115=0,0,L85/L$115) -> 0 | M121: 0 | N121: 0 | O121: 0 | P121: 0 | Q121: 0 | R121: 0 | T121: 1 | U121: =IF(U$115=0,0,U85/U$115) -> 0 | V121: 0 | W121: 0 | X121: 0 | Y121: 0 | Z121: 0 | AA121: 0 | AC121: 1 | AD121: =IF(AD$115=0,0,AD85/AD$115) -> 0 | AE121: 0 | AF121: 0 | AG121: 0 | AH121: 0 | AI121: 0 | AJ121: 0 | AL121: 1 | AM121: =IF(AM$115=0,0,AM85/AM$115) -> 0 | AN121: 0 | AO121: 0 | AP121: 0 | AQ121: 0 | AR121: 0 | AS121: 0 | AU121: 1 | AV121: =IF(AV$115=0,0,AV85/AV$115) -> 0 | AW121: 0 | AX121: 0 | AY121: 0 | AZ121: 0 | BA121: 0 | BB121: 0 | BD121: 1 | BE121: =IF(BE$115=0,0,BE85/BE$115) -> 0 | BF121: 0 | BG121: 0 | BH121: 0 | BI121: 0 | BJ121: 0 | BK121: 0 | BM121: 1 | BN121: =IF(BN$115=0,0,BN85/BN$115) -> 0 | BO121: 0 | BP121: 0 | BQ121: 0 | BR121: 0 | BS121: 0 | BT121: 0
B122: 2 | C122: =IF(C$115=0,0,C86/C$115) -> 0 | D122: 0 | E122: 0 | F122: 0 | G122: 0 | H122: 0 | I122: 0 | K122: 2 | L122: =IF(L$115=0,0,L86/L$115) -> 0 | M122: 0 | N122: 0 | O122: 0 | P122: 0 | Q122: 0 | R122: 0 | T122: 2 | U122: =IF(U$115=0,0,U86/U$115) -> 0 | V122: 0 | W122: 0 | X122: 0 | Y122: 0 | Z122: 0 | AA122: 0 | AC122: 2 | AD122: =IF(AD$115=0,0,AD86/AD$115) -> 0 | AE122: 0 | AF122: 0 | AG122: 0 | AH122: 0 | AI122: 0 | AJ122: 0 | AL122: 2 | AM122: =IF(AM$115=0,0,AM86/AM$115) -> 0 | AN122: 0 | AO122: 0 | AP122: 0 | AQ122: 0 | AR122: 0 | AS122: 0 | AU122: 2 | AV122: =IF(AV$115=0,0,AV86/AV$115) -> 0 | AW122: 0 | AX122: 0 | AY122: 0 | AZ122: 0 | BA122: 0 | BB122: 0 | BD122: 2 | BE122: =IF(BE$115=0,0,BE86/BE$115) -> 0 | BF122: 0 | BG122: 0 | BH122: 0 | BI122: 0 | BJ122: 0 | BK122: 0 | BM122: 2 | BN122: =IF(BN$115=0,0,BN86/BN$115) -> 0 | BO122: 0 | BP122: 0 | BQ122: 0 | BR122: 0 | BS122: 0 | BT122: 0
B123: 3 | C123: =IF(C$115=0,0,C87/C$115) -> 0 | D123: 0 | E123: 0 | F123: 0 | G123: 0 | H123: 0 | I123: 0 | K123: 3 | L123: =IF(L$115=0,0,L87/L$115) -> 0 | M123: 0 | N123: 0 | O123: 0 | P123: 0 | Q123: 0 | R123: 0 | T123: 3 | U123: =IF(U$115=0,0,U87/U$115) -> 0 | V123: 0 | W123: 0 | X123: 0 | Y123: 0 | Z123: 0 | AA123: 0 | AC123: 3 | AD123: =IF(AD$115=0,0,AD87/AD$115) -> 0 | AE123: 0 | AF123: 0 | AG123: 0 | AH123: 0 | AI123: 0 | AJ123: 0 | AL123: 3 | AM123: =IF(AM$115=0,0,AM87/AM$115) -> 0 | AN123: 0 | AO123: 0 | AP123: 0 | AQ123: 0 | AR123: 0 | AS123: 0 | AU123: 3 | AV123: =IF(AV$115=0,0,AV87/AV$115) -> 0 | AW123: 0 | AX123: 0 | AY123: 0 | AZ123: 0 | BA123: 0 | BB123: 0 | BD123: 3 | BE123: =IF(BE$115=0,0,BE87/BE$115) -> 0 | BF123: 0 | BG123: 0 | BH123: 0 | BI123: 0 | BJ123: 0 | BK123: 0 | BM123: 3 | BN123: =IF(BN$115=0,0,BN87/BN$115) -> 0 | BO123: 0 | BP123: 0 | BQ123: 0 | BR123: 0 | BS123: 0 | BT123: 0
B124: 4 | C124: =IF(C$115=0,0,C88/C$115) -> 0 | D124: 0 | E124: 0 | F124: 0 | G124: 0 | H124: 0 | I124: 0 | K124: 4 | L124: =IF(L$115=0,0,L88/L$115) -> 0 | M124: 0 | N124: 0 | O124: 0 | P124: 0 | Q124: 0 | R124: 0 | T124: 4 | U124: =IF(U$115=0,0,U88/U$115) -> 0 | V124: 0 | W124: 0 | X124: 0 | Y124: 0 | Z124: 0 | AA124: 0 | AC124: 4 | AD124: =IF(AD$115=0,0,AD88/AD$115) -> 0 | AE124: 0 | AF124: 0 | AG124: 0 | AH124: 0 | AI124: 0 | AJ124: 0 | AL124: 4 | AM124: =IF(AM$115=0,0,AM88/AM$115) -> 0 | AN124: 0 | AO124: 0 | AP124: 0 | AQ124: 0 | AR124: 0 | AS124: 0 | AU124: 4 | AV124: =IF(AV$115=0,0,AV88/AV$115) -> 0 | AW124: 0 | AX124: 0 | AY124: 0 | AZ124: 0 | BA124: 0 | BB124: 0 | BD124: 4 | BE124: =IF(BE$115=0,0,BE88/BE$115) -> 0 | BF124: 0 | BG124: 0 | BH124: 0 | BI124: 0 | BJ124: 0 | BK124: 0 | BM124: 4 | BN124: =IF(BN$115=0,0,BN88/BN$115) -> 0 | BO124: 0 | BP124: 0 | BQ124: 0 | BR124: 0 | BS124: 0 | BT124: 0
B125: 5 | C125: =IF(C$115=0,0,C89/C$115) -> 0 | D125: 0 | E125: 0 | F125: 0 | G125: 0 | H125: 0 | I125: 0 | K125: 5 | L125: =IF(L$115=0,0,L89/L$115) -> 0 | M125: 0 | N125: 0 | O125: 0 | P125: 0 | Q125: 0 | R125: 0 | T125: 5 | U125: =IF(U$115=0,0,U89/U$115) -> 0 | V125: 0 | W125: 0 | X125: 0 | Y125: 0 | Z125: 0 | AA125: 0 | AC125: 5 | AD125: =IF(AD$115=0,0,AD89/AD$115) -> 0 | AE125: 0 | AF125: 0 | AG125: 0 | AH125: 0 | AI125: 0 | AJ125: 0 | AL125: 5 | AM125: =IF(AM$115=0,0,AM89/AM$115) -> 0 | AN125: 0 | AO125: 0 | AP125: 0 | AQ125: 0 | AR125: 0 | AS125: 0 | AU125: 5 | AV125: =IF(AV$115=0,0,AV89/AV$115) -> 0 | AW125: 0 | AX125: 0 | AY125: 0 | AZ125: 0 | BA125: 0 | BB125: 0 | BD125: 5 | BE125: =IF(BE$115=0,0,BE89/BE$115) -> 0 | BF125: 0 | BG125: 0 | BH125: 0 | BI125: 0 | BJ125: 0 | BK125: 0 | BM125: 5 | BN125: =IF(BN$115=0,0,BN89/BN$115) -> 0 | BO125: 0 | BP125: 0 | BQ125: 0 | BR125: 0 | BS125: 0 | BT125: 0
B126: 6 | C126: =IF(C$115=0,0,C90/C$115) -> 0 | D126: 0 | E126: 0 | F126: 0 | G126: 0 | H126: 0 | I126: 0 | K126: 6 | L126: =IF(L$115=0,0,L90/L$115) -> 0 | M126: 0 | N126: 0 | O126: 0 | P126: 0 | Q126: 0 | R126: 0 | T126: 6 | U126: =IF(U$115=0,0,U90/U$115) -> 0 | V126: 0 | W126: 0 | X126: 0 | Y126: 0 | Z126: 0 | AA126: 0 | AC126: 6 | AD126: =IF(AD$115=0,0,AD90/AD$115) -> 0 | AE126: 0 | AF126: 0 | AG126: 0 | AH126: 0 | AI126: 0 | AJ126: 0 | AL126: 6 | AM126: =IF(AM$115=0,0,AM90/AM$115) -> 0 | AN126: 0 | AO126: 0 | AP126: 0 | AQ126: 0 | AR126: 0 | AS126: 0 | AU126: 6 | AV126: =IF(AV$115=0,0,AV90/AV$115) -> 0 | AW126: 0 | AX126: 0 | AY126: 0 | AZ126: 0 | BA126: 0 | BB126: 0 | BD126: 6 | BE126: =IF(BE$115=0,0,BE90/BE$115) -> 0 | BF126: 0 | BG126: 0 | BH126: 0 | BI126: 0 | BJ126: 0 | BK126: 0 | BM126: 6 | BN126: =IF(BN$115=0,0,BN90/BN$115) -> 0 | BO126: 0 | BP126: 0 | BQ126: 0 | BR126: 0 | BS126: 0 | BT126: 0
B127: 7 | C127: =IF(C$115=0,0,C91/C$115) -> 0 | D127: 0 | E127: 0 | F127: 0 | G127: 0 | H127: 0 | I127: 0 | K127: 7 | L127: =IF(L$115=0,0,L91/L$115) -> 0 | M127: 0 | N127: 0 | O127: 0 | P127: 0 | Q127: 0 | R127: 0 | T127: 7 | U127: =IF(U$115=0,0,U91/U$115) -> 0 | V127: 0 | W127: 0 | X127: 0 | Y127: 0 | Z127: 0 | AA127: 0 | AC127: 7 | AD127: =IF(AD$115=0,0,AD91/AD$115) -> 0 | AE127: 0 | AF127: 0 | AG127: 0 | AH127: 0 | AI127: 0 | AJ127: 0 | AL127: 7 | AM127: =IF(AM$115=0,0,AM91/AM$115) -> 0 | AN127: 0 | AO127: 0 | AP127: 0 | AQ127: 0 | AR127: 0 | AS127: 0 | AU127: 7 | AV127: =IF(AV$115=0,0,AV91/AV$115) -> 0 | AW127: 0 | AX127: 0 | AY127: 0 | AZ127: 0 | BA127: 0 | BB127: 0 | BD127: 7 | BE127: =IF(BE$115=0,0,BE91/BE$115) -> 0 | BF127: 0 | BG127: 0 | BH127: 0 | BI127: 0 | BJ127: 0 | BK127: 0 | BM127: 7 | BN127: =IF(BN$115=0,0,BN91/BN$115) -> 0 | BO127: 0 | BP127: 0 | BQ127: 0 | BR127: 0 | BS127: 0 | BT127: 0
B128: 8 | C128: =IF(C$115=0,0,C92/C$115) -> 0 | D128: 0 | E128: 0 | F128: 0 | G128: 0 | H128: 0 | I128: 0 | K128: 8 | L128: =IF(L$115=0,0,L92/L$115) -> 0 | M128: 0 | N128: 0 | O128: 0 | P128: 0 | Q128: 0 | R128: 0 | T128: 8 | U128: =IF(U$115=0,0,U92/U$115) -> 0 | V128: 0 | W128: 0 | X128: 0 | Y128: 0 | Z128: 0 | AA128: 0 | AC128: 8 | AD128: =IF(AD$115=0,0,AD92/AD$115) -> 0 | AE128: 0 | AF128: 0 | AG128: 0 | AH128: 0 | AI128: 0 | AJ128: 0 | AL128: 8 | AM128: =IF(AM$115=0,0,AM92/AM$115) -> 0 | AN128: 0 | AO128: 0 | AP128: 0 | AQ128: 0 | AR128: 0 | AS128: 0 | AU128: 8 | AV128: =IF(AV$115=0,0,AV92/AV$115) -> 0 | AW128: 0 | AX128: 0 | AY128: 0 | AZ128: 0 | BA128: 0 | BB128: 0 | BD128: 8 | BE128: =IF(BE$115=0,0,BE92/BE$115) -> 0 | BF128: 0 | BG128: 0 | BH128: 0 | BI128: 0 | BJ128: 0 | BK128: 0 | BM128: 8 | BN128: =IF(BN$115=0,0,BN92/BN$115) -> 0 | BO128: 0 | BP128: 0 | BQ128: 0 | BR128: 0 | BS128: 0 | BT128: 0
B129: 9 | C129: =IF(C$115=0,0,C93/C$115) -> 0 | D129: 0 | E129: 0 | F129: 0 | G129: 0 | H129: 0 | I129: 0 | K129: 9 | L129: =IF(L$115=0,0,L93/L$115) -> 0 | M129: 0 | N129: 0 | O129: 0 | P129: 0 | Q129: 0 | R129: 0 | T129: 9 | U129: =IF(U$115=0,0,U93/U$115) -> 0 | V129: 0 | W129: 0 | X129: 0 | Y129: 0 | Z129: 0 | AA129: 0 | AC129: 9 | AD129: =IF(AD$115=0,0,AD93/AD$115) -> 0 | AE129: 0 | AF129: 0 | AG129: 0 | AH129: 0 | AI129: 0 | AJ129: 0 | AL129: 9 | AM129: =IF(AM$115=0,0,AM93/AM$115) -> 0 | AN129: 0 | AO129: 0 | AP129: 0 | AQ129: 0 | AR129: 0 | AS129: 0 | AU129: 9 | AV129: =IF(AV$115=0,0,AV93/AV$115) -> 0 | AW129: 0 | AX129: 0 | AY129: 0 | AZ129: 0 | BA129: 0 | BB129: 0 | BD129: 9 | BE129: =IF(BE$115=0,0,BE93/BE$115) -> 0 | BF129: 0 | BG129: 0 | BH129: 0 | BI129: 0 | BJ129: 0 | BK129: 0 | BM129: 9 | BN129: =IF(BN$115=0,0,BN93/BN$115) -> 0 | BO129: 0 | BP129: 0 | BQ129: 0 | BR129: 0 | BS129: 0 | BT129: 0
B130: 10 | C130: =IF(C$115=0,0,C94/C$115) -> 0 | D130: 0 | E130: 0 | F130: 0 | G130: 0 | H130: 0 | I130: 0 | K130: 10 | L130: =IF(L$115=0,0,L94/L$115) -> 0 | M130: 0 | N130: 0 | O130: 0 | P130: 0 | Q130: 0 | R130: 0 | T130: 10 | U130: =IF(U$115=0,0,U94/U$115) -> 0 | V130: 0 | W130: 0 | X130: 0 | Y130: 0 | Z130: 0 | AA130: 0 | AC130: 10 | AD130: =IF(AD$115=0,0,AD94/AD$115) -> 0 | AE130: 0 | AF130: 0 | AG130: 0 | AH130: 0 | AI130: 0 | AJ130: 0 | AL130: 10 | AM130: =IF(AM$115=0,0,AM94/AM$115) -> 0 | AN130: 0 | AO130: 0 | AP130: 0 | AQ130: 0 | AR130: 0 | AS130: 0 | AU130: 10 | AV130: =IF(AV$115=0,0,AV94/AV$115) -> 0 | AW130: 0 | AX130: 0 | AY130: 0 | AZ130: 0 | BA130: 0 | BB130: 0 | BD130: 10 | BE130: =IF(BE$115=0,0,BE94/BE$115) -> 0 | BF130: 0 | BG130: 0 | BH130: 0 | BI130: 0 | BJ130: 0 | BK130: 0 | BM130: 10 | BN130: =IF(BN$115=0,0,BN94/BN$115) -> 0 | BO130: 0 | BP130: 0 | BQ130: 0 | BR130: 0 | BS130: 0 | BT130: 0
B131: 11 | C131: =IF(C$115=0,0,C95/C$115) -> 0 | D131: 0 | E131: 0 | F131: 0 | G131: 0 | H131: 0 | I131: 0 | K131: 11 | L131: =IF(L$115=0,0,L95/L$115) -> 0 | M131: 0 | N131: 0 | O131: 0 | P131: 0 | Q131: 0 | R131: 0 | T131: 11 | U131: =IF(U$115=0,0,U95/U$115) -> 0 | V131: 0 | W131: 0 | X131: 0 | Y131: 0 | Z131: 0 | AA131: 0 | AC131: 11 | AD131: =IF(AD$115=0,0,AD95/AD$115) -> 0 | AE131: 0 | AF131: 0 | AG131: 0 | AH131: 0 | AI131: 0 | AJ131: 0 | AL131: 11 | AM131: =IF(AM$115=0,0,AM95/AM$115) -> 0 | AN131: 0 | AO131: 0 | AP131: 0 | AQ131: 0 | AR131: 0 | AS131: 0 | AU131: 11 | AV131: =IF(AV$115=0,0,AV95/AV$115) -> 0 | AW131: 0 | AX131: 0 | AY131: 0 | AZ131: 0 | BA131: 0 | BB131: 0 | BD131: 11 | BE131: =IF(BE$115=0,0,BE95/BE$115) -> 0 | BF131: 0 | BG131: 0 | BH131: 0 | BI131: 0 | BJ131: 0 | BK131: 0 | BM131: 11 | BN131: =IF(BN$115=0,0,BN95/BN$115) -> 0 | BO131: 0 | BP131: 0 | BQ131: 0 | BR131: 0 | BS131: 0 | BT131: 0
B132: 12 | C132: =IF(C$115=0,0,C96/C$115) -> 0 | D132: 0 | E132: 0 | F132: 0 | G132: 0 | H132: 0 | I132: 0 | K132: 12 | L132: =IF(L$115=0,0,L96/L$115) -> 0 | M132: 0 | N132: 0 | O132: 0 | P132: 0 | Q132: 0 | R132: 0 | T132: 12 | U132: =IF(U$115=0,0,U96/U$115) -> 0 | V132: 0 | W132: 0 | X132: 0 | Y132: 0 | Z132: 0 | AA132: 0 | AC132: 12 | AD132: =IF(AD$115=0,0,AD96/AD$115) -> 0 | AE132: 0 | AF132: 0 | AG132: 0 | AH132: 0 | AI132: 0 | AJ132: 0 | AL132: 12 | AM132: =IF(AM$115=0,0,AM96/AM$115) -> 0 | AN132: 0 | AO132: 0 | AP132: 0 | AQ132: 0 | AR132: 0 | AS132: 0 | AU132: 12 | AV132: =IF(AV$115=0,0,AV96/AV$115) -> 0 | AW132: 0 | AX132: 0 | AY132: 0 | AZ132: 0 | BA132: 0 | BB132: 0 | BD132: 12 | BE132: =IF(BE$115=0,0,BE96/BE$115) -> 0 | BF132: 0 | BG132: 0 | BH132: 0 | BI132: 0 | BJ132: 0 | BK132: 0 | BM132: 12 | BN132: =IF(BN$115=0,0,BN96/BN$115) -> 0 | BO132: 0 | BP132: 0 | BQ132: 0 | BR132: 0 | BS132: 0 | BT132: 0
B133: 13 | C133: =IF(C$115=0,0,C97/C$115) -> 0 | D133: 0 | E133: 0 | F133: 0 | G133: 0 | H133: 0 | I133: 0 | K133: 13 | L133: =IF(L$115=0,0,L97/L$115) -> 0 | M133: 0 | N133: 0 | O133: 0 | P133: 0 | Q133: 0 | R133: 0 | T133: 13 | U133: =IF(U$115=0,0,U97/U$115) -> 0 | V133: 0 | W133: 0 | X133: 0 | Y133: 0 | Z133: 0 | AA133: 0 | AC133: 13 | AD133: =IF(AD$115=0,0,AD97/AD$115) -> 0 | AE133: 0 | AF133: 0 | AG133: 0 | AH133: 0 | AI133: 0 | AJ133: 0 | AL133: 13 | AM133: =IF(AM$115=0,0,AM97/AM$115) -> 0 | AN133: 0 | AO133: 0 | AP133: 0 | AQ133: 0 | AR133: 0 | AS133: 0 | AU133: 13 | AV133: =IF(AV$115=0,0,AV97/AV$115) -> 0 | AW133: 0 | AX133: 0 | AY133: 0 | AZ133: 0 | BA133: 0 | BB133: 0 | BD133: 13 | BE133: =IF(BE$115=0,0,BE97/BE$115) -> 0 | BF133: 0 | BG133: 0 | BH133: 0 | BI133: 0 | BJ133: 0 | BK133: 0 | BM133: 13 | BN133: =IF(BN$115=0,0,BN97/BN$115) -> 0 | BO133: 0 | BP133: 0 | BQ133: 0 | BR133: 0 | BS133: 0 | BT133: 0
B134: 14 | C134: =IF(C$115=0,0,C98/C$115) -> 0 | D134: 0 | E134: 0 | F134: 0 | G134: 0 | H134: 0 | I134: 0 | K134: 14 | L134: =IF(L$115=0,0,L98/L$115) -> 0 | M134: 0 | N134: 0 | O134: 0 | P134: 0 | Q134: 0 | R134: 0 | T134: 14 | U134: =IF(U$115=0,0,U98/U$115) -> 0 | V134: 0 | W134: 0 | X134: 0 | Y134: 0 | Z134: 0 | AA134: 0 | AC134: 14 | AD134: =IF(AD$115=0,0,AD98/AD$115) -> 0 | AE134: 0 | AF134: 0 | AG134: 0 | AH134: 0 | AI134: 0 | AJ134: 0 | AL134: 14 | AM134: =IF(AM$115=0,0,AM98/AM$115) -> 0 | AN134: 0 | AO134: 0 | AP134: 0 | AQ134: 0 | AR134: 0 | AS134: 0 | AU134: 14 | AV134: =IF(AV$115=0,0,AV98/AV$115) -> 0 | AW134: 0 | AX134: 0 | AY134: 0 | AZ134: 0 | BA134: 0 | BB134: 0 | BD134: 14 | BE134: =IF(BE$115=0,0,BE98/BE$115) -> 0 | BF134: 0 | BG134: 0 | BH134: 0 | BI134: 0 | BJ134: 0 | BK134: 0 | BM134: 14 | BN134: =IF(BN$115=0,0,BN98/BN$115) -> 0 | BO134: 0 | BP134: 0 | BQ134: 0 | BR134: 0 | BS134: 0 | BT134: 0
B135: 15 | C135: =IF(C$115=0,0,C99/C$115) -> 0 | D135: 0 | E135: 0 | F135: 0 | G135: 0 | H135: 0 | I135: 0 | K135: 15 | L135: =IF(L$115=0,0,L99/L$115) -> 0 | M135: 0 | N135: 0 | O135: 0 | P135: 0 | Q135: 0 | R135: 0 | T135: 15 | U135: =IF(U$115=0,0,U99/U$115) -> 0 | V135: 0 | W135: 0 | X135: 0 | Y135: 0 | Z135: 0 | AA135: 0 | AC135: 15 | AD135: =IF(AD$115=0,0,AD99/AD$115) -> 0 | AE135: 0 | AF135: 0 | AG135: 0 | AH135: 0 | AI135: 0 | AJ135: 0 | AL135: 15 | AM135: =IF(AM$115=0,0,AM99/AM$115) -> 0 | AN135: 0 | AO135: 0 | AP135: 0 | AQ135: 0 | AR135: 0 | AS135: 0 | AU135: 15 | AV135: =IF(AV$115=0,0,AV99/AV$115) -> 0 | AW135: 0 | AX135: 0 | AY135: 0 | AZ135: 0 | BA135: 0 | BB135: 0 | BD135: 15 | BE135: =IF(BE$115=0,0,BE99/BE$115) -> 0 | BF135: 0 | BG135: 0 | BH135: 0 | BI135: 0 | BJ135: 0 | BK135: 0 | BM135: 15 | BN135: =IF(BN$115=0,0,BN99/BN$115) -> 0 | BO135: 0 | BP135: 0 | BQ135: 0 | BR135: 0 | BS135: 0 | BT135: 0
B136: 16 | C136: =IF(C$115=0,0,C100/C$115) -> 0 | D136: 0 | E136: 0 | F136: 0 | G136: 0 | H136: 0 | I136: 0 | K136: 16 | L136: =IF(L$115=0,0,L100/L$115) -> 0 | M136: 0 | N136: 0 | O136: 0 | P136: 0 | Q136: 0 | R136: 0 | T136: 16 | U136: =IF(U$115=0,0,U100/U$115) -> 0 | V136: 0 | W136: 0 | X136: 0 | Y136: 0 | Z136: 0 | AA136: 0 | AC136: 16 | AD136: =IF(AD$115=0,0,AD100/AD$115) -> 0 | AE136: 0 | AF136: 0 | AG136: 0 | AH136: 0 | AI136: 0 | AJ136: 0 | AL136: 16 | AM136: =IF(AM$115=0,0,AM100/AM$115) -> 0 | AN136: 0 | AO136: 0 | AP136: 0 | AQ136: 0 | AR136: 0 | AS136: 0 | AU136: 16 | AV136: =IF(AV$115=0,0,AV100/AV$115) -> 0 | AW136: 0 | AX136: 0 | AY136: 0 | AZ136: 0 | BA136: 0 | BB136: 0 | BD136: 16 | BE136: =IF(BE$115=0,0,BE100/BE$115) -> 0 | BF136: 0 | BG136: 0 | BH136: 0 | BI136: 0 | BJ136: 0 | BK136: 0 | BM136: 16 | BN136: =IF(BN$115=0,0,BN100/BN$115) -> 0 | BO136: 0 | BP136: 0 | BQ136: 0 | BR136: 0 | BS136: 0 | BT136: 0
B137: 17 | C137: =IF(C$115=0,0,C101/C$115) -> 0 | D137: 0 | E137: 0 | F137: 0 | G137: 0 | H137: 0 | I137: 0 | K137: 17 | L137: =IF(L$115=0,0,L101/L$115) -> 0 | M137: 0 | N137: 0 | O137: 0 | P137: 0 | Q137: 0 | R137: 0 | T137: 17 | U137: =IF(U$115=0,0,U101/U$115) -> 0 | V137: 0 | W137: 0 | X137: 0 | Y137: 0 | Z137: 0 | AA137: 0 | AC137: 17 | AD137: =IF(AD$115=0,0,AD101/AD$115) -> 0 | AE137: 0 | AF137: 0 | AG137: 0 | AH137: 0 | AI137: 0 | AJ137: 0 | AL137: 17 | AM137: =IF(AM$115=0,0,AM101/AM$115) -> 0 | AN137: 0 | AO137: 0 | AP137: 0 | AQ137: 0 | AR137: 0 | AS137: 0 | AU137: 17 | AV137: =IF(AV$115=0,0,AV101/AV$115) -> 0 | AW137: 0 | AX137: 0 | AY137: 0 | AZ137: 0 | BA137: 0 | BB137: 0 | BD137: 17 | BE137: =IF(BE$115=0,0,BE101/BE$115) -> 0 | BF137: 0 | BG137: 0 | BH137: 0 | BI137: 0 | BJ137: 0 | BK137: 0 | BM137: 17 | BN137: =IF(BN$115=0,0,BN101/BN$115) -> 0 | BO137: 0 | BP137: 0 | BQ137: 0 | BR137: 0 | BS137: 0 | BT137: 0
B138: 18 | C138: =IF(C$115=0,0,C102/C$115) -> 0 | D138: 0 | E138: 0 | F138: 0 | G138: 0 | H138: 0 | I138: 0 | K138: 18 | L138: =IF(L$115=0,0,L102/L$115) -> 0 | M138: 0 | N138: 0 | O138: 0 | P138: 0 | Q138: 0 | R138: 0 | T138: 18 | U138: =IF(U$115=0,0,U102/U$115) -> 0 | V138: 0 | W138: 0 | X138: 0 | Y138: 0 | Z138: 0 | AA138: 0 | AC138: 18 | AD138: =IF(AD$115=0,0,AD102/AD$115) -> 0 | AE138: 0 | AF138: 0 | AG138: 0 | AH138: 0 | AI138: 0 | AJ138: 0 | AL138: 18 | AM138: =IF(AM$115=0,0,AM102/AM$115) -> 0 | AN138: 0 | AO138: 0 | AP138: 0 | AQ138: 0 | AR138: 0 | AS138: 0 | AU138: 18 | AV138: =IF(AV$115=0,0,AV102/AV$115) -> 0 | AW138: 0 | AX138: 0 | AY138: 0 | AZ138: 0 | BA138: 0 | BB138: 0 | BD138: 18 | BE138: =IF(BE$115=0,0,BE102/BE$115) -> 0 | BF138: 0 | BG138: 0 | BH138: 0 | BI138: 0 | BJ138: 0 | BK138: 0 | BM138: 18 | BN138: =IF(BN$115=0,0,BN102/BN$115) -> 0 | BO138: 0 | BP138: 0 | BQ138: 0 | BR138: 0 | BS138: 0 | BT138: 0
B139: 19 | C139: =IF(C$115=0,0,C103/C$115) -> 0 | D139: 0 | E139: 0 | F139: 0 | G139: 0 | H139: 0 | I139: 0 | K139: 19 | L139: =IF(L$115=0,0,L103/L$115) -> 0 | M139: 0 | N139: 0 | O139: 0 | P139: 0 | Q139: 0 | R139: 0 | T139: 19 | U139: =IF(U$115=0,0,U103/U$115) -> 0 | V139: 0 | W139: 0 | X139: 0 | Y139: 0 | Z139: 0 | AA139: 0 | AC139: 19 | AD139: =IF(AD$115=0,0,AD103/AD$115) -> 0 | AE139: 0 | AF139: 0 | AG139: 0 | AH139: 0 | AI139: 0 | AJ139: 0 | AL139: 19 | AM139: =IF(AM$115=0,0,AM103/AM$115) -> 0 | AN139: 0 | AO139: 0 | AP139: 0 | AQ139: 0 | AR139: 0 | AS139: 0 | AU139: 19 | AV139: =IF(AV$115=0,0,AV103/AV$115) -> 0 | AW139: 0 | AX139: 0 | AY139: 0 | AZ139: 0 | BA139: 0 | BB139: 0 | BD139: 19 | BE139: =IF(BE$115=0,0,BE103/BE$115) -> 0 | BF139: 0 | BG139: 0 | BH139: 0 | BI139: 0 | BJ139: 0 | BK139: 0 | BM139: 19 | BN139: =IF(BN$115=0,0,BN103/BN$115) -> 0 | BO139: 0 | BP139: 0 | BQ139: 0 | BR139: 0 | BS139: 0 | BT139: 0
B140: 20 | C140: =IF(C$115=0,0,C104/C$115) -> 0 | D140: 0 | E140: 0 | F140: 0 | G140: 0 | H140: 0 | I140: 0 | K140: 20 | L140: =IF(L$115=0,0,L104/L$115) -> 0 | M140: 0 | N140: 0 | O140: 0 | P140: 0 | Q140: 0 | R140: 0 | T140: 20 | U140: =IF(U$115=0,0,U104/U$115) -> 0 | V140: 0 | W140: 0 | X140: 0 | Y140: 0 | Z140: 0 | AA140: 0 | AC140: 20 | AD140: =IF(AD$115=0,0,AD104/AD$115) -> 0 | AE140: 0 | AF140: 0 | AG140: 0 | AH140: 0 | AI140: 0 | AJ140: 0 | AL140: 20 | AM140: =IF(AM$115=0,0,AM104/AM$115) -> 0 | AN140: 0 | AO140: 0 | AP140: 0 | AQ140: 0 | AR140: 0 | AS140: 0 | AU140: 20 | AV140: =IF(AV$115=0,0,AV104/AV$115) -> 0 | AW140: 0 | AX140: 0 | AY140: 0 | AZ140: 0 | BA140: 0 | BB140: 0 | BD140: 20 | BE140: =IF(BE$115=0,0,BE104/BE$115) -> 0 | BF140: 0 | BG140: 0 | BH140: 0 | BI140: 0 | BJ140: 0 | BK140: 0 | BM140: 20 | BN140: =IF(BN$115=0,0,BN104/BN$115) -> 0 | BO140: 0 | BP140: 0 | BQ140: 0 | BR140: 0 | BS140: 0 | BT140: 0
B141: 21 | C141: =IF(C$115=0,0,C105/C$115) -> 0 | D141: 0 | E141: 0 | F141: 0 | G141: 0 | H141: 0 | I141: 0 | K141: 21 | L141: =IF(L$115=0,0,L105/L$115) -> 0 | M141: 0 | N141: 0 | O141: 0 | P141: 0 | Q141: 0 | R141: 0 | T141: 21 | U141: =IF(U$115=0,0,U105/U$115) -> 0 | V141: 0 | W141: 0 | X141: 0 | Y141: 0 | Z141: 0 | AA141: 0 | AC141: 21 | AD141: =IF(AD$115=0,0,AD105/AD$115) -> 0 | AE141: 0 | AF141: 0 | AG141: 0 | AH141: 0 | AI141: 0 | AJ141: 0 | AL141: 21 | AM141: =IF(AM$115=0,0,AM105/AM$115) -> 0 | AN141: 0 | AO141: 0 | AP141: 0 | AQ141: 0 | AR141: 0 | AS141: 0 | AU141: 21 | AV141: =IF(AV$115=0,0,AV105/AV$115) -> 0 | AW141: 0 | AX141: 0 | AY141: 0 | AZ141: 0 | BA141: 0 | BB141: 0 | BD141: 21 | BE141: =IF(BE$115=0,0,BE105/BE$115) -> 0 | BF141: 0 | BG141: 0 | BH141: 0 | BI141: 0 | BJ141: 0 | BK141: 0 | BM141: 21 | BN141: =IF(BN$115=0,0,BN105/BN$115) -> 0 | BO141: 0 | BP141: 0 | BQ141: 0 | BR141: 0 | BS141: 0 | BT141: 0
B142: 22 | C142: =IF(C$115=0,0,C106/C$115) -> 0 | D142: 0 | E142: 0 | F142: 0 | G142: 0 | H142: 0 | I142: 0 | K142: 22 | L142: =IF(L$115=0,0,L106/L$115) -> 0 | M142: 0 | N142: 0 | O142: 0 | P142: 0 | Q142: 0 | R142: 0 | T142: 22 | U142: =IF(U$115=0,0,U106/U$115) -> 0 | V142: 0 | W142: 0 | X142: 0 | Y142: 0 | Z142: 0 | AA142: 0 | AC142: 22 | AD142: =IF(AD$115=0,0,AD106/AD$115) -> 0 | AE142: 0 | AF142: 0 | AG142: 0 | AH142: 0 | AI142: 0 | AJ142: 0 | AL142: 22 | AM142: =IF(AM$115=0,0,AM106/AM$115) -> 0 | AN142: 0 | AO142: 0 | AP142: 0 | AQ142: 0 | AR142: 0 | AS142: 0 | AU142: 22 | AV142: =IF(AV$115=0,0,AV106/AV$115) -> 0 | AW142: 0 | AX142: 0 | AY142: 0 | AZ142: 0 | BA142: 0 | BB142: 0 | BD142: 22 | BE142: =IF(BE$115=0,0,BE106/BE$115) -> 0 | BF142: 0 | BG142: 0 | BH142: 0 | BI142: 0 | BJ142: 0 | BK142: 0 | BM142: 22 | BN142: =IF(BN$115=0,0,BN106/BN$115) -> 0 | BO142: 0 | BP142: 0 | BQ142: 0 | BR142: 0 | BS142: 0 | BT142: 0
B143: 23 | C143: =IF(C$115=0,0,C107/C$115) -> 0 | D143: 0 | E143: 0 | F143: 0 | G143: 0 | H143: 0 | I143: 0 | K143: 23 | L143: =IF(L$115=0,0,L107/L$115) -> 0 | M143: 0 | N143: 0 | O143: 0 | P143: 0 | Q143: 0 | R143: 0 | T143: 23 | U143: =IF(U$115=0,0,U107/U$115) -> 0 | V143: 0 | W143: 0 | X143: 0 | Y143: 0 | Z143: 0 | AA143: 0 | AC143: 23 | AD143: =IF(AD$115=0,0,AD107/AD$115) -> 0 | AE143: 0 | AF143: 0 | AG143: 0 | AH143: 0 | AI143: 0 | AJ143: 0 | AL143: 23 | AM143: =IF(AM$115=0,0,AM107/AM$115) -> 0 | AN143: 0 | AO143: 0 | AP143: 0 | AQ143: 0 | AR143: 0 | AS143: 0 | AU143: 23 | AV143: =IF(AV$115=0,0,AV107/AV$115) -> 0 | AW143: 0 | AX143: 0 | AY143: 0 | AZ143: 0 | BA143: 0 | BB143: 0 | BD143: 23 | BE143: =IF(BE$115=0,0,BE107/BE$115) -> 0 | BF143: 0 | BG143: 0 | BH143: 0 | BI143: 0 | BJ143: 0 | BK143: 0 | BM143: 23 | BN143: =IF(BN$115=0,0,BN107/BN$115) -> 0 | BO143: 0 | BP143: 0 | BQ143: 0 | BR143: 0 | BS143: 0 | BT143: 0
B144: 24 | C144: =IF(C$115=0,0,C108/C$115) -> 0 | D144: 0 | E144: 0 | F144: 0 | G144: 0 | H144: 0 | I144: 0 | K144: 24 | L144: =IF(L$115=0,0,L108/L$115) -> 0 | M144: 0 | N144: 0 | O144: 0 | P144: 0 | Q144: 0 | R144: 0 | T144: 24 | U144: =IF(U$115=0,0,U108/U$115) -> 0 | V144: 0 | W144: 0 | X144: 0 | Y144: 0 | Z144: 0 | AA144: 0 | AC144: 24 | AD144: =IF(AD$115=0,0,AD108/AD$115) -> 0 | AE144: 0 | AF144: 0 | AG144: 0 | AH144: 0 | AI144: 0 | AJ144: 0 | AL144: 24 | AM144: =IF(AM$115=0,0,AM108/AM$115) -> 0 | AN144: 0 | AO144: 0 | AP144: 0 | AQ144: 0 | AR144: 0 | AS144: 0 | AU144: 24 | AV144: =IF(AV$115=0,0,AV108/AV$115) -> 0 | AW144: 0 | AX144: 0 | AY144: 0 | AZ144: 0 | BA144: 0 | BB144: 0 | BD144: 24 | BE144: =IF(BE$115=0,0,BE108/BE$115) -> 0 | BF144: 0 | BG144: 0 | BH144: 0 | BI144: 0 | BJ144: 0 | BK144: 0 | BM144: 24 | BN144: =IF(BN$115=0,0,BN108/BN$115) -> 0 | BO144: 0 | BP144: 0 | BQ144: 0 | BR144: 0 | BS144: 0 | BT144: 0
B145: 25 | C145: =IF(C$115=0,0,C109/C$115) -> 0 | D145: 0 | E145: 0 | F145: 0 | G145: 0 | H145: 0 | I145: 0 | K145: 25 | L145: =IF(L$115=0,0,L109/L$115) -> 0 | M145: 0 | N145: 0 | O145: 0 | P145: 0 | Q145: 0 | R145: 0 | T145: 25 | U145: =IF(U$115=0,0,U109/U$115) -> 0 | V145: 0 | W145: 0 | X145: 0 | Y145: 0 | Z145: 0 | AA145: 0 | AC145: 25 | AD145: =IF(AD$115=0,0,AD109/AD$115) -> 0 | AE145: 0 | AF145: 0 | AG145: 0 | AH145: 0 | AI145: 0 | AJ145: 0 | AL145: 25 | AM145: =IF(AM$115=0,0,AM109/AM$115) -> 0 | AN145: 0 | AO145: 0 | AP145: 0 | AQ145: 0 | AR145: 0 | AS145: 0 | AU145: 25 | AV145: =IF(AV$115=0,0,AV109/AV$115) -> 0 | AW145: 0 | AX145: 0 | AY145: 0 | AZ145: 0 | BA145: 0 | BB145: 0 | BD145: 25 | BE145: =IF(BE$115=0,0,BE109/BE$115) -> 0 | BF145: 0 | BG145: 0 | BH145: 0 | BI145: 0 | BJ145: 0 | BK145: 0 | BM145: 25 | BN145: =IF(BN$115=0,0,BN109/BN$115) -> 0 | BO145: 0 | BP145: 0 | BQ145: 0 | BR145: 0 | BS145: 0 | BT145: 0
B146: 26 | C146: =IF(C$115=0,0,C110/C$115) -> 0 | D146: 0 | E146: 0 | F146: 0 | G146: 0 | H146: 0 | I146: 0 | K146: 26 | L146: =IF(L$115=0,0,L110/L$115) -> 0 | M146: 0 | N146: 0 | O146: 0 | P146: 0 | Q146: 0 | R146: 0 | T146: 26 | U146: =IF(U$115=0,0,U110/U$115) -> 0 | V146: 0 | W146: 0 | X146: 0 | Y146: 0 | Z146: 0 | AA146: 0 | AC146: 26 | AD146: =IF(AD$115=0,0,AD110/AD$115) -> 0 | AE146: 0 | AF146: 0 | AG146: 0 | AH146: 0 | AI146: 0 | AJ146: 0 | AL146: 26 | AM146: =IF(AM$115=0,0,AM110/AM$115) -> 0 | AN146: 0 | AO146: 0 | AP146: 0 | AQ146: 0 | AR146: 0 | AS146: 0 | AU146: 26 | AV146: =IF(AV$115=0,0,AV110/AV$115) -> 0 | AW146: 0 | AX146: 0 | AY146: 0 | AZ146: 0 | BA146: 0 | BB146: 0 | BD146: 26 | BE146: =IF(BE$115=0,0,BE110/BE$115) -> 0 | BF146: 0 | BG146: 0 | BH146: 0 | BI146: 0 | BJ146: 0 | BK146: 0 | BM146: 26 | BN146: =IF(BN$115=0,0,BN110/BN$115) -> 0 | BO146: 0 | BP146: 0 | BQ146: 0 | BR146: 0 | BS146: 0 | BT146: 0
B147: 27 | C147: =IF(C$115=0,0,C111/C$115) -> 0 | D147: 0 | E147: 0 | F147: 0 | G147: 0 | H147: 0 | I147: 0 | K147: 27 | L147: =IF(L$115=0,0,L111/L$115) -> 0 | M147: 0 | N147: 0 | O147: 0 | P147: 0 | Q147: 0 | R147: 0 | T147: 27 | U147: =IF(U$115=0,0,U111/U$115) -> 0 | V147: 0 | W147: 0 | X147: 0 | Y147: 0 | Z147: 0 | AA147: 0 | AC147: 27 | AD147: =IF(AD$115=0,0,AD111/AD$115) -> 0 | AE147: 0 | AF147: 0 | AG147: 0 | AH147: 0 | AI147: 0 | AJ147: 0 | AL147: 27 | AM147: =IF(AM$115=0,0,AM111/AM$115) -> 0 | AN147: 0 | AO147: 0 | AP147: 0 | AQ147: 0 | AR147: 0 | AS147: 0 | AU147: 27 | AV147: =IF(AV$115=0,0,AV111/AV$115) -> 0 | AW147: 0 | AX147: 0 | AY147: 0 | AZ147: 0 | BA147: 0 | BB147: 0 | BD147: 27 | BE147: =IF(BE$115=0,0,BE111/BE$115) -> 0 | BF147: 0 | BG147: 0 | BH147: 0 | BI147: 0 | BJ147: 0 | BK147: 0 | BM147: 27 | BN147: =IF(BN$115=0,0,BN111/BN$115) -> 0 | BO147: 0 | BP147: 0 | BQ147: 0 | BR147: 0 | BS147: 0 | BT147: 0
B148: 28 | C148: =IF(C$115=0,0,C112/C$115) -> 0 | D148: 0 | E148: 0 | F148: 0 | G148: 0 | H148: 0 | I148: 0 | K148: 28 | L148: =IF(L$115=0,0,L112/L$115) -> 0 | M148: 0 | N148: 0 | O148: 0 | P148: 0 | Q148: 0 | R148: 0 | T148: 28 | U148: =IF(U$115=0,0,U112/U$115) -> 0 | V148: 0 | W148: 0 | X148: 0 | Y148: 0 | Z148: 0 | AA148: 0 | AC148: 28 | AD148: =IF(AD$115=0,0,AD112/AD$115) -> 0 | AE148: 0 | AF148: 0 | AG148: 0 | AH148: 0 | AI148: 0 | AJ148: 0 | AL148: 28 | AM148: =IF(AM$115=0,0,AM112/AM$115) -> 0 | AN148: 0 | AO148: 0 | AP148: 0 | AQ148: 0 | AR148: 0 | AS148: 0 | AU148: 28 | AV148: =IF(AV$115=0,0,AV112/AV$115) -> 0 | AW148: 0 | AX148: 0 | AY148: 0 | AZ148: 0 | BA148: 0 | BB148: 0 | BD148: 28 | BE148: =IF(BE$115=0,0,BE112/BE$115) -> 0 | BF148: 0 | BG148: 0 | BH148: 0 | BI148: 0 | BJ148: 0 | BK148: 0 | BM148: 28 | BN148: =IF(BN$115=0,0,BN112/BN$115) -> 0 | BO148: 0 | BP148: 0 | BQ148: 0 | BR148: 0 | BS148: 0 | BT148: 0
B149: 29 | C149: =IF(C$115=0,0,C113/C$115) -> 0 | D149: 0 | E149: 0 | F149: 0 | G149: 0 | H149: 0 | I149: 0 | K149: 29 | L149: =IF(L$115=0,0,L113/L$115) -> 0 | M149: 0 | N149: 0 | O149: 0 | P149: 0 | Q149: 0 | R149: 0 | T149: 29 | U149: =IF(U$115=0,0,U113/U$115) -> 0 | V149: 0 | W149: 0 | X149: 0 | Y149: 0 | Z149: 0 | AA149: 0 | AC149: 29 | AD149: =IF(AD$115=0,0,AD113/AD$115) -> 0 | AE149: 0 | AF149: 0 | AG149: 0 | AH149: 0 | AI149: 0 | AJ149: 0 | AL149: 29 | AM149: =IF(AM$115=0,0,AM113/AM$115) -> 0 | AN149: 0 | AO149: 0 | AP149: 0 | AQ149: 0 | AR149: 0 | AS149: 0 | AU149: 29 | AV149: =IF(AV$115=0,0,AV113/AV$115) -> 0 | AW149: 0 | AX149: 0 | AY149: 0 | AZ149: 0 | BA149: 0 | BB149: 0 | BD149: 29 | BE149: =IF(BE$115=0,0,BE113/BE$115) -> 0 | BF149: 0 | BG149: 0 | BH149: 0 | BI149: 0 | BJ149: 0 | BK149: 0 | BM149: 29 | BN149: =IF(BN$115=0,0,BN113/BN$115) -> 0 | BO149: 0 | BP149: 0 | BQ149: 0 | BR149: 0 | BS149: 0 | BT149: 0
B150: 30 | C150: =IF(C$115=0,0,C114/C$115) -> 0 | D150: 0 | E150: 0 | F150: 0 | G150: 0 | H150: 0 | I150: 0 | K150: 30 | L150: =IF(L$115=0,0,L114/L$115) -> 0 | M150: 0 | N150: 0 | O150: 0 | P150: 0 | Q150: 0 | R150: 0 | T150: 30 | U150: =IF(U$115=0,0,U114/U$115) -> 0 | V150: 0 | W150: 0 | X150: 0 | Y150: 0 | Z150: 0 | AA150: 0 | AC150: 30 | AD150: =IF(AD$115=0,0,AD114/AD$115) -> 0 | AE150: 0 | AF150: 0 | AG150: 0 | AH150: 0 | AI150: 0 | AJ150: 0 | AL150: 30 | AM150: =IF(AM$115=0,0,AM114/AM$115) -> 0 | AN150: 0 | AO150: 0 | AP150: 0 | AQ150: 0 | AR150: 0 | AS150: 0 | AU150: 30 | AV150: =IF(AV$115=0,0,AV114/AV$115) -> 0 | AW150: 0 | AX150: 0 | AY150: 0 | AZ150: 0 | BA150: 0 | BB150: 0 | BD150: 30 | BE150: =IF(BE$115=0,0,BE114/BE$115) -> 0 | BF150: 0 | BG150: 0 | BH150: 0 | BI150: 0 | BJ150: 0 | BK150: 0 | BM150: 30 | BN150: =IF(BN$115=0,0,BN114/BN$115) -> 0 | BO150: 0 | BP150: 0 | BQ150: 0 | BR150: 0 | BS150: 0 | BT150: 0
C151: =SUM(C120:C150) -> 0 | D151: 0 | E151: 0 | F151: 0 | G151: 0 | H151: 0 | I151: 0 | L151: =SUM(L120:L150) -> 0 | M151: 0 | N151: 0 | O151: 0 | P151: 0 | Q151: 0 | R151: 0 | U151: =SUM(U120:U150) -> 0 | V151: 0 | W151: 0 | X151: 0 | Y151: 0 | Z151: 0 | AA151: 0 | AD151: =SUM(AD120:AD150) -> 0 | AE151: 0 | AF151: 0 | AG151: 0 | AH151: 0 | AI151: 0 | AJ151: 0 | AM151: =SUM(AM120:AM150) -> 0 | AN151: 0 | AO151: 0 | AP151: 0 | AQ151: 0 | AR151: 0 | AS151: 0 | AV151: =SUM(AV120:AV150) -> 0 | AW151: 0 | AX151: 0 | AY151: 0 | AZ151: 0 | BA151: 0 | BB151: 0 | BE151: =SUM(BE120:BE150) -> 0 | BF151: 0 | BG151: 0 | BH151: 0 | BI151: 0 | BJ151: 0 | BK151: 0 | BN151: =SUM(BN120:BN150) -> 0 | BO151: 0 | BP151: 0 | BQ151: 0 | BR151: 0 | BS151: 0 | BT151: 0
B154: Table IIi: Age Distribution, 2006. Each column must add up to 100%. | K154: Table IIj: Age Distribution, 2007. Each column must add up to 100%. | T154: Table IIk: Age Distribution, 2008. Each column must add up to 100%. | AC154: Table IIl: Age Distribution, 2009. Each column must add up to 100%. | AL154: Table IIm: Age Distribution, 2010. Each column must add up to 100%. | AU154: Table IIn: Age Distribution, 2011. Each column must add up to 100%. | BD154: Table IIo: Age Distribution, 2012. Each column must add up to 100%. | BM154: Table IIp: Age Distribution, 2013. Each column must add up to 100%.
B155: MY | C155: LDGV | D155: LDGT | E155: HDGV | F155: LDDV | G155: LDDT | H155: HDDV | I155: MC | K155: MY | L155: LDGV | M155: LDGT | N155: HDGV | O155: LDDV | P155: LDDT | Q155: HDDV | R155: MC | T155: MY | U155: LDGV | V155: LDGT | W155: HDGV | X155: LDDV | Y155: LDDT | Z155: HDDV | AA155: MC | AC155: MY | AD155: LDGV | AE155: LDGT | AF155: HDGV | AG155: LDDV | AH155: LDDT | AI155: HDDV | AJ155: MC | AL155: MY | AM155: LDGV | AN155: LDGT | AO155: HDGV | AP155: LDDV | AQ155: LDDT | AR155: HDDV | AS155: MC | AU155: MY | AV155: LDGV | AW155: LDGT | AX155: HDGV | AY155: LDDV | AZ155: LDDT | BA155: HDDV | BB155: MC | BD155: MY | BE155: LDGV | BF155: LDGT | BG155: HDGV | BH155: LDDV | BI155: LDDT | BJ155: HDDV | BK155: MC | BM155: MY | BN155: LDGV | BO155: LDGT | BP155: HDGV | BQ155: LDDV | BR155: LDDT | BS155: HDDV | BT155: MC
B156: 0 | K156: 0 | T156: 0 | AC156: 0 | AL156: 0 | AU156: 0 | BD156: 0 | BM156: 0
B157: 1 | K157: 1 | T157: 1 | AC157: 1 | AL157: 1 | AU157: 1 | BD157: 1 | BM157: 1
B158: 2 | K158: 2 | T158: 2 | AC158: 2 | AL158: 2 | AU158: 2 | BD158: 2 | BM158: 2
B159: 3 | K159: 3 | T159: 3 | AC159: 3 | AL159: 3 | AU159: 3 | BD159: 3 | BM159: 3
B160: 4 | K160: 4 | T160: 4 | AC160: 4 | AL160: 4 | AU160: 4 | BD160: 4 | BM160: 4
B161: 5 | K161: 5 | T161: 5 | AC161: 5 | AL161: 5 | AU161: 5 | BD161: 5 | BM161: 5
B162: 6 | K162: 6 | T162: 6 | AC162: 6 | AL162: 6 | AU162: 6 | BD162: 6 | BM162: 6
B163: 7 | K163: 7 | T163: 7 | AC163: 7 | AL163: 7 | AU163: 7 | BD163: 7 | BM163: 7
B164: 8 | K164: 8 | T164: 8 | AC164: 8 | AL164: 8 | AU164: 8 | BD164: 8 | BM164: 8
B165: 9 | K165: 9 | T165: 9 | AC165: 9 | AL165: 9 | AU165: 9 | BD165: 9 | BM165: 9
B166: 10 | K166: 10 | T166: 10 | AC166: 10 | AL166: 10 | AU166: 10 | BD166: 10 | BM166: 10
B167: 11 | K167: 11 | T167: 11 | AC167: 11 | AL167: 11 | AU167: 11 | BD167: 11 | BM167: 11
B168: 12 | K168: 12 | T168: 12 | AC168: 12 | AL168: 12 | AU168: 12 | BD168: 12 | BM168: 12
B169: 13 | K169: 13 | T169: 13 | AC169: 13 | AL169: 13 | AU169: 13 | BD169: 13 | BM169: 13
B170: 14 | K170: 14 | T170: 14 | AC170: 14 | AL170: 14 | AU170: 14 | BD170: 14 | BM170: 14
B171: 15 | K171: 15 | T171: 15 | AC171: 15 | AL171: 15 | AU171: 15 | BD171: 15 | BM171: 15
B172: 16 | K172: 16 | T172: 16 | AC172: 16 | AL172: 16 | AU172: 16 | BD172: 16 | BM172: 16
B173: 17 | K173: 17 | T173: 17 | AC173: 17 | AL173: 17 | AU173: 17 | BD173: 17 | BM173: 17
B174: 18 | K174: 18 | T174: 18 | AC174: 18 | AL174: 18 | AU174: 18 | BD174: 18 | BM174: 18
B175: 19 | K175: 19 | T175: 19 | AC175: 19 | AL175: 19 | AU175: 19 | BD175: 19 | BM175: 19
B176: 20 | K176: 20 | T176: 20 | AC176: 20 | AL176: 20 | AU176: 20 | BD176: 20 | BM176: 20
B177: 21 | K177: 21 | T177: 21 | AC177: 21 | AL177: 21 | AU177: 21 | BD177: 21 | BM177: 21
B178: 22 | K178: 22 | T178: 22 | AC178: 22 | AL178: 22 | AU178: 22 | BD178: 22 | BM178: 22
B179: 23 | K179: 23 | T179: 23 | AC179: 23 | AL179: 23 | AU179: 23 | BD179: 23 | BM179: 23
B180: 24 | K180: 24 | T180: 24 | AC180: 24 | AL180: 24 | AU180: 24 | BD180: 24 | BM180: 24
B181: 25 | K181: 25 | T181: 25 | AC181: 25 | AL181: 25 | AU181: 25 | BD181: 25 | BM181: 25
B182: 26 | K182: 26 | T182: 26 | AC182: 26 | AL182: 26 | AU182: 26 | BD182: 26 | BM182: 26
B183: 27 | K183: 27 | T183: 27 | AC183: 27 | AL183: 27 | AU183: 27 | BD183: 27 | BM183: 27
B184: 28 | K184: 28 | T184: 28 | AC184: 28 | AL184: 28 | AU184: 28 | BD184: 28 | BM184: 28
B185: 29 | K185: 29 | T185: 29 | AC185: 29 | AL185: 29 | AU185: 29 | BD185: 29 | BM185: 29
B186: 30 | K186: 30 | T186: 30 | AC186: 30 | AL186: 30 | AU186: 30 | BD186: 30 | BM186: 30
C187: =SUM(C156:C186) -> 0 | D187: 0 | E187: 0 | F187: 0 | G187: 0 | H187: 0 | I187: 0 | L187: =SUM(L156:L186) -> 0 | M187: 0 | N187: 0 | O187: 0 | P187: 0 | Q187: 0 | R187: 0 | U187: =SUM(U156:U186) -> 0 | V187: 0 | W187: 0 | X187: 0 | Y187: 0 | Z187: 0 | AA187: 0 | AD187: =SUM(AD156:AD186) -> 0 | AE187: 0 | AF187: 0 | AG187: 0 | AH187: 0 | AI187: 0 | AJ187: 0 | AM187: =SUM(AM156:AM186) -> 0 | AN187: 0 | AO187: 0 | AP187: 0 | AQ187: 0 | AR187: 0 | AS187: 0 | AV187: =SUM(AV156:AV186) -> 0 | AW187: 0 | AX187: 0 | AY187: 0 | AZ187: 0 | BA187: 0 | BB187: 0 | BE187: =SUM(BE156:BE186) -> 0 | BF187: 0 | BG187: 0 | BH187: 0 | BI187: 0 | BJ187: 0 | BK187: 0 | BN187: =SUM(BN156:BN186) -> 0 | BO187: 0 | BP187: 0 | BQ187: 0 | BR187: 0 | BS187: 0 | BT187: 0
B188: Source: All default data from EPA, 2010. Inventory of U.S. Greenhouse Gas Emissions and Sinks: 1990-2008. Data generated by EPA's MOBILE6 model.
B189: Table IIIi: Weighted averages, 2006 | K189: Table IIIj: Weighted averages, 2007 | T189: Table IIIk: Weighted averages, 2008 | AC189: Table IIIl: Weighted averages, 2009 | AL189: Table IIIm: Weighted averages, 2010 | AU189: Table IIIn: Weighted averages, 2011 | BD189: Table IIIo: Weighted averages, 2012 | BM189: Table IIIp: Weighted averages, 2013
B190: Used to weight age distribution by annual vehicle mileage accumulation. | K190: Used to weight age distribution by annual vehicle mileage accumulation. | T190: Used to weight age distribution by annual vehicle mileage accumulation. | AC190: Used to weight age distribution by annual vehicle mileage accumulation. | AL190: Used to weight age distribution by annual vehicle mileage accumulation. | AU190: Used to weight age distribution by annual vehicle mileage accumulation. | BD190: Used to weight age distribution by annual vehicle mileage accumulation. | BM190: Used to weight age distribution by annual vehicle mileage accumulation.
B191: MY | C191: LDGV | D191: LDGT | E191: HDGV | F191: LDDV | G191: LDDT | H191: HDDV | I191: MC | K191: MY | L191: LDGV | M191: LDGT | N191: HDGV | O191: LDDV | P191: LDDT | Q191: HDDV | R191: MC | T191: MY | U191: LDGV | V191: LDGT | W191: HDGV | X191: LDDV | Y191: LDDT | Z191: HDDV | AA191: MC | AC191: MY | AD191: LDGV | AE191: LDGT | AF191: HDGV | AG191: LDDV | AH191: LDDT | AI191: HDDV | AJ191: MC | AL191: MY | AM191: LDGV | AN191: LDGT | AO191: HDGV | AP191: LDDV | AQ191: LDDT | AR191: HDDV | AS191: MC | AU191: MY | AV191: LDGV | AW191: LDGT | AX191: HDGV | AY191: LDDV | AZ191: LDDT | BA191: HDDV | BB191: MC | BD191: MY | BE191: LDGV | BF191: LDGT | BG191: HDGV | BH191: LDDV | BI191: LDDT | BJ191: HDDV | BK191: MC | BM191: MY | BN191: LDGV | BO191: LDGT | BP191: HDGV | BQ191: LDDV | BR191: LDDT | BS191: HDDV | BT191: MC
B192: 0 | C192: =IF(C$41=0,0,C156*C10/C$41) -> 0 | D192: =IF(D$41=0,0,D156*D10/D$41) -> 0 | E192: 0 | F192: 0 | G192: 0 | H192: 0 | I192: 0 | K192: 0 | L192: =IF(C$41=0,0,L156*C10/C$41) -> 0 | M192: =IF(D$41=0,0,M156*D10/D$41) -> 0 | N192: 0 | O192: 0 | P192: 0 | Q192: 0 | R192: 0 | T192: 0 | U192: =IF(C$41=0,0,U156*C10/C$41) -> 0 | V192: =IF(D$41=0,0,V156*D10/D$41) -> 0 | W192: 0 | X192: 0 | Y192: 0 | Z192: 0 | AA192: 0 | AC192: 0 | AD192: =IF(C$41=0,0,AD156*C10/C$41) -> 0 | AE192: =IF(D$41=0,0,AE156*D10/D$41) -> 0 | AF192: 0 | AG192: 0 | AH192: 0 | AI192: 0 | AJ192: 0 | AL192: 0 | AM192: =IF(C$41=0,0,AM156*C10/C$41) -> 0 | AN192: =IF(D$41=0,0,AN156*D10/D$41) -> 0 | AO192: 0 | AP192: 0 | AQ192: 0 | AR192: 0 | AS192: 0 | AU192: 0 | AV192: =IF(C$41=0,0,AV156*C10/C$41) -> 0 | AW192: =IF(D$41=0,0,AW156*D10/D$41) -> 0 | AX192: 0 | AY192: 0 | AZ192: 0 | BA192: 0 | BB192: 0 | BD192: 0 | BE192: =IF(C$41=0,0,BE156*C10/C$41) -> 0 | BF192: =IF(D$41=0,0,BF156*D10/D$41) -> 0 | BG192: 0 | BH192: 0 | BI192: 0 | BJ192: 0 | BK192: 0 | BM192: 0 | BN192: =IF(C$41=0,0,BN156*C10/C$41) -> 0 | BO192: =IF(D$41=0,0,BO156*D10/D$41) -> 0 | BP192: 0 | BQ192: 0 | BR192: 0 | BS192: 0 | BT192: 0
B193: 1 | C193: =IF(C$41=0,0,C157*C11/C$41) -> 0 | D193: 0 | E193: 0 | F193: 0 | G193: 0 | H193: 0 | I193: 0 | K193: 1 | L193: =IF(C$41=0,0,L157*C11/C$41) -> 0 | M193: =IF(D$41=0,0,M157*D11/D$41) -> 0 | N193: =IF(E$41=0,0,N157*E11/E$41) -> 0 | O193: =IF(F$41=0,0,O157*F11/F$41) -> 0 | P193: =IF(G$41=0,0,P157*G11/G$41) -> 0 | Q193: =IF(H$41=0,0,Q157*H11/H$41) -> 0 | R193: =IF(I$41=0,0,R157*I11/I$41) -> 0 | T193: 1 | U193: =IF(C$41=0,0,U157*C11/C$41) -> 0 | V193: 0 | W193: 0 | X193: 0 | Y193: 0 | Z193: 0 | AA193: 0 | AC193: 1 | AD193: =IF(C$41=0,0,AD157*C11/C$41) -> 0 | AE193: =IF(D$41=0,0,AE157*D11/D$41) -> 0 | AF193: =IF(E$41=0,0,AF157*E11/E$41) -> 0 | AG193: =IF(F$41=0,0,AG157*F11/F$41) -> 0 | AH193: =IF(G$41=0,0,AH157*G11/G$41) -> 0 | AI193: =IF(H$41=0,0,AI157*H11/H$41) -> 0 | AJ193: =IF(I$41=0,0,AJ157*I11/I$41) -> 0 | AL193: 1 | AM193: =IF(C$41=0,0,AM157*C11/C$41) -> 0 | AN193: 0 | AO193: 0 | AP193: 0 | AQ193: 0 | AR193: 0 | AS193: 0 | AU193: 1 | AV193: =IF(C$41=0,0,AV157*C11/C$41) -> 0 | AW193: 0 | AX193: 0 | AY193: 0 | AZ193: 0 | BA193: 0 | BB193: 0 | BD193: 1 | BE193: =IF(C$41=0,0,BE157*C11/C$41) -> 0 | BF193: 0 | BG193: 0 | BH193: 0 | BI193: 0 | BJ193: 0 | BK193: 0 | BM193: 1 | BN193: =IF(C$41=0,0,BN157*C11/C$41) -> 0 | BO193: 0 | BP193: 0 | BQ193: 0 | BR193: 0 | BS193: 0 | BT193: 0
B194: 2 | C194: =IF(C$41=0,0,C158*C12/C$41) -> 0 | D194: 0 | E194: 0 | F194: 0 | G194: 0 | H194: 0 | I194: 0 | K194: 2 | L194: 0 | M194: 0 | N194: 0 | O194: 0 | P194: 0 | Q194: 0 | R194: 0 | T194: 2 | U194: 0 | V194: 0 | W194: 0 | X194: 0 | Y194: 0 | Z194: 0 | AA194: 0 | AC194: 2 | AD194: 0 | AE194: 0 | AF194: 0 | AG194: 0 | AH194: 0 | AI194: 0 | AJ194: 0 | AL194: 2 | AM194: 0 | AN194: 0 | AO194: 0 | AP194: 0 | AQ194: 0 | AR194: 0 | AS194: 0 | AU194: 2 | AV194: 0 | AW194: 0 | AX194: 0 | AY194: 0 | AZ194: 0 | BA194: 0 | BB194: 0 | BD194: 2 | BE194: 0 | BF194: 0 | BG194: 0 | BH194: 0 | BI194: 0 | BJ194: 0 | BK194: 0 | BM194: 2 | BN194: 0 | BO194: 0 | BP194: 0 | BQ194: 0 | BR194: 0 | BS194: 0 | BT194: 0
B195: 3 | C195: =IF(C$41=0,0,C159*C13/C$41) -> 0 | D195: 0 | E195: 0 | F195: 0 | G195: 0 | H195: 0 | I195: 0 | K195: 3 | L195: 0 | M195: 0 | N195: 0 | O195: 0 | P195: 0 | Q195: 0 | R195: 0 | T195: 3 | U195: 0 | V195: 0 | W195: 0 | X195: 0 | Y195: 0 | Z195: 0 | AA195: 0 | AC195: 3 | AD195: 0 | AE195: 0 | AF195: 0 | AG195: 0 | AH195: 0 | AI195: 0 | AJ195: 0 | AL195: 3 | AM195: 0 | AN195: 0 | AO195: 0 | AP195: 0 | AQ195: 0 | AR195: 0 | AS195: 0 | AU195: 3 | AV195: 0 | AW195: 0 | AX195: 0 | AY195: 0 | AZ195: 0 | BA195: 0 | BB195: 0 | BD195: 3 | BE195: 0 | BF195: 0 | BG195: 0 | BH195: 0 | BI195: 0 | BJ195: 0 | BK195: 0 | BM195: 3 | BN195: 0 | BO195: 0 | BP195: 0 | BQ195: 0 | BR195: 0 | BS195: 0 | BT195: 0
B196: 4 | C196: =IF(C$41=0,0,C160*C14/C$41) -> 0 | D196: 0 | E196: 0 | F196: 0 | G196: 0 | H196: 0 | I196: 0 | K196: 4 | L196: 0 | M196: 0 | N196: 0 | O196: 0 | P196: 0 | Q196: 0 | R196: 0 | T196: 4 | U196: 0 | V196: 0 | W196: 0 | X196: 0 | Y196: 0 | Z196: 0 | AA196: 0 | AC196: 4 | AD196: 0 | AE196: 0 | AF196: 0 | AG196: 0 | AH196: 0 | AI196: 0 | AJ196: 0 | AL196: 4 | AM196: 0 | AN196: 0 | AO196: 0 | AP196: 0 | AQ196: 0 | AR196: 0 | AS196: 0 | AU196: 4 | AV196: 0 | AW196: 0 | AX196: 0 | AY196: 0 | AZ196: 0 | BA196: 0 | BB196: 0 | BD196: 4 | BE196: 0 | BF196: 0 | BG196: 0 | BH196: 0 | BI196: 0 | BJ196: 0 | BK196: 0 | BM196: 4 | BN196: 0 | BO196: 0 | BP196: 0 | BQ196: 0 | BR196: 0 | BS196: 0 | BT196: 0
B197: 5 | C197: =IF(C$41=0,0,C161*C15/C$41) -> 0 | D197: 0 | E197: 0 | F197: 0 | G197: 0 | H197: 0 | I197: 0 | K197: 5 | L197: 0 | M197: 0 | N197: 0 | O197: 0 | P197: 0 | Q197: 0 | R197: 0 | T197: 5 | U197: 0 | V197: 0 | W197: 0 | X197: 0 | Y197: 0 | Z197: 0 | AA197: 0 | AC197: 5 | AD197: 0 | AE197: 0 | AF197: 0 | AG197: 0 | AH197: 0 | AI197: 0 | AJ197: 0 | AL197: 5 | AM197: 0 | AN197: 0 | AO197: 0 | AP197: 0 | AQ197: 0 | AR197: 0 | AS197: 0 | AU197: 5 | AV197: 0 | AW197: 0 | AX197: 0 | AY197: 0 | AZ197: 0 | BA197: 0 | BB197: 0 | BD197: 5 | BE197: 0 | BF197: 0 | BG197: 0 | BH197: 0 | BI197: 0 | BJ197: 0 | BK197: 0 | BM197: 5 | BN197: 0 | BO197: 0 | BP197: 0 | BQ197: 0 | BR197: 0 | BS197: 0 | BT197: 0
B198: 6 | C198: =IF(C$41=0,0,C162*C16/C$41) -> 0 | D198: 0 | E198: 0 | F198: 0 | G198: 0 | H198: 0 | I198: 0 | K198: 6 | L198: 0 | M198: 0 | N198: 0 | O198: 0 | P198: 0 | Q198: 0 | R198: 0 | T198: 6 | U198: 0 | V198: 0 | W198: 0 | X198: 0 | Y198: 0 | Z198: 0 | AA198: 0 | AC198: 6 | AD198: 0 | AE198: 0 | AF198: 0 | AG198: 0 | AH198: 0 | AI198: 0 | AJ198: 0 | AL198: 6 | AM198: 0 | AN198: 0 | AO198: 0 | AP198: 0 | AQ198: 0 | AR198: 0 | AS198: 0 | AU198: 6 | AV198: 0 | AW198: 0 | AX198: 0 | AY198: 0 | AZ198: 0 | BA198: 0 | BB198: 0 | BD198: 6 | BE198: 0 | BF198: 0 | BG198: 0 | BH198: 0 | BI198: 0 | BJ198: 0 | BK198: 0 | BM198: 6 | BN198: 0 | BO198: 0 | BP198: 0 | BQ198: 0 | BR198: 0 | BS198: 0 | BT198: 0
B199: 7 | C199: =IF(C$41=0,0,C163*C17/C$41) -> 0 | D199: 0 | E199: 0 | F199: 0 | G199: 0 | H199: 0 | I199: 0 | K199: 7 | L199: 0 | M199: 0 | N199: 0 | O199: 0 | P199: 0 | Q199: 0 | R199: 0 | T199: 7 | U199: 0 | V199: 0 | W199: 0 | X199: 0 | Y199: 0 | Z199: 0 | AA199: 0 | AC199: 7 | AD199: 0 | AE199: 0 | AF199: 0 | AG199: 0 | AH199: 0 | AI199: 0 | AJ199: 0 | AL199: 7 | AM199: 0 | AN199: 0 | AO199: 0 | AP199: 0 | AQ199: 0 | AR199: 0 | AS199: 0 | AU199: 7 | AV199: 0 | AW199: 0 | AX199: 0 | AY199: 0 | AZ199: 0 | BA199: 0 | BB199: 0 | BD199: 7 | BE199: 0 | BF199: 0 | BG199: 0 | BH199: 0 | BI199: 0 | BJ199: 0 | BK199: 0 | BM199: 7 | BN199: 0 | BO199: 0 | BP199: 0 | BQ199: 0 | BR199: 0 | BS199: 0 | BT199: 0
B200: 8 | C200: =IF(C$41=0,0,C164*C18/C$41) -> 0 | D200: 0 | E200: 0 | F200: 0 | G200: 0 | H200: 0 | I200: 0 | K200: 8 | L200: 0 | M200: 0 | N200: 0 | O200: 0 | P200: 0 | Q200: 0 | R200: 0 | T200: 8 | U200: 0 | V200: 0 | W200: 0 | X200: 0 | Y200: 0 | Z200: 0 | AA200: 0 | AC200: 8 | AD200: 0 | AE200: 0 | AF200: 0 | AG200: 0 | AH200: 0 | AI200: 0 | AJ200: 0 | AL200: 8 | AM200: 0 | AN200: 0 | AO200: 0 | AP200: 0 | AQ200: 0 | AR200: 0 | AS200: 0 | AU200: 8 | AV200: 0 | AW200: 0 | AX200: 0 | AY200: 0 | AZ200: 0 | BA200: 0 | BB200: 0 | BD200: 8 | BE200: 0 | BF200: 0 | BG200: 0 | BH200: 0 | BI200: 0 | BJ200: 0 | BK200: 0 | BM200: 8 | BN200: 0 | BO200: 0 | BP200: 0 | BQ200: 0 | BR200: 0 | BS200: 0 | BT200: 0
B201: 9 | C201: =IF(C$41=0,0,C165*C19/C$41) -> 0 | D201: 0 | E201: 0 | F201: 0 | G201: 0 | H201: 0 | I201: 0 | K201: 9 | L201: 0 | M201: 0 | N201: 0 | O201: 0 | P201: 0 | Q201: 0 | R201: 0 | T201: 9 | U201: 0 | V201: 0 | W201: 0 | X201: 0 | Y201: 0 | Z201: 0 | AA201: 0 | AC201: 9 | AD201: 0 | AE201: 0 | AF201: 0 | AG201: 0 | AH201: 0 | AI201: 0 | AJ201: 0 | AL201: 9 | AM201: 0 | AN201: 0 | AO201: 0 | AP201: 0 | AQ201: 0 | AR201: 0 | AS201: 0 | AU201: 9 | AV201: 0 | AW201: 0 | AX201: 0 | AY201: 0 | AZ201: 0 | BA201: 0 | BB201: 0 | BD201: 9 | BE201: 0 | BF201: 0 | BG201: 0 | BH201: 0 | BI201: 0 | BJ201: 0 | BK201: 0 | BM201: 9 | BN201: 0 | BO201: 0 | BP201: 0 | BQ201: 0 | BR201: 0 | BS201: 0 | BT201: 0
B202: 10 | C202: =IF(C$41=0,0,C166*C20/C$41) -> 0 | D202: 0 | E202: 0 | F202: 0 | G202: 0 | H202: 0 | I202: 0 | K202: 10 | L202: 0 | M202: 0 | N202: 0 | O202: 0 | P202: 0 | Q202: 0 | R202: 0 | T202: 10 | U202: 0 | V202: 0 | W202: 0 | X202: 0 | Y202: 0 | Z202: 0 | AA202: 0 | AC202: 10 | AD202: 0 | AE202: 0 | AF202: 0 | AG202: 0 | AH202: 0 | AI202: 0 | AJ202: 0 | AL202: 10 | AM202: 0 | AN202: 0 | AO202: 0 | AP202: 0 | AQ202: 0 | AR202: 0 | AS202: 0 | AU202: 10 | AV202: 0 | AW202: 0 | AX202: 0 | AY202: 0 | AZ202: 0 | BA202: 0 | BB202: 0 | BD202: 10 | BE202: 0 | BF202: 0 | BG202: 0 | BH202: 0 | BI202: 0 | BJ202: 0 | BK202: 0 | BM202: 10 | BN202: 0 | BO202: 0 | BP202: 0 | BQ202: 0 | BR202: 0 | BS202: 0 | BT202: 0
B203: 11 | C203: =IF(C$41=0,0,C167*C21/C$41) -> 0 | D203: 0 | E203: 0 | F203: 0 | G203: 0 | H203: 0 | I203: 0 | K203: 11 | L203: 0 | M203: 0 | N203: 0 | O203: 0 | P203: 0 | Q203: 0 | R203: 0 | T203: 11 | U203: 0 | V203: 0 | W203: 0 | X203: 0 | Y203: 0 | Z203: 0 | AA203: 0 | AC203: 11 | AD203: 0 | AE203: 0 | AF203: 0 | AG203: 0 | AH203: 0 | AI203: 0 | AJ203: 0 | AL203: 11 | AM203: 0 | AN203: 0 | AO203: 0 | AP203: 0 | AQ203: 0 | AR203: 0 | AS203: 0 | AU203: 11 | AV203: 0 | AW203: 0 | AX203: 0 | AY203: 0 | AZ203: 0 | BA203: 0 | BB203: 0 | BD203: 11 | BE203: 0 | BF203: 0 | BG203: 0 | BH203: 0 | BI203: 0 | BJ203: 0 | BK203: 0 | BM203: 11 | BN203: 0 | BO203: 0 | BP203: 0 | BQ203: 0 | BR203: 0 | BS203: 0 | BT203: 0
B204: 12 | C204: =IF(C$41=0,0,C168*C22/C$41) -> 0 | D204: 0 | E204: 0 | F204: 0 | G204: 0 | H204: 0 | I204: 0 | K204: 12 | L204: 0 | M204: 0 | N204: 0 | O204: 0 | P204: 0 | Q204: 0 | R204: 0 | T204: 12 | U204: 0 | V204: 0 | W204: 0 | X204: 0 | Y204: 0 | Z204: 0 | AA204: 0 | AC204: 12 | AD204: 0 | AE204: 0 | AF204: 0 | AG204: 0 | AH204: 0 | AI204: 0 | AJ204: 0 | AL204: 12 | AM204: 0 | AN204: 0 | AO204: 0 | AP204: 0 | AQ204: 0 | AR204: 0 | AS204: 0 | AU204: 12 | AV204: 0 | AW204: 0 | AX204: 0 | AY204: 0 | AZ204: 0 | BA204: 0 | BB204: 0 | BD204: 12 | BE204: 0 | BF204: 0 | BG204: 0 | BH204: 0 | BI204: 0 | BJ204: 0 | BK204: 0 | BM204: 12 | BN204: 0 | BO204: 0 | BP204: 0 | BQ204: 0 | BR204: 0 | BS204: 0 | BT204: 0
... 159 more rows

Sheet Highway3
B1: 4c. Highway Vehicles - Allocating Control Technology by Model Year
A4: 4. Enter percentage of vehicles with each control technology, by vehicle type.
A5: Enter custom data in the tables I and II below, or use the provided default data.
A6: For vehicle types In Table I, each model year vehicle must have exactly one (1) control technology code.
A7: For vehicle types in Table II, more than one control technology is possible; specify the portion of model year vehicles with each control technology.
B9: Click for Technology Definitions
B14: Table I. Diesel Vehicles & Motorcycles | G14: Table II. Motor Gasoline Vehicles (within each vehicle category, rows must total to 100%) | AD14: Table I. Diesel Vehicles & Motorcycles | AI14: Table II. Motor Gasoline Vehicles (within each vehicle category, rows must total to 100%) | BE14: EVERYWHERE ELSE | BS14: CALIFORNIA
H15: LDGV | O15: LDGT | V15: HDGV | AJ15: LDGV | AQ15: LDGT | AX15: HDGV | BE15: LDGV | BL15: LDGT | BS15: LDGV, T
B16: MY | C16: LDD(V,T) | D16: HDDV | E16: MC | G16: MY | H16: U | I16: N | J16: O | K16: T0 | L16: T1 | M16: L | N16: T2 | O16: U | P16: N | Q16: O | R16: T0 | S16: T1 | T16: L | U16: T2 | V16: U | W16: N | X16: O | Y16: T0 | Z16: T1 | AA16: L | AB16: T2 | AD16: MY | AE16: LDD(V,T) | AF16: HDDV | AG16: MC | AI16: MY | AJ16: U | AK16: N | AL16: O | AM16: T0 | AN16: T1 | AO16: L | AP16: T2 | AQ16: U | AR16: N | AS16: O | AT16: T0 | AU16: T1 | AV16: L | AW16: T2 | AX16: U | AY16: N | AZ16: O | BA16: T0 | BB16: T1 | BC16: L | BD16: T2 | BE16: U | BF16: N | BG16: O | BH16: T0 | BI16: T1 | BJ16: L | BK16: T2 | BL16: U | BM16: N | BN16: O | BO16: T0 | BP16: T1 | BQ16: L | BR16: T2 | BS16: U | BT16: N | BU16: O | BV16: T0 | BW16: T1 | BX16: L | BY16: T2
B17: 2020 | G17: 2020 | AD17: 2020 | AI17: 2020
B18: 2019 | G18: 2019 | AD18: 2019 | AI18: 2019
B19: 2018 | G19: 2018 | AD19: 2018 | AI19: 2018 | AJ19: =AJ20 -> 0 | AK19: =AK20 -> 0 | AL19: 0 | AM19: 0 | AN19: 0 | AO19: 0 | AP19: 1 | AQ19: 0 | AR19: 0 | AS19: 0 | AT19: 0 | AU19: 0 | AV19: 0 | AW19: 1 | AX19: 0 | AY19: 0 | AZ19: 0 | BA19: 0 | BB19: 0 | BC19: 0 | BD19: 1 | BE19: 0 | BF19: 0 | BG19: 0 | BH19: 0 | BI19: 0 | BJ19: 0 | BK19: 1 | BL19: 0 | BM19: 0 | BN19: 0 | BO19: 0 | BP19: 0 | BQ19: 0 | BR19: 1 | BS19: =BS20 -> 0 | BT19: =BT20 -> 0 | BU19: =BU20 -> 0 | BV19: =BV20 -> 0 | BW19: =BW20 -> 0 | BX19: =BX20 -> 0 | BY19: =BY20 -> 0
B20: 2017 | G20: 2017 | AD20: 2017 | AE20: A | AF20: AF | AG20: N | AI20: 2017 | AJ20: =AJ21 -> 0 | AK20: 0 | AL20: 0 | AM20: 0 | AN20: 0 | AO20: 0 | AP20: 1 | AQ20: 0 | AR20: 0 | AS20: 0 | AT20: 0 | AU20: 0 | AV20: 0 | AW20: 1 | AX20: 0 | AY20: 0 | AZ20: 0 | BA20: 0 | BB20: 0 | BC20: 0 | BD20: 1 | BE20: 0 | BF20: 0 | BG20: 0 | BH20: 0 | BI20: 0 | BJ20: 0 | BK20: 1 | BL20: 0 | BM20: 0 | BN20: 0 | BO20: 0 | BP20: 0 | BQ20: 0 | BR20: 1 | BS20: 0 | BT20: 0 | BU20: 0 | BV20: 0 | BW20: 0 | BX20: 0 | BY20: 0
B21: 2016 | G21: 2016 | AD21: 2016 | AE21: A | AF21: AF | AG21: N | AI21: 2016 | AJ21: =AJ22 -> 0 | AK21: 0 | AL21: 0 | AM21: 0 | AN21: 0 | AO21: 0 | AP21: 1 | AQ21: 0 | AR21: 0 | AS21: 0 | AT21: 0 | AU21: 0 | AV21: 0 | AW21: 1 | AX21: 0 | AY21: 0 | AZ21: 0 | BA21: 0 | BB21: 0 | BC21: 0 | BD21: 1 | BE21: 0 | BF21: 0 | BG21: 0 | BH21: 0 | BI21: 0 | BJ21: 0 | BK21: 1 | BL21: 0 | BM21: 0 | BN21: 0 | BO21: 0 | BP21: 0 | BQ21: 0 | BR21: 1 | BS21: 0 | BT21: 0 | BU21: 0 | BV21: 0 | BW21: 0 | BX21: 0 | BY21: 0
B22: 2015 | G22: 2015 | AD22: 2015 | AE22: A | AF22: AF | AG22: N | AI22: 2015 | AJ22: 0 | AK22: 0 | AL22: 0 | AM22: 0 | AN22: 0 | AO22: 0 | AP22: 1 | AQ22: 0 | AR22: 0 | AS22: 0 | AT22: 0 | AU22: 0 | AV22: 0 | AW22: 1 | BC22: 0 | BD22: 1 | BJ22: 0 | BK22: 1 | BQ22: 0 | BR22: 1
B23: 2014 | G23: 2014 | AD23: 2014 | AE23: A | AF23: AF | AG23: N | AI23: 2014 | AJ23: 0 | AK23: 0 | AL23: 0 | AM23: 0 | AN23: 0 | AO23: 0 | AP23: 1 | AQ23: 0 | AR23: 0 | AS23: 0 | AT23: 0 | AU23: 0 | AV23: 0 | AW23: 1 | BC23: 0 | BD23: 1 | BJ23: 0 | BK23: 1 | BQ23: 0 | BR23: 1
B24: 2013 | G24: 2013 | AD24: 2013 | AE24: A | AF24: AF | AG24: N | AI24: 2013 | AJ24: 0 | AK24: 0 | AL24: 0 | AM24: 0 | AN24: 0 | AO24: 0 | AP24: 1 | AQ24: 0 | AR24: 0 | AS24: 0 | AT24: 0 | AU24: 0 | AV24: 0 | AW24: 1 | BC24: 0 | BD24: 1 | BJ24: 0 | BK24: 1 | BQ24: 0 | BR24: 1
B25: 2012 | G25: 2012 | AD25: 2012 | AE25: A | AF25: AF | AG25: N | AI25: 2012 | AJ25: 0 | AK25: 0 | AL25: 0 | AM25: 0 | AN25: 0 | AO25: 0 | AP25: 1 | AQ25: 0 | AR25: 0 | AS25: 0 | AT25: 0 | AU25: 0 | AV25: 0 | AW25: 1 | BC25: 0 | BD25: 1 | BJ25: 0 | BK25: 1 | BQ25: 0 | BR25: 1
B26: 2011 | G26: 2011 | AD26: 2011 | AE26: A | AF26: AF | AG26: N | AI26: 2011 | AJ26: 0 | AK26: 0 | AL26: 0 | AM26: 0 | AN26: 0 | AO26: 0 | AP26: 1 | AQ26: 0 | AR26: 0 | AS26: 0 | AT26: 0 | AU26: 0 | AV26: 0 | AW26: 1 | BC26: 0 | BD26: 1 | BJ26: 0 | BK26: 1 | BQ26: 0 | BR26: 1
B27: 2010 | G27: 2010 | AD27: 2010 | AE27: A | AF27: AF | AG27: N | AI27: 2010 | AJ27: 0 | AK27: 0 | AL27: 0 | AM27: 0 | AN27: 0 | AO27: 0 | AP27: 1 | AQ27: 0 | AR27: 0 | AS27: 0 | AT27: 0 | AU27: 0 | AV27: 0 | AW27: 1 | BC27: 0 | BD27: 1 | BJ27: 0 | BK27: 1 | BQ27: 0 | BR27: 1
B28: 2009 | G28: 2009 | AD28: 2009 | AE28: A | AF28: A | AG28: N | AI28: 2009 | AJ28: =BE28 -> 0 | AK28: =BF28 -> 0 | AL28: 0 | AM28: 0 | AN28: 0 | AO28: 0 | AP28: 1 | AQ28: =BL28 -> 0 | AR28: 0 | AS28: 0 | AT28: 0 | AU28: 0 | AV28: 0.0001860563096 | AW28: 0.9998139437 | BC28: 0.19 | BD28: 0.81 | BJ28: 0 | BK28: 1 | BQ28: 0 | BR28: 1
B29: 2008 | G29: 2008 | AD29: 2008 | AE29: A | AF29: A | AG29: N | AI29: 2008 | AJ29: 0 | AK29: 0 | AL29: 0 | AM29: 0 | AN29: 0 | AO29: 0.01705157092 | AP29: 0.9829484291 | AQ29: =BL29 -> 0 | AR29: 0 | AS29: 0 | AT29: 0 | AU29: 0 | AV29: 0.0001860563096 | AW29: 0.9998139437 | BC29: 0.2 | BD29: 0.8 | BJ29: 0.01705157092 | BK29: 0.9829484291 | BQ29: 0.0001860563096 | BR29: 0.9998139437
B30: 2007 | G30: 2007 | AD30: 2007 | AE30: A | AF30: A | AG30: N | AI30: 2007 | AJ30: =BE30 -> 0 | AK30: 0 | AL30: 0 | AM30: 0 | AN30: 0 | AO30: 0.04216314858 | AP30: 0.9578368514 | AQ30: 0 | AR30: 0 | AS30: 0 | AT30: 0 | AU30: 0 | AV30: 0.1441857611 | AW30: 0.8558142389 | BC30: 0.21 | BD30: 0.79 | BJ30: 0.04216314858 | BK30: 0.9578368514 | BQ30: 0.1441857611 | BR30: 0.8558142389
B31: 2006 | G31: 2006 | AD31: 2006 | AE31: A | AF31: A | AG31: N | AI31: 2006 | AJ31: =BE31 -> 0 | AK31: 0 | AL31: 0 | AM31: 0 | AN31: 0 | AO31: 0.1759286479 | AP31: 0.8240713521 | AQ31: =BL31 -> 0 | AR31: 0 | AS31: 0 | AT31: 0 | AU31: 0 | AV31: 0.2453856847 | AW31: 0.7546143153 | BC31: 0.22 | BD31: 0.78 | BJ31: 0.1759286479 | BK31: 0.8240713521 | BQ31: 0.2453856847 | BR31: 0.7546143153
B32: 2005 | G32: 2005 | AD32: 2005 | AE32: A | AF32: A | AG32: N | AI32: 2005 | AJ32: 0 | AK32: 0 | AL32: 0 | AM32: 0 | AN32: 0 | AO32: 0.3778700081 | AP32: 0.6221299919 | AQ32: =BL32 -> 0 | AR32: =BM32 -> 0 | AS32: =BN32 -> 0 | AT32: =BO32 -> 0 | AU32: =BP32 -> 0 | AV32: =BQ32 -> 0.3794243519 | AW32: 0.6205756481 | BC32: 0.2299324608 | BD32: 0.7700675392 | BJ32: 0.3778700081 | BK32: 0.6221299919 | BQ32: 0.3794243519 | BR32: 0.6205756481
B33: 2004 | G33: 2004 | AD33: 2004 | AE33: A | AF33: A | AG33: N | AI33: 2004 | AJ33: 0 | AK33: 0 | AL33: 0 | AM33: 0 | AN33: 6.861458126e-06 | AO33: 0.4129349578 | AP33: 0.5870581807 | AQ33: 0 | AR33: 0 | AS33: 0 | AT33: 0 | AU33: 0 | AV33: 0.7217186915 | AW33: 0.2782813085 | BB33: 0.04801550916 | BC33: 0.3653100113 | BD33: 0.5866744795 | BI33: 6.861458126e-06 | BJ33: 0.4129349578 | BK33: 0.5870581807 | BQ33: 0.7217186915 | BR33: 0.2782813085
B34: 2003 | G34: 2003 | AD34: 2003 | AE34: A | AF34: A | AG34: N | AI34: 2003 | AJ34: 0 | AK34: 0 | AL34: 0 | AM34: 0 | AN34: 0.001356077819 | AO34: 0.8663985055 | AP34: 0.1322454167 | AQ34: 0 | AR34: 0 | AS34: 0 | AT34: 0 | AU34: 0.0004298691113 | AV34: 0.5344141389 | AW34: 0.465155992 | BB34: 0.6542950274 | BC34: 0.2977927414 | BD34: 0.04791223125 | BI34: 0.001356077819 | BJ34: 0.8663985055 | BK34: 0.1322454167 | BP34: 0.0004298691113 | BQ34: 0.5344141389 | BR34: 0.465155992
B35: 2002 | G35: 2002 | AD35: 2002 | AE35: A | AF35: A | AG35: N | AI35: 2002 | AJ35: 0 | AK35: 0 | AL35: 0 | AM35: 0 | AN35: 0.01021814544 | AO35: 0.9897818546 | AP35: 0 | AQ35: 0 | AR35: 0 | AS35: 0 | AT35: 0 | AU35: 0.1024780295 | AV35: 0.8975219705 | AW35: 0 | BB35: 0.6872431609 | BC35: 0.3127568391 | BI35: 0.01021814544 | BJ35: 0.9897818546 | BP35: 0.1024780295 | BQ35: 0.8975219705
B36: 2001 | G36: 2001 | AD36: 2001 | AE36: A | AF36: A | AG36: N | AI36: 2001 | AJ36: 0 | AK36: 0 | AL36: 0 | AM36: 0 | AN36: 0.02713401182 | AO36: 0.9728659882 | AP36: 0 | AQ36: 0 | AR36: 0 | AS36: 0 | AT36: 0 | AU36: 0.00858582806 | AV36: 0.9914141719 | AW36: 0 | BB36: 0.6359378954 | BC36: 0.3640621046 | BI36: 0.02713401182 | BJ36: 0.9728659882 | BP36: 0.00858582806 | BQ36: 0.9914141719
B37: 2000 | G37: 2000 | AD37: 2000 | AE37: A | AF37: A | AG37: N | AI37: 2000 | AJ37: 0 | AK37: 0 | AL37: 0 | AM37: 0 | AN37: 0.4437557054 | AO37: 0.5562442946 | AP37: 0 | AQ37: 0 | AR37: 0 | AS37: 0 | AT37: 0 | AU37: 0.6500571216 | AV37: 0.3499428784 | AW37: 0 | BB37: 0.5384459283 | BC37: 0.4615540717 | BI37: 0.4437557054 | BJ37: 0.5562442946 | BP37: 0.6500571216 | BQ37: 0.3499428784
B38: 1999 | G38: 1999 | AD38: 1999 | AE38: A | AF38: A | AG38: N | AI38: 1999 | AJ38: 0 | AK38: 0 | AL38: 0 | AM38: 5.758805559e-05 | AN38: 0.6695030704 | AO38: 0.3304393416 | AP38: 0 | AQ38: 0 | AR38: 0 | AS38: 0 | AT38: 0 | AU38: 0.5695459772 | AV38: 0.4304540228 | AW38: 0 | BB38: 0.7768089906 | BC38: 0.2231910094 | BH38: 5.758805559e-05 | BI38: 0.6695030704 | BJ38: 0.3304393416 | BP38: 0.5695459772 | BQ38: 0.4304540228
B39: 1998 | G39: 1998 | AD39: 1998 | AE39: A | AF39: A | AG39: N | AI39: 1998 | AJ39: =IF(SelectedStateAbbr="CA",BS39,BE39) -> 0 | AK39: =IF(SelectedStateAbbr="CA",BT39,BF39) -> 0 | AL39: =IF(SelectedStateAbbr="CA",BU39,BG39) -> 0 | AM39: =IF(SelectedStateAbbr="CA",BV39,BH39) -> 0.0001123347658 | AN39: 0.869828636 | AO39: 0.1300590292 | AP39: 0 | AQ39: =IF(SelectedStateAbbr="CA",BS39,BL39) -> 0 | AR39: =IF(SelectedStateAbbr="CA",BT39,BM39) -> 0 | AS39: =IF(SelectedStateAbbr="CA",BU39,BN39) -> 0 | AT39: =IF(SelectedStateAbbr="CA",BV39,BO39) -> 0 | AU39: =IF(SelectedStateAbbr="CA",BW39,BP39) -> 0.7985814815 | AV39: =IF(SelectedStateAbbr="CA",BX39,BQ39) -> 0.2014185185 | BB39: 0.9633105121 | BC39: 0.03668948787 | BH39: 0.0001123347658 | BI39: 0.869828636 | BJ39: 0.1300590292 | BP39: 0.7985814815 | BQ39: 0.2014185185 | BW39: 0.8 | BX39: 0.2
B40: 1997 | G40: 1997 | AD40: 1997 | AE40: A | AF40: A | AG40: N | AI40: 1997 | AJ40: 0 | AK40: 0 | AL40: 0 | AM40: 0.005 | AN40: 0.965 | AO40: 0.03 | AP40: 0 | AQ40: 0 | AR40: 0 | AS40: 0 | AT40: 0 | AU40: 1 | AV40: 0 | AZ40: 0.1 | BA40: 0.05 | BB40: 0.85 | BH40: 0.005 | BI40: 0.965 | BJ40: 0.03 | BP40: 1 | BW40: 0.8 | BX40: 0.2
B41: 1996 | G41: 1996 | AD41: 1996 | AE41: A | AF41: A | AG41: N | AI41: 1996 | AJ41: 0 | AK41: 0 | AL41: 0 | AM41: 0.01 | AN41: 0.97 | AO41: 0.02 | AP41: 0 | AQ41: 0 | AR41: 0 | AS41: 0 | AT41: 0 | AU41: 1 | AV41: 0 | AZ41: 0.25 | BA41: 0.1 | BB41: 0.65 | BH41: 0.01 | BI41: 0.97 | BJ41: 0.02 | BP41: 1 | BW41: 0.8 | BX41: 0.2
B42: 1995 | G42: 1995 | AD42: 1995 | AE42: M | AF42: M | AG42: U | AI42: 1995 | AJ42: 0 | AK42: 0 | AL42: 0 | AM42: 0.2 | AN42: 0.8 | AO42: 0 | AP42: 0 | AQ42: 0 | AR42: 0 | AS42: 0 | AT42: 0.2 | AU42: 0.8 | AV42: 0 | AY42: 0.45 | AZ42: 0.3 | BA42: 0.25 | BH42: 0.2 | BI42: 0.8 | BO42: 0.2 | BP42: 0.8 | BW42: 0.85 | BX42: 0.15
B43: 1994 | G43: 1994 | AD43: 1994 | AE43: M | AF43: M | AG43: U | AI43: 1994 | AJ43: 0 | AK43: 0 | AL43: 0 | AM43: =IF(SelectedStateAbbr="CA",BV43,BH43) -> 0.6 | AN43: =IF(SelectedStateAbbr="CA",BW43,BI43) -> 0.4 | AO43: =IF(SelectedStateAbbr="CA",BX43,BJ43) -> 0 | AP43: 0 | AQ43: 0 | AR43: 0 | AS43: 0 | AT43: 0.6 | AU43: 0.4 | AV43: 0 | AY43: 0.45 | AZ43: 0.3 | BA43: 0.25 | BH43: 0.6 | BI43: 0.4 | BO43: 0.6 | BP43: 0.4 | BW43: 0.9 | BX43: 0.1
B44: 1993 | G44: 1993 | AD44: 1993 | AE44: M | AF44: M | AG44: U | AI44: 1993 | AJ44: 0 | AK44: 0 | AL44: 0 | AM44: 1 | AN44: 0 | AO44: 0 | AP44: 0 | AQ44: 0 | AR44: 0 | AS44: 0.05 | AT44: 0.95 | AU44: 0 | AV44: 0 | AY44: 0.45 | AZ44: 0.3 | BA44: 0.25 | BH44: 1 | BN44: 0.05 | BO44: 0.95 | BV44: 0.2 | BW44: 0.8
B45: 1992 | G45: 1992 | AD45: 1992 | AE45: M | AF45: M | AG45: U | AI45: 1992 | AJ45: 0 | AK45: 0 | AL45: 0 | AM45: 1 | AN45: 0 | AO45: 0 | AP45: 0 | AQ45: 0 | AR45: 0 | AS45: 0.05 | AT45: 0.95 | AU45: 0 | AV45: 0 | AY45: 0.45 | AZ45: 0.3 | BA45: 0.25 | BH45: 1 | BN45: 0.05 | BO45: 0.95 | BV45: 0.6 | BW45: 0.4
B46: 1991 | G46: 1991 | AD46: 1991 | AE46: M | AF46: M | AG46: U | AI46: 1991 | AJ46: 0 | AK46: 0 | AL46: 0 | AM46: 1 | AN46: 0 | AO46: 0 | AP46: 0 | AQ46: 0 | AR46: 0 | AS46: 0.05 | AT46: 0.95 | AU46: 0 | AV46: 0 | AY46: 0.45 | AZ46: 0.3 | BA46: 0.25 | BH46: 1 | BN46: 0.05 | BO46: 0.95 | BV46: 1
B47: 1990 | G47: 1990 | AD47: 1990 | AE47: M | AF47: M | AG47: U | AI47: 1990 | AJ47: 0 | AK47: 0 | AL47: 0 | AM47: 1 | AN47: 0 | AO47: 0 | AP47: 0 | AQ47: 0 | AR47: 0 | AS47: 0.05 | AT47: 0.95 | AU47: 0 | AV47: 0 | AY47: 0.45 | AZ47: 0.3 | BA47: 0.25 | BH47: 1 | BN47: 0.05 | BO47: 0.95 | BV47: 1
B48: 1989 | G48: 1989 | AD48: 1989 | AE48: M | AF48: M | AG48: U | AI48: 1989 | AJ48: 0 | AK48: 0 | AL48: 0 | AM48: 1 | AN48: 0 | AO48: 0 | AP48: 0 | AQ48: 0 | AR48: 0 | AS48: 0.05 | AT48: 0.95 | AU48: 0 | AV48: 0 | AY48: 0.6 | AZ48: 0.25 | BA48: 0.15 | BH48: 1 | BN48: 0.05 | BO48: 0.95 | BV48: 1
B49: 1988 | G49: 1988 | AD49: 1988 | AE49: M | AF49: M | AG49: U | AI49: 1988 | AJ49: 0 | AK49: 0 | AL49: 0 | AM49: 1 | AN49: 0 | AO49: 0 | AP49: 0 | AQ49: 0 | AR49: 0 | AS49: 0.05 | AT49: 0.95 | AU49: 0 | AV49: 0 | AY49: 0.6 | AZ49: 0.25 | BA49: 0.15 | BH49: 1 | BN49: 0.05 | BO49: 0.95 | BV49: 1
B50: 1987 | G50: 1987 | AD50: 1987 | AE50: M | AF50: M | AG50: U | AI50: 1987 | AJ50: 0 | AK50: 0 | AL50: 0 | AM50: 1 | AN50: 0 | AO50: 0 | AP50: 0 | AQ50: 0 | AR50: 0 | AS50: 0.05 | AT50: 0.95 | AU50: 0 | AV50: 0 | AY50: 0.7 | AZ50: 0.15 | BA50: 0.15 | BH50: 1 | BN50: 0.05 | BO50: 0.95 | BV50: 1
B51: 1986 | G51: 1986 | AD51: 1986 | AE51: M | AF51: M | AG51: U | AI51: 1986 | AJ51: 0 | AK51: 0 | AL51: 0 | AM51: 1 | AN51: 0 | AO51: 0 | AP51: 0 | AQ51: 0 | AR51: 0 | AS51: 0.5 | AT51: 0.5 | AU51: 0 | AV51: 0 | AY51: 0.95 | AZ51: 0.05 | BH51: 1 | BN51: 0.5 | BO51: 0.5 | BV51: 1
B52: 1985 | G52: 1985 | AD52: 1985 | AE52: M | AF52: M | AG52: U | AI52: 1985 | AJ52: 0 | AK52: 0 | AL52: 0 | AM52: 1 | AN52: 0 | AO52: 0 | AP52: 0 | AQ52: 0 | AR52: 0 | AS52: 0.6 | AT52: 0.4 | AU52: 0 | AV52: 0 | AY52: 0.95 | AZ52: 0.05 | BH52: 1 | BN52: 0.6 | BO52: 0.4 | BV52: 1
B53: 1984 | G53: 1984 | AD53: 1984 | AE53: M | AF53: M | AG53: U | AI53: 1984 | AJ53: 0 | AK53: 0 | AL53: 0 | AM53: 1 | AN53: 0 | AO53: 0 | AP53: 0 | AQ53: 0 | AR53: 0 | AS53: 0.7 | AT53: 0.3 | AU53: 0 | AV53: 0 | AX53: 0.95 | AZ53: 0.05 | BH53: 1 | BN53: 0.7 | BO53: 0.3 | BV53: 1
B54: 1983 | G54: 1983 | AD54: 1983 | AE54: M | AF54: M | AG54: U | AI54: 1983 | AJ54: 0 | AK54: 0 | AL54: 0.12 | AM54: 0.88 | AN54: 0 | AO54: 0 | AP54: 0 | AQ54: 0 | AR54: 0 | AS54: 0.8 | AT54: 0.2 | AU54: 0 | AV54: 0 | AX54: 0.95 | AZ54: 0.05 | BG54: 0.12 | BH54: 0.88 | BN54: 0.8 | BO54: 0.2 | BU54: 0.12 | BV54: 0.88
B55: 1982 | G55: 1982 | AD55: 1982 | AE55: U | AF55: U | AG55: U | AI55: 1982 | AJ55: 0 | AK55: 0 | AL55: 0.14 | AM55: 0.86 | AN55: 0 | AO55: 0 | AP55: 0 | AQ55: 0 | AR55: 0 | AS55: 0.9 | AT55: 0.1 | AU55: 0 | AV55: 0 | AX55: 0.95 | AZ55: 0.05 | BG55: 0.14 | BH55: 0.86 | BN55: 0.9 | BO55: 0.1 | BU55: 0.14 | BV55: 0.86
B56: 1981 | G56: 1981 | AD56: 1981 | AE56: U | AF56: U | AG56: U | AI56: 1981 | AJ56: 0 | AK56: 0 | AL56: 0.15 | AM56: 0.85 | AN56: 0 | AO56: 0 | AP56: 0 | AQ56: 0 | AR56: 0 | AS56: 0.95 | AT56: 0.05 | AU56: 0 | AV56: 0 | AX56: 1 | BG56: 0.15 | BH56: 0.85 | BN56: 0.95 | BO56: 0.05 | BU56: 0.15 | BV56: 0.85
B57: 1980 | G57: 1980 | AD57: 1980 | AE57: U | AF57: U | AG57: U | AI57: 1980 | AJ57: 0 | AK57: 0.05 | AL57: 0.88 | AM57: 0.07 | AN57: 0 | AO57: 0 | AP57: 0 | AQ57: 0 | AR57: 0.2 | AS57: 0.8 | AT57: 0 | AU57: 0 | AV57: 0 | AX57: 1 | BF57: 0.05 | BG57: 0.88 | BH57: 0.07 | BM57: 0.2 | BN57: 0.8 | BU57: 0.15 | BV57: 0.85
B58: 1979 | G58: 1979 | AD58: 1979 | AE58: U | AF58: U | AG58: U | AI58: 1979 | AJ58: 0 | AK58: 0.1 | AL58: 0.9 | AM58: 0 | AN58: 0 | AO58: 0 | AP58: 0 | AQ58: 0 | AR58: 0.2 | AS58: 0.8 | AT58: 0 | AU58: 0 | AV58: 0 | AX58: 1 | BF58: 0.1 | BG58: 0.9 | BM58: 0.2 | BN58: 0.8 | BU58: 1
B59: 1978 | G59: 1978 | AD59: 1978 | AE59: U | AF59: U | AG59: U | AI59: 1978 | AJ59: 0 | AK59: 0.1 | AL59: 0.9 | AM59: 0 | AN59: 0 | AO59: 0 | AP59: 0 | AQ59: 0 | AR59: 0.25 | AS59: 0.75 | AT59: 0 | AU59: 0 | AV59: 0 | AX59: 1 | BF59: 0.1 | BG59: 0.9 | BM59: 0.25 | BN59: 0.75 | BU59: 1
B60: 1977 | G60: 1977 | AD60: 1977 | AE60: U | AF60: U | AG60: U | AI60: 1977 | AJ60: 0 | AK60: 0.15 | AL60: 0.85 | AM60: 0 | AN60: 0 | AO60: 0 | AP60: 0 | AQ60: 0 | AR60: 0.25 | AS60: 0.75 | AT60: 0 | AU60: 0 | AV60: 0 | AX60: 1 | BF60: 0.15 | BG60: 0.85 | BM60: 0.25 | BN60: 0.75 | BU60: 1
B61: 1976 | G61: 1976 | AD61: 1976 | AE61: U | AF61: U | AG61: U | AI61: 1976 | AJ61: 0 | AK61: 0.15 | AL61: 0.85 | AM61: 0 | AN61: 0 | AO61: 0 | AP61: 0 | AQ61: 0 | AR61: 0.2 | AS61: 0.8 | AT61: 0 | AU61: 0 | AV61: 0 | AX61: 1 | BF61: 0.15 | BG61: 0.85 | BM61: 0.2 | BN61: 0.8 | BU61: 1
B62: 1975 | G62: 1975 | AD62: 1975 | AE62: U | AF62: U | AG62: U | AI62: 1975 | AJ62: 0 | AK62: 0.2 | AL62: 0.8 | AM62: 0 | AN62: 0 | AO62: 0 | AP62: 0 | AQ62: 0 | AR62: 0.3 | AS62: 0.7 | AT62: 0 | AU62: 0 | AV62: 0 | AX62: 1 | BF62: 0.2 | BG62: 0.8 | BM62: 0.3 | BN62: 0.7 | BU62: 1
B63: 1974 | G63: 1974 | AD63: 1974 | AE63: U | AF63: U | AG63: U | AI63: 1974 | AJ63: 0 | AK63: 1 | AL63: 0 | AM63: 0 | AN63: 0 | AO63: 0 | AP63: 0 | AQ63: 0 | AR63: 1 | AS63: 0 | AT63: 0 | AU63: 0 | AV63: 0 | AX63: 1 | BF63: 1 | BM63: 1 | BT63: 1
B64: 1973 | G64: 1973 | AD64: 1973 | AE64: U | AF64: U | AG64: U | AI64: 1973 | AJ64: 0 | AK64: 1 | AL64: 0 | AM64: 0 | AN64: 0 | AO64: 0 | AP64: 0 | AQ64: 0 | AR64: 1 | AS64: 0 | AT64: 0 | AU64: 0 | AV64: 0 | AX64: 1 | BF64: 1 | BM64: 1 | BT64: 1
B65: 1972 | G65: 1972 | AD65: 1972 | AE65: U | AF65: U | AG65: U | AI65: 1972 | AJ65: 1 | AK65: 0 | AL65: 0 | AM65: 0 | AN65: 0 | AO65: 0 | AP65: 0 | AQ65: 1 | AR65: 0 | AS65: 0 | AT65: 0 | AU65: 0 | AV65: 0 | AX65: 1 | BE65: 1 | BL65: 1 | BS65: 1
B66: 1971 | G66: 1971 | AD66: 1971 | AE66: U | AF66: U | AG66: U | AI66: 1971 | AJ66: 1 | AK66: 0 | AL66: 0 | AM66: 0 | AN66: 0 | AO66: 0 | AP66: 0 | AQ66: 1 | AR66: 0 | AS66: 0 | AT66: 0 | AU66: 0 | AV66: 0 | AX66: 1 | BE66: 1 | BL66: 1 | BS66: 1
B67: 1970 | G67: 1970 | AD67: 1970 | AE67: U | AF67: U | AG67: U | AI67: 1970 | AJ67: 1 | AK67: 0 | AL67: 0 | AM67: 0 | AN67: 0 | AO67: 0 | AP67: 0 | AQ67: 1 | AR67: 0 | AS67: 0 | AT67: 0 | AU67: 0 | AV67: 0 | AX67: 1 | BE67: 1 | BL67: 1 | BS67: 1
B68: 1969 | G68: 1969 | AD68: 1969 | AE68: U | AF68: U | AG68: U | AI68: 1969 | AJ68: 1 | AK68: 0 | AL68: 0 | AM68: 0 | AN68: 0 | AO68: 0 | AP68: 0 | AQ68: 1 | AR68: 0 | AS68: 0 | AT68: 0 | AU68: 0 | AV68: 0 | AX68: 1 | BE68: 1 | BL68: 1 | BS68: 1
B69: 1968 | G69: 1968 | AD69: 1968 | AE69: U | AF69: U | AG69: U | AI69: 1968 | AJ69: 1 | AK69: 0 | AL69: 0 | AM69: 0 | AN69: 0 | AO69: 0 | AP69: 0 | AQ69: 1 | AR69: 0 | AS69: 0 | AT69: 0 | AU69: 0 | AV69: 0 | AX69: 1 | BE69: 1 | BL69: 1 | BS69: 1
B70: 1967 | G70: 1967 | AD70: 1967 | AE70: U | AF70: U | AG70: U | AI70: 1967 | AJ70: 1 | AK70: 0 | AL70: 0 | AM70: 0 | AN70: 0 | AO70: 0 | AP70: 0 | AQ70: 1 | AR70: 0 | AS70: 0 | AT70: 0 | AU70: 0 | AV70: 0 | AX70: 1 | BE70: 1 | BL70: 1 | BS70: 1
B71: 1966 | G71: 1966 | AD71: 1966 | AE71: U | AF71: U | AG71: U | AI71: 1966 | AJ71: 1 | AK71: 0 | AL71: 0 | AM71: 0 | AN71: 0 | AO71: 0 | AP71: 0 | AQ71: 1 | AR71: 0 | AS71: 0 | AT71: 0 | AU71: 0 | AV71: 0 | AX71: 1 | BE71: 1 | BL71: 1 | BS71: 1
B72: 1965 | G72: 1965 | AD72: 1965 | AE72: U | AF72: U | AG72: U | AI72: 1965 | AX72: 1 | BE72: 1 | BL72: 1
B73: 1964 | G73: 1964 | AD73: 1964 | AE73: U | AF73: U | AG73: U | AI73: 1964 | AX73: 1 | BE73: 1 | BL73: 1
B74: 1963 | G74: 1963 | AD74: 1963 | AE74: U | AF74: U | AG74: U | AI74: 1963 | AX74: 1 | BE74: 1 | BL74: 1
B75: 1962 | G75: 1962 | AD75: 1962 | AE75: U | AF75: U | AG75: U | AI75: 1962 | AX75: 1 | BE75: 1 | BL75: 1
B76: 1961 | G76: 1961 | AD76: 1961 | AE76: U | AF76: U | AG76: U | AI76: 1961 | AX76: 1 | BE76: 1 | BL76: 1
B77: 1960 | G77: 1960 | AD77: 1960 | AE77: U | AF77: U | AG77: U | AI77: 1960 | AX77: 1 | BE77: 1 | BL77: 1
B78: Source: All default data from EPA, 2010. Inventory of U.S. Greenhouse Gas Emissions and Sinks: 1990-2008. Data generated by EPA's MOBILE6 model.
B79: 1 | C79: 2 | D79: 3 | E79: 4 | F79: 5 | G79: 6 | H79: 7 | I79: 8 | J79: 9 | K79: 10 | L79: 11 | M79: 12 | O79: 13 | P79: 14 | Q79: 15 | R79: 16 | S79: 17 | T79: 18 | V79: 19 | W79: 20 | X79: 21 | Y79: 22 | Z79: 23 | AA79: 24
AG80: Source: US Inventory 1990-2010. Mobile10.xls

Sheet LDGV
A1: LDGV | AB1: vmtmy | AC1: VMTtot | AD1: emission
AB2: 2 | AC2: =VLOOKUP($A$1,StateVMT,2,FALSE) -> 7 | AD2: =HLOOKUP($A$1,N2O_Factors,2,FALSE) -> 2
B4: 1990 | C4: 7 | D4: 8 | E4: 9 | F4: 10 | G4: 11 | H4: 12 | I4: 13 | K4: 1991 | L4: 7 | M4: 8 | N4: 9 | O4: 10 | P4: 11 | Q4: 12 | R4: 13 | T4: 1992 | U4: 7 | V4: 8 | W4: 9 | X4: 10 | Y4: 11 | Z4: 12 | AA4: 13 | AC4: 1993 | AD4: 7 | AE4: 8 | AF4: 9 | AG4: 10 | AH4: 11 | AI4: 12 | AJ4: 13 | AL4: 1994 | AM4: 7 | AN4: 8 | AO4: 9 | AP4: 10 | AQ4: 11 | AR4: 12 | AS4: 13 | AU4: 1995 | AV4: 7 | AW4: 8 | AX4: 9 | AY4: 10 | AZ4: 11 | BA4: 12 | BB4: 13 | BD4: 1996 | BE4: 7 | BF4: 8 | BG4: 9 | BH4: 10 | BI4: 11 | BJ4: 12 | BK4: 13 | BM4: 1997 | BN4: 7 | BO4: 8 | BP4: 9 | BQ4: 10 | BR4: 11 | BS4: 12 | BT4: 13 | BV4: 1998 | BW4: 7 | BX4: 8 | BY4: 9 | BZ4: 10 | CA4: 11 | CB4: 12 | CC4: 13 | CE4: 1999 | CF4: 7 | CG4: 8 | CH4: 9 | CI4: 10 | CJ4: 11 | CK4: 12 | CL4: 13 | CN4: 2000 | CO4: 7 | CP4: 8 | CQ4: 9 | CR4: 10 | CS4: 11 | CT4: 12 | CU4: 13 | CW4: 2001 | CX4: 7 | CY4: 8 | CZ4: 9 | DA4: 10 | DB4: 11 | DC4: 12 | DD4: 13 | DF4: 2002 | DG4: 7 | DH4: 8 | DI4: 9 | DJ4: 10 | DK4: 11 | DL4: 12 | DM4: 13 | DO4: 2003 | DP4: 7 | DQ4: 8 | DR4: 9 | DS4: 10 | DT4: 11 | DU4: 12 | DV4: 13 | DX4: 2004 | DY4: 7 | DZ4: 8 | EA4: 9 | EB4: 10 | EC4: 11 | ED4: 12 | EE4: 13 | EG4: 2005 | EH4: 7 | EI4: 8 | EJ4: 9 | EK4: 10 | EL4: 11 | EM4: 12 | EN4: 13 | EP4: 2006 | EQ4: 7 | ER4: 8 | ES4: 9 | ET4: 10 | EU4: 11 | EV4: 12 | EW4: 13 | EY4: 2007 | EZ4: 7 | FA4: 8 | FB4: 9 | FC4: 10 | FD4: 11 | FE4: 12 | FF4: 13 | FH4: 2008 | FI4: 7 | FJ4: 8 | FK4: 9 | FL4: 10 | FM4: 11 | FN4: 12 | FO4: 13 | FQ4: 2009 | FR4: 7 | FS4: 8 | FT4: 9 | FU4: 10 | FV4: 11 | FW4: 12 | FX4: 13
B5: MY | C5: U | D5: N | E5: O | F5: T0 | G5: T1 | H5: L | I5: T2 | J5: Million VMT | K5: MY | L5: U | M5: N | N5: O | O5: T0 | P5: T1 | Q5: L | R5: T2 | S5: VMT | T5: MY | U5: U | V5: N | W5: O | X5: T0 | Y5: T1 | Z5: L | AA5: T2 | AB5: VMT | AC5: MY | AD5: U | AE5: N | AF5: O | AG5: T0 | AH5: T1 | AI5: L | AJ5: T2 | AK5: VMT | AL5: MY | AM5: U | AN5: N | AO5: O | AP5: T0 | AQ5: T1 | AR5: L | AS5: T2 | AT5: VMT | AU5: MY | AV5: U | AW5: N | AX5: O | AY5: T0 | AZ5: T1 | BA5: L | BB5: T2 | BC5: VMT | BD5: MY | BE5: U | BF5: N | BG5: O | BH5: T0 | BI5: T1 | BJ5: L | BK5: T2 | BL5: VMT | BM5: MY | BN5: U | BO5: N | BP5: O | BQ5: T0 | BR5: T1 | BS5: L | BT5: T2 | BU5: VMT | BV5: MY | BW5: U | BX5: N | BY5: O | BZ5: T0 | CA5: T1 | CB5: L | CC5: T2 | CD5: VMT | CE5: MY | CF5: U | CG5: N | CH5: O | CI5: T0 | CJ5: T1 | CK5: L | CL5: T2 | CM5: VMT | CN5: MY | CO5: U | CP5: N | CQ5: O | CR5: T0 | CS5: T1 | CT5: L | CU5: T2 | CV5: VMT | CW5: MY | CX5: U | CY5: N | CZ5: O | DA5: T0 | DB5: T1 | DC5: L | DD5: T2 | DE5: VMT | DF5: MY | DG5: U | DH5: N | DI5: O | DJ5: T0 | DK5: T1 | DL5: L | DM5: T2 | DN5: VMT | DO5: MY | DP5: U | DQ5: N | DR5: O | DS5: T0 | DT5: T1 | DU5: L | DV5: T2 | DW5: VMT | DX5: MY | DY5: U | DZ5: N | EA5: O | EB5: T0 | EC5: T1 | ED5: L | EE5: T2 | EF5: VMT | EG5: MY | EH5: U | EI5: N | EJ5: O | EK5: T0 | EL5: T1 | EM5: L | EN5: T2 | EO5: VMT | EP5: MY | EQ5: U | ER5: N | ES5: O | ET5: T0 | EU5: T1 | EV5: L | EW5: T2 | EX5: VMT | EY5: MY | EZ5: U | FA5: N | FB5: O | FC5: T0 | FD5: T1 | FE5: L | FF5: T2 | FG5: VMT | FH5: MY | FI5: U | FJ5: N | FK5: O | FL5: T0 | FM5: T1 | FN5: L | FO5: T2 | FP5: VMT | FQ5: MY | FR5: U | FS5: N | FT5: O | FU5: T0 | FV5: T1 | FW5: L | FX5: T2 | FY5: VMT
A6: 0 | B6: =B$4-$A6 -> 1990 | C6: =VLOOKUP($B6,techs,C$4,FALSE) -> 0 | D6: =VLOOKUP($B6,techs,D$4,FALSE) -> 0 | E6: 0 | F6: 0 | G6: 0 | H6: 0 | I6: 0 | J6: =VLOOKUP($A6,PercentVMT1998,$AB$2,FALSE)*J$37 -> 0 | K6: =K$4-$A6 -> 1991 | L6: =VLOOKUP($K6,techs,L$4,FALSE) -> 0 | M6: 0 | N6: 0 | O6: 0 | P6: 0 | Q6: 0 | R6: 0 | S6: =VLOOKUP($A6,PercentVMT1998,LDGV!$AB$2,FALSE)*LDGV!S$37 -> 0 | T6: =T$4-$A6 -> 1992 | U6: =VLOOKUP($T6,techs,U$4,FALSE) -> 0 | V6: 0 | W6: 0 | X6: 0 | Y6: 0 | Z6: 0 | AA6: 0 | AB6: =VLOOKUP($A6,PercentVMT1998,LDGV!$AB$2,FALSE)*LDGV!AB$37 -> 0 | AC6: =AC$4-$A6 -> 1993 | AD6: =VLOOKUP($AC6,techs,AD$4,FALSE) -> 0 | AE6: 0 | AF6: 0 | AG6: 0 | AH6: 0 | AI6: 0 | AJ6: 0 | AK6: =VLOOKUP($A6,PercentVMT1998,LDGV!$AB$2,FALSE)*LDGV!AK$37 -> 0 | AL6: =AL$4-$A6 -> 1994 | AM6: =VLOOKUP($AL6,techs,AM$4,FALSE) -> 0 | AN6: 0 | AO6: 0 | AP6: 0 | AQ6: 0 | AR6: 0 | AS6: 0 | AT6: =VLOOKUP($A6,PercentVMT1998,LDGV!$AB$2,FALSE)*LDGV!AT$37 -> 0 | AU6: =AU$4-$A6 -> 1995 | AV6: =VLOOKUP($AU6,techs,AV$4,FALSE) -> 0 | AW6: 0 | AX6: 0 | AY6: 0 | AZ6: 0 | BA6: 0 | BB6: 0 | BC6: =VLOOKUP($A6,PercentVMT1998,LDGV!$AB$2,FALSE)*LDGV!BC$37 -> 0 | BD6: =BD$4-$A6 -> 1996 | BE6: =VLOOKUP($BD6,techs,BE$4,FALSE) -> 0 | BF6: 0 | BG6: 0 | BH6: 0 | BI6: 0 | BJ6: 0 | BK6: 0 | BL6: =VLOOKUP($A6,PercentVMT1998,LDGV!$AB$2,FALSE)*LDGV!BL$37 -> 0 | BM6: =BM$4-$A6 -> 1997 | BN6: =VLOOKUP($BM6,techs,BN$4,FALSE) -> 0 | BO6: 0 | BP6: 0 | BQ6: 0 | BR6: 0 | BS6: 0 | BT6: 0 | BU6: =VLOOKUP($A6,PercentVMT1998,LDGV!$AB$2,FALSE)*LDGV!BU$37 -> 0 | BV6: =BV$4-$A6 -> 1998 | BW6: =VLOOKUP($BV6,techs,BW$4,FALSE) -> 0 | BX6: 0 | BY6: 0 | BZ6: 0 | CA6: 0 | CB6: 0 | CC6: 0 | CD6: =VLOOKUP($A6,PercentVMT1998,LDGV!$AB$2,FALSE)*LDGV!CD$37 -> 0 | CE6: =CE$4-$A6 -> 1999 | CF6: =VLOOKUP($CE6,techs,CF$4,FALSE) -> 0 | CG6: 0 | CH6: 0 | CI6: 0 | CJ6: 0 | CK6: 0 | CL6: 0 | CM6: =VLOOKUP($A6,PercentVMT1999,LDGV!$AB$2,FALSE)*LDGV!CM$37 -> 0 | CN6: =CN$4-$A6 -> 2000 | CO6: =VLOOKUP($CN6,techs,CO$4,FALSE) -> 0 | CP6: 0 | CQ6: 0 | CR6: 0 | CS6: 0 | CT6: 0 | CU6: 0 | CV6: =VLOOKUP($A6,PercentVMT2000,LDGV!$AB$2,FALSE)*LDGV!CV$37 -> 0 | CW6: =CW$4-$A6 -> 2001 | CX6: =VLOOKUP(CW6,techs,CX$4,FALSE) -> 0 | CY6: =VLOOKUP(CW6,techs,CY$4,FALSE) -> 0 | CZ6: =VLOOKUP(CW6,techs,CZ$4,FALSE) -> 0 | DA6: =VLOOKUP(CW6,techs,DA$4,FALSE) -> 0 | DB6: =VLOOKUP(CW6,techs,DB$4,FALSE) -> 0 | DC6: =VLOOKUP(CW6,techs,DC$4,FALSE) -> 0 | DD6: =VLOOKUP(CW6,techs,DD$4,FALSE) -> 0 | DE6: =VLOOKUP($A6,PercentVMT2001,LDGV!$AB$2,FALSE)*LDGV!DE$37 -> 0 | DF6: =DF$4-$A6 -> 2002 | DG6: =VLOOKUP(DF6,techs,DG$4,FALSE) -> 0 | DH6: =VLOOKUP(DF6,techs,DH$4,FALSE) -> 0 | DI6: =VLOOKUP(DF6,techs,DI$4,FALSE) -> 0 | DJ6: =VLOOKUP(DF6,techs,DJ$4,FALSE) -> 0 | DK6: =VLOOKUP(DF6,techs,DK$4,FALSE) -> 0 | DL6: =VLOOKUP(DF6,techs,DL$4,FALSE) -> 0 | DM6: =VLOOKUP(DF6,techs,DM$4,FALSE) -> 0 | DN6: =VLOOKUP($A6,PercentVMT2002,LDGV!$AB$2,FALSE)*LDGV!DN$37 -> 0 | DO6: =DO$4-$A6 -> 2003 | DP6: =VLOOKUP(DO6,techs,DP$4,FALSE) -> 0 | DQ6: =VLOOKUP(DO6,techs,DQ$4,FALSE) -> 0 | DR6: =VLOOKUP(DO6,techs,DR$4,FALSE) -> 0 | DS6: =VLOOKUP(DO6,techs,DS$4,FALSE) -> 0 | DT6: =VLOOKUP(DO6,techs,DT$4,FALSE) -> 0 | DU6: =VLOOKUP(DO6,techs,DU$4,FALSE) -> 0 | DV6: =VLOOKUP(DO6,techs,DV$4,FALSE) -> 0 | DW6: =VLOOKUP($A6,PercentVMT2003,LDGV!$AB$2,FALSE)*LDGV!DW$37 -> 0 | DX6: =DX$4-$A6 -> 2004 | DY6: =VLOOKUP(DX6,techs,DY$4,FALSE) -> 0 | DZ6: =VLOOKUP(DX6,techs,DZ$4,FALSE) -> 0 | EA6: =VLOOKUP(DX6,techs,EA$4,FALSE) -> 0 | EB6: =VLOOKUP(DX6,techs,EB$4,FALSE) -> 0 | EC6: =VLOOKUP(DX6,techs,EC$4,FALSE) -> 0 | ED6: =VLOOKUP(DX6,techs,ED$4,FALSE) -> 0 | EE6: =VLOOKUP(DX6,techs,EE$4,FALSE) -> 0 | EF6: =VLOOKUP($A6,PercentVMT2004,LDGV!$AB$2,FALSE)*LDGV!EF$37 -> 0 | EG6: =EG$4-$A6 -> 2005 | EH6: =VLOOKUP(EG6,techs,EH$4,FALSE) -> 0 | EI6: =VLOOKUP(EG6,techs,EI$4,FALSE) -> 0 | EJ6: =VLOOKUP(EG6,techs,EJ$4,FALSE) -> 0 | EK6: =VLOOKUP(EG6,techs,EK$4,FALSE) -> 0 | EL6: =VLOOKUP(EG6,techs,EL$4,FALSE) -> 0 | EM6: =VLOOKUP(EG6,techs,EM$4,FALSE) -> 0 | EN6: =VLOOKUP(EG6,techs,EN$4,FALSE) -> 0 | EO6: =VLOOKUP($A6,PercentVMT2005,LDGV!$AB$2,FALSE)*LDGV!EO$37 -> 0 | EP6: =EP$4-$A6 -> 2006 | EQ6: =VLOOKUP(EP6,techs,EQ$4,FALSE) -> 0 | ER6: =VLOOKUP(EP6,techs,ER$4,FALSE) -> 0 | ES6: =VLOOKUP(EP6,techs,ES$4,FALSE) -> 0 | ET6: =VLOOKUP(EP6,techs,ET$4,FALSE) -> 0 | EU6: =VLOOKUP(EP6,techs,EU$4,FALSE) -> 0 | EV6: =VLOOKUP(EP6,techs,EV$4,FALSE) -> 0 | EW6: =VLOOKUP(EP6,techs,EW$4,FALSE) -> 0 | EX6: =VLOOKUP($A6,PercentVMT2006,LDGV!$AB$2,FALSE)*LDGV!EX$37 -> 0 | EY6: =EY$4-$A6 -> 2007 | EZ6: =VLOOKUP(EY6,techs,EZ$4,FALSE) -> 0 | FA6: =VLOOKUP(EY6,techs,FA$4,FALSE) -> 0 | FB6: =VLOOKUP(EY6,techs,FB$4,FALSE) -> 0 | FC6: =VLOOKUP(EY6,techs,FC$4,FALSE) -> 0 | FD6: =VLOOKUP(EY6,techs,FD$4,FALSE) -> 0 | FE6: =VLOOKUP(EY6,techs,FE$4,FALSE) -> 0 | FF6: =VLOOKUP(EY6,techs,FF$4,FALSE) -> 0 | FG6: =VLOOKUP($A6,PercentVMT2007,LDGV!$AB$2,FALSE)*LDGV!FG$37 -> 0 | FH6: =FH$4-$A6 -> 2008 | FI6: =VLOOKUP(FH6,techs,FI$4,FALSE) -> 0 | FJ6: =VLOOKUP(FH6,techs,FJ$4,FALSE) -> 0 | FK6: =VLOOKUP(FH6,techs,FK$4,FALSE) -> 0 | FL6: =VLOOKUP(FH6,techs,FL$4,FALSE) -> 0 | FM6: =VLOOKUP(FH6,techs,FM$4,FALSE) -> 0 | FN6: =VLOOKUP(FH6,techs,FN$4,FALSE) -> 0 | FO6: =VLOOKUP(FH6,techs,FO$4,FALSE) -> 0 | FP6: =VLOOKUP($A6,PercentVMT2008,LDGV!$AB$2,FALSE)*LDGV!FP$37 -> 0 | FQ6: =FQ$4-$A6 -> 2009 | FR6: =VLOOKUP(FQ6,techs,FR$4,FALSE) -> 0 | FS6: =VLOOKUP(FQ6,techs,FS$4,FALSE) -> 0 | FT6: =VLOOKUP(FQ6,techs,FT$4,FALSE) -> 0 | FU6: =VLOOKUP(FQ6,techs,FU$4,FALSE) -> 0 | FV6: =VLOOKUP(FQ6,techs,FV$4,FALSE) -> 0 | FW6: =VLOOKUP(FQ6,techs,FW$4,FALSE) -> 0 | FX6: =VLOOKUP(FQ6,techs,FX$4,FALSE) -> 0 | FY6: =VLOOKUP($A6,PercentVMT2009,LDGV!$AB$2,FALSE)*LDGV!FY$37 -> 0
A7: 1 | B7: =B$4-$A7 -> 1989 | C7: 0 | D7: 0 | E7: 0 | F7: 0 | G7: 0 | H7: 0 | I7: 0 | J7: =VLOOKUP($A7,PercentVMT1998,$AB$2,FALSE)*J$37 -> 0 | K7: =K$4-$A7 -> 1990 | L7: 0 | M7: 0 | N7: 0 | O7: 0 | P7: 0 | Q7: 0 | R7: 0 | S7: =VLOOKUP($A7,PercentVMT1998,LDGV!$AB$2,FALSE)*LDGV!S$37 -> 0 | T7: =T$4-$A7 -> 1991 | U7: 0 | V7: 0 | W7: 0 | X7: 0 | Y7: 0 | Z7: 0 | AA7: 0 | AB7: =VLOOKUP($A7,PercentVMT1998,LDGV!$AB$2,FALSE)*LDGV!AB$37 -> 0 | AC7: =AC$4-$A7 -> 1992 | AD7: 0 | AE7: 0 | AF7: 0 | AG7: 0 | AH7: 0 | AI7: 0 | AJ7: 0 | AK7: =VLOOKUP($A7,PercentVMT1998,LDGV!$AB$2,FALSE)*LDGV!AK$37 -> 0 | AL7: =AL$4-$A7 -> 1993 | AM7: 0 | AN7: 0 | AO7: 0 | AP7: 0 | AQ7: 0 | AR7: 0 | AS7: 0 | AT7: =VLOOKUP($A7,PercentVMT1998,LDGV!$AB$2,FALSE)*LDGV!AT$37 -> 0 | AU7: =AU$4-$A7 -> 1994 | AV7: 0 | AW7: 0 | AX7: 0 | AY7: 0 | AZ7: 0 | BA7: 0 | BB7: 0 | BC7: =VLOOKUP($A7,PercentVMT1998,LDGV!$AB$2,FALSE)*LDGV!BC$37 -> 0 | BD7: =BD$4-$A7 -> 1995 | BE7: 0 | BF7: 0 | BG7: 0 | BH7: 0 | BI7: 0 | BJ7: 0 | BK7: 0 | BL7: =VLOOKUP($A7,PercentVMT1998,LDGV!$AB$2,FALSE)*LDGV!BL$37 -> 0 | BM7: =BM$4-$A7 -> 1996 | BN7: 0 | BO7: 0 | BP7: 0 | BQ7: 0 | BR7: 0 | BS7: 0 | BT7: 0 | BU7: =VLOOKUP($A7,PercentVMT1998,LDGV!$AB$2,FALSE)*LDGV!BU$37 -> 0 | BV7: =BV$4-$A7 -> 1997 | BW7: 0 | BX7: 0 | BY7: 0 | BZ7: 0 | CA7: 0 | CB7: 0 | CC7: 0 | CD7: =VLOOKUP($A7,PercentVMT1998,LDGV!$AB$2,FALSE)*LDGV!CD$37 -> 0 | CE7: =CE$4-$A7 -> 1998 | CF7: 0 | CG7: 0 | CH7: 0 | CI7: 0 | CJ7: 0 | CK7: 0 | CL7: 0 | CM7: =VLOOKUP($A7,PercentVMT1999,LDGV!$AB$2,FALSE)*LDGV!CM$37 -> 0 | CN7: =CN$4-$A7 -> 1999 | CO7: 0 | CP7: 0 | CQ7: 0 | CR7: 0 | CS7: 0 | CT7: 0 | CU7: 0 | CV7: =VLOOKUP($A7,PercentVMT2000,LDGV!$AB$2,FALSE)*LDGV!CV$37 -> 0 | CW7: =CW$4-$A7 -> 2000 | CX7: 0 | CY7: 0 | CZ7: 0 | DA7: 0 | DB7: 0 | DC7: 0 | DD7: 0 | DE7: =VLOOKUP($A7,PercentVMT2001,LDGV!$AB$2,FALSE)*LDGV!DE$37 -> 0 | DF7: =DF$4-$A7 -> 2001 | DG7: 0 | DH7: 0 | DI7: 0 | DJ7: 0 | DK7: 0 | DL7: 0 | DM7: 0 | DN7: =VLOOKUP($A7,PercentVMT2002,LDGV!$AB$2,FALSE)*LDGV!DN$37 -> 0 | DO7: =DO$4-$A7 -> 2002 | DP7: 0 | DQ7: 0 | DR7: 0 | DS7: 0 | DT7: 0 | DU7: 0 | DV7: 0 | DW7: =VLOOKUP($A7,PercentVMT2003,LDGV!$AB$2,FALSE)*LDGV!DW$37 -> 0 | DX7: =DX$4-$A7 -> 2003 | DY7: 0 | DZ7: 0 | EA7: 0 | EB7: 0 | EC7: 0 | ED7: 0 | EE7: 0 | EF7: =VLOOKUP($A7,PercentVMT2004,LDGV!$AB$2,FALSE)*LDGV!EF$37 -> 0 | EG7: =EG$4-$A7 -> 2004 | EH7: 0 | EI7: 0 | EJ7: 0 | EK7: 0 | EL7: 0 | EM7: 0 | EN7: 0 | EO7: =VLOOKUP($A7,PercentVMT2005,LDGV!$AB$2,FALSE)*LDGV!EO$37 -> 0 | EP7: =EP$4-$A7 -> 2005 | EQ7: 0 | ER7: 0 | ES7: 0 | ET7: 0 | EU7: 0 | EV7: 0 | EW7: 0 | EX7: =VLOOKUP($A7,PercentVMT2006,LDGV!$AB$2,FALSE)*LDGV!EX$37 -> 0 | EY7: =EY$4-$A7 -> 2006 | EZ7: 0 | FA7: 0 | FB7: 0 | FC7: 0 | FD7: 0 | FE7: 0 | FF7: 0 | FG7: =VLOOKUP($A7,PercentVMT2007,LDGV!$AB$2,FALSE)*LDGV!FG$37 -> 0 | FH7: =FH$4-$A7 -> 2007 | FI7: 0 | FJ7: 0 | FK7: 0 | FL7: 0 | FM7: 0 | FN7: 0 | FO7: 0 | FP7: =VLOOKUP($A7,PercentVMT2008,LDGV!$AB$2,FALSE)*LDGV!FP$37 -> 0 | FQ7: =FQ$4-$A7 -> 2008 | FR7: 0 | FS7: 0 | FT7: 0 | FU7: 0 | FV7: 0 | FW7: 0 | FX7: 0 | FY7: =VLOOKUP($A7,PercentVMT2009,LDGV!$AB$2,FALSE)*LDGV!FY$37 -> 0
A8: 2 | B8: =B$4-$A8 -> 1988 | C8: 0 | D8: 0 | E8: 0 | F8: 0 | G8: 0 | H8: 0 | I8: 0 | J8: 0 | K8: =K$4-$A8 -> 1989 | L8: 0 | M8: 0 | N8: 0 | O8: 0 | P8: 0 | Q8: 0 | R8: 0 | S8: =VLOOKUP($A8,PercentVMT1998,LDGV!$AB$2,FALSE)*LDGV!S$37 -> 0 | T8: =T$4-$A8 -> 1990 | U8: 0 | V8: 0 | W8: 0 | X8: 0 | Y8: 0 | Z8: 0 | AA8: 0 | AB8: =VLOOKUP($A8,PercentVMT1998,LDGV!$AB$2,FALSE)*LDGV!AB$37 -> 0 | AC8: =AC$4-$A8 -> 1991 | AD8: 0 | AE8: 0 | AF8: 0 | AG8: 0 | AH8: 0 | AI8: 0 | AJ8: 0 | AK8: =VLOOKUP($A8,PercentVMT1998,LDGV!$AB$2,FALSE)*LDGV!AK$37 -> 0 | AL8: =AL$4-$A8 -> 1992 | AM8: 0 | AN8: 0 | AO8: 0 | AP8: 0 | AQ8: 0 | AR8: 0 | AS8: 0 | AT8: =VLOOKUP($A8,PercentVMT1998,LDGV!$AB$2,FALSE)*LDGV!AT$37 -> 0 | AU8: =AU$4-$A8 -> 1993 | AV8: 0 | AW8: 0 | AX8: 0 | AY8: 0 | AZ8: 0 | BA8: 0 | BB8: 0 | BC8: =VLOOKUP($A8,PercentVMT1998,LDGV!$AB$2,FALSE)*LDGV!BC$37 -> 0 | BD8: =BD$4-$A8 -> 1994 | BE8: 0 | BF8: 0 | BG8: 0 | BH8: 0 | BI8: 0 | BJ8: 0 | BK8: 0 | BL8: =VLOOKUP($A8,PercentVMT1998,LDGV!$AB$2,FALSE)*LDGV!BL$37 -> 0 | BM8: =BM$4-$A8 -> 1995 | BN8: 0 | BO8: 0 | BP8: 0 | BQ8: 0 | BR8: 0 | BS8: 0 | BT8: 0 | BU8: =VLOOKUP($A8,PercentVMT1998,LDGV!$AB$2,FALSE)*LDGV!BU$37 -> 0 | BV8: =BV$4-$A8 -> 1996 | BW8: 0 | BX8: 0 | BY8: 0 | BZ8: 0 | CA8: 0 | CB8: 0 | CC8: 0 | CD8: =VLOOKUP($A8,PercentVMT1998,LDGV!$AB$2,FALSE)*LDGV!CD$37 -> 0 | CE8: =CE$4-$A8 -> 1997 | CF8: 0 | CG8: 0 | CH8: 0 | CI8: 0 | CJ8: 0 | CK8: 0 | CL8: 0 | CM8: =VLOOKUP($A8,PercentVMT1999,LDGV!$AB$2,FALSE)*LDGV!CM$37 -> 0 | CN8: =CN$4-$A8 -> 1998 | CO8: 0 | CP8: 0 | CQ8: 0 | CR8: 0 | CS8: 0 | CT8: 0 | CU8: 0 | CV8: =VLOOKUP($A8,PercentVMT2000,LDGV!$AB$2,FALSE)*LDGV!CV$37 -> 0 | CW8: =CW$4-$A8 -> 1999 | CX8: 0 | CY8: 0 | CZ8: 0 | DA8: 0 | DB8: 0 | DC8: 0 | DD8: 0 | DE8: =VLOOKUP($A8,PercentVMT2001,LDGV!$AB$2,FALSE)*LDGV!DE$37 -> 0 | DF8: =DF$4-$A8 -> 2000 | DG8: 0 | DH8: 0 | DI8: 0 | DJ8: 0 | DK8: 0 | DL8: 0 | DM8: 0 | DN8: =VLOOKUP($A8,PercentVMT2002,LDGV!$AB$2,FALSE)*LDGV!DN$37 -> 0 | DO8: =DO$4-$A8 -> 2001 | DP8: 0 | DQ8: 0 | DR8: 0 | DS8: 0 | DT8: 0 | DU8: 0 | DV8: 0 | DW8: =VLOOKUP($A8,PercentVMT2003,LDGV!$AB$2,FALSE)*LDGV!DW$37 -> 0 | DX8: =DX$4-$A8 -> 2002 | DY8: 0 | DZ8: 0 | EA8: 0 | EB8: 0 | EC8: 0 | ED8: 0 | EE8: 0 | EF8: =VLOOKUP($A8,PercentVMT2004,LDGV!$AB$2,FALSE)*LDGV!EF$37 -> 0 | EG8: =EG$4-$A8 -> 2003 | EH8: 0 | EI8: 0 | EJ8: 0 | EK8: 0 | EL8: 0 | EM8: 0 | EN8: 0 | EO8: =VLOOKUP($A8,PercentVMT2005,LDGV!$AB$2,FALSE)*LDGV!EO$37 -> 0 | EP8: =EP$4-$A8 -> 2004 | EQ8: 0 | ER8: 0 | ES8: 0 | ET8: 0 | EU8: 0 | EV8: 0 | EW8: 0 | EX8: =VLOOKUP($A8,PercentVMT2006,LDGV!$AB$2,FALSE)*LDGV!EX$37 -> 0 | EY8: =EY$4-$A8 -> 2005 | EZ8: 0 | FA8: 0 | FB8: 0 | FC8: 0 | FD8: 0 | FE8: 0 | FF8: 0 | FG8: =VLOOKUP($A8,PercentVMT2007,LDGV!$AB$2,FALSE)*LDGV!FG$37 -> 0 | FH8: =FH$4-$A8 -> 2006 | FI8: 0 | FJ8: 0 | FK8: 0 | FL8: 0 | FM8: 0 | FN8: 0 | FO8: 0 | FP8: =VLOOKUP($A8,PercentVMT2008,LDGV!$AB$2,FALSE)*LDGV!FP$37 -> 0 | FQ8: =FQ$4-$A8 -> 2007 | FR8: 0 | FS8: 0 | FT8: 0 | FU8: 0 | FV8: 0 | FW8: 0 | FX8: 0 | FY8: =VLOOKUP($A8,PercentVMT2009,LDGV!$AB$2,FALSE)*LDGV!FY$37 -> 0
A9: 3 | B9: 1987 | C9: 0 | D9: 0 | E9: 0 | F9: 0 | G9: 0 | H9: 0 | I9: 0 | J9: 0 | K9: 1988 | L9: 0 | M9: 0 | N9: 0 | O9: 0 | P9: 0 | Q9: 0 | R9: 0 | S9: =VLOOKUP($A9,PercentVMT1998,LDGV!$AB$2,FALSE)*LDGV!S$37 -> 0 | T9: 1989 | U9: 0 | V9: 0 | W9: 0 | X9: 0 | Y9: 0 | Z9: 0 | AA9: 0 | AB9: =VLOOKUP($A9,PercentVMT1998,LDGV!$AB$2,FALSE)*LDGV!AB$37 -> 0 | AC9: 1990 | AD9: 0 | AE9: 0 | AF9: 0 | AG9: 0 | AH9: 0 | AI9: 0 | AJ9: 0 | AK9: =VLOOKUP($A9,PercentVMT1998,LDGV!$AB$2,FALSE)*LDGV!AK$37 -> 0 | AL9: 1991 | AM9: 0 | AN9: 0 | AO9: 0 | AP9: 0 | AQ9: 0 | AR9: 0 | AS9: 0 | AT9: =VLOOKUP($A9,PercentVMT1998,LDGV!$AB$2,FALSE)*LDGV!AT$37 -> 0 | AU9: 1992 | AV9: 0 | AW9: 0 | AX9: 0 | AY9: 0 | AZ9: 0 | BA9: 0 | BB9: 0 | BC9: =VLOOKUP($A9,PercentVMT1998,LDGV!$AB$2,FALSE)*LDGV!BC$37 -> 0 | BD9: 1993 | BE9: 0 | BF9: 0 | BG9: 0 | BH9: 0 | BI9: 0 | BJ9: 0 | BK9: 0 | BL9: =VLOOKUP($A9,PercentVMT1998,LDGV!$AB$2,FALSE)*LDGV!BL$37 -> 0 | BM9: 1994 | BN9: 0 | BO9: 0 | BP9: 0 | BQ9: 0 | BR9: 0 | BS9: 0 | BT9: 0 | BU9: =VLOOKUP($A9,PercentVMT1998,LDGV!$AB$2,FALSE)*LDGV!BU$37 -> 0 | BV9: 1995 | BW9: 0 | BX9: 0 | BY9: 0 | BZ9: 0 | CA9: 0 | CB9: 0 | CC9: 0 | CD9: =VLOOKUP($A9,PercentVMT1998,LDGV!$AB$2,FALSE)*LDGV!CD$37 -> 0 | CE9: 1996 | CF9: 0 | CG9: 0 | CH9: 0 | CI9: 0 | CJ9: 0 | CK9: 0 | CL9: 0 | CM9: =VLOOKUP($A9,PercentVMT1999,LDGV!$AB$2,FALSE)*LDGV!CM$37 -> 0 | CN9: 1997 | CO9: 0 | CP9: 0 | CQ9: 0 | CR9: 0 | CS9: 0 | CT9: 0 | CU9: 0 | CV9: =VLOOKUP($A9,PercentVMT2000,LDGV!$AB$2,FALSE)*LDGV!CV$37 -> 0 | CW9: 1998 | CX9: 0 | CY9: 0 | CZ9: 0 | DA9: 0 | DB9: 0 | DC9: 0 | DD9: 0 | DE9: =VLOOKUP($A9,PercentVMT2001,LDGV!$AB$2,FALSE)*LDGV!DE$37 -> 0 | DF9: 1999 | DG9: 0 | DH9: 0 | DI9: 0 | DJ9: 0 | DK9: 0 | DL9: 0 | DM9: 0 | DN9: =VLOOKUP($A9,PercentVMT2002,LDGV!$AB$2,FALSE)*LDGV!DN$37 -> 0 | DO9: 2000 | DP9: 0 | DQ9: 0 | DR9: 0 | DS9: 0 | DT9: 0 | DU9: 0 | DV9: 0 | DW9: =VLOOKUP($A9,PercentVMT2003,LDGV!$AB$2,FALSE)*LDGV!DW$37 -> 0 | DX9: 2001 | DY9: 0 | DZ9: 0 | EA9: 0 | EB9: 0 | EC9: 0 | ED9: 0 | EE9: 0 | EF9: =VLOOKUP($A9,PercentVMT2004,LDGV!$AB$2,FALSE)*LDGV!EF$37 -> 0 | EG9: 2002 | EH9: 0 | EI9: 0 | EJ9: 0 | EK9: 0 | EL9: 0 | EM9: 0 | EN9: 0 | EO9: =VLOOKUP($A9,PercentVMT2005,LDGV!$AB$2,FALSE)*LDGV!EO$37 -> 0 | EP9: 2003 | EQ9: 0 | ER9: 0 | ES9: 0 | ET9: 0 | EU9: 0 | EV9: 0 | EW9: 0 | EX9: =VLOOKUP($A9,PercentVMT2006,LDGV!$AB$2,FALSE)*LDGV!EX$37 -> 0 | EY9: 2004 | EZ9: 0 | FA9: 0 | FB9: 0 | FC9: 0 | FD9: 0 | FE9: 0 | FF9: 0 | FG9: =VLOOKUP($A9,PercentVMT2007,LDGV!$AB$2,FALSE)*LDGV!FG$37 -> 0 | FH9: 2005 | FI9: 0 | FJ9: 0 | FK9: 0 | FL9: 0 | FM9: 0 | FN9: 0 | FO9: 0 | FP9: =VLOOKUP($A9,PercentVMT2008,LDGV!$AB$2,FALSE)*LDGV!FP$37 -> 0 | FQ9: 2006 | FR9: 0 | FS9: 0 | FT9: 0 | FU9: 0 | FV9: 0 | FW9: 0 | FX9: 0 | FY9: =VLOOKUP($A9,PercentVMT2009,LDGV!$AB$2,FALSE)*LDGV!FY$37 -> 0
A10: 4 | B10: 1986 | C10: 0 | D10: 0 | E10: 0 | F10: 0 | G10: 0 | H10: 0 | I10: 0 | J10: 0 | K10: 1987 | L10: 0 | M10: 0 | N10: 0 | O10: 0 | P10: 0 | Q10: 0 | R10: 0 | S10: =VLOOKUP($A10,PercentVMT1998,LDGV!$AB$2,FALSE)*LDGV!S$37 -> 0 | T10: 1988 | U10: 0 | V10: 0 | W10: 0 | X10: 0 | Y10: 0 | Z10: 0 | AA10: 0 | AB10: =VLOOKUP($A10,PercentVMT1998,LDGV!$AB$2,FALSE)*LDGV!AB$37 -> 0 | AC10: 1989 | AD10: 0 | AE10: 0 | AF10: 0 | AG10: 0 | AH10: 0 | AI10: 0 | AJ10: 0 | AK10: =VLOOKUP($A10,PercentVMT1998,LDGV!$AB$2,FALSE)*LDGV!AK$37 -> 0 | AL10: 1990 | AM10: 0 | AN10: 0 | AO10: 0 | AP10: 0 | AQ10: 0 | AR10: 0 | AS10: 0 | AT10: =VLOOKUP($A10,PercentVMT1998,LDGV!$AB$2,FALSE)*LDGV!AT$37 -> 0 | AU10: 1991 | AV10: 0 | AW10: 0 | AX10: 0 | AY10: 0 | AZ10: 0 | BA10: 0 | BB10: 0 | BC10: =VLOOKUP($A10,PercentVMT1998,LDGV!$AB$2,FALSE)*LDGV!BC$37 -> 0 | BD10: 1992 | BE10: 0 | BF10: 0 | BG10: 0 | BH10: 0 | BI10: 0 | BJ10: 0 | BK10: 0 | BL10: =VLOOKUP($A10,PercentVMT1998,LDGV!$AB$2,FALSE)*LDGV!BL$37 -> 0 | BM10: 1993 | BN10: 0 | BO10: 0 | BP10: 0 | BQ10: 0 | BR10: 0 | BS10: 0 | BT10: 0 | BU10: =VLOOKUP($A10,PercentVMT1998,LDGV!$AB$2,FALSE)*LDGV!BU$37 -> 0 | BV10: 1994 | BW10: 0 | BX10: 0 | BY10: 0 | BZ10: 0 | CA10: 0 | CB10: 0 | CC10: 0 | CD10: =VLOOKUP($A10,PercentVMT1998,LDGV!$AB$2,FALSE)*LDGV!CD$37 -> 0 | CE10: 1995 | CF10: 0 | CG10: 0 | CH10: 0 | CI10: 0 | CJ10: 0 | CK10: 0 | CL10: 0 | CM10: =VLOOKUP($A10,PercentVMT1999,LDGV!$AB$2,FALSE)*LDGV!CM$37 -> 0 | CN10: 1996 | CO10: 0 | CP10: 0 | CQ10: 0 | CR10: 0 | CS10: 0 | CT10: 0 | CU10: 0 | CV10: =VLOOKUP($A10,PercentVMT2000,LDGV!$AB$2,FALSE)*LDGV!CV$37 -> 0 | CW10: 1997 | CX10: 0 | CY10: 0 | CZ10: 0 | DA10: 0 | DB10: 0 | DC10: 0 | DD10: 0 | DE10: =VLOOKUP($A10,PercentVMT2001,LDGV!$AB$2,FALSE)*LDGV!DE$37 -> 0 | DF10: 1998 | DG10: 0 | DH10: 0 | DI10: 0 | DJ10: 0 | DK10: 0 | DL10: 0 | DM10: 0 | DN10: =VLOOKUP($A10,PercentVMT2002,LDGV!$AB$2,FALSE)*LDGV!DN$37 -> 0 | DO10: 1999 | DP10: 0 | DQ10: 0 | DR10: 0 | DS10: 0 | DT10: 0 | DU10: 0 | DV10: 0 | DW10: =VLOOKUP($A10,PercentVMT2003,LDGV!$AB$2,FALSE)*LDGV!DW$37 -> 0 | DX10: 2000 | DY10: 0 | DZ10: 0 | EA10: 0 | EB10: 0 | EC10: 0 | ED10: 0 | EE10: 0 | EF10: =VLOOKUP($A10,PercentVMT2004,LDGV!$AB$2,FALSE)*LDGV!EF$37 -> 0 | EG10: 2001 | EH10: 0 | EI10: 0 | EJ10: 0 | EK10: 0 | EL10: 0 | EM10: 0 | EN10: 0 | EO10: =VLOOKUP($A10,PercentVMT2005,LDGV!$AB$2,FALSE)*LDGV!EO$37 -> 0 | EP10: 2002 | EQ10: 0 | ER10: 0 | ES10: 0 | ET10: 0 | EU10: 0 | EV10: 0 | EW10: 0 | EX10: =VLOOKUP($A10,PercentVMT2006,LDGV!$AB$2,FALSE)*LDGV!EX$37 -> 0 | EY10: 2003 | EZ10: 0 | FA10: 0 | FB10: 0 | FC10: 0 | FD10: 0 | FE10: 0 | FF10: 0 | FG10: =VLOOKUP($A10,PercentVMT2007,LDGV!$AB$2,FALSE)*LDGV!FG$37 -> 0 | FH10: 2004 | FI10: 0 | FJ10: 0 | FK10: 0 | FL10: 0 | FM10: 0 | FN10: 0 | FO10: 0 | FP10: =VLOOKUP($A10,PercentVMT2008,LDGV!$AB$2,FALSE)*LDGV!FP$37 -> 0 | FQ10: 2005 | FR10: 0 | FS10: 0 | FT10: 0 | FU10: 0 | FV10: 0 | FW10: 0 | FX10: 0 | FY10: =VLOOKUP($A10,PercentVMT2009,LDGV!$AB$2,FALSE)*LDGV!FY$37 -> 0
A11: 5 | B11: 1985 | C11: 0 | D11: 0 | E11: 0 | F11: 0 | G11: 0 | H11: 0 | I11: 0 | J11: 0 | K11: 1986 | L11: 0 | M11: 0 | N11: 0 | O11: 0 | P11: 0 | Q11: 0 | R11: 0 | S11: =VLOOKUP($A11,PercentVMT1998,LDGV!$AB$2,FALSE)*LDGV!S$37 -> 0 | T11: 1987 | U11: 0 | V11: 0 | W11: 0 | X11: 0 | Y11: 0 | Z11: 0 | AA11: 0 | AB11: =VLOOKUP($A11,PercentVMT1998,LDGV!$AB$2,FALSE)*LDGV!AB$37 -> 0 | AC11: 1988 | AD11: 0 | AE11: 0 | AF11: 0 | AG11: 0 | AH11: 0 | AI11: 0 | AJ11: 0 | AK11: =VLOOKUP($A11,PercentVMT1998,LDGV!$AB$2,FALSE)*LDGV!AK$37 -> 0 | AL11: 1989 | AM11: 0 | AN11: 0 | AO11: 0 | AP11: 0 | AQ11: 0 | AR11: 0 | AS11: 0 | AT11: =VLOOKUP($A11,PercentVMT1998,LDGV!$AB$2,FALSE)*LDGV!AT$37 -> 0 | AU11: 1990 | AV11: 0 | AW11: 0 | AX11: 0 | AY11: 0 | AZ11: 0 | BA11: 0 | BB11: 0 | BC11: =VLOOKUP($A11,PercentVMT1998,LDGV!$AB$2,FALSE)*LDGV!BC$37 -> 0 | BD11: 1991 | BE11: 0 | BF11: 0 | BG11: 0 | BH11: 0 | BI11: 0 | BJ11: 0 | BK11: 0 | BL11: =VLOOKUP($A11,PercentVMT1998,LDGV!$AB$2,FALSE)*LDGV!BL$37 -> 0 | BM11: 1992 | BN11: 0 | BO11: 0 | BP11: 0 | BQ11: 0 | BR11: 0 | BS11: 0 | BT11: 0 | BU11: =VLOOKUP($A11,PercentVMT1998,LDGV!$AB$2,FALSE)*LDGV!BU$37 -> 0 | BV11: 1993 | BW11: 0 | BX11: 0 | BY11: 0 | BZ11: 0 | CA11: 0 | CB11: 0 | CC11: 0 | CD11: =VLOOKUP($A11,PercentVMT1998,LDGV!$AB$2,FALSE)*LDGV!CD$37 -> 0 | CE11: 1994 | CF11: 0 | CG11: 0 | CH11: 0 | CI11: 0 | CJ11: 0 | CK11: 0 | CL11: 0 | CM11: =VLOOKUP($A11,PercentVMT1999,LDGV!$AB$2,FALSE)*LDGV!CM$37 -> 0 | CN11: 1995 | CO11: 0 | CP11: 0 | CQ11: 0 | CR11: 0 | CS11: 0 | CT11: 0 | CU11: 0 | CV11: =VLOOKUP($A11,PercentVMT2000,LDGV!$AB$2,FALSE)*LDGV!CV$37 -> 0 | CW11: 1996 | CX11: 0 | CY11: 0 | CZ11: 0 | DA11: 0 | DB11: 0 | DC11: 0 | DD11: 0 | DE11: =VLOOKUP($A11,PercentVMT2001,LDGV!$AB$2,FALSE)*LDGV!DE$37 -> 0 | DF11: 1997 | DG11: 0 | DH11: 0 | DI11: 0 | DJ11: 0 | DK11: 0 | DL11: 0 | DM11: 0 | DN11: =VLOOKUP($A11,PercentVMT2002,LDGV!$AB$2,FALSE)*LDGV!DN$37 -> 0 | DO11: 1998 | DP11: 0 | DQ11: 0 | DR11: 0 | DS11: 0 | DT11: 0 | DU11: 0 | DV11: 0 | DW11: =VLOOKUP($A11,PercentVMT2003,LDGV!$AB$2,FALSE)*LDGV!DW$37 -> 0 | DX11: 1999 | DY11: 0 | DZ11: 0 | EA11: 0 | EB11: 0 | EC11: 0 | ED11: 0 | EE11: 0 | EF11: =VLOOKUP($A11,PercentVMT2004,LDGV!$AB$2,FALSE)*LDGV!EF$37 -> 0 | EG11: 2000 | EH11: 0 | EI11: 0 | EJ11: 0 | EK11: 0 | EL11: 0 | EM11: 0 | EN11: 0 | EO11: =VLOOKUP($A11,PercentVMT2005,LDGV!$AB$2,FALSE)*LDGV!EO$37 -> 0 | EP11: 2001 | EQ11: 0 | ER11: 0 | ES11: 0 | ET11: 0 | EU11: 0 | EV11: 0 | EW11: 0 | EX11: =VLOOKUP($A11,PercentVMT2006,LDGV!$AB$2,FALSE)*LDGV!EX$37 -> 0 | EY11: 2002 | EZ11: 0 | FA11: 0 | FB11: 0 | FC11: 0 | FD11: 0 | FE11: 0 | FF11: 0 | FG11: =VLOOKUP($A11,PercentVMT2007,LDGV!$AB$2,FALSE)*LDGV!FG$37 -> 0 | FH11: 2003 | FI11: 0 | FJ11: 0 | FK11: 0 | FL11: 0 | FM11: 0 | FN11: 0 | FO11: 0 | FP11: =VLOOKUP($A11,PercentVMT2008,LDGV!$AB$2,FALSE)*LDGV!FP$37 -> 0 | FQ11: 2004 | FR11: 0 | FS11: 0 | FT11: 0 | FU11: 0 | FV11: 0 | FW11: 0 | FX11: 0 | FY11: =VLOOKUP($A11,PercentVMT2009,LDGV!$AB$2,FALSE)*LDGV!FY$37 -> 0
A12: 6 | B12: 1984 | C12: 0 | D12: 0 | E12: 0 | F12: 0 | G12: 0 | H12: 0 | I12: 0 | J12: 0 | K12: 1985 | L12: 0 | M12: 0 | N12: 0 | O12: 0 | P12: 0 | Q12: 0 | R12: 0 | S12: =VLOOKUP($A12,PercentVMT1998,LDGV!$AB$2,FALSE)*LDGV!S$37 -> 0 | T12: 1986 | U12: 0 | V12: 0 | W12: 0 | X12: 0 | Y12: 0 | Z12: 0 | AA12: 0 | AB12: =VLOOKUP($A12,PercentVMT1998,LDGV!$AB$2,FALSE)*LDGV!AB$37 -> 0 | AC12: 1987 | AD12: 0 | AE12: 0 | AF12: 0 | AG12: 0 | AH12: 0 | AI12: 0 | AJ12: 0 | AK12: =VLOOKUP($A12,PercentVMT1998,LDGV!$AB$2,FALSE)*LDGV!AK$37 -> 0 | AL12: 1988 | AM12: 0 | AN12: 0 | AO12: 0 | AP12: 0 | AQ12: 0 | AR12: 0 | AS12: 0 | AT12: =VLOOKUP($A12,PercentVMT1998,LDGV!$AB$2,FALSE)*LDGV!AT$37 -> 0 | AU12: 1989 | AV12: 0 | AW12: 0 | AX12: 0 | AY12: 0 | AZ12: 0 | BA12: 0 | BB12: 0 | BC12: =VLOOKUP($A12,PercentVMT1998,LDGV!$AB$2,FALSE)*LDGV!BC$37 -> 0 | BD12: 1990 | BE12: 0 | BF12: 0 | BG12: 0 | BH12: 0 | BI12: 0 | BJ12: 0 | BK12: 0 | BL12: =VLOOKUP($A12,PercentVMT1998,LDGV!$AB$2,FALSE)*LDGV!BL$37 -> 0 | BM12: 1991 | BN12: 0 | BO12: 0 | BP12: 0 | BQ12: 0 | BR12: 0 | BS12: 0 | BT12: 0 | BU12: =VLOOKUP($A12,PercentVMT1998,LDGV!$AB$2,FALSE)*LDGV!BU$37 -> 0 | BV12: 1992 | BW12: 0 | BX12: 0 | BY12: 0 | BZ12: 0 | CA12: 0 | CB12: 0 | CC12: 0 | CD12: =VLOOKUP($A12,PercentVMT1998,LDGV!$AB$2,FALSE)*LDGV!CD$37 -> 0 | CE12: 1993 | CF12: 0 | CG12: 0 | CH12: 0 | CI12: 0 | CJ12: 0 | CK12: 0 | CL12: 0 | CM12: =VLOOKUP($A12,PercentVMT1999,LDGV!$AB$2,FALSE)*LDGV!CM$37 -> 0 | CN12: 1994 | CO12: 0 | CP12: 0 | CQ12: 0 | CR12: 0 | CS12: 0 | CT12: 0 | CU12: 0 | CV12: =VLOOKUP($A12,PercentVMT2000,LDGV!$AB$2,FALSE)*LDGV!CV$37 -> 0 | CW12: 1995 | CX12: 0 | CY12: 0 | CZ12: 0 | DA12: 0 | DB12: 0 | DC12: 0 | DD12: 0 | DE12: =VLOOKUP($A12,PercentVMT2001,LDGV!$AB$2,FALSE)*LDGV!DE$37 -> 0 | DF12: 1996 | DG12: 0 | DH12: 0 | DI12: 0 | DJ12: 0 | DK12: 0 | DL12: 0 | DM12: 0 | DN12: =VLOOKUP($A12,PercentVMT2002,LDGV!$AB$2,FALSE)*LDGV!DN$37 -> 0 | DO12: 1997 | DP12: 0 | DQ12: 0 | DR12: 0 | DS12: 0 | DT12: 0 | DU12: 0 | DV12: 0 | DW12: =VLOOKUP($A12,PercentVMT2003,LDGV!$AB$2,FALSE)*LDGV!DW$37 -> 0 | DX12: 1998 | DY12: 0 | DZ12: 0 | EA12: 0 | EB12: 0 | EC12: 0 | ED12: 0 | EE12: 0 | EF12: =VLOOKUP($A12,PercentVMT2004,LDGV!$AB$2,FALSE)*LDGV!EF$37 -> 0 | EG12: 1999 | EH12: 0 | EI12: 0 | EJ12: 0 | EK12: 0 | EL12: 0 | EM12: 0 | EN12: 0 | EO12: =VLOOKUP($A12,PercentVMT2005,LDGV!$AB$2,FALSE)*LDGV!EO$37 -> 0 | EP12: 2000 | EQ12: 0 | ER12: 0 | ES12: 0 | ET12: 0 | EU12: 0 | EV12: 0 | EW12: 0 | EX12: =VLOOKUP($A12,PercentVMT2006,LDGV!$AB$2,FALSE)*LDGV!EX$37 -> 0 | EY12: 2001 | EZ12: 0 | FA12: 0 | FB12: 0 | FC12: 0 | FD12: 0 | FE12: 0 | FF12: 0 | FG12: =VLOOKUP($A12,PercentVMT2007,LDGV!$AB$2,FALSE)*LDGV!FG$37 -> 0 | FH12: 2002 | FI12: 0 | FJ12: 0 | FK12: 0 | FL12: 0 | FM12: 0 | FN12: 0 | FO12: 0 | FP12: =VLOOKUP($A12,PercentVMT2008,LDGV!$AB$2,FALSE)*LDGV!FP$37 -> 0 | FQ12: 2003 | FR12: 0 | FS12: 0 | FT12: 0 | FU12: 0 | FV12: 0 | FW12: 0 | FX12: 0 | FY12: =VLOOKUP($A12,PercentVMT2009,LDGV!$AB$2,FALSE)*LDGV!FY$37 -> 0
A13: 7 | B13: 1983 | C13: 0 | D13: 0 | E13: 0 | F13: 0 | G13: 0 | H13: 0 | I13: 0 | J13: 0 | K13: 1984 | L13: 0 | M13: 0 | N13: 0 | O13: 0 | P13: 0 | Q13: 0 | R13: 0 | S13: =VLOOKUP($A13,PercentVMT1998,LDGV!$AB$2,FALSE)*LDGV!S$37 -> 0 | T13: 1985 | U13: 0 | V13: 0 | W13: 0 | X13: 0 | Y13: 0 | Z13: 0 | AA13: 0 | AB13: =VLOOKUP($A13,PercentVMT1998,LDGV!$AB$2,FALSE)*LDGV!AB$37 -> 0 | AC13: 1986 | AD13: 0 | AE13: 0 | AF13: 0 | AG13: 0 | AH13: 0 | AI13: 0 | AJ13: 0 | AK13: =VLOOKUP($A13,PercentVMT1998,LDGV!$AB$2,FALSE)*LDGV!AK$37 -> 0 | AL13: 1987 | AM13: 0 | AN13: 0 | AO13: 0 | AP13: 0 | AQ13: 0 | AR13: 0 | AS13: 0 | AT13: =VLOOKUP($A13,PercentVMT1998,LDGV!$AB$2,FALSE)*LDGV!AT$37 -> 0 | AU13: 1988 | AV13: 0 | AW13: 0 | AX13: 0 | AY13: 0 | AZ13: 0 | BA13: 0 | BB13: 0 | BC13: =VLOOKUP($A13,PercentVMT1998,LDGV!$AB$2,FALSE)*LDGV!BC$37 -> 0 | BD13: 1989 | BE13: 0 | BF13: 0 | BG13: 0 | BH13: 0 | BI13: 0 | BJ13: 0 | BK13: 0 | BL13: =VLOOKUP($A13,PercentVMT1998,LDGV!$AB$2,FALSE)*LDGV!BL$37 -> 0 | BM13: 1990 | BN13: 0 | BO13: 0 | BP13: 0 | BQ13: 0 | BR13: 0 | BS13: 0 | BT13: 0 | BU13: =VLOOKUP($A13,PercentVMT1998,LDGV!$AB$2,FALSE)*LDGV!BU$37 -> 0 | BV13: 1991 | BW13: 0 | BX13: 0 | BY13: 0 | BZ13: 0 | CA13: 0 | CB13: 0 | CC13: 0 | CD13: =VLOOKUP($A13,PercentVMT1998,LDGV!$AB$2,FALSE)*LDGV!CD$37 -> 0 | CE13: 1992 | CF13: 0 | CG13: 0 | CH13: 0 | CI13: 0 | CJ13: 0 | CK13: 0 | CL13: 0 | CM13: =VLOOKUP($A13,PercentVMT1999,LDGV!$AB$2,FALSE)*LDGV!CM$37 -> 0 | CN13: 1993 | CO13: 0 | CP13: 0 | CQ13: 0 | CR13: 0 | CS13: 0 | CT13: 0 | CU13: 0 | CV13: =VLOOKUP($A13,PercentVMT2000,LDGV!$AB$2,FALSE)*LDGV!CV$37 -> 0 | CW13: 1994 | CX13: 0 | CY13: 0 | CZ13: 0 | DA13: 0 | DB13: 0 | DC13: 0 | DD13: 0 | DE13: =VLOOKUP($A13,PercentVMT2001,LDGV!$AB$2,FALSE)*LDGV!DE$37 -> 0 | DF13: 1995 | DG13: 0 | DH13: 0 | DI13: 0 | DJ13: 0 | DK13: 0 | DL13: 0 | DM13: 0 | DN13: =VLOOKUP($A13,PercentVMT2002,LDGV!$AB$2,FALSE)*LDGV!DN$37 -> 0 | DO13: 1996 | DP13: 0 | DQ13: 0 | DR13: 0 | DS13: 0 | DT13: 0 | DU13: 0 | DV13: 0 | DW13: =VLOOKUP($A13,PercentVMT2003,LDGV!$AB$2,FALSE)*LDGV!DW$37 -> 0 | DX13: 1997 | DY13: 0 | DZ13: 0 | EA13: 0 | EB13: 0 | EC13: 0 | ED13: 0 | EE13: 0 | EF13: =VLOOKUP($A13,PercentVMT2004,LDGV!$AB$2,FALSE)*LDGV!EF$37 -> 0 | EG13: 1998 | EH13: 0 | EI13: 0 | EJ13: 0 | EK13: 0 | EL13: 0 | EM13: 0 | EN13: 0 | EO13: =VLOOKUP($A13,PercentVMT2005,LDGV!$AB$2,FALSE)*LDGV!EO$37 -> 0 | EP13: 1999 | EQ13: 0 | ER13: 0 | ES13: 0 | ET13: 0 | EU13: 0 | EV13: 0 | EW13: 0 | EX13: =VLOOKUP($A13,PercentVMT2006,LDGV!$AB$2,FALSE)*LDGV!EX$37 -> 0 | EY13: 2000 | EZ13: 0 | FA13: 0 | FB13: 0 | FC13: 0 | FD13: 0 | FE13: 0 | FF13: 0 | FG13: =VLOOKUP($A13,PercentVMT2007,LDGV!$AB$2,FALSE)*LDGV!FG$37 -> 0 | FH13: 2001 | FI13: 0 | FJ13: 0 | FK13: 0 | FL13: 0 | FM13: 0 | FN13: 0 | FO13: 0 | FP13: =VLOOKUP($A13,PercentVMT2008,LDGV!$AB$2,FALSE)*LDGV!FP$37 -> 0 | FQ13: 2002 | FR13: 0 | FS13: 0 | FT13: 0 | FU13: 0 | FV13: 0 | FW13: 0 | FX13: 0 | FY13: =VLOOKUP($A13,PercentVMT2009,LDGV!$AB$2,FALSE)*LDGV!FY$37 -> 0
A14: 8 | B14: 1982 | C14: 0 | D14: 0 | E14: 0 | F14: 0 | G14: 0 | H14: 0 | I14: 0 | J14: 0 | K14: 1983 | L14: 0 | M14: 0 | N14: 0 | O14: 0 | P14: 0 | Q14: 0 | R14: 0 | S14: =VLOOKUP($A14,PercentVMT1998,LDGV!$AB$2,FALSE)*LDGV!S$37 -> 0 | T14: 1984 | U14: 0 | V14: 0 | W14: 0 | X14: 0 | Y14: 0 | Z14: 0 | AA14: 0 | AB14: =VLOOKUP($A14,PercentVMT1998,LDGV!$AB$2,FALSE)*LDGV!AB$37 -> 0 | AC14: 1985 | AD14: 0 | AE14: 0 | AF14: 0 | AG14: 0 | AH14: 0 | AI14: 0 | AJ14: 0 | AK14: =VLOOKUP($A14,PercentVMT1998,LDGV!$AB$2,FALSE)*LDGV!AK$37 -> 0 | AL14: 1986 | AM14: 0 | AN14: 0 | AO14: 0 | AP14: 0 | AQ14: 0 | AR14: 0 | AS14: 0 | AT14: =VLOOKUP($A14,PercentVMT1998,LDGV!$AB$2,FALSE)*LDGV!AT$37 -> 0 | AU14: 1987 | AV14: 0 | AW14: 0 | AX14: 0 | AY14: 0 | AZ14: 0 | BA14: 0 | BB14: 0 | BC14: =VLOOKUP($A14,PercentVMT1998,LDGV!$AB$2,FALSE)*LDGV!BC$37 -> 0 | BD14: 1988 | BE14: 0 | BF14: 0 | BG14: 0 | BH14: 0 | BI14: 0 | BJ14: 0 | BK14: 0 | BL14: =VLOOKUP($A14,PercentVMT1998,LDGV!$AB$2,FALSE)*LDGV!BL$37 -> 0 | BM14: 1989 | BN14: 0 | BO14: 0 | BP14: 0 | BQ14: 0 | BR14: 0 | BS14: 0 | BT14: 0 | BU14: =VLOOKUP($A14,PercentVMT1998,LDGV!$AB$2,FALSE)*LDGV!BU$37 -> 0 | BV14: 1990 | BW14: 0 | BX14: 0 | BY14: 0 | BZ14: 0 | CA14: 0 | CB14: 0 | CC14: 0 | CD14: =VLOOKUP($A14,PercentVMT1998,LDGV!$AB$2,FALSE)*LDGV!CD$37 -> 0 | CE14: 1991 | CF14: 0 | CG14: 0 | CH14: 0 | CI14: 0 | CJ14: 0 | CK14: 0 | CL14: 0 | CM14: =VLOOKUP($A14,PercentVMT1999,LDGV!$AB$2,FALSE)*LDGV!CM$37 -> 0 | CN14: 1992 | CO14: 0 | CP14: 0 | CQ14: 0 | CR14: 0 | CS14: 0 | CT14: 0 | CU14: 0 | CV14: =VLOOKUP($A14,PercentVMT2000,LDGV!$AB$2,FALSE)*LDGV!CV$37 -> 0 | CW14: 1993 | CX14: 0 | CY14: 0 | CZ14: 0 | DA14: 0 | DB14: 0 | DC14: 0 | DD14: 0 | DE14: =VLOOKUP($A14,PercentVMT2001,LDGV!$AB$2,FALSE)*LDGV!DE$37 -> 0 | DF14: 1994 | DG14: 0 | DH14: 0 | DI14: 0 | DJ14: 0 | DK14: 0 | DL14: 0 | DM14: 0 | DN14: =VLOOKUP($A14,PercentVMT2002,LDGV!$AB$2,FALSE)*LDGV!DN$37 -> 0 | DO14: 1995 | DP14: 0 | DQ14: 0 | DR14: 0 | DS14: 0 | DT14: 0 | DU14: 0 | DV14: 0 | DW14: =VLOOKUP($A14,PercentVMT2003,LDGV!$AB$2,FALSE)*LDGV!DW$37 -> 0 | DX14: 1996 | DY14: 0 | DZ14: 0 | EA14: 0 | EB14: 0 | EC14: 0 | ED14: 0 | EE14: 0 | EF14: =VLOOKUP($A14,PercentVMT2004,LDGV!$AB$2,FALSE)*LDGV!EF$37 -> 0 | EG14: 1997 | EH14: 0 | EI14: 0 | EJ14: 0 | EK14: 0 | EL14: 0 | EM14: 0 | EN14: 0 | EO14: =VLOOKUP($A14,PercentVMT2005,LDGV!$AB$2,FALSE)*LDGV!EO$37 -> 0 | EP14: 1998 | EQ14: 0 | ER14: 0 | ES14: 0 | ET14: 0 | EU14: 0 | EV14: 0 | EW14: 0 | EX14: =VLOOKUP($A14,PercentVMT2006,LDGV!$AB$2,FALSE)*LDGV!EX$37 -> 0 | EY14: 1999 | EZ14: 0 | FA14: 0 | FB14: 0 | FC14: 0 | FD14: 0 | FE14: 0 | FF14: 0 | FG14: =VLOOKUP($A14,PercentVMT2007,LDGV!$AB$2,FALSE)*LDGV!FG$37 -> 0 | FH14: 2000 | FI14: 0 | FJ14: 0 | FK14: 0 | FL14: 0 | FM14: 0 | FN14: 0 | FO14: 0 | FP14: =VLOOKUP($A14,PercentVMT2008,LDGV!$AB$2,FALSE)*LDGV!FP$37 -> 0 | FQ14: 2001 | FR14: 0 | FS14: 0 | FT14: 0 | FU14: 0 | FV14: 0 | FW14: 0 | FX14: 0 | FY14: =VLOOKUP($A14,PercentVMT2009,LDGV!$AB$2,FALSE)*LDGV!FY$37 -> 0
A15: 9 | B15: 1981 | C15: 0 | D15: 0 | E15: 0 | F15: 0 | G15: 0 | H15: 0 | I15: 0 | J15: 0 | K15: 1982 | L15: 0 | M15: 0 | N15: 0 | O15: 0 | P15: 0 | Q15: 0 | R15: 0 | S15: =VLOOKUP($A15,PercentVMT1998,LDGV!$AB$2,FALSE)*LDGV!S$37 -> 0 | T15: 1983 | U15: 0 | V15: 0 | W15: 0 | X15: 0 | Y15: 0 | Z15: 0 | AA15: 0 | AB15: =VLOOKUP($A15,PercentVMT1998,LDGV!$AB$2,FALSE)*LDGV!AB$37 -> 0 | AC15: 1984 | AD15: 0 | AE15: 0 | AF15: 0 | AG15: 0 | AH15: 0 | AI15: 0 | AJ15: 0 | AK15: =VLOOKUP($A15,PercentVMT1998,LDGV!$AB$2,FALSE)*LDGV!AK$37 -> 0 | AL15: 1985 | AM15: 0 | AN15: 0 | AO15: 0 | AP15: 0 | AQ15: 0 | AR15: 0 | AS15: 0 | AT15: =VLOOKUP($A15,PercentVMT1998,LDGV!$AB$2,FALSE)*LDGV!AT$37 -> 0 | AU15: 1986 | AV15: 0 | AW15: 0 | AX15: 0 | AY15: 0 | AZ15: 0 | BA15: 0 | BB15: 0 | BC15: =VLOOKUP($A15,PercentVMT1998,LDGV!$AB$2,FALSE)*LDGV!BC$37 -> 0 | BD15: 1987 | BE15: 0 | BF15: 0 | BG15: 0 | BH15: 0 | BI15: 0 | BJ15: 0 | BK15: 0 | BL15: =VLOOKUP($A15,PercentVMT1998,LDGV!$AB$2,FALSE)*LDGV!BL$37 -> 0 | BM15: 1988 | BN15: 0 | BO15: 0 | BP15: 0 | BQ15: 0 | BR15: 0 | BS15: 0 | BT15: 0 | BU15: =VLOOKUP($A15,PercentVMT1998,LDGV!$AB$2,FALSE)*LDGV!BU$37 -> 0 | BV15: 1989 | BW15: 0 | BX15: 0 | BY15: 0 | BZ15: 0 | CA15: 0 | CB15: 0 | CC15: 0 | CD15: =VLOOKUP($A15,PercentVMT1998,LDGV!$AB$2,FALSE)*LDGV!CD$37 -> 0 | CE15: 1990 | CF15: 0 | CG15: 0 | CH15: 0 | CI15: 0 | CJ15: 0 | CK15: 0 | CL15: 0 | CM15: =VLOOKUP($A15,PercentVMT1999,LDGV!$AB$2,FALSE)*LDGV!CM$37 -> 0 | CN15: 1991 | CO15: 0 | CP15: 0 | CQ15: 0 | CR15: 0 | CS15: 0 | CT15: 0 | CU15: 0 | CV15: =VLOOKUP($A15,PercentVMT2000,LDGV!$AB$2,FALSE)*LDGV!CV$37 -> 0 | CW15: 1992 | CX15: 0 | CY15: 0 | CZ15: 0 | DA15: 0 | DB15: 0 | DC15: 0 | DD15: 0 | DE15: =VLOOKUP($A15,PercentVMT2001,LDGV!$AB$2,FALSE)*LDGV!DE$37 -> 0 | DF15: 1993 | DG15: 0 | DH15: 0 | DI15: 0 | DJ15: 0 | DK15: 0 | DL15: 0 | DM15: 0 | DN15: =VLOOKUP($A15,PercentVMT2002,LDGV!$AB$2,FALSE)*LDGV!DN$37 -> 0 | DO15: 1994 | DP15: 0 | DQ15: 0 | DR15: 0 | DS15: 0 | DT15: 0 | DU15: 0 | DV15: 0 | DW15: =VLOOKUP($A15,PercentVMT2003,LDGV!$AB$2,FALSE)*LDGV!DW$37 -> 0 | DX15: 1995 | DY15: 0 | DZ15: 0 | EA15: 0 | EB15: 0 | EC15: 0 | ED15: 0 | EE15: 0 | EF15: =VLOOKUP($A15,PercentVMT2004,LDGV!$AB$2,FALSE)*LDGV!EF$37 -> 0 | EG15: 1996 | EH15: 0 | EI15: 0 | EJ15: 0 | EK15: 0 | EL15: 0 | EM15: 0 | EN15: 0 | EO15: =VLOOKUP($A15,PercentVMT2005,LDGV!$AB$2,FALSE)*LDGV!EO$37 -> 0 | EP15: 1997 | EQ15: 0 | ER15: 0 | ES15: 0 | ET15: 0 | EU15: 0 | EV15: 0 | EW15: 0 | EX15: =VLOOKUP($A15,PercentVMT2006,LDGV!$AB$2,FALSE)*LDGV!EX$37 -> 0 | EY15: 1998 | EZ15: 0 | FA15: 0 | FB15: 0 | FC15: 0 | FD15: 0 | FE15: 0 | FF15: 0 | FG15: =VLOOKUP($A15,PercentVMT2007,LDGV!$AB$2,FALSE)*LDGV!FG$37 -> 0 | FH15: 1999 | FI15: 0 | FJ15: 0 | FK15: 0 | FL15: 0 | FM15: 0 | FN15: 0 | FO15: 0 | FP15: =VLOOKUP($A15,PercentVMT2008,LDGV!$AB$2,FALSE)*LDGV!FP$37 -> 0 | FQ15: 2000 | FR15: 0 | FS15: 0 | FT15: 0 | FU15: 0 | FV15: 0 | FW15: 0 | FX15: 0 | FY15: =VLOOKUP($A15,PercentVMT2009,LDGV!$AB$2,FALSE)*LDGV!FY$37 -> 0
A16: 10 | B16: 1980 | C16: =VLOOKUP($B16,techs,C$4,FALSE) -> 0 | D16: 0 | E16: 0 | F16: 0 | G16: 0 | H16: 0 | I16: 0 | J16: 0 | K16: 1981 | L16: =VLOOKUP($K16,techs,L$4,FALSE) -> 0 | M16: 0 | N16: 0 | O16: 0 | P16: 0 | Q16: 0 | R16: 0 | S16: =VLOOKUP($A16,PercentVMT1998,LDGV!$AB$2,FALSE)*LDGV!S$37 -> 0 | T16: 1982 | U16: =VLOOKUP($T16,techs,U$4,FALSE) -> 0 | V16: 0 | W16: 0 | X16: 0 | Y16: 0 | Z16: 0 | AA16: 0 | AB16: =VLOOKUP($A16,PercentVMT1998,LDGV!$AB$2,FALSE)*LDGV!AB$37 -> 0 | AC16: 1983 | AD16: =VLOOKUP($AC16,techs,AD$4,FALSE) -> 0 | AE16: 0 | AF16: 0 | AG16: 0 | AH16: 0 | AI16: 0 | AJ16: 0 | AK16: =VLOOKUP($A16,PercentVMT1998,LDGV!$AB$2,FALSE)*LDGV!AK$37 -> 0 | AL16: 1984 | AM16: =VLOOKUP($AL16,techs,AM$4,FALSE) -> 0 | AN16: 0 | AO16: 0 | AP16: 0 | AQ16: 0 | AR16: 0 | AS16: 0 | AT16: =VLOOKUP($A16,PercentVMT1998,LDGV!$AB$2,FALSE)*LDGV!AT$37 -> 0 | AU16: 1985 | AV16: =VLOOKUP($AU16,techs,AV$4,FALSE) -> 0 | AW16: 0 | AX16: 0 | AY16: 0 | AZ16: 0 | BA16: 0 | BB16: 0 | BC16: =VLOOKUP($A16,PercentVMT1998,LDGV!$AB$2,FALSE)*LDGV!BC$37 -> 0 | BD16: 1986 | BE16: =VLOOKUP($BD16,techs,BE$4,FALSE) -> 0 | BF16: 0 | BG16: 0 | BH16: 0 | BI16: 0 | BJ16: 0 | BK16: 0 | BL16: =VLOOKUP($A16,PercentVMT1998,LDGV!$AB$2,FALSE)*LDGV!BL$37 -> 0 | BM16: 1987 | BN16: =VLOOKUP($BM16,techs,BN$4,FALSE) -> 0 | BO16: 0 | BP16: 0 | BQ16: 0 | BR16: 0 | BS16: 0 | BT16: 0 | BU16: =VLOOKUP($A16,PercentVMT1998,LDGV!$AB$2,FALSE)*LDGV!BU$37 -> 0 | BV16: 1988 | BW16: =VLOOKUP($BV16,techs,BW$4,FALSE) -> 0 | BX16: 0 | BY16: 0 | BZ16: 0 | CA16: 0 | CB16: 0 | CC16: 0 | CD16: =VLOOKUP($A16,PercentVMT1998,LDGV!$AB$2,FALSE)*LDGV!CD$37 -> 0 | CE16: 1989 | CF16: =VLOOKUP($CE16,techs,CF$4,FALSE) -> 0 | CG16: 0 | CH16: 0 | CI16: 0 | CJ16: 0 | CK16: 0 | CL16: 0 | CM16: =VLOOKUP($A16,PercentVMT1999,LDGV!$AB$2,FALSE)*LDGV!CM$37 -> 0 | CN16: 1990 | CO16: =VLOOKUP($CN16,techs,CO$4,FALSE) -> 0 | CP16: 0 | CQ16: 0 | CR16: 0 | CS16: 0 | CT16: 0 | CU16: 0 | CV16: =VLOOKUP($A16,PercentVMT2000,LDGV!$AB$2,FALSE)*LDGV!CV$37 -> 0 | CW16: 1991 | CX16: 0 | CY16: 0 | CZ16: 0 | DA16: 0 | DB16: 0 | DC16: 0 | DD16: 0 | DE16: =VLOOKUP($A16,PercentVMT2001,LDGV!$AB$2,FALSE)*LDGV!DE$37 -> 0 | DF16: 1992 | DG16: 0 | DH16: 0 | DI16: 0 | DJ16: 0 | DK16: 0 | DL16: 0 | DM16: 0 | DN16: =VLOOKUP($A16,PercentVMT2002,LDGV!$AB$2,FALSE)*LDGV!DN$37 -> 0 | DO16: 1993 | DP16: 0 | DQ16: 0 | DR16: 0 | DS16: 0 | DT16: 0 | DU16: 0 | DV16: 0 | DW16: =VLOOKUP($A16,PercentVMT2003,LDGV!$AB$2,FALSE)*LDGV!DW$37 -> 0 | DX16: 1994 | DY16: 0 | DZ16: 0 | EA16: 0 | EB16: 0 | EC16: 0 | ED16: 0 | EE16: 0 | EF16: =VLOOKUP($A16,PercentVMT2004,LDGV!$AB$2,FALSE)*LDGV!EF$37 -> 0 | EG16: 1995 | EH16: 0 | EI16: 0 | EJ16: 0 | EK16: 0 | EL16: 0 | EM16: 0 | EN16: 0 | EO16: =VLOOKUP($A16,PercentVMT2005,LDGV!$AB$2,FALSE)*LDGV!EO$37 -> 0 | EP16: 1996 | EQ16: 0 | ER16: 0 | ES16: 0 | ET16: 0 | EU16: 0 | EV16: 0 | EW16: 0 | EX16: =VLOOKUP($A16,PercentVMT2006,LDGV!$AB$2,FALSE)*LDGV!EX$37 -> 0 | EY16: 1997 | EZ16: 0 | FA16: 0 | FB16: 0 | FC16: 0 | FD16: 0 | FE16: 0 | FF16: 0 | FG16: =VLOOKUP($A16,PercentVMT2007,LDGV!$AB$2,FALSE)*LDGV!FG$37 -> 0 | FH16: 1998 | FI16: 0 | FJ16: 0 | FK16: 0 | FL16: 0 | FM16: 0 | FN16: 0 | FO16: 0 | FP16: =VLOOKUP($A16,PercentVMT2008,LDGV!$AB$2,FALSE)*LDGV!FP$37 -> 0 | FQ16: 1999 | FR16: 0 | FS16: 0 | FT16: 0 | FU16: 0 | FV16: 0 | FW16: 0 | FX16: 0 | FY16: =VLOOKUP($A16,PercentVMT2009,LDGV!$AB$2,FALSE)*LDGV!FY$37 -> 0
A17: 11 | B17: 1979 | C17: 0 | D17: 0 | E17: 0 | F17: 0 | G17: 0 | H17: 0 | I17: 0 | J17: 0 | K17: 1980 | L17: 0 | M17: 0 | N17: 0 | O17: 0 | P17: 0 | Q17: 0 | R17: 0 | S17: =VLOOKUP($A17,PercentVMT1998,LDGV!$AB$2,FALSE)*LDGV!S$37 -> 0 | T17: 1981 | U17: 0 | V17: 0 | W17: 0 | X17: 0 | Y17: 0 | Z17: 0 | AA17: 0 | AB17: =VLOOKUP($A17,PercentVMT1998,LDGV!$AB$2,FALSE)*LDGV!AB$37 -> 0 | AC17: 1982 | AD17: 0 | AE17: 0 | AF17: 0 | AG17: 0 | AH17: 0 | AI17: 0 | AJ17: 0 | AK17: =VLOOKUP($A17,PercentVMT1998,LDGV!$AB$2,FALSE)*LDGV!AK$37 -> 0 | AL17: 1983 | AM17: 0 | AN17: 0 | AO17: 0 | AP17: 0 | AQ17: 0 | AR17: 0 | AS17: 0 | AT17: =VLOOKUP($A17,PercentVMT1998,LDGV!$AB$2,FALSE)*LDGV!AT$37 -> 0 | AU17: 1984 | AV17: 0 | AW17: 0 | AX17: 0 | AY17: 0 | AZ17: 0 | BA17: 0 | BB17: 0 | BC17: =VLOOKUP($A17,PercentVMT1998,LDGV!$AB$2,FALSE)*LDGV!BC$37 -> 0 | BD17: 1985 | BE17: 0 | BF17: 0 | BG17: 0 | BH17: 0 | BI17: 0 | BJ17: 0 | BK17: 0 | BL17: =VLOOKUP($A17,PercentVMT1998,LDGV!$AB$2,FALSE)*LDGV!BL$37 -> 0 | BM17: 1986 | BN17: 0 | BO17: 0 | BP17: 0 | BQ17: 0 | BR17: 0 | BS17: 0 | BT17: 0 | BU17: =VLOOKUP($A17,PercentVMT1998,LDGV!$AB$2,FALSE)*LDGV!BU$37 -> 0 | BV17: 1987 | BW17: 0 | BX17: 0 | BY17: 0 | BZ17: 0 | CA17: 0 | CB17: 0 | CC17: 0 | CD17: =VLOOKUP($A17,PercentVMT1998,LDGV!$AB$2,FALSE)*LDGV!CD$37 -> 0 | CE17: 1988 | CF17: 0 | CG17: 0 | CH17: 0 | CI17: 0 | CJ17: 0 | CK17: 0 | CL17: 0 | CM17: =VLOOKUP($A17,PercentVMT1999,LDGV!$AB$2,FALSE)*LDGV!CM$37 -> 0 | CN17: 1989 | CO17: 0 | CP17: 0 | CQ17: 0 | CR17: 0 | CS17: 0 | CT17: 0 | CU17: 0 | CV17: =VLOOKUP($A17,PercentVMT2000,LDGV!$AB$2,FALSE)*LDGV!CV$37 -> 0 | CW17: 1990 | CX17: 0 | CY17: 0 | CZ17: 0 | DA17: 0 | DB17: 0 | DC17: 0 | DD17: 0 | DE17: =VLOOKUP($A17,PercentVMT2001,LDGV!$AB$2,FALSE)*LDGV!DE$37 -> 0 | DF17: 1991 | DG17: 0 | DH17: 0 | DI17: 0 | DJ17: 0 | DK17: 0 | DL17: 0 | DM17: 0 | DN17: =VLOOKUP($A17,PercentVMT2002,LDGV!$AB$2,FALSE)*LDGV!DN$37 -> 0 | DO17: 1992 | DP17: 0 | DQ17: 0 | DR17: 0 | DS17: 0 | DT17: 0 | DU17: 0 | DV17: 0 | DW17: =VLOOKUP($A17,PercentVMT2003,LDGV!$AB$2,FALSE)*LDGV!DW$37 -> 0 | DX17: 1993 | DY17: 0 | DZ17: 0 | EA17: 0 | EB17: 0 | EC17: 0 | ED17: 0 | EE17: 0 | EF17: =VLOOKUP($A17,PercentVMT2004,LDGV!$AB$2,FALSE)*LDGV!EF$37 -> 0 | EG17: 1994 | EH17: 0 | EI17: 0 | EJ17: 0 | EK17: 0 | EL17: 0 | EM17: 0 | EN17: 0 | EO17: =VLOOKUP($A17,PercentVMT2005,LDGV!$AB$2,FALSE)*LDGV!EO$37 -> 0 | EP17: 1995 | EQ17: 0 | ER17: 0 | ES17: 0 | ET17: 0 | EU17: 0 | EV17: 0 | EW17: 0 | EX17: =VLOOKUP($A17,PercentVMT2006,LDGV!$AB$2,FALSE)*LDGV!EX$37 -> 0 | EY17: 1996 | EZ17: 0 | FA17: 0 | FB17: 0 | FC17: 0 | FD17: 0 | FE17: 0 | FF17: 0 | FG17: =VLOOKUP($A17,PercentVMT2007,LDGV!$AB$2,FALSE)*LDGV!FG$37 -> 0 | FH17: 1997 | FI17: 0 | FJ17: 0 | FK17: 0 | FL17: 0 | FM17: 0 | FN17: 0 | FO17: 0 | FP17: =VLOOKUP($A17,PercentVMT2008,LDGV!$AB$2,FALSE)*LDGV!FP$37 -> 0 | FQ17: 1998 | FR17: 0 | FS17: 0 | FT17: 0 | FU17: 0 | FV17: 0 | FW17: 0 | FX17: 0 | FY17: =VLOOKUP($A17,PercentVMT2009,LDGV!$AB$2,FALSE)*LDGV!FY$37 -> 0
A18: 12 | B18: 1978 | C18: 0 | D18: 0 | E18: 0 | F18: 0 | G18: 0 | H18: 0 | I18: 0 | J18: 0 | K18: 1979 | L18: 0 | M18: 0 | N18: 0 | O18: 0 | P18: 0 | Q18: 0 | R18: 0 | S18: =VLOOKUP($A18,PercentVMT1998,LDGV!$AB$2,FALSE)*LDGV!S$37 -> 0 | T18: 1980 | U18: 0 | V18: 0 | W18: 0 | X18: 0 | Y18: 0 | Z18: 0 | AA18: 0 | AB18: =VLOOKUP($A18,PercentVMT1998,LDGV!$AB$2,FALSE)*LDGV!AB$37 -> 0 | AC18: 1981 | AD18: 0 | AE18: 0 | AF18: 0 | AG18: 0 | AH18: 0 | AI18: 0 | AJ18: 0 | AK18: =VLOOKUP($A18,PercentVMT1998,LDGV!$AB$2,FALSE)*LDGV!AK$37 -> 0 | AL18: 1982 | AM18: 0 | AN18: 0 | AO18: 0 | AP18: 0 | AQ18: 0 | AR18: 0 | AS18: 0 | AT18: =VLOOKUP($A18,PercentVMT1998,LDGV!$AB$2,FALSE)*LDGV!AT$37 -> 0 | AU18: 1983 | AV18: 0 | AW18: 0 | AX18: 0 | AY18: 0 | AZ18: 0 | BA18: 0 | BB18: 0 | BC18: =VLOOKUP($A18,PercentVMT1998,LDGV!$AB$2,FALSE)*LDGV!BC$37 -> 0 | BD18: 1984 | BE18: 0 | BF18: 0 | BG18: 0 | BH18: 0 | BI18: 0 | BJ18: 0 | BK18: 0 | BL18: =VLOOKUP($A18,PercentVMT1998,LDGV!$AB$2,FALSE)*LDGV!BL$37 -> 0 | BM18: 1985 | BN18: 0 | BO18: 0 | BP18: 0 | BQ18: 0 | BR18: 0 | BS18: 0 | BT18: 0 | BU18: =VLOOKUP($A18,PercentVMT1998,LDGV!$AB$2,FALSE)*LDGV!BU$37 -> 0 | BV18: 1986 | BW18: 0 | BX18: 0 | BY18: 0 | BZ18: 0 | CA18: 0 | CB18: 0 | CC18: 0 | CD18: =VLOOKUP($A18,PercentVMT1998,LDGV!$AB$2,FALSE)*LDGV!CD$37 -> 0 | CE18: 1987 | CF18: 0 | CG18: 0 | CH18: 0 | CI18: 0 | CJ18: 0 | CK18: 0 | CL18: 0 | CM18: =VLOOKUP($A18,PercentVMT1999,LDGV!$AB$2,FALSE)*LDGV!CM$37 -> 0 | CN18: 1988 | CO18: 0 | CP18: 0 | CQ18: 0 | CR18: 0 | CS18: 0 | CT18: 0 | CU18: 0 | CV18: =VLOOKUP($A18,PercentVMT2000,LDGV!$AB$2,FALSE)*LDGV!CV$37 -> 0 | CW18: 1989 | CX18: 0 | CY18: 0 | CZ18: 0 | DA18: 0 | DB18: 0 | DC18: 0 | DD18: 0 | DE18: =VLOOKUP($A18,PercentVMT2001,LDGV!$AB$2,FALSE)*LDGV!DE$37 -> 0 | DF18: 1990 | DG18: 0 | DH18: 0 | DI18: 0 | DJ18: 0 | DK18: 0 | DL18: 0 | DM18: 0 | DN18: =VLOOKUP($A18,PercentVMT2002,LDGV!$AB$2,FALSE)*LDGV!DN$37 -> 0 | DO18: 1991 | DP18: 0 | DQ18: 0 | DR18: 0 | DS18: 0 | DT18: 0 | DU18: 0 | DV18: 0 | DW18: =VLOOKUP($A18,PercentVMT2003,LDGV!$AB$2,FALSE)*LDGV!DW$37 -> 0 | DX18: 1992 | DY18: 0 | DZ18: 0 | EA18: 0 | EB18: 0 | EC18: 0 | ED18: 0 | EE18: 0 | EF18: =VLOOKUP($A18,PercentVMT2004,LDGV!$AB$2,FALSE)*LDGV!EF$37 -> 0 | EG18: 1993 | EH18: 0 | EI18: 0 | EJ18: 0 | EK18: 0 | EL18: 0 | EM18: 0 | EN18: 0 | EO18: =VLOOKUP($A18,PercentVMT2005,LDGV!$AB$2,FALSE)*LDGV!EO$37 -> 0 | EP18: 1994 | EQ18: 0 | ER18: 0 | ES18: 0 | ET18: 0 | EU18: 0 | EV18: 0 | EW18: 0 | EX18: =VLOOKUP($A18,PercentVMT2006,LDGV!$AB$2,FALSE)*LDGV!EX$37 -> 0 | EY18: 1995 | EZ18: 0 | FA18: 0 | FB18: 0 | FC18: 0 | FD18: 0 | FE18: 0 | FF18: 0 | FG18: =VLOOKUP($A18,PercentVMT2007,LDGV!$AB$2,FALSE)*LDGV!FG$37 -> 0 | FH18: 1996 | FI18: 0 | FJ18: 0 | FK18: 0 | FL18: 0 | FM18: 0 | FN18: 0 | FO18: 0 | FP18: =VLOOKUP($A18,PercentVMT2008,LDGV!$AB$2,FALSE)*LDGV!FP$37 -> 0 | FQ18: 1997 | FR18: 0 | FS18: 0 | FT18: 0 | FU18: 0 | FV18: 0 | FW18: 0 | FX18: 0 | FY18: =VLOOKUP($A18,PercentVMT2009,LDGV!$AB$2,FALSE)*LDGV!FY$37 -> 0
A19: 13 | B19: 1977 | C19: 0 | D19: 0 | E19: 0 | F19: 0 | G19: 0 | H19: 0 | I19: 0 | J19: 0 | K19: 1978 | L19: 0 | M19: 0 | N19: 0 | O19: 0 | P19: 0 | Q19: 0 | R19: 0 | S19: =VLOOKUP($A19,PercentVMT1998,LDGV!$AB$2,FALSE)*LDGV!S$37 -> 0 | T19: 1979 | U19: 0 | V19: 0 | W19: 0 | X19: 0 | Y19: 0 | Z19: 0 | AA19: 0 | AB19: =VLOOKUP($A19,PercentVMT1998,LDGV!$AB$2,FALSE)*LDGV!AB$37 -> 0 | AC19: 1980 | AD19: 0 | AE19: 0 | AF19: 0 | AG19: 0 | AH19: 0 | AI19: 0 | AJ19: 0 | AK19: =VLOOKUP($A19,PercentVMT1998,LDGV!$AB$2,FALSE)*LDGV!AK$37 -> 0 | AL19: 1981 | AM19: 0 | AN19: 0 | AO19: 0 | AP19: 0 | AQ19: 0 | AR19: 0 | AS19: 0 | AT19: =VLOOKUP($A19,PercentVMT1998,LDGV!$AB$2,FALSE)*LDGV!AT$37 -> 0 | AU19: 1982 | AV19: 0 | AW19: 0 | AX19: 0 | AY19: 0 | AZ19: 0 | BA19: 0 | BB19: 0 | BC19: =VLOOKUP($A19,PercentVMT1998,LDGV!$AB$2,FALSE)*LDGV!BC$37 -> 0 | BD19: 1983 | BE19: 0 | BF19: 0 | BG19: 0 | BH19: 0 | BI19: 0 | BJ19: 0 | BK19: 0 | BL19: =VLOOKUP($A19,PercentVMT1998,LDGV!$AB$2,FALSE)*LDGV!BL$37 -> 0 | BM19: 1984 | BN19: 0 | BO19: 0 | BP19: 0 | BQ19: 0 | BR19: 0 | BS19: 0 | BT19: 0 | BU19: =VLOOKUP($A19,PercentVMT1998,LDGV!$AB$2,FALSE)*LDGV!BU$37 -> 0 | BV19: 1985 | BW19: 0 | BX19: 0 | BY19: 0 | BZ19: 0 | CA19: 0 | CB19: 0 | CC19: 0 | CD19: =VLOOKUP($A19,PercentVMT1998,LDGV!$AB$2,FALSE)*LDGV!CD$37 -> 0 | CE19: 1986 | CF19: 0 | CG19: 0 | CH19: 0 | CI19: 0 | CJ19: 0 | CK19: 0 | CL19: 0 | CM19: =VLOOKUP($A19,PercentVMT1999,LDGV!$AB$2,FALSE)*LDGV!CM$37 -> 0 | CN19: 1987 | CO19: 0 | CP19: 0 | CQ19: 0 | CR19: 0 | CS19: 0 | CT19: 0 | CU19: 0 | CV19: =VLOOKUP($A19,PercentVMT2000,LDGV!$AB$2,FALSE)*LDGV!CV$37 -> 0 | CW19: 1988 | CX19: 0 | CY19: 0 | CZ19: 0 | DA19: 0 | DB19: 0 | DC19: 0 | DD19: 0 | DE19: =VLOOKUP($A19,PercentVMT2001,LDGV!$AB$2,FALSE)*LDGV!DE$37 -> 0 | DF19: 1989 | DG19: 0 | DH19: 0 | DI19: 0 | DJ19: 0 | DK19: 0 | DL19: 0 | DM19: 0 | DN19: =VLOOKUP($A19,PercentVMT2002,LDGV!$AB$2,FALSE)*LDGV!DN$37 -> 0 | DO19: 1990 | DP19: 0 | DQ19: 0 | DR19: 0 | DS19: 0 | DT19: 0 | DU19: 0 | DV19: 0 | DW19: =VLOOKUP($A19,PercentVMT2003,LDGV!$AB$2,FALSE)*LDGV!DW$37 -> 0 | DX19: 1991 | DY19: 0 | DZ19: 0 | EA19: 0 | EB19: 0 | EC19: 0 | ED19: 0 | EE19: 0 | EF19: =VLOOKUP($A19,PercentVMT2004,LDGV!$AB$2,FALSE)*LDGV!EF$37 -> 0 | EG19: 1992 | EH19: 0 | EI19: 0 | EJ19: 0 | EK19: 0 | EL19: 0 | EM19: 0 | EN19: 0 | EO19: =VLOOKUP($A19,PercentVMT2005,LDGV!$AB$2,FALSE)*LDGV!EO$37 -> 0 | EP19: 1993 | EQ19: 0 | ER19: 0 | ES19: 0 | ET19: 0 | EU19: 0 | EV19: 0 | EW19: 0 | EX19: =VLOOKUP($A19,PercentVMT2006,LDGV!$AB$2,FALSE)*LDGV!EX$37 -> 0 | EY19: 1994 | EZ19: 0 | FA19: 0 | FB19: 0 | FC19: 0 | FD19: 0 | FE19: 0 | FF19: 0 | FG19: =VLOOKUP($A19,PercentVMT2007,LDGV!$AB$2,FALSE)*LDGV!FG$37 -> 0 | FH19: 1995 | FI19: 0 | FJ19: 0 | FK19: 0 | FL19: 0 | FM19: 0 | FN19: 0 | FO19: 0 | FP19: =VLOOKUP($A19,PercentVMT2008,LDGV!$AB$2,FALSE)*LDGV!FP$37 -> 0 | FQ19: 1996 | FR19: 0 | FS19: 0 | FT19: 0 | FU19: 0 | FV19: 0 | FW19: 0 | FX19: 0 | FY19: =VLOOKUP($A19,PercentVMT2009,LDGV!$AB$2,FALSE)*LDGV!FY$37 -> 0
A20: 14 | B20: 1976 | C20: 0 | D20: 0 | E20: 0 | F20: 0 | G20: 0 | H20: 0 | I20: 0 | J20: 0 | K20: 1977 | L20: 0 | M20: 0 | N20: 0 | O20: 0 | P20: 0 | Q20: 0 | R20: 0 | S20: =VLOOKUP($A20,PercentVMT1998,LDGV!$AB$2,FALSE)*LDGV!S$37 -> 0 | T20: 1978 | U20: 0 | V20: 0 | W20: 0 | X20: 0 | Y20: 0 | Z20: 0 | AA20: 0 | AB20: =VLOOKUP($A20,PercentVMT1998,LDGV!$AB$2,FALSE)*LDGV!AB$37 -> 0 | AC20: 1979 | AD20: 0 | AE20: 0 | AF20: 0 | AG20: 0 | AH20: 0 | AI20: 0 | AJ20: 0 | AK20: =VLOOKUP($A20,PercentVMT1998,LDGV!$AB$2,FALSE)*LDGV!AK$37 -> 0 | AL20: 1980 | AM20: 0 | AN20: 0 | AO20: 0 | AP20: 0 | AQ20: 0 | AR20: 0 | AS20: 0 | AT20: =VLOOKUP($A20,PercentVMT1998,LDGV!$AB$2,FALSE)*LDGV!AT$37 -> 0 | AU20: 1981 | AV20: 0 | AW20: 0 | AX20: 0 | AY20: 0 | AZ20: 0 | BA20: 0 | BB20: 0 | BC20: =VLOOKUP($A20,PercentVMT1998,LDGV!$AB$2,FALSE)*LDGV!BC$37 -> 0 | BD20: 1982 | BE20: 0 | BF20: 0 | BG20: 0 | BH20: 0 | BI20: 0 | BJ20: 0 | BK20: 0 | BL20: =VLOOKUP($A20,PercentVMT1998,LDGV!$AB$2,FALSE)*LDGV!BL$37 -> 0 | BM20: 1983 | BN20: 0 | BO20: 0 | BP20: 0 | BQ20: 0 | BR20: 0 | BS20: 0 | BT20: 0 | BU20: =VLOOKUP($A20,PercentVMT1998,LDGV!$AB$2,FALSE)*LDGV!BU$37 -> 0 | BV20: 1984 | BW20: 0 | BX20: 0 | BY20: 0 | BZ20: 0 | CA20: 0 | CB20: 0 | CC20: 0 | CD20: =VLOOKUP($A20,PercentVMT1998,LDGV!$AB$2,FALSE)*LDGV!CD$37 -> 0 | CE20: 1985 | CF20: 0 | CG20: 0 | CH20: 0 | CI20: 0 | CJ20: 0 | CK20: 0 | CL20: 0 | CM20: =VLOOKUP($A20,PercentVMT1999,LDGV!$AB$2,FALSE)*LDGV!CM$37 -> 0 | CN20: 1986 | CO20: 0 | CP20: 0 | CQ20: 0 | CR20: 0 | CS20: 0 | CT20: 0 | CU20: 0 | CV20: =VLOOKUP($A20,PercentVMT2000,LDGV!$AB$2,FALSE)*LDGV!CV$37 -> 0 | CW20: 1987 | CX20: 0 | CY20: 0 | CZ20: 0 | DA20: 0 | DB20: 0 | DC20: 0 | DD20: 0 | DE20: =VLOOKUP($A20,PercentVMT2001,LDGV!$AB$2,FALSE)*LDGV!DE$37 -> 0 | DF20: 1988 | DG20: 0 | DH20: 0 | DI20: 0 | DJ20: 0 | DK20: 0 | DL20: 0 | DM20: 0 | DN20: =VLOOKUP($A20,PercentVMT2002,LDGV!$AB$2,FALSE)*LDGV!DN$37 -> 0 | DO20: 1989 | DP20: 0 | DQ20: 0 | DR20: 0 | DS20: 0 | DT20: 0 | DU20: 0 | DV20: 0 | DW20: =VLOOKUP($A20,PercentVMT2003,LDGV!$AB$2,FALSE)*LDGV!DW$37 -> 0 | DX20: 1990 | DY20: 0 | DZ20: 0 | EA20: 0 | EB20: 0 | EC20: 0 | ED20: 0 | EE20: 0 | EF20: =VLOOKUP($A20,PercentVMT2004,LDGV!$AB$2,FALSE)*LDGV!EF$37 -> 0 | EG20: 1991 | EH20: 0 | EI20: 0 | EJ20: 0 | EK20: 0 | EL20: 0 | EM20: 0 | EN20: 0 | EO20: =VLOOKUP($A20,PercentVMT2005,LDGV!$AB$2,FALSE)*LDGV!EO$37 -> 0 | EP20: 1992 | EQ20: 0 | ER20: 0 | ES20: 0 | ET20: 0 | EU20: 0 | EV20: 0 | EW20: 0 | EX20: =VLOOKUP($A20,PercentVMT2006,LDGV!$AB$2,FALSE)*LDGV!EX$37 -> 0 | EY20: 1993 | EZ20: 0 | FA20: 0 | FB20: 0 | FC20: 0 | FD20: 0 | FE20: 0 | FF20: 0 | FG20: =VLOOKUP($A20,PercentVMT2007,LDGV!$AB$2,FALSE)*LDGV!FG$37 -> 0 | FH20: 1994 | FI20: 0 | FJ20: 0 | FK20: 0 | FL20: 0 | FM20: 0 | FN20: 0 | FO20: 0 | FP20: =VLOOKUP($A20,PercentVMT2008,LDGV!$AB$2,FALSE)*LDGV!FP$37 -> 0 | FQ20: 1995 | FR20: 0 | FS20: 0 | FT20: 0 | FU20: 0 | FV20: 0 | FW20: 0 | FX20: 0 | FY20: =VLOOKUP($A20,PercentVMT2009,LDGV!$AB$2,FALSE)*LDGV!FY$37 -> 0
